Workbook

Sheet Accueil
E3: BF Manufacturiers Agro-Industriel
E4: Actualisation au 04/04/2024
B26: Profil Plus France - 19b Avenue Léon Gambetta - 92120 MONTROUGE
B27: Version : 1.0 - YB - Février 2024

Sheet Tutoriel
D3: Tutoriel
C7: Vous trouverez ici comment utiliser le fichier de synthèse des BF
C8: et toutes les astuces disponibles
C10: Entrer les remises
C12: Nous vous invitons à entrer les remises en premier,
C13: ainsi les tarifs affichés correspondront au prix qui vous sera facturé.
C15: Sur l'onglet "Accueil", cliquer sur
C16: Par manufacturier, vous pourrez alors entrer les remises négociées.
C18: Vous avez ensuite intérêt à enregistrer le fichier.
C19: Cela vous évitera d'entrer à nouveau les remises lors de la prochaine utilisation.
C21: Si vous souhaitez ré-initialiser les remises, il vous suffit de cliquer sur le bouton :
C22: Toutes les remises seront alors remises à 0.
C24: Retour à l'accueil
C26: Sur chaque onglet figure le bouton suivant :
C27: En cliquant dessus, vous retournez à l'accueil.
C29: Trouver les pneumatiques disponibles dans la dimension voulue
C31: Depuis l'accueil, cliquer sur
C33: Entrer les caractéristiques du pneumatique dans le tableau suivant :
C36: Toutes les informations ne sont pas indispensables.
C37: Vous pouvez par exemple n'entrer que le diamètre.
C39: Cliquez ensuite sur
C40: L'ensemble des pneumatiques correspondants aux caractéristiques saisies s'affichent en dessous.
C42: Pour supprimer le filtre, et afficher tous les pneumatiques, cliquer sur
C44: Consulter le barème d'un manufacturier
C46: Depuis l'accueil cliquer sur
C47: Pour accéder au barème de l'un des manufacturiers, cliquer sur son logo
C48: Depuis l'onglet présentant le barème d'un manufacturier, vous pouvez :
C49: Consulter les tarifs,
C50: Revenir à l'accueil en cliquant sur le bouton
C51: Consulter le barème d'un autre manufacturier
C52: en cliquant sur le bouton
C54: Modifier la remise en cliquant sur le bouton

Sheet Index
D3: Index Agro-Industriel
D7: ABREVIATION | F7: DEFINITION
D9: CAI | F9: Code Article International
D10: EAN | F10: European Article Number (code Barre)
D11: BF | F11: Barème de Facturation
D12: TD | F12: Tarif de distribution
D13: IC | F13: Indice de Charge
D14: IV | F14: Indice de Vitesse
D15: AG | F15: Agraire
D16: FO | F16: Forestier
D17: IN | F17: Industrie
D18: MC | F18: Motoculture
D19: RD | F19: Roues Directrices
D20: RE | F20: Remorque Agricole
D21: RM | F21: Roues Motrices
D22: RR | F22: Remorque Routière

Sheet Remises
B2: AGRO-INDUSTRIEL - Remises
B6: AGRO-INDUSTRIEL / NEUF
J8: 0.44
E10: 0.4 | J10: 0.4 | O10: 0.4
E12: 0.105 | O12: 0.375
E14: 0.105 | J14: 0.36

Sheet Manufacturiers
B2: BF Manufacturiers Agro-Industriel
B3: Actualisation au 04/04/2024
B6: GENIE CIVIL / NEUF

Sheet Pneus par dim.
F2: BF Manufacturiers Agro-Industriel
F3: Actualisation au 04/04/2024
B4: Largeur | C4: Hauteur | D4: Diamètre | E4: Charge | F4: Vitesse
A7: REFERENCES PNEUMATIQUES
A8: Manufacturier | B8: Largeur | C8: Hauteur | D8: Diam. | E8: IC | F8: IV | G8: Désignation | H8: Profil | I8: Prix BF ou TD | J8: Prix remisé | K8: CAI | L8: EAN/Gencode | M8: Type Rechapage | N8: Catégorie
A9: BRIDGESTONE | B9: 710 | C9: 70 | D9: 38 | E9: 171 | F9: D | G9: PN BRI 710/70R38 171D/168E VX-TRACTOR | H9: BS VX-TRACTOR | I9: 6758 | J9: =I9*(1-VLOOKUP(A9,Datas_Remises,4,0)) -> 6758 | K9: 13389 | L9: 3286341338911 | M9: Neuf | N9: ROUES MOTRICES
A10: BRIDGESTONE | B10: 710 | C10: 75 | D10: 42 | E10: 181 | F10: D | G10: PN BRI VF 710/75R42 181 D VT-TRAC | H10: BS VT-TRAC | I10: 10552 | J10: 10552 | K10: 6967 | L10: 3286340696715 | M10: Neuf | N10: ROUES MOTRICES
A11: BRIDGESTONE | B11: 360 | C11: 70 | D11: 24 | E11: 127 | F11: D | G11: PN BRI 360/70R24 127D/124E VX-TRACTOR | H11: BS VX-TRACTOR | I11: 1193 | J11: 1193 | K11: 17021 | L11: 3286341702118 | M11: Neuf | N11: ROUES MOTRICES
A12: BRIDGESTONE | B12: 710 | C12: 70 | D12: 42 | E12: 179 | F12: D | G12: PN BRI VF 710/70R42 179 D VT-TRAC | H12: BS VT-TRAC | I12: 9862 | J12: 9862 | K12: 6966 | L12: 3286340696616 | M12: Neuf | N12: ROUES MOTRICES
A13: BRIDGESTONE | B13: 15.5 | D13: 15 | E13: 114 | F13: A6 | G13: PN BRI 31X15.50 - 15 PD 1 4PR | H13: BS PD1 | I13: 764 | J13: 764 | K13: 70457 | L13: 3286347045714 | M13: Neuf | N13: MOTOCULTURE
A14: BRIDGESTONE | B14: 5 | D14: 12 | E14: 4PR | G14: PN BRI 5 - 12 FSLM 4PR | H14: BS FSLM | I14: 199 | J14: 199 | K14: 70841 | L14: 3286347084119 | M14: Neuf | N14: MOTOCULTURE
A15: BRIDGESTONE | B15: 600 | C15: 70 | D15: 28 | E15: 157 | F15: D | G15: PN BRI 600/70R28 157D/154E VX-TRACTOR | H15: BS VX-TRACTOR | I15: 3876 | J15: 3876 | K15: 13394 | L15: 3286341339413 | M15: Neuf | N15: ROUES MOTRICES
A16: BRIDGESTONE | B16: 600 | C16: 65 | D16: 28 | E16: 154 | F16: D | G16: PN BRI 600/65R28 154D/151E VX-TRACTOR | H16: BS VX-TRACTOR | I16: 3194 | J16: 3194 | K16: 13410 | L16: 3286341341010 | M16: Neuf | N16: ROUES MOTRICES
A17: BRIDGESTONE | B17: 380 | C17: 85 | D17: 28 | E17: 139 | F17: D | G17: PN BRI 380/85R28 139D/136E VX-TRACTOR | H17: BS VX-TRACTOR | I17: 1359 | J17: 1359 | K17: 13404 | L17: 3286341340419 | M17: Neuf | N17: ROUES MOTRICES
A18: BRIDGESTONE | B18: 520 | C18: 70 | D18: 38 | E18: 155 | F18: D | G18: PN BRI 520/70R38 155D/152E VX-TRACTOR | H18: BS VX-TRACTOR | I18: 3175 | J18: 3175 | K18: 13388 | L18: 3286341338812 | M18: Neuf | N18: ROUES MOTRICES
A19: BRIDGESTONE | B19: 460 | C19: 85 | D19: 38 | E19: 154 | F19: D | G19: PN BRI 460/85R38 154D/151E VX-TRACTOR | H19: BS VX-TRACTOR | I19: 2515 | J19: 2515 | K19: 13436 | L19: 3286341343618 | M19: Neuf | N19: ROUES MOTRICES
A20: BRIDGESTONE | B20: 520 | C20: 85 | D20: 38 | E20: 160 | F20: D | G20: PN BRI 520/85R38 160D/157E VX-TRACTOR | H20: BS VX-TRACTOR | I20: 3369 | J20: 3369 | K20: 13407 | L20: 3286341340716 | M20: Neuf | N20: ROUES MOTRICES
A21: BRIDGESTONE | B21: 8.5 | D21: 15 | E21: 85 | F21: A6 | G21: PN BRI 27X8.50 - 15 PD 1 4PR | H21: BS PD1 | I21: 370 | J21: 370 | K21: 73031 | L21: 3286347303111 | M21: Neuf | N21: MOTOCULTURE
A22: BRIDGESTONE | B22: 320 | C22: 85 | D22: 28 | E22: 129 | F22: D | G22: PN BRI 320/85R28 129D/126E VX-TRACTOR | H22: BS VX-TRACTOR | I22: 1017 | J22: 1017 | K22: 16981 | L22: 3286341698114 | M22: Neuf | N22: ROUES MOTRICES
A23: BRIDGESTONE | B23: 8.5 | D23: 12 | E23: 75 | F23: A6 | G23: PN BRI 22X8.50 - 12 4PR PILLOW DIA-1 TL | H23: BS PILLOW DIA-1 | I23: 296 | J23: 296 | K23: 72729 | L23: 3286347272912 | M23: Neuf | N23: MOTOCULTURE
A24: BRIDGESTONE | B24: 420 | C24: 85 | D24: 34 | E24: 147 | F24: D | G24: PN BRI 420/85R34 147D/144E VX-TRACTOR | H24: BS VX-TRACTOR | I24: 2031 | J24: 2031 | K24: 16979 | L24: 3286341697919 | M24: Neuf | N24: ROUES MOTRICES
A25: BRIDGESTONE | B25: 480 | C25: 70 | D25: 30 | E25: 147 | F25: D | G25: PN BRI 480/70R30 147D/144E VX-TRACTOR | H25: BS VX-TRACTOR | I25: 2242 | J25: 2242 | K25: 13387 | L25: 3286341338713 | M25: Neuf | N25: ROUES MOTRICES
A26: BRIDGESTONE | B26: 600 | C26: 70 | D26: 30 | E26: 158 | F26: D | G26: PN BRI 600/70R30 158D/155E VX-TRACTOR | H26: BS VX-TRACTOR | I26: 4061 | J26: 4061 | K26: 13414 | L26: 3286341341416 | M26: Neuf | N26: ROUES MOTRICES
A27: BRIDGESTONE | B27: 620 | C27: 70 | D27: 42 | E27: 166 | F27: D | G27: PN BRI 620/70R42 166D/163E VX-TRACTOR | H27: BS VX-TRACTOR | I27: 5238 | J27: 5238 | K27: 13415 | L27: 3286341341515 | M27: Neuf | N27: ROUES MOTRICES
A28: BRIDGESTONE | B28: 380 | C28: 70 | D28: 28 | E28: 127 | F28: D | G28: PN BRI 380/70R28 127D/124E VX-R TRACTOR | H28: BS VX-R TRACTOR | I28: 1334 | J28: 1334 | K28: 28103 | L28: 3286342810317 | M28: Neuf | N28: ROUES MOTRICES
A29: BRIDGESTONE | B29: 8 | D29: 18 | E29: 4PR | G29: PN BRI 8 -18 4P FSLH TT | H29: BS FSLH | I29: 492 | J29: 492 | K29: 72562 | L29: 3286347256219 | M29: Neuf | N29: MOTOCULTURE
A30: BRIDGESTONE | B30: 380 | C30: 70 | D30: 24 | E30: 130 | F30: D | G30: PN BRI 380/70R24 130D/127E VX-TRACTOR | H30: BS VX-TRACTOR | I30: 1317 | J30: 1317 | K30: 17024 | L30: 3286341702415 | M30: Neuf | N30: ROUES MOTRICES
A31: BRIDGESTONE | B31: 9.5 | D31: 16 | E31: 88 | F31: A6 | G31: PN BRI 9.5 - 16 FSLF 4PR | H31: BS FSLF | I31: 437 | J31: 437 | K31: 48980 | L31: 3286344898016 | M31: Neuf | N31: MOTOCULTURE
A32: BRIDGESTONE | B32: 250 | C32: 60 | D32: 14 | E32: 79 | F32: A6 | G32: PN BRI 250/60 - 14 M40B | H32: BS M40B | I32: 370 | J32: 370 | K32: 76744 | L32: 3286347674419 | M32: Neuf | N32: MOTOCULTURE
A33: BRIDGESTONE | B33: 540 | C33: 65 | D33: 30 | E33: 150 | F33: D | G33: PN BRI 540/65R30 150D/147E VX-TRACTOR | H33: BS VX-TRACTOR | I33: 2564 | J33: 2564 | K33: 13417 | L33: 3286341341713 | M33: Neuf | N33: ROUES MOTRICES
A34: BRIDGESTONE | B34: 600 | C34: 70 | D34: 34 | E34: 160 | F34: D | G34: PN BRI 600/70R34 160D/157E VX-TRACTOR | H34: BS VX-TRACTOR | I34: 4547 | J34: 4547 | K34: 19765 | L34: 3286341976519 | M34: Neuf | N34: ROUES MOTRICES
A35: BRIDGESTONE | B35: 13.6 | D35: 26 | E35: 110 | F35: A6 | G35: PN BRI 13.6 - 26 FL17 TT | H35: BS FL17 | I35: 1187 | J35: 1187 | K35: 70854 | L35: 3286347085413 | M35: Neuf | N35: MOTOCULTURE
A36: BRIDGESTONE | B36: 540 | C36: 65 | D36: 30 | E36: 155 | F36: D | G36: PN BRI VF 540/65R30 155 D VT-TRAC | H36: BS VT-TRAC | I36: 2923 | J36: 2923 | K36: 6952 | L36: 3286340695213 | M36: Neuf | N36: ROUES MOTRICES
A37: BRIDGESTONE | B37: 710 | C37: 70 | D37: 38 | E37: 178 | F37: D | G37: PN BRI VF 710/70R38 178 D VT-TRAC | H37: BS VT-TRAC | I37: 7245 | J37: 7245 | K37: 6962 | L37: 3286340696210 | M37: Neuf | N37: ROUES MOTRICES
A38: BRIDGESTONE | B38: 650 | C38: 65 | D38: 42 | E38: 170 | F38: D | G38: PN BRI VF 650/65R42 170 D VT-TRAC | H38: BS VT-TRAC | I38: 6150 | J38: 6150 | K38: 6965 | L38: 3286340696517 | M38: Neuf | N38: ROUES MOTRICES
A39: BRIDGESTONE | B39: 900 | C39: 60 | D39: 42 | E39: 189 | F39: D | G39: PN BRI VF900/60R42 189D/185E VT-TRAC | H39: BS VT TRACTOR | I39: 11713 | J39: 11713 | K39: 29267 | L39: 3286342926711 | M39: Neuf | N39: ROUES MOTRICES
A40: BRIDGESTONE | B40: 480 | C40: 65 | D40: 28 | E40: 148 | F40: D | G40: PN BRI VF 480/65R28 148 D VT-TRAC | H40: BS VT-TRAC | I40: 1947 | J40: 1947 | K40: 6948 | L40: 3286340694810 | M40: Neuf | N40: ROUES MOTRICES
A41: BRIDGESTONE | B41: 8.5 | D41: 12 | E41: 4PR | G41: PN BRI 24X8.50 -12 4P M40B | H41: BS M40B | I41: 348 | J41: 348 | K41: 72899 | L41: 3286347289910 | M41: Neuf | N41: MOTOCULTURE
A42: BRIDGESTONE | B42: 210 | C42: 60 | D42: 8 | E42: 56 | F42: A6 | G42: PN BRI 210/60 - 8 56 A8 AG MOWER M40B TL | H42: BS AG MOWER M40B | I42: 238 | J42: 238 | K42: 76745 | L42: 3286347674518 | M42: Neuf | N42: MOTOCULTURE
A43: BRIDGESTONE | B43: 540 | C43: 65 | D43: 28 | E43: 154 | F43: D | G43: PN BRI VF 540/65R28 154 D VT-TRAC | H43: BS VT-TRAC | I43: 2421 | J43: 2421 | K43: 6949 | L43: 3286340694919 | M43: Neuf | N43: ROUES MOTRICES
A44: BRIDGESTONE | B44: 540 | C44: 65 | D44: 38 | E44: 153 | F44: D | G44: PN BRI 540/65R38 153D/150E VX-TRACTOR | H44: BS VX-TRACTOR | I44: 3031 | J44: 3031 | K44: 13390 | L44: 3286341339017 | M44: Neuf | N44: ROUES MOTRICES
A45: BRIDGESTONE | B45: 580 | C45: 70 | D45: 38 | E45: 160 | F45: D | G45: PN BRI 580/70R38 160D/157E VX-TRACTOR | H45: BS VX-TRACTOR | I45: 4096 | J45: 4096 | K45: 13432 | L45: 3286341343212 | M45: Neuf | N45: ROUES MOTRICES
A46: BRIDGESTONE | B46: 8 | D46: 16 | E46: 4PR | G46: PN BRI 8 - 16 4 PR FD TT | H46: BS FD | I46: 381 | J46: 381 | K46: 70443 | L46: 3286347044311 | M46: Neuf | N46: MOTOCULTURE
A47: BRIDGESTONE | B47: 8 | D47: 16 | E47: 4PR | G47: PN BRI 8 - 16 4 PR FSLM TT | H47: BS FSLM | I47: 362 | J47: 362 | K47: 70432 | L47: 3286347043215 | M47: Neuf | N47: MOTOCULTURE
A48: BRIDGESTONE | B48: 7 | D48: 14 | E48: 4PR | G48: PN BRI 7 - 14 4 PR FSLM TT | H48: BS FSLM | I48: 260 | J48: 260 | K48: 48157 | L48: 3286344815716 | M48: Neuf | N48: MOTOCULTURE
A49: BRIDGESTONE | B49: 7 | D49: 16 | E49: 77 | F49: A6 | G49: PN BRI 7 - 16 4 PR FSLM TT | H49: BS FSLM | I49: 329 | J49: 329 | K49: 70431 | L49: 3286347043116 | M49: Neuf | N49: MOTOCULTURE
A50: BRIDGESTONE | B50: 12 | D50: 15 | E50: 102 | F50: A6 | G50: PN BRI 29X12.00 - 15 4 PR PD 1 | H50: BS PD1 | I50: 546 | J50: 546 | K50: 70455 | L50: 3286347045516 | M50: Neuf | N50: MOTOCULTURE
A51: BRIDGESTONE | B51: 6 | D51: 12 | E51: 4PR | G51: PN BRI 6 - 12 4 PR FD TT | H51: BS FD | I51: 204 | J51: 204 | K51: 70441 | L51: 3286347044113 | M51: Neuf | N51: MOTOCULTURE
A52: BRIDGESTONE | B52: 8 | D52: 10 | E52: 74 | F52: A6 | G52: PN BRI 20.5X8.00 - 10 4 PR PD 1 | H52: BS PD1 | I52: 274 | J52: 274 | K52: 70451 | L52: 3286347045110 | M52: Neuf | N52: MOTOCULTURE
A53: BRIDGESTONE | B53: 8.5 | D53: 12 | E53: 4PR | G53: PN BRI 23X8.50 - 12 4 PR PD | H53: BS PD | I53: 270 | J53: 270 | K53: 70448 | L53: 3286347044816 | M53: Neuf | N53: MOTOCULTURE
A54: BRIDGESTONE | B54: 8.5 | D54: 14 | E54: 4PR | G54: PN BRI 25X8.50 - 14 4 PR PD 1 | H54: BS PD1 | I54: 392 | J54: 392 | K54: 70849 | L54: 3286347084911 | M54: Neuf | N54: MOTOCULTURE
A55: BRIDGESTONE | B55: 8.5 | D55: 12 | E55: 4PR | G55: PN BRI 24X8.50 - 12 4 PR PD 1 | H55: BS PD1 | I55: 325 | J55: 325 | K55: 70453 | L55: 3286347045318 | M55: Neuf | N55: MOTOCULTURE
A56: BRIDGESTONE | B56: 6 | D56: 14 | E56: 4PR | G56: PN BRI 6 - 14 4 PR FSLM TT | H56: BS FSLM | I56: 238 | J56: 238 | K56: 70430 | L56: 3286347043017 | M56: Neuf | N56: MOTOCULTURE
A57: BRIDGESTONE | B57: 20 | D57: 10 | E57: 4PR | G57: PN BRI 20-800/10 4P M40B | H57: BS M40B | I57: 253 | J57: 253 | K57: 72727 | L57: 3286347272714 | M57: Neuf | N57: MOTOCULTURE
A58: BRIDGESTONE | B58: 5 | D58: 14 | E58: 4PR | G58: PN BRI 5 -14 4P FARM SERVICE LU TT | H58: BS FARM SERVICE LU | I58: 217 | J58: 217 | K58: 72541 | L58: 3286347254116 | M58: Neuf | N58: ROUES MOTRICES
A59: BRIDGESTONE | B59: 6 | D59: 14 | E59: 4PR | G59: PN BRI 6/14 4P FD TT | H59: BS FD | I59: 222 | J59: 222 | K59: 70834 | L59: 3286347083419 | M59: Neuf | N59: MOTOCULTURE
A60: BRIDGESTONE | B60: 315 | C60: 75 | D60: 15 | E60: 95 | F60: A6 | G60: PN BRI 315/75 D 15 4 PR M 40 B | H60: BS M40B | I60: 805 | J60: 805 | K60: 49019 | L60: 3286344901914 | M60: Neuf | N60: MOTOCULTURE
A61: BRIDGESTONE | B61: 8.5 | D61: 14 | E61: 4PR | G61: PN BRI 24X8.50 - 14 PD 1 4PR | H61: BS PD1 | I61: 370 | J61: 370 | K61: 71002 | L61: 3286347100215 | M61: Neuf | N61: MOTOCULTURE
A62: BRIDGESTONE | B62: 23 | D62: 12 | E62: 4PR | G62: PN BRI 23-8.50/12 4P M40B | H62: BS M40B | I62: 300 | J62: 300 | K62: 72768 | L62: 3286347276811 | M62: Neuf | N62: MOTOCULTURE
A63: BRIDGESTONE | B63: 4.5 | D63: 10 | E63: 4PR | G63: PN BRI 4.50 - 10 4 PR FSLM | H63: BS FSLM | I63: 122 | J63: 122 | K63: 70434 | L63: 3286347043413 | M63: Neuf | N63: MOTOCULTURE
A64: BRIDGESTONE | B64: 6 | D64: 12 | E64: 2PR | G64: PN BRI 6.00 - 12 2 PR TA | H64: BS TA | I64: 217 | J64: 217 | K64: 72666 | L64: 3286347266614 | M64: Neuf | N64: MOTOCULTURE
A65: BRIDGESTONE | B65: 475 | C65: 65 | D65: 20 | E65: 122 | F65: A6 | G65: PN BRI 475/65 D 20 4 PR PD 1 TT | H65: BS PD1 | I65: 1610 | J65: 1610 | K65: 49015 | L65: 3286344901518 | M65: Neuf | N65: MOTOCULTURE
A66: BRIDGESTONE | B66: 355 | C66: 80 | D66: 20 | E66: 111 | F66: A6 | G66: PN BRI 355/80 D 20 4 PR PD 1 TT | H66: BS PD1 | I66: 1445 | J66: 1445 | K66: 70848 | L66: 3286347084812 | M66: Neuf | N66: MOTOCULTURE
A67: BRIDGESTONE | B67: 380 | C67: 85 | D67: 24 | E67: 137 | F67: D | G67: PN BRI 380/85R24 137D/134E VX-TRACTOR | H67: BS VX-TRACTOR | I67: 1319 | J67: 1319 | K67: 13434 | L67: 3286341343410 | M67: Neuf | N67: ROUES MOTRICES
A68: BRIDGESTONE | B68: 710 | C68: 55 | D68: 30 | E68: 165 | F68: D | G68: PN BRI VF 710/55R30 165D162E VT-TRAC | H68: BS VT TRACTOR | I68: 4958 | J68: 4958 | K68: 10470 | L68: 3286341047011 | M68: Neuf | N68: ROUES MOTRICES
A69: BRIDGESTONE | B69: 13.6 | D69: 16 | E69: 100 | F69: A6 | G69: PN BRI 13.6 - 16 4 PR PD 1 | H69: BS PD1 | I69: 818 | J69: 818 | K69: 70459 | L69: 3286347045912 | M69: Neuf | N69: MOTOCULTURE
A70: BRIDGESTONE | B70: 710 | C70: 60 | D70: 38 | E70: 174 | F70: D | G70: PN BRI VF710/60R38 174D/171E VT-TRAC | H70: BS VT TRACTOR | I70: 6680 | J70: 6680 | K70: 28035 | L70: 3286342803517 | M70: Neuf | N70: ROUES MOTRICES
A71: BRIDGESTONE | B71: 600 | C71: 60 | D71: 30 | E71: 162 | F71: D | G71: PN BRI VF600/60R30 162D/159E VT-TRAC | H71: BS VT TRACTOR | I71: 3650 | J71: 3650 | K71: 28024 | L71: 3286342802411 | M71: Neuf | N71: ROUES MOTRICES
A72: BRIDGESTONE | B72: 580 | C72: 70 | D72: 42 | E72: 162 | F72: D | G72: PN BRI 580/70R42 162D/159E VX-TRACTOR | H72: BS VX-TRACTOR | I72: 4702 | J72: 4702 | K72: 19750 | L72: 3286341975017 | M72: Neuf | N72: ROUES MOTRICES
A73: BRIDGESTONE | B73: 600 | C73: 60 | D73: 28 | E73: 160 | F73: D | G73: PN BRI VF600/60R28 160D/157E VT-TRAC | H73: BS VT TRACTOR | I73: 3300 | J73: =I73*(1-VLOOKUP(A73,Datas_Remises,4,0)) -> 3300 | K73: 28023 | L73: 3286342802312 | M73: Neuf | N73: ROUES MOTRICES
A74: BRIDGESTONE | B74: 710 | C74: 60 | D74: 42 | E74: 176 | F74: D | G74: PN BRI VF710/60R42 176D/173E VT-TRAC | H74: BS VT TRACTOR | I74: 7800 | J74: 7800 | K74: 28038 | L74: 3286342803814 | M74: Neuf | N74: ROUES MOTRICES
A75: BRIDGESTONE | B75: 380 | C75: 70 | D75: 28 | E75: 133 | F75: D | G75: PN BRI 380/70R28 133D/130E VX-TRACTOR | H75: BS VX-TRACTOR | I75: 1508 | J75: 1508 | K75: 13402 | L75: 3286341340211 | M75: Neuf | N75: ROUES MOTRICES
A76: BRIDGESTONE | B76: 480 | C76: 65 | D76: 24 | E76: 140 | F76: D | G76: PN BRI 480/65R24 140D/137E VX-TRACTOR | H76: BS VX-TRACTOR | I76: 1688 | J76: 1688 | K76: 13393 | L76: 3286341339314 | M76: Neuf | N76: ROUES MOTRICES
A77: BRIDGESTONE | B77: 420 | C77: 70 | D77: 24 | E77: 136 | F77: D | G77: PN BRI 420/70R24 136D/133E VX-TRACTOR | H77: BS VX-TRACTOR | I77: 1498 | J77: 1498 | K77: 13403 | L77: 3286341340310 | M77: Neuf | N77: ROUES MOTRICES
A78: BRIDGESTONE | B78: 480 | C78: 70 | D78: 38 | E78: 151 | F78: D | G78: PN BRI 480/70R38 151D/148E VX-TRACTOR | H78: BS VX-TRACTOR | I78: 2593 | J78: 2593 | K78: 13411 | L78: 3286341341119 | M78: Neuf | N78: ROUES MOTRICES
A79: BRIDGESTONE | B79: 480 | C79: 70 | D79: 28 | E79: 145 | F79: D | G79: PN BRI 480/70R28 145D/142E VX-TRACTOR | H79: BS VX-TRACTOR | I79: 2042 | J79: 2042 | K79: 13405 | L79: 3286341340518 | M79: Neuf | N79: ROUES MOTRICES
A80: BRIDGESTONE | B80: 260 | C80: 70 | D80: 16 | E80: 109 | F80: D | G80: PN BRI 260/70R16 109D/106E VX-TRACTOR | H80: BS VX-TRACTOR | I80: 794 | J80: 794 | K80: 16969 | L80: 3286341696912 | M80: Neuf | N80: ROUES MOTRICES
A81: BRIDGESTONE | B81: 420 | C81: 85 | D81: 28 | E81: 144 | F81: D | G81: PN BRI 420/85R28 144D/141E VX-TRACTOR | H81: BS VX-TRACTOR | I81: 1628 | J81: 1628 | K81: 13425 | L81: 3286341342512 | M81: Neuf | N81: ROUES MOTRICES
A82: BRIDGESTONE | B82: 620 | C82: 75 | D82: 30 | E82: 169 | F82: D | G82: PN BRI VF 620/75R30 169D166E VT TRACTOR | H82: BS VT TRACTOR | I82: 6061 | J82: 6061 | K82: 10462 | L82: 3286341046212 | M82: Neuf | N82: ROUES MOTRICES
A83: BRIDGESTONE | B83: 540 | C83: 65 | D83: 34 | E83: 145 | F83: D | G83: PN BRI 540/65R34 145D/142E VX-R TRACTOR | H83: BS VX-R TRACTOR | I83: 2581 | J83: 2581 | K83: 28168 | L83: 3286342816814 | M83: Neuf | N83: ROUES MOTRICES
A84: BRIDGESTONE | B84: 620 | C84: 70 | D84: 42 | E84: 172 | F84: D | G84: PN BRI VF 620/70R42 172D169E VT-TRAC | H84: BS VT TRACTOR | I84: 6073 | J84: 6073 | K84: 10460 | L84: 3286341046014 | M84: Neuf | N84: ROUES MOTRICES
A85: BRIDGESTONE | B85: 650 | C85: 75 | D85: 38 | E85: 175 | F85: D | G85: PN BRI VF 650/75R38 175D172E VT TRACTOR | H85: BS VT TRACTOR | I85: 7056 | J85: 7056 | K85: 10468 | L85: 3286341046816 | M85: Neuf | N85: ROUES MOTRICES
A86: BRIDGESTONE | B86: 8 | D86: 10 | E86: 4PR | G86: PN BRI 20X8.00 - 10 4 PR PD TT | H86: BS PD | I86: 267 | J86: 267 | K86: 70447 | L86: 3286347044717 | M86: Neuf | N86: MOTOCULTURE
A87: BRIDGESTONE | B87: 320 | C87: 65 | D87: 16 | E87: 117 | F87: D | G87: PN BRI 320/65R16 117D/114E VX-TRACTOR | H87: BS VX-TRACTOR | I87: 1106 | J87: 1106 | K87: 17056 | L87: 3286341705614 | M87: Neuf | N87: ROUES MOTRICES
A88: BRIDGESTONE | B88: 280 | C88: 70 | D88: 16 | E88: 112 | F88: D | G88: PN BRI 280/70R16 112D/109E VX-TRACTOR | H88: BS VX-TRACTOR | I88: 830 | J88: 830 | K88: 17019 | L88: 3286341701913 | M88: Neuf | N88: ROUES MOTRICES
A89: BRIDGESTONE | B89: 480 | C89: 70 | D89: 34 | E89: 149 | F89: D | G89: PN BRI 480/70R34 149D/146E VX-TRACTOR | H89: BS VX-TRACTOR | I89: 2457 | J89: 2457 | K89: 19747 | L89: 3286341974713 | M89: Neuf | N89: ROUES MOTRICES
A90: BRIDGESTONE | B90: 710 | C90: 70 | D90: 42 | E90: 173 | F90: D | G90: PN BRI 710/70R42 173D170E VX-TRACTOR | H90: BS VX-TRACTOR | I90: 8698 | J90: 8698 | K90: 13431 | L90: 3286341343113 | M90: Neuf | N90: ROUES MOTRICES
A91: BRIDGESTONE | B91: 440 | C91: 65 | D91: 28 | E91: 138 | F91: D | G91: PN BRI 440/65R28 138D/135E VX-TRACTOR | H91: BS VX-TRACTOR | I91: 1668 | J91: 1668 | K91: 19760 | L91: 3286341976014 | M91: Neuf | N91: ROUES MOTRICES
A92: BRIDGESTONE | B92: 420 | C92: 85 | D92: 38 | E92: 149 | F92: D | G92: PN BRI 420/85R38 149D VX-TRACTOR | H92: BS VX-TRACTOR | I92: 2398 | J92: 2398 | K92: 16899 | L92: 3286341689914 | M92: Neuf | N92: ROUES MOTRICES
A93: BRIDGESTONE | B93: 710 | C93: 75 | D93: 42 | E93: 175 | F93: D | G93: PN BRI 710/75R42 175D VX-TRACTOR | H93: BS VX-TRACTOR | I93: 9703 | J93: 9703 | K93: 16897 | L93: 3286341689716 | M93: Neuf | N93: ROUES MOTRICES
A94: BRIDGESTONE | B94: 540 | C94: 65 | D94: 24 | E94: 146 | F94: D | G94: PN BRI 540/65R24 146D VX-TRACTOR | H94: BS VX-TRACTOR | I94: 2082 | J94: 2082 | K94: 16886 | L94: 3286341688610 | M94: Neuf | N94: ROUES MOTRICES
A95: BRIDGESTONE | B95: 460 | C95: 85 | D95: 34 | E95: 152 | F95: D | G95: PN BRI 460/85R34 152D/149E VX-TRACTOR | H95: BS VX-TRACTOR | I95: 2372 | J95: 2372 | K95: 16971 | L95: 3286341697117 | M95: Neuf | N95: ROUES MOTRICES
A96: BRIDGESTONE | B96: 10.5 | D96: 12 | E96: 4PR | G96: PN BRI 23X10.50 - 12 4 PR M40B | H96: BS M40B | I96: 348 | J96: 348 | K96: 73055 | L96: 3286347305511 | M96: Neuf | N96: MOTOCULTURE
A97: BRIDGESTONE | B97: 650 | C97: 65 | D97: 42 | E97: 165 | F97: D | G97: PN BRI 650/65R42 165D/161E VX-TRACTOR | H97: BS VX-TRACTOR | I97: 5459 | J97: 5459 | K97: 13439 | L97: 3286341343915 | M97: Neuf | N97: ROUES MOTRICES
A98: BRIDGESTONE | B98: 420 | C98: 70 | D98: 28 | E98: 139 | F98: D | G98: PN BRI 420/70R28 139D/136E VX-TRACTOR | H98: BS VX-TRACTOR | I98: 1630 | J98: 1630 | K98: 13408 | L98: 3286341340815 | M98: Neuf | N98: ROUES MOTRICES
A99: BRIDGESTONE | B99: 650 | C99: 65 | D99: 38 | E99: 163 | F99: D | G99: PN BRI 650/65R38 163D/159E VX-TRACTOR | H99: BS VX-TRACTOR | I99: 4575 | J99: 4575 | K99: 13398 | L99: 3286341339819 | M99: Neuf | N99: ROUES MOTRICES
A100: BRIDGESTONE | B100: 460 | C100: 85 | D100: 30 | E100: 150 | F100: D | G100: PN BRI 460/85R30 150D/147E VX-TRACTOR | H100: BS VX-TRACTOR | I100: 2103 | J100: 2103 | K100: 16977 | L100: 3286341697711 | M100: Neuf | N100: ROUES MOTRICES
A101: BRIDGESTONE | B101: 650 | C101: 65 | D101: 34 | E101: 167 | F101: D | G101: PN BRI VF 650/65R34 167D164E VT TRACTOR | H101: BS VT TRACTOR | I101: 5301 | J101: 5301 | K101: 10466 | L101: 3286341046618 | M101: Neuf | N101: ROUES MOTRICES
A102: BRIDGESTONE | B102: 480 | C102: 65 | D102: 28 | E102: 142 | F102: D | G102: PN BRI 480/65R28 142D/139E VX-TRACTOR | H102: BS VX-TRACTOR | I102: 1816 | J102: 1816 | K102: 13409 | L102: 3286341340914 | M102: Neuf | N102: ROUES MOTRICES
A103: BRIDGESTONE | B103: 600 | C103: 65 | D103: 34 | E103: 163 | F103: D | G103: PN BRI VF 600/65R34 163D159E VT TRAC NRO | H103: BS VT TRAC | I103: 3512 | J103: 3512 | K103: 10448 | L103: 3286341044812 | M103: Neuf | N103: ROUES MOTRICES
A104: BRIDGESTONE | B104: 600 | C104: 65 | D104: 38 | E104: 164 | F104: D | G104: PN BRI VF 600/65R38 164D160E VT TRAC NRO | H104: BS VT TRAC | I104: 3863 | J104: 3863 | K104: 10450 | L104: 3286341045017 | M104: Neuf | N104: ROUES MOTRICES
A105: BRIDGESTONE | B105: 460 | C105: 85 | D105: 38 | E105: 149 | F105: D | G105: PN BRI 460/85R38 149D/146E VX-R TRACTOR | H105: BS VX-R TRACTOR | I105: 2302 | J105: 2302 | K105: 28127 | L105: 3286342812717 | M105: Neuf | N105: ROUES MOTRICES
A106: BRIDGESTONE | B106: 440 | C106: 65 | D106: 24 | E106: 135 | F106: D | G106: PN BRI 440/65R24 135D VX-TRACTOR | H106: BS VX-TRACTOR | I106: 1487 | J106: 1487 | K106: 16975 | L106: 3286341697513 | M106: Neuf | N106: ROUES MOTRICES
A107: BRIDGESTONE | B107: 460 | C107: 85 | D107: 34 | E107: 147 | F107: D | G107: PN BRI 460/85R34 147D/144E VX-R TRACTOR | H107: BS VX-R TRACTOR | I107: 2191 | J107: 2191 | K107: 28125 | L107: 3286342812519 | M107: Neuf | N107: ROUES MOTRICES
A108: BRIDGESTONE | B108: 600 | C108: 65 | D108: 28 | E108: 159 | F108: D | G108: PN BRI VF 600/65R28 159D156E VT TRAC NRO | H108: BS VT TRAC | I108: 3380 | J108: 3380 | K108: 10452 | L108: 3286341045215 | M108: Neuf | N108: ROUES MOTRICES
A109: BRIDGESTONE | B109: 600 | C109: 70 | D109: 34 | E109: 167 | F109: D | G109: PN BRI VF 600/70R34 167D164E VT TRAC NRO | H109: BS VT TRAC | I109: 4895 | J109: 4895 | K109: 10458 | L109: 3286341045819 | M109: Neuf | N109: ROUES MOTRICES
A110: BRIDGESTONE | B110: 420 | C110: 70 | D110: 28 | E110: 133 | F110: D | G110: PN BRI 420/70R28 133D/130E VX-R TRACTOR | H110: BS VX-R TRACTOR | I110: 1485 | J110: 1485 | K110: 28135 | L110: 3286342813516 | M110: Neuf | N110: ROUES MOTRICES
A111: BRIDGESTONE | B111: 540 | C111: 65 | D111: 34 | E111: 152 | F111: D | G111: PN BRI 540/65R34 152D VX-TRACTOR | H111: BS VX-TRACTOR | I111: 2872 | J111: 2872 | K111: 16973 | L111: 3286341697315 | M111: Neuf | N111: ROUES MOTRICES
A112: BRIDGESTONE | B112: 600 | C112: 70 | D112: 28 | E112: 164 | F112: D | G112: PN BRI VF 600/70R28 164D160E VT TRAC NRO | H112: BS VT TRAC | I112: 4237 | J112: 4237 | K112: 10454 | L112: 3286341045413 | M112: Neuf | N112: ROUES MOTRICES
A113: BRIDGESTONE | B113: 600 | C113: 70 | D113: 30 | E113: 165 | F113: D | G113: PN BRI VF 600/70R30 165D161E VT TRAC NRO | H113: BS VT TRAC | I113: 4555 | J113: 4555 | K113: 10456 | L113: 3286341045611 | M113: Neuf | N113: ROUES MOTRICES
A114: BRIDGESTONE | B114: 340 | C114: 85 | D114: 38 | E114: 133 | F114: D | G114: PN BRI 340/85R38 133D/130E VX-R TRACTOR | H114: BS VX-R TRACTOR | I114: 1376 | J114: 1376 | K114: 28093 | L114: 3286342809311 | M114: Neuf | N114: ROUES MOTRICES
A115: BRIDGESTONE | B115: 650 | C115: 75 | D115: 38 | E115: 169 | F115: D | G115: PN BRI 650/75R38 169D/166E VX-TRACTOR | H115: BS VX-TRACTOR | I115: 6553 | J115: 6553 | K115: 19756 | L115: 3286341975611 | M115: Neuf | N115: ROUES MOTRICES
A116: BRIDGESTONE | B116: 380 | C116: 85 | D116: 30 | E116: 135 | F116: D | G116: PN BRI 380/85R30 135D/132E VX-R TRACTOR | H116: BS VX-R TRACTOR | I116: 1478 | J116: 1478 | K116: 28107 | L116: 3286342810713 | M116: Neuf | N116: ROUES MOTRICES
A117: BRIDGESTONE | B117: 520 | C117: 70 | D117: 38 | E117: 150 | F117: D | G117: PN BRI 520/70R38 150D/147E VX-R TRACTOR | H117: BS VX-R TRACTOR | I117: 2871 | J117: 2871 | K117: 28148 | L117: 3286342814810 | M117: Neuf | N117: ROUES MOTRICES
A118: BRIDGESTONE | B118: 540 | C118: 65 | D118: 28 | E118: 149 | F118: D | G118: PN BRI 540/65R28 149D/146E VX-TRACTOR | H118: BS VX-TRACTOR | I118: 2292 | J118: 2292 | K118: 13430 | L118: 3286341343014 | M118: Neuf | N118: ROUES MOTRICES
A119: BRIDGESTONE | B119: 600 | C119: 65 | D119: 38 | E119: 159 | F119: D | G119: PN BRI 600/65R38 159D/156E VX-TRACTOR | H119: BS VX-TRACTOR | I119: 3510 | J119: 3510 | K119: 13391 | L119: 3286341339116 | M119: Neuf | N119: ROUES MOTRICES
A120: BRIDGESTONE | B120: 280 | C120: 85 | D120: 28 | E120: 118 | F120: D | G120: PN BRI 280/85R28 118D/115E VX-R TRACTOR | H120: BS VX-R TRACTOR | I120: 949 | J120: 949 | K120: 28075 | L120: 3286342807515 | M120: Neuf | N120: ROUES MOTRICES
A121: BRIDGESTONE | B121: 580 | C121: 70 | D121: 38 | E121: 155 | F121: D | G121: PN BRI 580/70R38 155D/152E VX-R TRACTOR | H121: BS VX-R TRACTOR | I121: 3697 | J121: 3697 | K121: 28150 | L121: 3286342815015 | M121: Neuf | N121: ROUES MOTRICES
A122: BRIDGESTONE | B122: 320 | C122: 85 | D122: 24 | E122: 122 | F122: D | G122: PN BRI 320/85R24 122D/119E VX-R TRACTOR | H122: BS VX-R TRACTOR | I122: 863 | J122: 863 | K122: 28078 | L122: 3286342807812 | M122: Neuf | N122: ROUES MOTRICES
A123: BRIDGESTONE | B123: 520 | C123: 85 | D123: 42 | E123: 162 | F123: D | G123: PN BRI 520/85R42 162D/159E VX-TRACTOR | H123: BS VX-TRACTOR | I123: 4317 | J123: 4317 | K123: 19761 | L123: 3286341976113 | M123: Neuf | N123: ROUES MOTRICES
A124: BRIDGESTONE | B124: 340 | C124: 85 | D124: 24 | E124: 125 | F124: D | G124: PN BRI 340/85R24 125D/122E VX-R TRACTOR | H124: BS VX-R TRACTOR | I124: 959 | J124: 959 | K124: 28087 | L124: 3286342808710 | M124: Neuf | N124: ROUES MOTRICES
A125: BRIDGESTONE | B125: 520 | C125: 85 | D125: 38 | E125: 155 | F125: D | G125: PN BRI 520/85R38 155D/152E VX-R TRACTOR | H125: BS VX-R TRACTOR | I125: 3054 | J125: 3054 | K125: 28131 | L125: 3286342813110 | M125: Neuf | N125: ROUES MOTRICES
A126: BRIDGESTONE | B126: 650 | C126: 85 | D126: 38 | E126: 173 | F126: D | G126: PN BRI 650/85R38 173D VX-TRACTOR | H126: BS VX-TRACTOR | I126: 7649 | J126: 7649 | K126: 16889 | L126: 3286341688917 | M126: Neuf | N126: ROUES MOTRICES
A127: BRIDGESTONE | B127: 340 | C127: 85 | D127: 28 | E127: 133 | F127: D | G127: PN BRI 340/85R28 133D VX-TRACTOR | H127: BS VX-TRACTOR | I127: 1284 | J127: 1284 | K127: 16888 | L127: 3286341688818 | M127: Neuf | N127: ROUES MOTRICES
A128: BRIDGESTONE | B128: 480 | C128: 70 | D128: 38 | E128: 145 | F128: D | G128: PN BRI 480/70R38 145D/142E VX-R TRACTOR | H128: BS VX-R TRACTOR | I128: 2399 | J128: 2399 | K128: 28144 | L128: 3286342814414 | M128: Neuf | N128: ROUES MOTRICES
A129: BRIDGESTONE | B129: 480 | C129: 70 | D129: 34 | E129: 143 | F129: D | G129: PN BRI 480/70R34 143D/140E VX-R TRACTOR | H129: BS VX-R TRACTOR | I129: 2196 | J129: 2196 | K129: 28142 | L129: 3286342814216 | M129: Neuf | N129: ROUES MOTRICES
A130: BRIDGESTONE | B130: 420 | C130: 85 | D130: 38 | E130: 144 | F130: D | G130: PN BRI 420/85R38 144D/141E VX-R TRACTOR | H130: BS VX-R TRACTOR | I130: 2135 | J130: 2135 | K130: 28121 | L130: 3286342812113 | M130: Neuf | N130: ROUES MOTRICES
A131: BRIDGESTONE | B131: 340 | C131: 85 | D131: 24 | E131: 130 | F131: D | G131: PN BRI 340/85R24 130D VX-TRACTOR | H131: BS VX-TRACTOR | I131: 1090 | J131: 1090 | K131: 16892 | L131: 3286341689211 | M131: Neuf | N131: ROUES MOTRICES
A132: BRIDGESTONE | B132: 480 | C132: 70 | D132: 24 | E132: 143 | F132: D | G132: PN BRI 480/70R24 143D/140E VX-TRACTOR | H132: BS VX-TRACTOR | I132: 1882 | J132: 1882 | K132: 19754 | L132: 3286341975413 | M132: Neuf | N132: ROUES MOTRICES
A133: BRIDGESTONE | B133: 600 | C133: 65 | D133: 34 | E133: 157 | F133: D | G133: PN BRI 600/65R34 157D VX-TRACTOR | H133: BS VX-TRACTOR | I133: 3304 | J133: 3304 | K133: 16894 | L133: 3286341689419 | M133: Neuf | N133: ROUES MOTRICES
A134: BRIDGESTONE | B134: 420 | C134: 85 | D134: 30 | E134: 145 | F134: D | G134: PN BRI 420/85R30 145D VX-TRACTOR | H134: BS VX-TRACTOR | I134: 1714 | J134: 1714 | K134: 16895 | L134: 3286341689518 | M134: Neuf | N134: ROUES MOTRICES
A135: BRIDGESTONE | B135: 480 | C135: 70 | D135: 28 | E135: 140 | F135: D | G135: PN BRI 480/70R28 140D/137E VX-R TRACTOR | H135: BS VX-R TRACTOR | I135: 1808 | J135: 1808 | K135: 28138 | L135: 3286342813813 | M135: Neuf | N135: ROUES MOTRICES
A136: BRIDGESTONE | B136: 380 | C136: 85 | D136: 30 | E136: 140 | F136: D | G136: PN BRI 380/85R30 140D/137E VX-TRACTOR | H136: BS VX-TRACTOR | I136: 1618 | J136: 1618 | K136: 19763 | L136: 3286341976311 | M136: Neuf | N136: ROUES MOTRICES
A137: BRIDGESTONE | B137: 500 | C137: 85 | D137: 24 | E137: 163 | F137: A8 | G137: PN BRI VF 500/85R24 163A8 VT COMBINE CFO | H137: BS VT COMBINE | I137: 2467 | J137: =I137*(1-VLOOKUP(A137,Datas_Remises,4,0)) -> 2467 | K137: 8551 | L137: 3286340855112 | M137: Neuf | N137: ROUES MOTRICES
A138: BRIDGESTONE | B138: 540 | C138: 65 | D138: 30 | E138: 161 | F138: A8 | G138: PN BRI VF 540/65R30 161A8 VT COMBINE CFO | H138: BS VT COMBINE | I138: 2475 | J138: 2475 | K138: 7762 | L138: 3286340776219 | M138: Neuf | N138: ROUES MOTRICES
A139: BRIDGESTONE | B139: 340 | C139: 85 | D139: 28 | E139: 127 | F139: D | G139: PN BRI 340/85R28 127D/124E VX-R TRACTOR | H139: BS VX-R TRACTOR | I139: 1152 | J139: 1152 | K139: 28088 | L139: 3286342808819 | M139: Neuf | N139: ROUES MOTRICES
A140: BRIDGESTONE | B140: 650 | C140: 85 | D140: 38 | E140: 179 | F140: D | G140: PN BRI VF 650/85R38 179 D VT-TRAC | H140: BS VT-TRAC | I140: 8935 | J140: 8935 | K140: 6961 | L140: 3286340696111 | M140: Neuf | N140: ROUES MOTRICES
A141: BRIDGESTONE | B141: 380 | C141: 85 | D141: 24 | E141: 131 | F141: D | G141: PN BRI 380/85R24 131D/128E VX-R TRACTOR | H141: BS VX-R TRACTOR | I141: 1177 | J141: 1177 | K141: 28098 | L141: 3286342809816 | M141: Neuf | N141: ROUES MOTRICES
A142: BRIDGESTONE | B142: 440 | C142: 65 | D142: 24 | E142: 128 | F142: D | G142: PN BRI 440/65R24 128D/125E VX-R TRACTOR | H142: BS VX-R TRACTOR | I142: 1353 | J142: 1353 | K142: 28154 | L142: 3286342815411 | M142: Neuf | N142: ROUES MOTRICES
A143: BRIDGESTONE | B143: 750 | C143: 65 | D143: 26 | E143: 177 | F143: A8 | G143: PN BRI VF750/65R26 177A8 VT COMBINE CFO | H143: BS VT COMBINE | I143: 6571 | J143: 6571 | K143: 8555 | L143: 3286340855518 | M143: Neuf | N143: ROUES MOTRICES
A144: BRIDGESTONE | B144: 650 | C144: 65 | D144: 38 | E144: 169 | F144: D | G144: PN BRI VF 650/65R38 169 D VT-TRAC | H144: BS VT-TRAC | I144: 4917 | J144: 4917 | K144: 6960 | L144: 3286340696012 | M144: Neuf | N144: ROUES MOTRICES
A145: BRIDGESTONE | B145: 420 | C145: 85 | D145: 34 | E145: 142 | F145: D | G145: PN BRI 420/85R34 142D/139E VX-R TRACTOR | H145: BS VX-R TRACTOR | I145: 1835 | J145: 1835 | K145: 28119 | L145: 3286342811918 | M145: Neuf | N145: ROUES MOTRICES
A146: BRIDGESTONE | B146: 650 | C146: 75 | D146: 32 | E146: 173 | F146: A8 | G146: PN BRI IF 650/75R32 173A8 VT COMBINE CFO | H146: BS VT COMBINE | I146: 5399 | J146: 5399 | K146: 8545 | L146: 3286340854511 | M146: Neuf | N146: ROUES MOTRICES
A147: BRIDGESTONE | B147: 680 | C147: 85 | D147: 32 | E147: 179 | F147: A8 | G147: PN BRI IF 680/85R32 179A8 VT COMBINE CFO | H147: BS VT COMBINE | I147: 9907 | J147: 9907 | K147: 8546 | L147: 3286340854610 | M147: Neuf | N147: ROUES MOTRICES
A148: BRIDGESTONE | B148: 215 | C148: 80 | D148: 15 | E148: 108 | F148: A6 | G148: PN BRI 215/80-15 108A6 PILL DIA-1 TT | H148: BS PILL DIA-1 | I148: 523 | J148: 523 | K148: 10254 | L148: 3286341025415 | M148: Neuf | N148: MOTOCULTURE
A149: BRIDGESTONE | B149: 800 | C149: 70 | D149: 38 | E149: 184 | F149: D | G149: PN BRI VF 800/70R38 184 D VT-TRAC | H149: BS VT-TRAC | I149: 10620 | J149: 10620 | K149: 6963 | L149: 3286340696319 | M149: Neuf | N149: ROUES MOTRICES
A150: BRIDGESTONE | B150: 380 | C150: 85 | D150: 28 | E150: 133 | F150: D | G150: PN BRI 380/85R28 133D/130E VX-R TRACTOR | H150: BS VX-R TRACTOR | I150: 1236 | J150: 1236 | K150: 28104 | L150: 3286342810416 | M150: Neuf | N150: ROUES MOTRICES
A151: BRIDGESTONE | B151: 8 | D151: 8 | E151: 4PR | G151: PN BRI 17X8.00 -8 4P FIELD MASTER-2 | H151: BS FIELD MASTER-2 | I151: 193 | J151: 193 | K151: 49007 | L151: 3286344900719 | M151: Neuf | N151: MOTOCULTURE
A152: BRIDGESTONE | B152: 900 | C152: 60 | D152: 38 | E152: 183 | F152: D | G152: PN BRI VF 900/60R38 183 D VT-TRAC | H152: BS VT-TRAC | I152: 11413 | J152: 11413 | K152: 6964 | L152: 3286340696418 | M152: Neuf | N152: ROUES MOTRICES
A153: BRIDGESTONE | B153: 900 | C153: 50 | D153: 42 | E153: 180 | F153: D | G153: PN BRI VF 900/50R42 180 D VT-TRAC | H153: BS VT-TRAC | I153: 9815 | J153: 9815 | K153: 6968 | L153: 3286340696814 | M153: Neuf | N153: ROUES MOTRICES
A154: BRIDGESTONE | B154: 460 | C154: 85 | D154: 42 | E154: 156 | F154: D | G154: PN BRID 460/85R42 156D/153E VX-TRACTOR | H154: BS VX-TRACTOR | I154: 3693 | J154: 3693 | K154: 19753 | L154: 3286341975314 | M154: Neuf | N154: ROUES MOTRICES
A155: BRIDGESTONE | B155: 710 | C155: 60 | D155: 34 | E155: 169 | F155: D | G155: PN BRI VF 710/60R34 169 D VT-TRAC | H155: BS VT-TRAC | I155: 5698 | J155: 5698 | K155: 6958 | L155: 3286340695817 | M155: Neuf | N155: ROUES MOTRICES
A156: BRIDGESTONE | B156: 710 | C156: 60 | D156: 30 | E156: 167 | F156: D | G156: PN BRI VF 710/60R30 167 D VT-TRAC | H156: BS VT-TRAC | I156: 4935 | J156: 4935 | K156: 6954 | L156: 3286340695411 | M156: Neuf | N156: ROUES MOTRICES
A157: BRIDGESTONE | B157: 320 | C157: 85 | D157: 24 | E157: 124 | G157: PN BRI 320/85R24 127D VX-TRACTOR | H157: BS VX-TRACTOR | I157: 973 | J157: 973 | K157: 16983 | L157: 3286341698312 | M157: Neuf | N157: ROUES MOTRICES
A158: BRIDGESTONE | B158: 380 | C158: 70 | D158: 24 | E158: 125 | F158: D | G158: PN BRI 380/70R24 125D/122E VX-R TRACTOR | H158: BS VX-R TRACTOR | I158: 1182 | J158: 1182 | K158: 28100 | L158: 3286342810010 | M158: Neuf | N158: ROUES MOTRICES
A159: BRIDGESTONE | B159: 420 | C159: 85 | D159: 28 | E159: 139 | F159: D | G159: PN BRI 420/85R28 139D/136E VX-R TRACTOR | H159: BS VX-R TRACTOR | I159: 1482 | J159: 1482 | K159: 28115 | L159: 3286342811512 | M159: Neuf | N159: ROUES MOTRICES
A160: BRIDGESTONE | B160: 540 | C160: 65 | D160: 34 | E160: 157 | F160: D | G160: PN BRI VF 540/65R34 157 D VT-TRAC | H160: BS VT-TRAC | I160: 3117 | J160: 3117 | K160: 6955 | L160: 3286340695510 | M160: Neuf | N160: ROUES MOTRICES
A161: BRIDGESTONE | B161: 650 | C161: 60 | D161: 34 | E161: 165 | F161: D | G161: PN BRI VF 650/60R34 165D162E VT TRACTOR | H161: BS VT TRACTOR | I161: 5147 | J161: 5147 | K161: 10464 | L161: 3286341046410 | M161: Neuf | N161: ROUES MOTRICES
A162: BRIDGESTONE | B162: 620 | C162: 75 | D162: 26 | E162: 172 | F162: A8 | G162: PN BRI VF 620/75R26 172A8 VT COMBINE CFO | H162: BS VT COMBINE | I162: 4792 | J162: 4792 | K162: 8553 | L162: 3286340855310 | M162: Neuf | N162: ROUES MOTRICES
A163: BRIDGESTONE | B163: 800 | C163: 65 | D163: 32 | E163: 178 | F163: A8 | G163: PN BRI IF 800/65R32 178A8 VT COMBINE CFO | H163: BS VT COMBINE | I163: 8414 | J163: 8414 | K163: 8547 | L163: 3286340854719 | M163: Neuf | N163: ROUES MOTRICES
A164: BRIDGESTONE | B164: 800 | C164: 70 | D164: 32 | E164: 182 | F164: A8 | G164: PN BRI IF 800/70R32 182A8 VT COMBINE CFO | H164: BS VT COMBINE | I164: 9812 | J164: 9812 | K164: 7764 | L164: 3286340776417 | M164: Neuf | N164: ROUES MOTRICES
A165: BRIDGESTONE | B165: 900 | C165: 60 | D165: 32 | E165: 182 | F165: A8 | G165: PN BRI IF 900/60R32 182A8 VT COMBINE CFO | H165: BS VT COMBINE | I165: 11821 | J165: 11821 | K165: 8549 | L165: 3286340854917 | M165: Neuf | N165: ROUES MOTRICES
A166: BRIDGESTONE | B166: 315 | C166: 80 | D166: 16 | E166: 104 | F166: A6 | G166: PN BRI 315/80 D 16 6 PR M 40 B | H166: BS M40B | I166: 818 | J166: 818 | K166: 3332 | L166: 3286340333214 | M166: Neuf | N166: MOTOCULTURE
A167: BRIDGESTONE | B167: 800 | C167: 70 | D167: 38 | E167: 184 | F167: A8 | G167: PN BRI IF 800/70R38 184A8 VT COMBINE CFO | H167: BS VT COMBINE | I167: 11975 | J167: 11975 | K167: 8548 | L167: 3286340854818 | M167: Neuf | N167: ROUES MOTRICES
A168: CULTOR | B168: 420 | C168: 85 | D168: 34 | E168: 147 | F168: A8 | G168: PN CUL 420/85R34 147A8/144B RD-01 | H168: CQ RD-01 | I168: 910 | J168: 509.6 | K168: 4006332830000 | L168: 8059971035988 | M168: Neuf | N168: ROUES MOTRICES
A169: CULTOR | B169: 14 | D169: 38 | E169: 8PR | G169: PN CUL 14.00 -38 8P AS-AGRI 13 TT | H169: CQ AS-AGRI 13 | I169: 511 | J169: 286.16 | K169: 5002605050000 | L169: 8059971059175 | M169: Neuf | N169: ROUES MOTRICES
A170: CULTOR | B170: 300 | C170: 90 | D170: 24 | E170: 10PR | F170: A6 | G170: PN CUL 300/90-24 132A6 AW-IMPL13 TT | H170: CQ AW-IMPL 13 | I170: 239 | J170: 133.84 | K170: 5002605590000 | L170: 8059971062199 | M170: Neuf | N170: REMORQUES AGRICOLES
A171: CULTOR | B171: 10 | C171: 80 | D171: 12 | E171: 12PR | G171: PN CUL 10.0/80-12 12P AW-IMPL 11 TT | H171: CQ AW-IMPL 11 | I171: 135 | J171: 75.6 | K171: 5002600050000 | L171: 8059971061437 | M171: Neuf | N171: REMORQUES AGRICOLES
A172: CULTOR | B172: 16.9 | D172: 24 | E172: 8PR | G172: PN CUL 16.9 -24 8P AS-AGRI 13 IRRI TT | H172: CQ AS-AGRI 13 IRRI | I172: 493 | J172: 276.08 | K172: 5002605850000 | L172: 8059971041323 | M172: Neuf | N172: ROUES MOTRICES
A173: CULTOR | B173: 14.9 | D173: 24 | E173: 8PR | G173: PN CUL 14.9 -24 8P AS-AGRI 19 IRRI TT | H173: CQ AS-AGRI 19 | I173: 326 | J173: 182.56 | K173: 5002605860000 | L173: 8059971064285 | M173: Neuf | N173: ROUES MOTRICES
A174: CULTOR | B174: 8.3 | D174: 36 | E174: 6PR | G174: PN CUL 8.3 36 6PR AS-AGRI 10 | H174: CQ AS-AGRI 10 | I174: 253 | J174: 141.68 | K174: 5002602900000 | L174: 8059971056488 | M174: Neuf | N174: ROUES MOTRICES
A175: CULTOR | B175: 9.5 | D175: 36 | E175: 6PR | G175: PN CUL 9.5 36 6PR AS-AGRI 10 | H175: CQ AS-AGRI 10 | I175: 277 | J175: 155.12 | K175: 5002602910000 | L175: 8059971068184 | M175: Neuf | N175: ROUES MOTRICES
A176: CULTOR | B176: 650 | C176: 65 | D176: 38 | E176: 166/169 | F176: D | G176: PN CUL 650/65R38 166D/169A8 RD03 | H176: CQ RD-03 | I176: 2261 | J176: 1266.16 | K176: 4006333210000 | L176: 8059971041682 | M176: Neuf | N176: ROUES MOTRICES
A177: CULTOR | B177: 16.9 | D177: 34 | E177: 8PR | G177: PN CUL 16.9 34 8PR AS-AGRI 10 | H177: CQ AS-AGRI 10 | I177: 586 | J177: 328.16 | K177: 5002602790000 | L177: 8059971058475 | M177: Neuf | N177: ROUES MOTRICES
A178: CULTOR | B178: 16.9 | D178: 26 | E178: 10PR | G178: PN CUL 16.9 26 10PR AS-AGRI 10 | H178: CQ AS-AGRI 10 | I178: 471 | J178: 263.76 | K178: 5002601859000 | L178: 8059971041200 | M178: Neuf | N178: ROUES MOTRICES
A179: CULTOR | B179: 8.3 | D179: 28 | E179: 8PR | G179: PN CUL 8.3 28 8PR AS-AGRI 10 | H179: CQ AS-AGRI 10 | I179: 208 | J179: 116.48 | K179: 5002602010000 | L179: 8059971042795 | M179: Neuf | N179: ROUES MOTRICES
A180: CULTOR | B180: 13.6 | D180: 24 | E180: 8PR | G180: PN CUL 13.6 24 8PR AS-AGRI 13 | H180: CQ AS-AGRI 13 | I180: 340 | J180: 190.4 | K180: 5002601450000 | L180: 8059971041262 | M180: Neuf | N180: ROUES MOTRICES
A181: CULTOR | B181: 14.9 | D181: 26 | E181: 8PR | G181: PN CUL 14.9 26 8PR AS-AGRI 10 | H181: CQ AS-AGRI 10 | I181: 452 | J181: 253.12 | K181: 5002601820000 | L181: 8059971041019 | M181: Neuf | N181: ROUES MOTRICES
A182: CULTOR | B182: 10 | C182: 75 | D182: 15.3 | E182: 10PR | G182: PN CUL 10.0/75-15.3 10P M 159 TT | H182: CQ M159 | I182: 221 | J182: 123.76 | K182: 5002606680000 | L182: 8059971044164 | M182: Neuf | N182: MOTOCULTURE
A183: CULTOR | B183: 12.4 | D183: 32 | E183: 6PR | G183: PN CUL 12.4 32 6PR AS-AGRI 13 | H183: CQ AS-AGRI 13 | I183: 344 | J183: 192.64 | K183: 5002602730000 | L183: 8059971038132 | M183: Neuf | N183: ROUES MOTRICES
A184: CULTOR | B184: 8.3 | D184: 32 | E184: 6PR | G184: PN CUL 8.3 32 6PR AS-AGRI 10 | H184: CQ AS-AGRI 10 | I184: 222 | J184: 124.32 | K184: 5002602680000 | L184: 8059971056532 | M184: Neuf | N184: ROUES MOTRICES
A185: CULTOR | B185: 9.5 | D185: 32 | E185: 6PR | G185: PN CUL 9.5 32 6PR AS-AGRI 13 | H185: CQ AS-AGRI 13 | I185: 250 | J185: 140 | K185: 5002602710000 | L185: 8059971056303 | M185: Neuf | N185: ROUES MOTRICES
A186: CULTOR | B186: 9.5 | D186: 36 | E186: 10PR | G186: PN CUL 9.5 36 10PR AS-AGRI 10 | H186: CQ AS-AGRI 10 | I186: 293 | J186: 164.08 | K186: 5002602930000 | L186: 8059971056501 | M186: Neuf | N186: ROUES MOTRICES
A187: CULTOR | B187: 13.6 | D187: 38 | E187: 8PR | G187: PN CUL 13.6 38 8PR AS-AGRI 13 | H187: CQ AS-AGRI 13 | I187: 473 | J187: 264.88 | K187: 5002604160000 | L187: 8059971038149 | M187: Neuf | N187: ROUES MOTRICES
A188: CULTOR | B188: 18.4 | D188: 38 | E188: 10PR | G188: PN CUL 18.4 38 10PR AS-AGRI 19 | H188: CQ AS-AGRI 19 | I188: 764 | J188: 427.84 | K188: 5002604170000 | L188: 8059971065718 | M188: Neuf | N188: ROUES MOTRICES
A189: CULTOR | B189: 11.2 | D189: 28 | E189: 8PR | G189: PN CUL 11.2 28 8PR AS-AGRI 19 | H189: CQ AS-AGRI 19 | I189: 269 | J189: 150.64 | K189: 5002604110000 | L189: 8059971044317 | M189: Neuf | N189: ROUES MOTRICES
A190: CULTOR | B190: 13.6 | D190: 28 | E190: 8PR | G190: PN CUL 13.6 28 8PR AS-AGRI 19 | H190: CQ AS-AGRI 19 | I190: 374 | J190: 209.44 | K190: 5002604120000 | L190: 8059971036879 | M190: Neuf | N190: ROUES MOTRICES
A191: CULTOR | B191: 16.9 | D191: 28 | E191: 12PR | G191: PN CUL 16.9 28 12PR AS-AGRI 13 | H191: CQ AS-AGRI 13 | I191: 543 | J191: 304.08 | K191: 5002614140000 | L191: 8059971055368 | M191: Neuf | N191: ROUES MOTRICES
A192: CULTOR | B192: 6.5 | D192: 16 | E192: 8PR | G192: PN CUL 6.50 - 16 8PR AS FRONT 08 | H192: CQ AS-FRONT 08 | I192: 107 | J192: 59.92 | K192: 5002606760000 | L192: 8059971043150 | M192: Neuf | N192: ROUES DIRECTRICES
A193: CULTOR | B193: 14.9 | D193: 30 | E193: 10PR | G193: PN CUL 14.9 30 10PR AS-AGRI 10 | H193: CQ AS-AGRI 10 | I193: 481 | J193: 269.36 | K193: 5002612490000 | L193: 8059971041217 | M193: Neuf | N193: ROUES MOTRICES
A194: CULTOR | B194: 23.1 | D194: 26 | E194: 18PR | G194: PN CUL 23.1 26 18PR AS-AGRI 07 | H194: CQ AS-AGRI 07 | I194: 1310 | J194: 733.6 | K194: 5002613430000 | L194: 8059971059892 | M194: Neuf | N194: ROUES MOTRICES
A195: CULTOR | B195: 16.9 | D195: 30 | E195: 8PR | G195: PN CUL 16.9 30 8PR AS-AGRI 13 | H195: CQ AS-AGRI 13 | I195: 527 | J195: 295.12 | K195: 5002603510000 | L195: 8059971055375 | M195: Neuf | N195: ROUES MOTRICES
A196: CULTOR | B196: 16.9 | D196: 28 | E196: 10PR | G196: PN CUL 16.9 28 10PR AS-AGRI 13 | H196: CQ AS-AGRI 13 | I196: 531 | J196: 297.36 | K196: 5002603560000 | L196: 8059971062601 | M196: Neuf | N196: ROUES MOTRICES
A197: CULTOR | B197: 12.4 | D197: 36 | E197: 6PR | G197: PN CUL 12.4 36 6PR AS-AGRI 13 | H197: CQ AS-AGRI 13 | I197: 368 | J197: 206.08 | K197: 5002602970000 | L197: 8059971059168 | M197: Neuf | N197: ROUES MOTRICES
A198: CULTOR | B198: 16.9 | D198: 38 | E198: 8PR | G198: PN CUL 16.9 38 8PR AS-AGRI 13 | H198: CQ AS-AGRI 13 | I198: 628 | J198: 351.68 | K198: 5002603130000 | L198: 8059971055320 | M198: Neuf | N198: ROUES MOTRICES
A199: CULTOR | B199: 13.6 | D199: 36 | E199: 6PR | G199: PN CUL 13.6 36 6PR AS-AGRI 13 | H199: CQ AS-AGRI 13 | I199: 439 | J199: 245.84 | K199: 5002603910000 | L199: 8059971056341 | M199: Neuf | N199: ROUES MOTRICES
A200: CULTOR | B200: 14.9 | D200: 24 | E200: 8PR | G200: PN CUL 14.9 24 8PR AS-AGRI 19 | H200: CQ AS-AGRI 19 | I200: 362 | J200: 202.72 | K200: 5002604060000 | L200: 8059971036862 | M200: Neuf | N200: ROUES MOTRICES
A201: CULTOR | B201: 18.4 | D201: 30 | E201: 8PR | G201: PN CUL 18.4 30 8PR AS-AGRI 13 | H201: CQ AS-AGRI 13 | I201: 616 | J201: =I201*(1-VLOOKUP(A201,Datas_Remises,4,0)) -> 344.96 | K201: 5002603570000 | L201: 8059971062618 | M201: Neuf | N201: ROUES MOTRICES
A202: CULTOR | B202: 18.4 | D202: 30 | E202: 12PR | G202: PN CUL 18.4 30 12PR AS-AGRI 13 | H202: CQ AS-AGRI 13 | I202: 627 | J202: 351.12 | K202: 5002603590000 | L202: 8059971055382 | M202: Neuf | N202: ROUES MOTRICES
A203: CULTOR | B203: 10 | D203: 16 | E203: 8PR | G203: PN CUL 10.00 - 16 8PR AS FRONT 10 | H203: CQ AS-FRONT 10 | I203: 215 | J203: 120.4 | K203: 5002610660000 | L203: 8059971043464 | M203: Neuf | N203: ROUES DIRECTRICES
... 4297 more rows

Sheet BRI
D2: Remise
D3: =Remises!E8 -> 0
A5: Actualisation au 04/04/2024
A7: REFERENCES PNEUMATIQUES | Q7: TARIFS
A8: CAI | B8: EAN | C8: Désignation | D8: Appellation | E8: Catégorie | F8: Profil | G8: Largeur | H8: Hauteur | I8: Structure | J8: Diamètre | K8: IC | L8: IV | M8: Conso. | N8: Frein. | O8: Bruit. | P8: Décibels. | Q8: Prix BF | R8: Prix Remisé
A9: 10254 | B9: 3286341025415 | C9: PN BRI 215/80-15 108A6 PILL DIA-1 TT | D9: 2158015PD1TT108A6 | E9: MOTOCULTURE | F9: BS PILL DIA-1 | G9: 215 | H9: 80 | I9: - | J9: 15 | K9: 108 | L9: A6 | P9: 0 | Q9: 523 | R9: =Q9*(1-$D$3) -> 523
A10: 10448 | B10: 3286341044812 | C10: PN BRI VF 600/65R34 163D159E VT TRAC NRO | D10: 6006534VTTRACNRO163D | E10: ROUES MOTRICES | F10: BS VT TRAC | G10: 600 | H10: 65 | I10: R | J10: 34 | K10: 163 | L10: D | P10: 0 | Q10: 3512 | R10: =Q10*(1-$D$3) -> 3512
A11: 10450 | B11: 3286341045017 | C11: PN BRI VF 600/65R38 164D160E VT TRAC NRO | D11: 6006538VTTRACNRO164D | E11: ROUES MOTRICES | F11: BS VT TRAC | G11: 600 | H11: 65 | I11: R | J11: 38 | K11: 164 | L11: D | P11: 0 | Q11: 3863 | R11: 3863
A12: 10452 | B12: 3286341045215 | C12: PN BRI VF 600/65R28 159D156E VT TRAC NRO | D12: 6006528VTTRACNRO159D | E12: ROUES MOTRICES | F12: BS VT TRAC | G12: 600 | H12: 65 | I12: R | J12: 28 | K12: 159 | L12: D | P12: 0 | Q12: 3380 | R12: 3380
A13: 10454 | B13: 3286341045413 | C13: PN BRI VF 600/70R28 164D160E VT TRAC NRO | D13: 6007028VTTRACNRO164D | E13: ROUES MOTRICES | F13: BS VT TRAC | G13: 600 | H13: 70 | I13: R | J13: 28 | K13: 164 | L13: D | P13: 0 | Q13: 4237 | R13: 4237
A14: 10456 | B14: 3286341045611 | C14: PN BRI VF 600/70R30 165D161E VT TRAC NRO | D14: 6007030VTTRACNRO165D | E14: ROUES MOTRICES | F14: BS VT TRAC | G14: 600 | H14: 70 | I14: R | J14: 30 | K14: 165 | L14: D | P14: 0 | Q14: 4555 | R14: 4555
A15: 10458 | B15: 3286341045819 | C15: PN BRI VF 600/70R34 167D164E VT TRAC NRO | D15: 6007034VTTRACNRO167D | E15: ROUES MOTRICES | F15: BS VT TRAC | G15: 600 | H15: 70 | I15: R | J15: 34 | K15: 167 | L15: D | P15: 0 | Q15: 4895 | R15: 4895
A16: 10460 | B16: 3286341046014 | C16: PN BRI VF 620/70R42 172D169E VT-TRAC | D16: 6207042VTTRAC172D | E16: ROUES MOTRICES | F16: BS VT TRACTOR | G16: 620 | H16: 70 | I16: R | J16: 42 | K16: 172 | L16: D | P16: 0 | Q16: 6073 | R16: 6073
A17: 10462 | B17: 3286341046212 | C17: PN BRI VF 620/75R30 169D166E VT TRACTOR | D17: 6207530VTTRAC169D | E17: ROUES MOTRICES | F17: BS VT TRACTOR | G17: 620 | H17: 75 | I17: R | J17: 30 | K17: 169 | L17: D | P17: 0 | Q17: 6061 | R17: 6061
A18: 10464 | B18: 3286341046410 | C18: PN BRI VF 650/60R34 165D162E VT TRACTOR | D18: 6506034VTTRAC165D | E18: ROUES MOTRICES | F18: BS VT TRACTOR | G18: 650 | H18: 60 | I18: R | J18: 34 | K18: 165 | L18: D | P18: 0 | Q18: 5147 | R18: 5147
A19: 10466 | B19: 3286341046618 | C19: PN BRI VF 650/65R34 167D164E VT TRACTOR | D19: 6506534VTTRAC167D | E19: ROUES MOTRICES | F19: BS VT TRACTOR | G19: 650 | H19: 65 | I19: R | J19: 34 | K19: 167 | L19: D | P19: 0 | Q19: 5301 | R19: 5301
A20: 10468 | B20: 3286341046816 | C20: PN BRI VF 650/75R38 175D172E VT TRACTOR | D20: 6507538VTTRAC175D | E20: ROUES MOTRICES | F20: BS VT TRACTOR | G20: 650 | H20: 75 | I20: R | J20: 38 | K20: 175 | L20: D | P20: 0 | Q20: 7056 | R20: 7056
A21: 10470 | B21: 3286341047011 | C21: PN BRI VF 710/55R30 165D162E VT-TRAC | D21: 7105530VTTRAC165D | E21: ROUES MOTRICES | F21: BS VT TRACTOR | G21: 710 | H21: 55 | I21: R | J21: 30 | K21: 165 | L21: D | P21: 0 | Q21: 4958 | R21: 4958
A22: 13387 | B22: 3286341338713 | C22: PN BRI 480/70R30 147D/144E VX-TRACTOR | D22: 4807030VXTRAC147D | E22: ROUES MOTRICES | F22: BS VX-TRACTOR | G22: 480 | H22: 70 | I22: R | J22: 30 | K22: 147 | L22: D | P22: 0 | Q22: 2242 | R22: 2242
A23: 13388 | B23: 3286341338812 | C23: PN BRI 520/70R38 155D/152E VX-TRACTOR | D23: 5207038VXTRAC155D | E23: ROUES MOTRICES | F23: BS VX-TRACTOR | G23: 520 | H23: 70 | I23: R | J23: 38 | K23: 155 | L23: D | P23: 0 | Q23: 3175 | R23: 3175
A24: 13389 | B24: 3286341338911 | C24: PN BRI 710/70R38 171D/168E VX-TRACTOR | D24: 7107038VXTRAC171D | E24: ROUES MOTRICES | F24: BS VX-TRACTOR | G24: 710 | H24: 70 | I24: R | J24: 38 | K24: 171 | L24: D | P24: 0 | Q24: 6758 | R24: 6758
A25: 13390 | B25: 3286341339017 | C25: PN BRI 540/65R38 153D/150E VX-TRACTOR | D25: 5406538VXTRAC153D | E25: ROUES MOTRICES | F25: BS VX-TRACTOR | G25: 540 | H25: 65 | I25: R | J25: 38 | K25: 153 | L25: D | P25: 0 | Q25: 3031 | R25: 3031
A26: 13391 | B26: 3286341339116 | C26: PN BRI 600/65R38 159D/156E VX-TRACTOR | D26: 6006538VXTRAC159D | E26: ROUES MOTRICES | F26: BS VX-TRACTOR | G26: 600 | H26: 65 | I26: R | J26: 38 | K26: 159 | L26: D | P26: 0 | Q26: 3510 | R26: 3510
A27: 13393 | B27: 3286341339314 | C27: PN BRI 480/65R24 140D/137E VX-TRACTOR | D27: 4806524VXTRAC140D | E27: ROUES MOTRICES | F27: BS VX-TRACTOR | G27: 480 | H27: 65 | I27: R | J27: 24 | K27: 140 | L27: D | P27: 0 | Q27: 1688 | R27: 1688
A28: 13394 | B28: 3286341339413 | C28: PN BRI 600/70R28 157D/154E VX-TRACTOR | D28: 6007028VXTRAC157D | E28: ROUES MOTRICES | F28: BS VX-TRACTOR | G28: 600 | H28: 70 | I28: R | J28: 28 | K28: 157 | L28: D | P28: 0 | Q28: 3876 | R28: 3876
A29: 13398 | B29: 3286341339819 | C29: PN BRI 650/65R38 163D/159E VX-TRACTOR | D29: 6506538VXTRAC163D | E29: ROUES MOTRICES | F29: BS VX-TRACTOR | G29: 650 | H29: 65 | I29: R | J29: 38 | K29: 163 | L29: D | P29: 0 | Q29: 4575 | R29: 4575
A30: 13402 | B30: 3286341340211 | C30: PN BRI 380/70R28 133D/130E VX-TRACTOR | D30: 3807028VXTRAC133D | E30: ROUES MOTRICES | F30: BS VX-TRACTOR | G30: 380 | H30: 70 | I30: R | J30: 28 | K30: 133 | L30: D | P30: 0 | Q30: 1508 | R30: 1508
A31: 13403 | B31: 3286341340310 | C31: PN BRI 420/70R24 136D/133E VX-TRACTOR | D31: 4207024VXTRAC136D | E31: ROUES MOTRICES | F31: BS VX-TRACTOR | G31: 420 | H31: 70 | I31: R | J31: 24 | K31: 136 | L31: D | P31: 0 | Q31: 1498 | R31: 1498
A32: 13404 | B32: 3286341340419 | C32: PN BRI 380/85R28 139D/136E VX-TRACTOR | D32: 3808528VXTRAC139D | E32: ROUES MOTRICES | F32: BS VX-TRACTOR | G32: 380 | H32: 85 | I32: R | J32: 28 | K32: 139 | L32: D | P32: 0 | Q32: 1359 | R32: 1359
A33: 13405 | B33: 3286341340518 | C33: PN BRI 480/70R28 145D/142E VX-TRACTOR | D33: 4807028VXTRAC145D | E33: ROUES MOTRICES | F33: BS VX-TRACTOR | G33: 480 | H33: 70 | I33: R | J33: 28 | K33: 145 | L33: D | P33: 0 | Q33: 2042 | R33: 2042
A34: 13407 | B34: 3286341340716 | C34: PN BRI 520/85R38 160D/157E VX-TRACTOR | D34: 5208538VXTRAC160D | E34: ROUES MOTRICES | F34: BS VX-TRACTOR | G34: 520 | H34: 85 | I34: R | J34: 38 | K34: 160 | L34: D | P34: 0 | Q34: 3369 | R34: 3369
A35: 13408 | B35: 3286341340815 | C35: PN BRI 420/70R28 139D/136E VX-TRACTOR | D35: 4207028VXTRAC139D | E35: ROUES MOTRICES | F35: BS VX-TRACTOR | G35: 420 | H35: 70 | I35: R | J35: 28 | K35: 139 | L35: D | P35: 0 | Q35: 1630 | R35: 1630
A36: 13409 | B36: 3286341340914 | C36: PN BRI 480/65R28 142D/139E VX-TRACTOR | D36: 4806528VXTRAC142D | E36: ROUES MOTRICES | F36: BS VX-TRACTOR | G36: 480 | H36: 65 | I36: R | J36: 28 | K36: 142 | L36: D | P36: 0 | Q36: 1816 | R36: 1816
A37: 13410 | B37: 3286341341010 | C37: PN BRI 600/65R28 154D/151E VX-TRACTOR | D37: 6006528VXTRAC154D | E37: ROUES MOTRICES | F37: BS VX-TRACTOR | G37: 600 | H37: 65 | I37: R | J37: 28 | K37: 154 | L37: D | P37: 0 | Q37: 3194 | R37: 3194
A38: 13411 | B38: 3286341341119 | C38: PN BRI 480/70R38 151D/148E VX-TRACTOR | D38: 4807038VXTRAC151D | E38: ROUES MOTRICES | F38: BS VX-TRACTOR | G38: 480 | H38: 70 | I38: R | J38: 38 | K38: 151 | L38: D | P38: 0 | Q38: 2593 | R38: 2593
A39: 13414 | B39: 3286341341416 | C39: PN BRI 600/70R30 158D/155E VX-TRACTOR | D39: 6007030VXTRAC158D | E39: ROUES MOTRICES | F39: BS VX-TRACTOR | G39: 600 | H39: 70 | I39: R | J39: 30 | K39: 158 | L39: D | P39: 0 | Q39: 4061 | R39: 4061
A40: 13415 | B40: 3286341341515 | C40: PN BRI 620/70R42 166D/163E VX-TRACTOR | D40: 6207042VXTRAC166D | E40: ROUES MOTRICES | F40: BS VX-TRACTOR | G40: 620 | H40: 70 | I40: R | J40: 42 | K40: 166 | L40: D | P40: 0 | Q40: 5238 | R40: 5238
A41: 13417 | B41: 3286341341713 | C41: PN BRI 540/65R30 150D/147E VX-TRACTOR | D41: 5406530VXTRAC150D | E41: ROUES MOTRICES | F41: BS VX-TRACTOR | G41: 540 | H41: 65 | I41: R | J41: 30 | K41: 150 | L41: D | P41: 0 | Q41: 2564 | R41: 2564
A42: 13425 | B42: 3286341342512 | C42: PN BRI 420/85R28 144D/141E VX-TRACTOR | D42: 4208528VXTRAC144D | E42: ROUES MOTRICES | F42: BS VX-TRACTOR | G42: 420 | H42: 85 | I42: R | J42: 28 | K42: 144 | L42: D | P42: 0 | Q42: 1628 | R42: 1628
A43: 13430 | B43: 3286341343014 | C43: PN BRI 540/65R28 149D/146E VX-TRACTOR | D43: 5406528VXTRAC149D | E43: ROUES MOTRICES | F43: BS VX-TRACTOR | G43: 540 | H43: 65 | I43: R | J43: 28 | K43: 149 | L43: D | P43: 0 | Q43: 2292 | R43: 2292
A44: 13431 | B44: 3286341343113 | C44: PN BRI 710/70R42 173D170E VX-TRACTOR | D44: 7107042VXTRAC173D | E44: ROUES MOTRICES | F44: BS VX-TRACTOR | G44: 710 | H44: 70 | I44: R | J44: 42 | K44: 173 | L44: D | P44: 0 | Q44: 8698 | R44: 8698
A45: 13432 | B45: 3286341343212 | C45: PN BRI 580/70R38 160D/157E VX-TRACTOR | D45: 5807038VXTRAC160D | E45: ROUES MOTRICES | F45: BS VX-TRACTOR | G45: 580 | H45: 70 | I45: R | J45: 38 | K45: 160 | L45: D | P45: 0 | Q45: 4096 | R45: 4096
A46: 13434 | B46: 3286341343410 | C46: PN BRI 380/85R24 137D/134E VX-TRACTOR | D46: 3808524VXTRAC137D | E46: ROUES MOTRICES | F46: BS VX-TRACTOR | G46: 380 | H46: 85 | I46: R | J46: 24 | K46: 137 | L46: D | P46: 0 | Q46: 1319 | R46: 1319
A47: 13436 | B47: 3286341343618 | C47: PN BRI 460/85R38 154D/151E VX-TRACTOR | D47: 4608538VXTRAC154D | E47: ROUES MOTRICES | F47: BS VX-TRACTOR | G47: 460 | H47: 85 | I47: R | J47: 38 | K47: 154 | L47: D | P47: 0 | Q47: 2515 | R47: 2515
A48: 13439 | B48: 3286341343915 | C48: PN BRI 650/65R42 165D/161E VX-TRACTOR | D48: 6506542VXTRAC165D | E48: ROUES MOTRICES | F48: BS VX-TRACTOR | G48: 650 | H48: 65 | I48: R | J48: 42 | K48: 165 | L48: D | P48: 0 | Q48: 5459 | R48: 5459
A49: 16886 | B49: 3286341688610 | C49: PN BRI 540/65R24 146D VX-TRACTOR | D49: 5406524VXTRACTOR146D | E49: ROUES MOTRICES | F49: BS VX-TRACTOR | G49: 540 | H49: 65 | I49: R | J49: 24 | K49: 146 | L49: D | P49: 0 | Q49: 2082 | R49: 2082
A50: 16888 | B50: 3286341688818 | C50: PN BRI 340/85R28 133D VX-TRACTOR | D50: 3408528VXTRACTOR133D | E50: ROUES MOTRICES | F50: BS VX-TRACTOR | G50: 340 | H50: 85 | I50: R | J50: 28 | K50: 133 | L50: D | P50: 0 | Q50: 1284 | R50: 1284
A51: 16889 | B51: 3286341688917 | C51: PN BRI 650/85R38 173D VX-TRACTOR | D51: 6508538VXTRACTOR173D | E51: ROUES MOTRICES | F51: BS VX-TRACTOR | G51: 650 | H51: 85 | I51: R | J51: 38 | K51: 173 | L51: D | P51: 0 | Q51: 7649 | R51: 7649
A52: 16892 | B52: 3286341689211 | C52: PN BRI 340/85R24 130D VX-TRACTOR | D52: 3408524VXTRACTOR130D | E52: ROUES MOTRICES | F52: BS VX-TRACTOR | G52: 340 | H52: 85 | I52: R | J52: 24 | K52: 130 | L52: D | P52: 0 | Q52: 1090 | R52: 1090
A53: 16894 | B53: 3286341689419 | C53: PN BRI 600/65R34 157D VX-TRACTOR | D53: 6006534VXTRACTOR157D | E53: ROUES MOTRICES | F53: BS VX-TRACTOR | G53: 600 | H53: 65 | I53: R | J53: 34 | K53: 157 | L53: D | P53: 0 | Q53: 3304 | R53: 3304
A54: 16895 | B54: 3286341689518 | C54: PN BRI 420/85R30 145D VX-TRACTOR | D54: 4208530VXTRACTOR145D | E54: ROUES MOTRICES | F54: BS VX-TRACTOR | G54: 420 | H54: 85 | I54: R | J54: 30 | K54: 145 | L54: D | P54: 0 | Q54: 1714 | R54: 1714
A55: 16897 | B55: 3286341689716 | C55: PN BRI 710/75R42 175D VX-TRACTOR | D55: 7107542VXTRACTOR175D | E55: ROUES MOTRICES | F55: BS VX-TRACTOR | G55: 710 | H55: 75 | I55: R | J55: 42 | K55: 175 | L55: D | P55: 0 | Q55: 9703 | R55: 9703
A56: 16899 | B56: 3286341689914 | C56: PN BRI 420/85R38 149D VX-TRACTOR | D56: 4208538VXTRACTOR149D | E56: ROUES MOTRICES | F56: BS VX-TRACTOR | G56: 420 | H56: 85 | I56: R | J56: 38 | K56: 149 | L56: D | P56: 0 | Q56: 2398 | R56: 2398
A57: 16969 | B57: 3286341696912 | C57: PN BRI 260/70R16 109D/106E VX-TRACTOR | D57: 2607016VXTRACTOR109D | E57: ROUES MOTRICES | F57: BS VX-TRACTOR | G57: 260 | H57: 70 | I57: R | J57: 16 | K57: 109 | L57: D | P57: 0 | Q57: 794 | R57: 794
A58: 16971 | B58: 3286341697117 | C58: PN BRI 460/85R34 152D/149E VX-TRACTOR | D58: 4608534VXTRAC152D | E58: ROUES MOTRICES | F58: BS VX-TRACTOR | G58: 460 | H58: 85 | I58: R | J58: 34 | K58: 152 | L58: D | P58: 0 | Q58: 2372 | R58: 2372
A59: 16973 | B59: 3286341697315 | C59: PN BRI 540/65R34 152D VX-TRACTOR | D59: 5406534VXTRACTOR152D | E59: ROUES MOTRICES | F59: BS VX-TRACTOR | G59: 540 | H59: 65 | I59: R | J59: 34 | K59: 152 | L59: D | P59: 0 | Q59: 2872 | R59: 2872
A60: 16975 | B60: 3286341697513 | C60: PN BRI 440/65R24 135D VX-TRACTOR | D60: 4406524VXTRACTOR135D | E60: ROUES MOTRICES | F60: BS VX-TRACTOR | G60: 440 | H60: 65 | I60: R | J60: 24 | K60: 135 | L60: D | P60: 0 | Q60: 1487 | R60: 1487
A61: 16977 | B61: 3286341697711 | C61: PN BRI 460/85R30 150D/147E VX-TRACTOR | D61: 4608530VXTRAC150D | E61: ROUES MOTRICES | F61: BS VX-TRACTOR | G61: 460 | H61: 85 | I61: R | J61: 30 | K61: 150 | L61: D | P61: 0 | Q61: 2103 | R61: 2103
A62: 16979 | B62: 3286341697919 | C62: PN BRI 420/85R34 147D/144E VX-TRACTOR | D62: 4208534VXTRAC147D | E62: ROUES MOTRICES | F62: BS VX-TRACTOR | G62: 420 | H62: 85 | I62: R | J62: 34 | K62: 147 | L62: D | P62: 0 | Q62: 2031 | R62: 2031
A63: 16981 | B63: 3286341698114 | C63: PN BRI 320/85R28 129D/126E VX-TRACTOR | D63: 3208528VXTRAC129D | E63: ROUES MOTRICES | F63: BS VX-TRACTOR | G63: 320 | H63: 85 | I63: R | J63: 28 | K63: 129 | L63: D | P63: 0 | Q63: 1017 | R63: 1017
A64: 16983 | B64: 3286341698312 | C64: PN BRI 320/85R24 127D VX-TRACTOR | D64: 3208524VXTRACTOR127D | E64: ROUES MOTRICES | F64: BS VX-TRACTOR | G64: 320 | H64: 85 | I64: R | J64: 24 | K64: 124 | P64: 0 | Q64: 973 | R64: 973
A65: 17019 | B65: 3286341701913 | C65: PN BRI 280/70R16 112D/109E VX-TRACTOR | D65: 2807016VXTRACTOR112D | E65: ROUES MOTRICES | F65: BS VX-TRACTOR | G65: 280 | H65: 70 | I65: R | J65: 16 | K65: 112 | L65: D | P65: 0 | Q65: 830 | R65: 830
A66: 17021 | B66: 3286341702118 | C66: PN BRI 360/70R24 127D/124E VX-TRACTOR | D66: 3607024VXTRAC127D | E66: ROUES MOTRICES | F66: BS VX-TRACTOR | G66: 360 | H66: 70 | I66: R | J66: 24 | K66: 127 | L66: D | P66: 0 | Q66: 1193 | R66: 1193
A67: 17024 | B67: 3286341702415 | C67: PN BRI 380/70R24 130D/127E VX-TRACTOR | D67: 3807024VXTRAC130D | E67: ROUES MOTRICES | F67: BS VX-TRACTOR | G67: 380 | H67: 70 | I67: R | J67: 24 | K67: 130 | L67: D | P67: 0 | Q67: 1317 | R67: 1317
A68: 17056 | B68: 3286341705614 | C68: PN BRI 320/65R16 117D/114E VX-TRACTOR | D68: 3206516VXTRACTOR117D | E68: ROUES MOTRICES | F68: BS VX-TRACTOR | G68: 320 | H68: 65 | I68: R | J68: 16 | K68: 117 | L68: D | P68: 0 | Q68: 1106 | R68: 1106
A69: 19747 | B69: 3286341974713 | C69: PN BRI 480/70R34 149D/146E VX-TRACTOR | D69: 4807034VXTRACTOR149D | E69: ROUES MOTRICES | F69: BS VX-TRACTOR | G69: 480 | H69: 70 | I69: R | J69: 34 | K69: 149 | L69: D | P69: 0 | Q69: 2457 | R69: 2457
A70: 19750 | B70: 3286341975017 | C70: PN BRI 580/70R42 162D/159E VX-TRACTOR | D70: 5807042VXTRACTOR162D | E70: ROUES MOTRICES | F70: BS VX-TRACTOR | G70: 580 | H70: 70 | I70: R | J70: 42 | K70: 162 | L70: D | P70: 0 | Q70: 4702 | R70: 4702
A71: 19753 | B71: 3286341975314 | C71: PN BRID 460/85R42 156D/153E VX-TRACTOR | D71: 4608542DVXTRACTOR156 | E71: ROUES MOTRICES | F71: BS VX-TRACTOR | G71: 460 | H71: 85 | I71: R | J71: 42 | K71: 156 | L71: D | P71: 0 | Q71: 3693 | R71: 3693
A72: 19754 | B72: 3286341975413 | C72: PN BRI 480/70R24 143D/140E VX-TRACTOR | D72: 4807024VXTRACTOR143D | E72: ROUES MOTRICES | F72: BS VX-TRACTOR | G72: 480 | H72: 70 | I72: R | J72: 24 | K72: 143 | L72: D | P72: 0 | Q72: 1882 | R72: 1882
A73: 19756 | B73: 3286341975611 | C73: PN BRI 650/75R38 169D/166E VX-TRACTOR | D73: 6507538VXTRACTOR169D | E73: ROUES MOTRICES | F73: BS VX-TRACTOR | G73: 650 | H73: 75 | I73: R | J73: 38 | K73: 169 | L73: D | P73: 0 | Q73: 6553 | R73: 6553
A74: 19760 | B74: 3286341976014 | C74: PN BRI 440/65R28 138D/135E VX-TRACTOR | D74: 4406528VXTRACTOR138D | E74: ROUES MOTRICES | F74: BS VX-TRACTOR | G74: 440 | H74: 65 | I74: R | J74: 28 | K74: 138 | L74: D | P74: 0 | Q74: 1668 | R74: =Q74*(1-$D$3) -> 1668
A75: 19761 | B75: 3286341976113 | C75: PN BRI 520/85R42 162D/159E VX-TRACTOR | D75: 5208542VXTRACTOR162D | E75: ROUES MOTRICES | F75: BS VX-TRACTOR | G75: 520 | H75: 85 | I75: R | J75: 42 | K75: 162 | L75: D | P75: 0 | Q75: 4317 | R75: 4317
A76: 19763 | B76: 3286341976311 | C76: PN BRI 380/85R30 140D/137E VX-TRACTOR | D76: 3808530VXTRACTOR140D | E76: ROUES MOTRICES | F76: BS VX-TRACTOR | G76: 380 | H76: 85 | I76: R | J76: 30 | K76: 140 | L76: D | P76: 0 | Q76: 1618 | R76: 1618
A77: 19765 | B77: 3286341976519 | C77: PN BRI 600/70R34 160D/157E VX-TRACTOR | D77: 6007034VXTRACTOR160D | E77: ROUES MOTRICES | F77: BS VX-TRACTOR | G77: 600 | H77: 70 | I77: R | J77: 34 | K77: 160 | L77: D | P77: 0 | Q77: 4547 | R77: 4547
A78: 28023 | B78: 3286342802312 | C78: PN BRI VF600/60R28 160D/157E VT-TRAC | D78: 6006028VTTRAC160D | E78: ROUES MOTRICES | F78: BS VT TRACTOR | G78: 600 | H78: 60 | I78: R | J78: 28 | K78: 160 | L78: D | P78: 0 | Q78: 3300 | R78: 3300
A79: 28024 | B79: 3286342802411 | C79: PN BRI VF600/60R30 162D/159E VT-TRAC | D79: 6006030VTTRAC162D | E79: ROUES MOTRICES | F79: BS VT TRACTOR | G79: 600 | H79: 60 | I79: R | J79: 30 | K79: 162 | L79: D | P79: 0 | Q79: 3650 | R79: 3650
A80: 28035 | B80: 3286342803517 | C80: PN BRI VF710/60R38 174D/171E VT-TRAC | D80: 7106038VTTRAC174D | E80: ROUES MOTRICES | F80: BS VT TRACTOR | G80: 710 | H80: 60 | I80: R | J80: 38 | K80: 174 | L80: D | P80: 0 | Q80: 6680 | R80: 6680
A81: 28038 | B81: 3286342803814 | C81: PN BRI VF710/60R42 176D/173E VT-TRAC | D81: 7106042VTTRAC176D | E81: ROUES MOTRICES | F81: BS VT TRACTOR | G81: 710 | H81: 60 | I81: R | J81: 42 | K81: 176 | L81: D | P81: 0 | Q81: 7800 | R81: 7800
A82: 28075 | B82: 3286342807515 | C82: PN BRI 280/85R28 118D/115E VX-R TRACTOR | D82: 2808528VXRTRACTO118D | E82: ROUES MOTRICES | F82: BS VX-R TRACTOR | G82: 280 | H82: 85 | I82: R | J82: 28 | K82: 118 | L82: D | P82: 0 | Q82: 949 | R82: 949
A83: 28078 | B83: 3286342807812 | C83: PN BRI 320/85R24 122D/119E VX-R TRACTOR | D83: 3208524VXRTRACTO122D | E83: ROUES MOTRICES | F83: BS VX-R TRACTOR | G83: 320 | H83: 85 | I83: R | J83: 24 | K83: 122 | L83: D | P83: 0 | Q83: 863 | R83: 863
A84: 28087 | B84: 3286342808710 | C84: PN BRI 340/85R24 125D/122E VX-R TRACTOR | D84: 3408524VXRTRACTO125D | E84: ROUES MOTRICES | F84: BS VX-R TRACTOR | G84: 340 | H84: 85 | I84: R | J84: 24 | K84: 125 | L84: D | P84: 0 | Q84: 959 | R84: 959
A85: 28088 | B85: 3286342808819 | C85: PN BRI 340/85R28 127D/124E VX-R TRACTOR | D85: 3408528VXRTRACTO127D | E85: ROUES MOTRICES | F85: BS VX-R TRACTOR | G85: 340 | H85: 85 | I85: R | J85: 28 | K85: 127 | L85: D | P85: 0 | Q85: 1152 | R85: 1152
A86: 28093 | B86: 3286342809311 | C86: PN BRI 340/85R38 133D/130E VX-R TRACTOR | D86: 3408538VXRTRACTO133D | E86: ROUES MOTRICES | F86: BS VX-R TRACTOR | G86: 340 | H86: 85 | I86: R | J86: 38 | K86: 133 | L86: D | P86: 0 | Q86: 1376 | R86: 1376
A87: 28098 | B87: 3286342809816 | C87: PN BRI 380/85R24 131D/128E VX-R TRACTOR | D87: 3808524VXRTRACTO131D | E87: ROUES MOTRICES | F87: BS VX-R TRACTOR | G87: 380 | H87: 85 | I87: R | J87: 24 | K87: 131 | L87: D | P87: 0 | Q87: 1177 | R87: 1177
A88: 28100 | B88: 3286342810010 | C88: PN BRI 380/70R24 125D/122E VX-R TRACTOR | D88: 3807024VXRTRACTO125D | E88: ROUES MOTRICES | F88: BS VX-R TRACTOR | G88: 380 | H88: 70 | I88: R | J88: 24 | K88: 125 | L88: D | P88: 0 | Q88: 1182 | R88: 1182
A89: 28103 | B89: 3286342810317 | C89: PN BRI 380/70R28 127D/124E VX-R TRACTOR | D89: 3807028VXRTRACTO127D | E89: ROUES MOTRICES | F89: BS VX-R TRACTOR | G89: 380 | H89: 70 | I89: R | J89: 28 | K89: 127 | L89: D | P89: 0 | Q89: 1334 | R89: 1334
A90: 28104 | B90: 3286342810416 | C90: PN BRI 380/85R28 133D/130E VX-R TRACTOR | D90: 3808528VXRTRACTO133D | E90: ROUES MOTRICES | F90: BS VX-R TRACTOR | G90: 380 | H90: 85 | I90: R | J90: 28 | K90: 133 | L90: D | P90: 0 | Q90: 1236 | R90: 1236
A91: 28107 | B91: 3286342810713 | C91: PN BRI 380/85R30 135D/132E VX-R TRACTOR | D91: 3808530VXRTRACTO135D | E91: ROUES MOTRICES | F91: BS VX-R TRACTOR | G91: 380 | H91: 85 | I91: R | J91: 30 | K91: 135 | L91: D | P91: 0 | Q91: 1478 | R91: 1478
A92: 28115 | B92: 3286342811512 | C92: PN BRI 420/85R28 139D/136E VX-R TRACTOR | D92: 4208528VXRTRACTO139D | E92: ROUES MOTRICES | F92: BS VX-R TRACTOR | G92: 420 | H92: 85 | I92: R | J92: 28 | K92: 139 | L92: D | P92: 0 | Q92: 1482 | R92: 1482
A93: 28119 | B93: 3286342811918 | C93: PN BRI 420/85R34 142D/139E VX-R TRACTOR | D93: 4208534VXRTRACTO142D | E93: ROUES MOTRICES | F93: BS VX-R TRACTOR | G93: 420 | H93: 85 | I93: R | J93: 34 | K93: 142 | L93: D | P93: 0 | Q93: 1835 | R93: 1835
A94: 28121 | B94: 3286342812113 | C94: PN BRI 420/85R38 144D/141E VX-R TRACTOR | D94: 4208538VXRTRACTO144D | E94: ROUES MOTRICES | F94: BS VX-R TRACTOR | G94: 420 | H94: 85 | I94: R | J94: 38 | K94: 144 | L94: D | P94: 0 | Q94: 2135 | R94: 2135
A95: 28125 | B95: 3286342812519 | C95: PN BRI 460/85R34 147D/144E VX-R TRACTOR | D95: 4608534VXRTRACTO147D | E95: ROUES MOTRICES | F95: BS VX-R TRACTOR | G95: 460 | H95: 85 | I95: R | J95: 34 | K95: 147 | L95: D | P95: 0 | Q95: 2191 | R95: 2191
A96: 28127 | B96: 3286342812717 | C96: PN BRI 460/85R38 149D/146E VX-R TRACTOR | D96: 4608538VXRTRACTO149D | E96: ROUES MOTRICES | F96: BS VX-R TRACTOR | G96: 460 | H96: 85 | I96: R | J96: 38 | K96: 149 | L96: D | P96: 0 | Q96: 2302 | R96: 2302
A97: 28131 | B97: 3286342813110 | C97: PN BRI 520/85R38 155D/152E VX-R TRACTOR | D97: 5208538VXRTRACTO155D | E97: ROUES MOTRICES | F97: BS VX-R TRACTOR | G97: 520 | H97: 85 | I97: R | J97: 38 | K97: 155 | L97: D | P97: 0 | Q97: 3054 | R97: 3054
A98: 28135 | B98: 3286342813516 | C98: PN BRI 420/70R28 133D/130E VX-R TRACTOR | D98: 4207028VXRTRACTO133D | E98: ROUES MOTRICES | F98: BS VX-R TRACTOR | G98: 420 | H98: 70 | I98: R | J98: 28 | K98: 133 | L98: D | P98: 0 | Q98: 1485 | R98: 1485
A99: 28138 | B99: 3286342813813 | C99: PN BRI 480/70R28 140D/137E VX-R TRACTOR | D99: 4807028VXRTRACTO140D | E99: ROUES MOTRICES | F99: BS VX-R TRACTOR | G99: 480 | H99: 70 | I99: R | J99: 28 | K99: 140 | L99: D | P99: 0 | Q99: 1808 | R99: 1808
A100: 28142 | B100: 3286342814216 | C100: PN BRI 480/70R34 143D/140E VX-R TRACTOR | D100: 4807034VXRTRACTO143D | E100: ROUES MOTRICES | F100: BS VX-R TRACTOR | G100: 480 | H100: 70 | I100: R | J100: 34 | K100: 143 | L100: D | P100: 0 | Q100: 2196 | R100: 2196
A101: 28144 | B101: 3286342814414 | C101: PN BRI 480/70R38 145D/142E VX-R TRACTOR | D101: 4807038VXRTRACTO145D | E101: ROUES MOTRICES | F101: BS VX-R TRACTOR | G101: 480 | H101: 70 | I101: R | J101: 38 | K101: 145 | L101: D | P101: 0 | Q101: 2399 | R101: 2399
A102: 28148 | B102: 3286342814810 | C102: PN BRI 520/70R38 150D/147E VX-R TRACTOR | D102: 5207038VXRTRACTO150D | E102: ROUES MOTRICES | F102: BS VX-R TRACTOR | G102: 520 | H102: 70 | I102: R | J102: 38 | K102: 150 | L102: D | P102: 0 | Q102: 2871 | R102: 2871
A103: 28150 | B103: 3286342815015 | C103: PN BRI 580/70R38 155D/152E VX-R TRACTOR | D103: 5807038VXRTRACTO155D | E103: ROUES MOTRICES | F103: BS VX-R TRACTOR | G103: 580 | H103: 70 | I103: R | J103: 38 | K103: 155 | L103: D | P103: 0 | Q103: 3697 | R103: 3697
A104: 28154 | B104: 3286342815411 | C104: PN BRI 440/65R24 128D/125E VX-R TRACTOR | D104: 4406524VXRTRACTO128D | E104: ROUES MOTRICES | F104: BS VX-R TRACTOR | G104: 440 | H104: 65 | I104: R | J104: 24 | K104: 128 | L104: D | P104: 0 | Q104: 1353 | R104: 1353
A105: 28168 | B105: 3286342816814 | C105: PN BRI 540/65R34 145D/142E VX-R TRACTOR | D105: 5406534VXRTRACTO145D | E105: ROUES MOTRICES | F105: BS VX-R TRACTOR | G105: 540 | H105: 65 | I105: R | J105: 34 | K105: 145 | L105: D | P105: 0 | Q105: 2581 | R105: 2581
A106: 29267 | B106: 3286342926711 | C106: PN BRI VF900/60R42 189D/185E VT-TRAC | D106: 9006042VTTRAC189D | E106: ROUES MOTRICES | F106: BS VT TRACTOR | G106: 900 | H106: 60 | I106: R | J106: 42 | K106: 189 | L106: D | P106: 0 | Q106: 11713 | R106: 11713
A107: 3332 | B107: 3286340333214 | C107: PN BRI 315/80 D 16 6 PR M 40 B | D107: 3158016M40B6PR | E107: MOTOCULTURE | F107: BS M40B | G107: 315 | H107: 80 | I107: - | J107: 16 | K107: 104 | L107: A6 | P107: 0 | Q107: 818 | R107: 818
A108: 48157 | B108: 3286344815716 | C108: PN BRI 7 - 14 4 PR FSLM TT | D108: 714FSLMTT | E108: MOTOCULTURE | F108: BS FSLM | G108: 7 | I108: - | J108: 14 | K108: 4PR | P108: 0 | Q108: 260 | R108: 260
A109: 48980 | B109: 3286344898016 | C109: PN BRI 9.5 - 16 FSLF 4PR | D109: 9516FSLF4PR | E109: MOTOCULTURE | F109: BS FSLF | G109: 9.5 | I109: - | J109: 16 | K109: 88 | L109: A6 | P109: 0 | Q109: 437 | R109: 437
A110: 49007 | B110: 3286344900719 | C110: PN BRI 17X8.00 -8 4P FIELD MASTER-2 | D110: 178008FM24 | E110: MOTOCULTURE | F110: BS FIELD MASTER-2 | G110: 8 | I110: - | J110: 8 | K110: 4PR | P110: 0 | Q110: 193 | R110: 193
A111: 49015 | B111: 3286344901518 | C111: PN BRI 475/65 D 20 4 PR PD 1 TT | D111: 4756520PD1TT | E111: MOTOCULTURE | F111: BS PD1 | G111: 475 | H111: 65 | I111: - | J111: 20 | K111: 122 | L111: A6 | P111: 0 | Q111: 1610 | R111: 1610
A112: 49019 | B112: 3286344901914 | C112: PN BRI 315/75 D 15 4 PR M 40 B | D112: 3157515M40B | E112: MOTOCULTURE | F112: BS M40B | G112: 315 | H112: 75 | I112: - | J112: 15 | K112: 95 | L112: A6 | P112: 0 | Q112: 805 | R112: 805
A113: 6948 | B113: 3286340694810 | C113: PN BRI VF 480/65R28 148 D VT-TRAC | D113: 4806528DVTTRA148 | E113: ROUES MOTRICES | F113: BS VT-TRAC | G113: 480 | H113: 65 | I113: R | J113: 28 | K113: 148 | L113: D | P113: 0 | Q113: 1947 | R113: 1947
A114: 6949 | B114: 3286340694919 | C114: PN BRI VF 540/65R28 154 D VT-TRAC | D114: 5406528DVTTRA154 | E114: ROUES MOTRICES | F114: BS VT-TRAC | G114: 540 | H114: 65 | I114: R | J114: 28 | K114: 154 | L114: D | P114: 0 | Q114: 2421 | R114: 2421
A115: 6952 | B115: 3286340695213 | C115: PN BRI VF 540/65R30 155 D VT-TRAC | D115: 5406530DVTTRA155 | E115: ROUES MOTRICES | F115: BS VT-TRAC | G115: 540 | H115: 65 | I115: R | J115: 30 | K115: 155 | L115: D | P115: 0 | Q115: 2923 | R115: 2923
A116: 6954 | B116: 3286340695411 | C116: PN BRI VF 710/60R30 167 D VT-TRAC | D116: 7106030DVTTRA167 | E116: ROUES MOTRICES | F116: BS VT-TRAC | G116: 710 | H116: 60 | I116: R | J116: 30 | K116: 167 | L116: D | P116: 0 | Q116: 4935 | R116: 4935
A117: 6955 | B117: 3286340695510 | C117: PN BRI VF 540/65R34 157 D VT-TRAC | D117: 5406534DVTTRA157 | E117: ROUES MOTRICES | F117: BS VT-TRAC | G117: 540 | H117: 65 | I117: R | J117: 34 | K117: 157 | L117: D | P117: 0 | Q117: 3117 | R117: 3117
A118: 6958 | B118: 3286340695817 | C118: PN BRI VF 710/60R34 169 D VT-TRAC | D118: 7106034DVTTRA169 | E118: ROUES MOTRICES | F118: BS VT-TRAC | G118: 710 | H118: 60 | I118: R | J118: 34 | K118: 169 | L118: D | P118: 0 | Q118: 5698 | R118: 5698
A119: 6960 | B119: 3286340696012 | C119: PN BRI VF 650/65R38 169 D VT-TRAC | D119: 6506538DVTTRA169 | E119: ROUES MOTRICES | F119: BS VT-TRAC | G119: 650 | H119: 65 | I119: R | J119: 38 | K119: 169 | L119: D | P119: 0 | Q119: 4917 | R119: 4917
A120: 6961 | B120: 3286340696111 | C120: PN BRI VF 650/85R38 179 D VT-TRAC | D120: 6508538DVTTRA179 | E120: ROUES MOTRICES | F120: BS VT-TRAC | G120: 650 | H120: 85 | I120: R | J120: 38 | K120: 179 | L120: D | P120: 0 | Q120: 8935 | R120: 8935
A121: 6962 | B121: 3286340696210 | C121: PN BRI VF 710/70R38 178 D VT-TRAC | D121: 7107038DVTTRA178 | E121: ROUES MOTRICES | F121: BS VT-TRAC | G121: 710 | H121: 70 | I121: R | J121: 38 | K121: 178 | L121: D | P121: 0 | Q121: 7245 | R121: 7245
A122: 6963 | B122: 3286340696319 | C122: PN BRI VF 800/70R38 184 D VT-TRAC | D122: 8007038DVTTRA184 | E122: ROUES MOTRICES | F122: BS VT-TRAC | G122: 800 | H122: 70 | I122: R | J122: 38 | K122: 184 | L122: D | P122: 0 | Q122: 10620 | R122: 10620
A123: 6964 | B123: 3286340696418 | C123: PN BRI VF 900/60R38 183 D VT-TRAC | D123: 9006038DVTTRA183 | E123: ROUES MOTRICES | F123: BS VT-TRAC | G123: 900 | H123: 60 | I123: R | J123: 38 | K123: 183 | L123: D | P123: 0 | Q123: 11413 | R123: 11413
A124: 6965 | B124: 3286340696517 | C124: PN BRI VF 650/65R42 170 D VT-TRAC | D124: 6506542DVTTRA170 | E124: ROUES MOTRICES | F124: BS VT-TRAC | G124: 650 | H124: 65 | I124: R | J124: 42 | K124: 170 | L124: D | P124: 0 | Q124: 6150 | R124: 6150
A125: 6966 | B125: 3286340696616 | C125: PN BRI VF 710/70R42 179 D VT-TRAC | D125: 7107042DVTTRA179 | E125: ROUES MOTRICES | F125: BS VT-TRAC | G125: 710 | H125: 70 | I125: R | J125: 42 | K125: 179 | L125: D | P125: 0 | Q125: 9862 | R125: 9862
A126: 6967 | B126: 3286340696715 | C126: PN BRI VF 710/75R42 181 D VT-TRAC | D126: 7107542DVTTRA181 | E126: ROUES MOTRICES | F126: BS VT-TRAC | G126: 710 | H126: 75 | I126: R | J126: 42 | K126: 181 | L126: D | P126: 0 | Q126: 10552 | R126: 10552
A127: 6968 | B127: 3286340696814 | C127: PN BRI VF 900/50R42 180 D VT-TRAC | D127: 9005042DVTTRA180 | E127: ROUES MOTRICES | F127: BS VT-TRAC | G127: 900 | H127: 50 | I127: R | J127: 42 | K127: 180 | L127: D | P127: 0 | Q127: 9815 | R127: 9815
A128: 70430 | B128: 3286347043017 | C128: PN BRI 6 - 14 4 PR FSLM TT | D128: 614FSLMTT | E128: MOTOCULTURE | F128: BS FSLM | G128: 6 | I128: - | J128: 14 | K128: 4PR | P128: 0 | Q128: 238 | R128: 238
A129: 70431 | B129: 3286347043116 | C129: PN BRI 7 - 16 4 PR FSLM TT | D129: 716FSLMTT | E129: MOTOCULTURE | F129: BS FSLM | G129: 7 | I129: - | J129: 16 | K129: 77 | L129: A6 | P129: 0 | Q129: 329 | R129: 329
A130: 70432 | B130: 3286347043215 | C130: PN BRI 8 - 16 4 PR FSLM TT | D130: 816FSLMTT | E130: MOTOCULTURE | F130: BS FSLM | G130: 8 | I130: - | J130: 16 | K130: 4PR | P130: 0 | Q130: 362 | R130: 362
A131: 70434 | B131: 3286347043413 | C131: PN BRI 4.50 - 10 4 PR FSLM | D131: 45010FSLM | E131: MOTOCULTURE | F131: BS FSLM | G131: 4.5 | I131: - | J131: 10 | K131: 4PR | P131: 0 | Q131: 122 | R131: 122
A132: 70441 | B132: 3286347044113 | C132: PN BRI 6 - 12 4 PR FD TT | D132: 612FDTT | E132: MOTOCULTURE | F132: BS FD | G132: 6 | I132: - | J132: 12 | K132: 4PR | P132: 0 | Q132: 204 | R132: 204
A133: 70443 | B133: 3286347044311 | C133: PN BRI 8 - 16 4 PR FD TT | D133: 816FDTT | E133: MOTOCULTURE | F133: BS FD | G133: 8 | I133: - | J133: 16 | K133: 4PR | P133: 0 | Q133: 381 | R133: 381
A134: 70447 | B134: 3286347044717 | C134: PN BRI 20X8.00 - 10 4 PR PD TT | D134: 2080010PDTT | E134: MOTOCULTURE | F134: BS PD | G134: 8 | I134: - | J134: 10 | K134: 4PR | P134: 0 | Q134: 267 | R134: 267
A135: 70448 | B135: 3286347044816 | C135: PN BRI 23X8.50 - 12 4 PR PD | D135: 2385012PD | E135: MOTOCULTURE | F135: BS PD | G135: 8.5 | I135: - | J135: 12 | K135: 4PR | P135: 0 | Q135: 270 | R135: 270
A136: 70451 | B136: 3286347045110 | C136: PN BRI 20.5X8.00 - 10 4 PR PD 1 | D136: 20580010PD1 | E136: MOTOCULTURE | F136: BS PD1 | G136: 8 | I136: - | J136: 10 | K136: 74 | L136: A6 | P136: 0 | Q136: 274 | R136: 274
A137: 70453 | B137: 3286347045318 | C137: PN BRI 24X8.50 - 12 4 PR PD 1 | D137: 2485012PD1 | E137: MOTOCULTURE | F137: BS PD1 | G137: 8.5 | I137: - | J137: 12 | K137: 4PR | P137: 0 | Q137: 325 | R137: 325
A138: 70455 | B138: 3286347045516 | C138: PN BRI 29X12.00 - 15 4 PR PD 1 | D138: 29120015PD1 | E138: MOTOCULTURE | F138: BS PD1 | G138: 12 | I138: - | J138: 15 | K138: 102 | L138: A6 | P138: 0 | Q138: 546 | R138: =Q138*(1-$D$3) -> 546
A139: 70457 | B139: 3286347045714 | C139: PN BRI 31X15.50 - 15 PD 1 4PR | D139: 31155015PD14PR | E139: MOTOCULTURE | F139: BS PD1 | G139: 15.5 | I139: - | J139: 15 | K139: 114 | L139: A6 | P139: 0 | Q139: 764 | R139: 764
A140: 70459 | B140: 3286347045912 | C140: PN BRI 13.6 - 16 4 PR PD 1 | D140: 13616PD1 | E140: MOTOCULTURE | F140: BS PD1 | G140: 13.6 | I140: - | J140: 16 | K140: 100 | L140: A6 | P140: 0 | Q140: 818 | R140: 818
A141: 70834 | B141: 3286347083419 | C141: PN BRI 6/14 4P FD TT | D141: 614FD | E141: MOTOCULTURE | F141: BS FD | G141: 6 | I141: - | J141: 14 | K141: 4PR | P141: 0 | Q141: 222 | R141: 222
A142: 70841 | B142: 3286347084119 | C142: PN BRI 5 - 12 FSLM 4PR | D142: 512FSLM4PR | E142: MOTOCULTURE | F142: BS FSLM | G142: 5 | I142: - | J142: 12 | K142: 4PR | P142: 0 | Q142: 199 | R142: 199
A143: 70848 | B143: 3286347084812 | C143: PN BRI 355/80 D 20 4 PR PD 1 TT | D143: 3558020PD1TT | E143: MOTOCULTURE | F143: BS PD1 | G143: 355 | H143: 80 | I143: - | J143: 20 | K143: 111 | L143: A6 | P143: 0 | Q143: 1445 | R143: 1445
A144: 70849 | B144: 3286347084911 | C144: PN BRI 25X8.50 - 14 4 PR PD 1 | D144: 2585014PD1 | E144: MOTOCULTURE | F144: BS PD1 | G144: 8.5 | I144: - | J144: 14 | K144: 4PR | P144: 0 | Q144: 392 | R144: 392
A145: 70854 | B145: 3286347085413 | C145: PN BRI 13.6 - 26 FL17 TT | D145: 13626FL17TT | E145: MOTOCULTURE | F145: BS FL17 | G145: 13.6 | I145: - | J145: 26 | K145: 110 | L145: A6 | P145: 0 | Q145: 1187 | R145: 1187
A146: 71002 | B146: 3286347100215 | C146: PN BRI 24X8.50 - 14 PD 1 4PR | D146: 2485014PD14PR | E146: MOTOCULTURE | F146: BS PD1 | G146: 8.5 | I146: - | J146: 14 | K146: 4PR | P146: 0 | Q146: 370 | R146: 370
A147: 72541 | B147: 3286347254116 | C147: PN BRI 5 -14 4P FARM SERVICE LU TT | D147: 514FSLMTT4 | E147: ROUES MOTRICES | F147: BS FARM SERVICE LU | G147: 5 | I147: - | J147: 14 | K147: 4PR | P147: 0 | Q147: 217 | R147: 217
A148: 72562 | B148: 3286347256219 | C148: PN BRI 8 -18 4P FSLH TT | D148: 818FSLHTT4 | E148: MOTOCULTURE | F148: BS FSLH | G148: 8 | I148: - | J148: 18 | K148: 4PR | P148: 0 | Q148: 492 | R148: 492
A149: 72666 | B149: 3286347266614 | C149: PN BRI 6.00 - 12 2 PR TA | D149: 60012TA | E149: MOTOCULTURE | F149: BS TA | G149: 6 | I149: - | J149: 12 | K149: 2PR | P149: 0 | Q149: 217 | R149: 217
A150: 72727 | B150: 3286347272714 | C150: PN BRI 20-800/10 4P M40B | D150: 2080010M40B | E150: MOTOCULTURE | F150: BS M40B | G150: 20 | J150: 10 | K150: 4PR | P150: 0 | Q150: 253 | R150: 253
A151: 72729 | B151: 3286347272912 | C151: PN BRI 22X8.50 - 12 4PR PILLOW DIA-1 TL | D151: 2285012PILLOWTL4PR | E151: MOTOCULTURE | F151: BS PILLOW DIA-1 | G151: 8.5 | I151: - | J151: 12 | K151: 75 | L151: A6 | P151: 0 | Q151: 296 | R151: 296
A152: 72768 | B152: 3286347276811 | C152: PN BRI 23-8.50/12 4P M40B | D152: 2385012M40B | E152: MOTOCULTURE | F152: BS M40B | G152: 23 | I152: - | J152: 12 | K152: 4PR | P152: 0 | Q152: 300 | R152: 300
A153: 72899 | B153: 3286347289910 | C153: PN BRI 24X8.50 -12 4P M40B | D153: 2485012M40B4 | E153: MOTOCULTURE | F153: BS M40B | G153: 8.5 | I153: - | J153: 12 | K153: 4PR | P153: 0 | Q153: 348 | R153: 348
A154: 73031 | B154: 3286347303111 | C154: PN BRI 27X8.50 - 15 PD 1 4PR | D154: 2785015PD14PR | E154: MOTOCULTURE | F154: BS PD1 | G154: 8.5 | I154: - | J154: 15 | K154: 85 | L154: A6 | P154: 0 | Q154: 370 | R154: 370
A155: 73055 | B155: 3286347305511 | C155: PN BRI 23X10.50 - 12 4 PR M40B | D155: 23105012M40B | E155: MOTOCULTURE | F155: BS M40B | G155: 10.5 | I155: - | J155: 12 | K155: 4PR | P155: 0 | Q155: 348 | R155: 348
A156: 76744 | B156: 3286347674419 | C156: PN BRI 250/60 - 14 M40B | D156: 2506014M40B | E156: MOTOCULTURE | F156: BS M40B | G156: 250 | H156: 60 | I156: - | J156: 14 | K156: 79 | L156: A6 | P156: 0 | Q156: 370 | R156: 370
A157: 76745 | B157: 3286347674518 | C157: PN BRI 210/60 - 8 56 A8 AG MOWER M40B TL | D157: 210608A8AGMOWTL56 | E157: MOTOCULTURE | F157: BS AG MOWER M40B | G157: 210 | H157: 60 | I157: - | J157: 8 | K157: 56 | L157: A6 | P157: 0 | Q157: 238 | R157: 238
A158: 7762 | B158: 3286340776219 | C158: PN BRI VF 540/65R30 161A8 VT COMBINE CFO | D158: 5406530VTCOMBI161A8 | E158: ROUES MOTRICES | F158: BS VT COMBINE | G158: 540 | H158: 65 | I158: R | J158: 30 | K158: 161 | L158: A8 | P158: 0 | Q158: 2475 | R158: 2475
A159: 7764 | B159: 3286340776417 | C159: PN BRI IF 800/70R32 182A8 VT COMBINE CFO | D159: 8007032VTCOMBI182A8 | E159: ROUES MOTRICES | F159: BS VT COMBINE | G159: 800 | H159: 70 | I159: R | J159: 32 | K159: 182 | L159: A8 | P159: 0 | Q159: 9812 | R159: 9812
A160: 8545 | B160: 3286340854511 | C160: PN BRI IF 650/75R32 173A8 VT COMBINE CFO | D160: 6507532VTCOMBI173A8 | E160: ROUES MOTRICES | F160: BS VT COMBINE | G160: 650 | H160: 75 | I160: R | J160: 32 | K160: 173 | L160: A8 | P160: 0 | Q160: 5399 | R160: 5399
A161: 8546 | B161: 3286340854610 | C161: PN BRI IF 680/85R32 179A8 VT COMBINE CFO | D161: 6808532VTCOMBI179A8 | E161: ROUES MOTRICES | F161: BS VT COMBINE | G161: 680 | H161: 85 | I161: R | J161: 32 | K161: 179 | L161: A8 | P161: 0 | Q161: 9907 | R161: 9907
A162: 8547 | B162: 3286340854719 | C162: PN BRI IF 800/65R32 178A8 VT COMBINE CFO | D162: 8006532VTCOMBI178A8 | E162: ROUES MOTRICES | F162: BS VT COMBINE | G162: 800 | H162: 65 | I162: R | J162: 32 | K162: 178 | L162: A8 | P162: 0 | Q162: 8414 | R162: 8414
A163: 8548 | B163: 3286340854818 | C163: PN BRI IF 800/70R38 184A8 VT COMBINE CFO | D163: 8007038VTCOMBI184A8 | E163: ROUES MOTRICES | F163: BS VT COMBINE | G163: 800 | H163: 70 | I163: R | J163: 38 | K163: 184 | L163: A8 | P163: 0 | Q163: 11975 | R163: 11975
A164: 8549 | B164: 3286340854917 | C164: PN BRI IF 900/60R32 182A8 VT COMBINE CFO | D164: 9006032VTCOMBI182A8 | E164: ROUES MOTRICES | F164: BS VT COMBINE | G164: 900 | H164: 60 | I164: R | J164: 32 | K164: 182 | L164: A8 | P164: 0 | Q164: 11821 | R164: 11821
A165: 8551 | B165: 3286340855112 | C165: PN BRI VF 500/85R24 163A8 VT COMBINE CFO | D165: 5008524VTCOMBI163A8 | E165: ROUES MOTRICES | F165: BS VT COMBINE | G165: 500 | H165: 85 | I165: R | J165: 24 | K165: 163 | L165: A8 | P165: 0 | Q165: 2467 | R165: 2467
A166: 8553 | B166: 3286340855310 | C166: PN BRI VF 620/75R26 172A8 VT COMBINE CFO | D166: 6207526VTCOMBI172A8 | E166: ROUES MOTRICES | F166: BS VT COMBINE | G166: 620 | H166: 75 | I166: R | J166: 26 | K166: 172 | L166: A8 | P166: 0 | Q166: 4792 | R166: 4792
A167: 8555 | B167: 3286340855518 | C167: PN BRI VF750/65R26 177A8 VT COMBINE CFO | D167: 7506526VTCOMBI177A8 | E167: ROUES MOTRICES | F167: BS VT COMBINE | G167: 750 | H167: 65 | I167: R | J167: 26 | K167: 177 | L167: A8 | P167: 0 | Q167: 6571 | R167: 6571

Sheet CULT
D2: Remise
D3: =Remises!J8 -> 0.44
A5: Actualisation au 04/04/2024
A7: REFERENCES PNEUMATIQUES | Q7: TARIFS
A8: CAI | B8: EAN | C8: Désignation | D8: Appellation | E8: Catégorie | F8: Profil | G8: Largeur | H8: Hauteur | I8: Structure | J8: Diamètre | K8: IC | L8: IV | M8: Conso. | N8: Frein. | O8: Bruit. | P8: Décibels. | Q8: Prix BF | R8: Prix Remisé
A9: 1013089950000 | B9: 8059971055191 | C9: PN CUL 8.3 -24 6P AS-AGRI 13 TT | D9: 8324ASAGRI13TT6 | E9: ROUES MOTRICES | F9: CQ AS-AGRI 13 | G9: 8.3 | I9: - | J9: 24 | K9: 6PR | P9: 0 | Q9: 183 | R9: =Q9*(1-$D$3) -> 102.48
A10: 1013090410000 | B10: 8059971065695 | C10: PN CUL 9.5 -24 8P AS-AGRI 19 TT | D10: 9524ASAGRI19TT8 | E10: ROUES MOTRICES | F10: CQ AS-AGRI 19 | G10: 9.5 | I10: - | J10: 24 | K10: 8PR | P10: 0 | Q10: 209 | R10: =Q10*(1-$D$3) -> 117.04
A11: 1013101300000 | B11: 8059971060492 | C11: PN CUL 16.9 -24 8P AS-AGRI 13 TT | D11: 16924ASAGRI13TT8 | E11: ROUES MOTRICES | F11: CQ AS-AGRI 13 | G11: 16.9 | I11: - | J11: 24 | K11: 8PR | P11: 0 | Q11: 518 | R11: 290.08
A12: 1013101310000 | B12: 8059971059182 | C12: PN CUL 16.9 -24 8P AS-AGRI 13 IRRI TT | D12: 16924ASAGRI13IRRIT8 | E12: ROUES MOTRICES | F12: CQ AS-AGRI 13 IRRI | G12: 16.9 | I12: - | J12: 24 | K12: 8PR | P12: 0 | Q12: 493 | R12: 276.08
A13: 1013204350000 | B13: 8059971064216 | C13: PN CUL 18.4 -34 10P AS-AGRI 19 TT | D13: 18434ASAGRI19TT10 | E13: ROUES MOTRICES | F13: CQ AS-AGRI 19 | G13: 18.4 | I13: - | J13: 34 | K13: 10PR | P13: 0 | Q13: 689 | R13: 385.84
A14: 1014360900000 | B14: 8059971044041 | C14: PN CUL 320/85R28 124A8/121B RD-01 | D14: 3208528RD01124A8 | E14: ROUES MOTRICES | F14: CQ RD-01 | G14: 320 | H14: 85 | I14: R | J14: 28 | K14: 124 | L14: A8 | P14: 0 | Q14: 447 | R14: 250.32
A15: 1014370690000 | B15: 8059971037319 | C15: PN CUL 420/70R28 133A8/133B RD02 | D15: 4207028RD02133A8 | E15: ROUES MOTRICES | F15: CQ RD-02-1 | G15: 420 | H15: 70 | I15: R | J15: 28 | K15: 133 | L15: A8 | P15: 0 | Q15: 698 | R15: 390.88
A16: 1014372070000 | B16: 8059971065008 | C16: PN CUL 480/70R28 140A8/140B RD02 | D16: 4807028RD02140A8 | E16: ROUES MOTRICES | F16: CQ RD-02-1 | G16: 480 | H16: 70 | I16: R | J16: 28 | K16: 140 | L16: A8 | P16: 0 | Q16: 899 | R16: 503.44
A17: 1014381160000 | B17: 8059971043709 | C17: PN CUL 380/85R30 135A8/135B RD-01 | D17: 3808530RD01135A8 | E17: ROUES MOTRICES | F17: CQ RD-01 | G17: 380 | H17: 85 | I17: R | J17: 30 | K17: 135 | L17: A8 | P17: 0 | Q17: 714 | R17: 399.84
A18: 1014381840000 | B18: 8059971063417 | C18: PN CUL 460/85R30 145A8/142B RD-01 | D18: 4608530RD01145A8 | E18: ROUES MOTRICES | F18: CQ RD-01 | G18: 460 | H18: 85 | I18: R | J18: 30 | K18: 145 | L18: A8 | P18: 0 | Q18: 960 | R18: 537.6
A19: 4006332700000 | B19: 8059971062878 | C19: PN CUL 340/85R24 125A8/122B RD-01 | D19: 3408524RD01125A8 | E19: ROUES MOTRICES | F19: CQ RD-01 | G19: 340 | H19: 85 | I19: R | J19: 24 | K19: 125 | L19: A8 | P19: 0 | Q19: 462 | R19: 258.72
A20: 4006332720000 | B20: 8059971062885 | C20: PN CUL 420/85R24 137 B RD-01 TL | D20: 4208524BRD01TL137 | E20: ROUES MOTRICES | F20: CQ RD-01 | G20: 420 | H20: 85 | I20: R | J20: 24 | K20: 137 | L20: A8 | P20: 0 | Q20: 664 | R20: 371.84
A21: 4006332730000 | B21: 8059971057980 | C21: PN CUL 280/85R28 115 B RD-01 TL | D21: 2808528BRD01TL115CQ | E21: ROUES MOTRICES | F21: CQ RD-01 | G21: 280 | H21: 85 | I21: R | J21: 28 | K21: 118 | L21: A8 | P21: 0 | Q21: 401 | R21: 224.56
A22: 4006332750000 | B22: 8059971066647 | C22: PN CUL 340/85R28 124 B RD-01 TL | D22: 3408528BRD01TL124 | E22: ROUES MOTRICES | F22: CQ RD-01 | G22: 340 | H22: 85 | I22: R | J22: 28 | K22: 127 | L22: A8 | P22: 0 | Q22: 527 | R22: 295.12
A23: 4006332760000 | B23: 8059971062908 | C23: PN CUL 380/85R28 133A8/130B RD-01 | D23: 3808528RD01133A8 | E23: ROUES MOTRICES | F23: CQ RD-01 | G23: 380 | H23: 85 | I23: R | J23: 28 | K23: 133 | L23: A8 | P23: 0 | Q23: 604 | R23: 338.24
A24: 4006332770000 | B24: 8059971040395 | C24: PN CUL 420/85R28 139A8/136B RD-01 | D24: 4208528RD01139A8 | E24: ROUES MOTRICES | F24: CQ RD-01 | G24: 420 | H24: 85 | I24: R | J24: 28 | K24: 139 | L24: A8 | P24: 0 | Q24: 722 | R24: 404.32
A25: 4006332810000 | B25: 8059971035971 | C25: PN CUL 320/85R32 142 B RD-01 TL | D25: 3208532BRD01TL142 | E25: ROUES MOTRICES | F25: CQ RD-01 | G25: 320 | H25: 85 | I25: R | J25: 32 | K25: 142 | L25: A8 | P25: 0 | Q25: 539 | R25: 301.84
A26: 4006332820000 | B26: 8059971043518 | C26: PN CUL 420/85R34 142A8/139B RD-01 | D26: 4208534RD01142A8 | E26: ROUES MOTRICES | F26: CQ RD-01 | G26: 420 | H26: 85 | I26: R | J26: 34 | K26: 142 | L26: A8 | P26: 0 | Q26: 872 | R26: 488.32
A27: 4006332830000 | B27: 8059971035988 | C27: PN CUL 420/85R34 147A8/144B RD-01 | D27: 4208534RD01147A8 | E27: ROUES MOTRICES | F27: CQ RD-01 | G27: 420 | H27: 85 | I27: R | J27: 34 | K27: 147 | L27: A8 | P27: 0 | Q27: 910 | R27: 509.6
A28: 4006332840000 | B28: 8059971035995 | C28: PN CUL 460/85R34 144 B RD-01 TL | D28: 4608534BRD01TL144 | E28: ROUES MOTRICES | F28: CQ RD-01 | G28: 460 | H28: 85 | I28: R | J28: 34 | K28: 147 | L28: A8 | P28: 0 | Q28: 1063 | R28: 595.28
A29: 4006332850000 | B29: 8059971044003 | C29: PN CUL 340/85R36 129 B RD-01 TL | D29: 3408536BRD01TL129 | E29: ROUES MOTRICES | F29: CQ RD-01 | G29: 340 | H29: 85 | I29: R | J29: 36 | K29: 132 | L29: A8 | P29: 0 | Q29: 606 | R29: 339.36
A30: 4006332850007 | C30: RC CUL 340/85R36 132A8/129B RD-01 | D30: 3408536RD01132A8RC | E30: ROUES MOTRICES | F30: CQ RD-01 | G30: 340 | H30: 85 | I30: R | J30: 36 | P30: 0 | Q30: 1903.72 | R30: 1066.0832
A31: 4006332870000 | B31: 8059971063387 | C31: PN CUL 340/85R38 133 B RD-01 TL | D31: 3408538BRD01TL133 | E31: ROUES MOTRICES | F31: CQ RD-01 | G31: 340 | H31: 85 | I31: R | J31: 38 | K31: 133 | L31: A8 | P31: 0 | Q31: 646 | R31: 361.76
A32: 4006332880000 | B32: 8059971063394 | C32: PN CUL 460/85R38 149A8/146B RD-01 | D32: 4608538RD01149A8 | E32: ROUES MOTRICES | F32: CQ RD-01 | G32: 460 | H32: 85 | I32: R | J32: 38 | K32: 149 | L32: A8 | P32: 0 | Q32: 1167 | R32: 653.52
A33: 4006332900000 | B33: 8059971037937 | C33: PN CUL 380/70R24 125 B RD-02 TL | D33: 3807024BRD02TL125 | E33: ROUES MOTRICES | F33: CQ RD-02-1 | G33: 380 | H33: 70 | I33: R | J33: 24 | K33: 125 | L33: A8 | P33: 0 | Q33: 561 | R33: 314.16
A34: 4006332910000 | B34: 8059971061789 | C34: PN CUL 380/70R28 127 B RD-02 TL | D34: 3807028BRD02TL127 | E34: ROUES MOTRICES | F34: CQ RD-02-1 | G34: 380 | H34: 70 | I34: R | J34: 28 | K34: 127 | L34: A8 | P34: 0 | Q34: 611 | R34: 342.16
A35: 4006332960000 | B35: 8059971060287 | C35: PN CUL 480/70R30 141 B RD-02 TL | D35: 4807030BRD02TL141 | E35: ROUES MOTRICES | F35: CQ RD-02-1 | G35: 480 | H35: 70 | I35: R | J35: 30 | K35: 141 | L35: A8 | P35: 0 | Q35: 973 | R35: 544.88
A36: 4006332970000 | B36: 8059971037494 | C36: PN CUL 480/70R34 143 B RD-02 TL | D36: 4807034BRD02TL143 | E36: ROUES MOTRICES | F36: CQ RD-02-1 | G36: 480 | H36: 70 | I36: R | J36: 34 | K36: 143 | L36: A8 | P36: 0 | Q36: 1063 | R36: 595.28
A37: 4006332980000 | B37: 8059971061819 | C37: PN CUL 480/70R38 145 B RD-02 TL | D37: 4807038BRD02TL145 | E37: ROUES MOTRICES | F37: CQ RD-02-1 | G37: 480 | H37: 70 | I37: R | J37: 38 | K37: 145 | L37: A8 | P37: 0 | Q37: 1141 | R37: 638.96
A38: 4006332990000 | B38: 8059971065183 | C38: PN CUL 520/70R38 150 B RD-02 TL | D38: 5207038BRD02TL150 | E38: ROUES MOTRICES | F38: CQ RD-02-1 | G38: 520 | H38: 70 | I38: R | J38: 38 | K38: 150 | L38: A8 | P38: 0 | Q38: 1381 | R38: 773.36
A39: 4006333020000 | B39: 8059971037500 | C39: PN CUL 320/70R24 116 B RD-02 TL | D39: 3207024BRD02TL116 | E39: ROUES MOTRICES | F39: CQ RD-02-1 | G39: 320 | H39: 70 | I39: R | J39: 24 | K39: 116 | L39: A8 | P39: 0 | Q39: 447 | R39: 250.32
A40: 4006333030000 | B40: 8059971065190 | C40: PN CUL 360/70R24 122 B RD-02 TL | D40: 3607024BRD02TL122 | E40: ROUES MOTRICES | F40: CQ RD-02-1 | G40: 360 | H40: 70 | I40: R | J40: 24 | K40: 122 | L40: A8 | P40: 0 | Q40: 508 | R40: 284.48
A41: 4006333040000 | B41: 8059971037968 | C41: PN CUL 420/70R24 130 B RD-02 TL | D41: 4207024BRD02TL130 | E41: ROUES MOTRICES | F41: CQ RD-02-1 | G41: 420 | H41: 70 | I41: R | J41: 24 | K41: 130 | L41: A8 | P41: 0 | Q41: 640 | R41: 358.4
A42: 4006333050000 | B42: 8059971038071 | C42: PN CUL 520/70R34 148 B RD-02 TL | D42: 5207034BRD02TL148 | E42: ROUES MOTRICES | F42: CQ RD-02-1 | G42: 520 | H42: 70 | I42: R | J42: 34 | K42: 148 | L42: A8 | P42: 0 | Q42: 1381 | R42: 773.36
A43: 4006333060000 | B43: 8059971065206 | C43: PN CUL 580/70R38 155 B RD-02 TL | D43: 5807038BRD02TL155 | E43: ROUES MOTRICES | F43: CQ RD-02-1 | G43: 580 | H43: 70 | I43: R | J43: 38 | K43: 155 | L43: A8 | P43: 0 | Q43: 1774 | R43: 993.44
A44: 4006333070000 | B44: 8059971041699 | C44: PN CUL 420/65R24 126 D RD-03 TL | D44: 4206524DRD03TL126 | E44: ROUES MOTRICES | F44: CQ RD-03 | G44: 420 | H44: 65 | I44: R | J44: 24 | K44: 126 | L44: A8 | P44: 0 | Q44: 628 | R44: 351.68
A45: 4006333080000 | B45: 8059971034783 | C45: PN CUL 440/65R24 128 D RD-03 TL | D45: 4406524DRD03TL128 | E45: ROUES MOTRICES | F45: CQ RD-03 | G45: 440 | H45: 65 | I45: R | J45: 24 | K45: 128 | L45: A8 | P45: 0 | Q45: 641 | R45: 358.96
A46: 4006333090000 | B46: 8059971067460 | C46: PN CUL 480/65R24 133 D RD-03 TL | D46: 4806524DRD03TL133 | E46: ROUES MOTRICES | F46: CQ RD-03 | G46: 480 | H46: 65 | I46: R | J46: 24 | K46: 133 | L46: A8 | P46: 0 | Q46: 765 | R46: 428.4
A47: 4006333100000 | B47: 8059971039535 | C47: PN CUL 540/65R24 140 D RD-03 TL | D47: 5406524DRD03TL140CQ | E47: ROUES MOTRICES | F47: CQ RD-03 | G47: 540 | H47: 65 | I47: R | J47: 24 | K47: 140 | L47: A8 | P47: 0 | Q47: 936 | R47: 524.16
A48: 4006333110000 | B48: 8059971034790 | C48: PN CUL 440/65R28 131 D RD-03 TL | D48: 4406528DRD03TL131CQ | E48: ROUES MOTRICES | F48: CQ RD-03 | G48: 440 | H48: 65 | I48: R | J48: 28 | K48: 131 | L48: A8 | P48: 0 | Q48: 727 | R48: 407.12
A49: 4006333120000 | B49: 8059971041705 | C49: PN CUL 480/65R28 136 D RD-03 TL | D49: 4806528DRD03TL136 | E49: ROUES MOTRICES | F49: CQ RD-03 | G49: 480 | H49: 65 | I49: R | J49: 28 | K49: 136 | L49: A8 | P49: 0 | Q49: 805 | R49: 450.8
A50: 4006333130000 | B50: 8059971035407 | C50: PN CUL 540/65R28 142 D RD-03 TL | D50: 5406528DRD03TL142 | E50: ROUES MOTRICES | F50: CQ RD-03 | G50: 540 | H50: 65 | I50: R | J50: 28 | K50: 142 | L50: A8 | P50: 0 | Q50: 1038 | R50: 581.28
A51: 4006333140000 | B51: 8059971035414 | C51: PN CUL 600/65R28 147 D RD-03 TL | D51: 6006528DRD03TL147 | E51: ROUES MOTRICES | F51: CQ RD-03 | G51: 600 | H51: 65 | I51: R | J51: 28 | K51: 147 | L51: A8 | P51: 0 | Q51: 1426 | R51: 798.56
A52: 4006333150000 | B52: 8059971062014 | C52: PN CUL 540/65R30 150 D RD-03 TL | D52: 5406530DRD03TL150 | E52: ROUES MOTRICES | F52: CQ RD-03 | G52: 540 | H52: 65 | I52: R | J52: 30 | K52: 150 | L52: A8 | P52: 0 | Q52: 1151 | R52: 644.56
A53: 4006333160000 | B53: 8059971057379 | C53: PN CUL 540/65R34 145 D RD-03 TL | D53: 5406534DRD03TL145 | E53: ROUES MOTRICES | F53: CQ RD-03 | G53: 540 | H53: 65 | I53: R | J53: 34 | K53: 145 | L53: A8 | P53: 0 | Q53: 1229 | R53: 688.24
A54: 4006333170000 | B54: 8059971036053 | C54: PN CUL 600/65R34 151 D RD-03 TL | D54: 6006534DRD03TL151 | E54: ROUES MOTRICES | F54: CQ RD-03 | G54: 600 | H54: 65 | I54: R | J54: 34 | K54: 151 | L54: A8 | P54: 0 | Q54: 1510 | R54: 845.6
A55: 4006333180000 | B55: 8059971056020 | C55: PN CUL 540/65R38 147 D RD-03 TL | D55: 5406538DRD03TL147 | E55: ROUES MOTRICES | F55: CQ RD-03 | G55: 540 | H55: 65 | I55: R | J55: 38 | K55: 147 | L55: A8 | P55: 0 | Q55: 1367 | R55: 765.52
A56: 4006333190000 | B56: 8059971058420 | C56: PN CUL 600/65R38 153 D RD-03 TL | D56: 6006538DRD03TL153 | E56: ROUES MOTRICES | F56: CQ RD-03 | G56: 600 | H56: 65 | I56: R | J56: 38 | K56: 153 | L56: A8 | P56: 0 | Q56: 1646 | R56: 921.76
A57: 4006333200000 | B57: 8059971041507 | C57: PN CUL 650/65R38 157 D RD-03 TL | D57: 6506538DRD03TL157 | E57: ROUES MOTRICES | F57: CQ RD-03 | G57: 650 | H57: 65 | I57: R | J57: 38 | K57: 157 | L57: A8 | P57: 0 | Q57: 2145 | R57: 1201.2
A58: 4006333210000 | B58: 8059971041682 | C58: PN CUL 650/65R38 166D/169A8 RD03 | D58: 6506538RD03166D | E58: ROUES MOTRICES | F58: CQ RD-03 | G58: 650 | H58: 65 | I58: R | J58: 38 | K58: 166/169 | L58: D | P58: 0 | Q58: 2261 | R58: 1266.16
A59: 4006333230000 | B59: 8059971035421 | C59: PN CUL 650/65R42 165 D RD-03 TL | D59: 6506542DRD03TL165 | E59: ROUES MOTRICES | F59: CQ RD-03 | G59: 650 | H59: 65 | I59: R | J59: 42 | K59: 165 | L59: A8 | P59: 0 | Q59: 2584 | R59: 1447.04
A60: 5002600050000 | B60: 8059971061437 | C60: PN CUL 10.0/80-12 12P AW-IMPL 11 TT | D60: 1008012AWIMPL11TT12 | E60: REMORQUES AGRICOLES | F60: CQ AW-IMPL 11 | G60: 10 | H60: 80 | I60: - | J60: 12 | K60: 12PR | P60: 0 | Q60: 135 | R60: 75.6
A61: 5002600130000 | B61: 8059971039337 | C61: PN CUL 8.25R15 16PR AW IMPL 12 TT | D61: 82515AWIMPTT16PR | E61: REMORQUES AGRICOLES | F61: CQ AW-IMPL 12 | G61: 8.25 | I61: - | J61: 15 | K61: 16PR | P61: 0 | Q61: 233 | R61: 130.48
A62: 5002600370000 | B62: 8059971037784 | C62: PN CUL 5.50 - 16 6PR AS FRONT 04 TT | D62: 55016ASFROTT6PR | E62: ROUES DIRECTRICES | F62: CQ AS-FRONT 04 | G62: 5.5 | I62: - | J62: 16 | K62: 6PR | P62: 0 | Q62: 79 | R62: 44.24
A63: 5002600610000 | B63: 8059971068788 | C63: PN CUL 7.50R16 14PR AW IMPL 11 TT | D63: 75016AWIMPTT14PR | E63: REMORQUES AGRICOLES | F63: CQ AW-IMPL 11 | G63: 7.5 | I63: - | J63: 16 | K63: 14PR | P63: 0 | Q63: 149 | R63: 83.44
A64: 5002601050000 | B64: 8059971069365 | C64: PN CUL 8.00 20 8PR AS-AGRI 06 | D64: 80020ASA8PRCQ | E64: ROUES MOTRICES | F64: CQ AS-AGRI 06 | G64: 8 | I64: - | J64: 20 | K64: 8PR | P64: 0 | Q64: 212 | R64: 118.72
A65: 5002601450000 | B65: 8059971041262 | C65: PN CUL 13.6 24 8PR AS-AGRI 13 | D65: 13624ASA8PRCQ | E65: ROUES MOTRICES | F65: CQ AS-AGRI 13 | G65: 13.6 | I65: - | J65: 24 | K65: 8PR | P65: 0 | Q65: 340 | R65: 190.4
A66: 5002601820000 | B66: 8059971041019 | C66: PN CUL 14.9 26 8PR AS-AGRI 10 | D66: 14926ASA8PRCQ | E66: ROUES MOTRICES | F66: CQ AS-AGRI 10 | G66: 14.9 | I66: - | J66: 26 | K66: 8PR | P66: 0 | Q66: 452 | R66: 253.12
A67: 5002601859000 | B67: 8059971041200 | C67: PN CUL 16.9 26 10PR AS-AGRI 10 | D67: 16926ASA10PRCQ | E67: ROUES MOTRICES | F67: CQ AS-AGRI 10 | G67: 16.9 | I67: - | J67: 26 | K67: 10PR | P67: 0 | Q67: 471 | R67: 263.76
A68: 5002602010000 | B68: 8059971042795 | C68: PN CUL 8.3 28 8PR AS-AGRI 10 | D68: 8328ASA8PRCQ | E68: ROUES MOTRICES | F68: CQ AS-AGRI 10 | G68: 8.3 | I68: - | J68: 28 | K68: 8PR | P68: 0 | Q68: 208 | R68: 116.48
A69: 5002602680000 | B69: 8059971056532 | C69: PN CUL 8.3 32 6PR AS-AGRI 10 | D69: 8332ASA6PRCQ | E69: ROUES MOTRICES | F69: CQ AS-AGRI 10 | G69: 8.3 | I69: - | J69: 32 | K69: 6PR | P69: 0 | Q69: 222 | R69: 124.32
A70: 5002602710000 | B70: 8059971056303 | C70: PN CUL 9.5 32 6PR AS-AGRI 13 | D70: 9532ASA6PRCQ | E70: ROUES MOTRICES | F70: CQ AS-AGRI 13 | G70: 9.5 | I70: - | J70: 32 | K70: 6PR | P70: 0 | Q70: 250 | R70: 140
A71: 5002602730000 | B71: 8059971038132 | C71: PN CUL 12.4 32 6PR AS-AGRI 13 | D71: 12432ASA6PRCQ | E71: ROUES MOTRICES | F71: CQ AS-AGRI 13 | G71: 12.4 | I71: - | J71: 32 | K71: 6PR | P71: 0 | Q71: 344 | R71: 192.64
A72: 5002602790000 | B72: 8059971058475 | C72: PN CUL 16.9 34 8PR AS-AGRI 10 | D72: 16934ASA8PRCQ | E72: ROUES MOTRICES | F72: CQ AS-AGRI 10 | G72: 16.9 | I72: - | J72: 34 | K72: 8PR | P72: 0 | Q72: 586 | R72: 328.16
A73: 5002602900000 | B73: 8059971056488 | C73: PN CUL 8.3 36 6PR AS-AGRI 10 | D73: 8336ASA6PRCQ | E73: ROUES MOTRICES | F73: CQ AS-AGRI 10 | G73: 8.3 | I73: - | J73: 36 | K73: 6PR | P73: 0 | Q73: 253 | R73: 141.68
A74: 5002602910000 | B74: 8059971068184 | C74: PN CUL 9.5 36 6PR AS-AGRI 10 | D74: 9536ASA6PRCQ | E74: ROUES MOTRICES | F74: CQ AS-AGRI 10 | G74: 9.5 | I74: - | J74: 36 | K74: 6PR | P74: 0 | Q74: 277 | R74: =Q74*(1-$D$3) -> 155.12
A75: 5002602930000 | B75: 8059971056501 | C75: PN CUL 9.5 36 10PR AS-AGRI 10 | D75: 9536ASA10PRCQ | E75: ROUES MOTRICES | F75: CQ AS-AGRI 10 | G75: 9.5 | I75: - | J75: 36 | K75: 10PR | P75: 0 | Q75: 293 | R75: 164.08
A76: 5002602970000 | B76: 8059971059168 | C76: PN CUL 12.4 36 6PR AS-AGRI 13 | D76: 12436ASA6PRCQ | E76: ROUES MOTRICES | F76: CQ AS-AGRI 13 | G76: 12.4 | I76: - | J76: 36 | K76: 6PR | P76: 0 | Q76: 368 | R76: 206.08
A77: 5002603130000 | B77: 8059971055320 | C77: PN CUL 16.9 38 8PR AS-AGRI 13 | D77: 16938ASA8PRCQ | E77: ROUES MOTRICES | F77: CQ AS-AGRI 13 | G77: 16.9 | I77: - | J77: 38 | K77: 8PR | P77: 0 | Q77: 628 | R77: 351.68
A78: 5002603480000 | B78: 8059971069990 | C78: PN CUL 18.4 - 34 16PR AS-AGRI-10 TT | D78: 18434ASATT16PR | E78: ROUES MOTRICES | F78: CQ AS-AGRI 10 | G78: 18.4 | I78: - | J78: 34 | K78: 16PR | P78: 0 | Q78: 842 | R78: 471.52
A79: 5002603510000 | B79: 8059971055375 | C79: PN CUL 16.9 30 8PR AS-AGRI 13 | D79: 16930ASA8PRCQ | E79: ROUES MOTRICES | F79: CQ AS-AGRI 13 | G79: 16.9 | I79: - | J79: 30 | K79: 8PR | P79: 0 | Q79: 527 | R79: 295.12
A80: 5002603520000 | B80: 8059971068450 | C80: PN CUL 6.00 - 19 8PR AS FRONT 10 | D80: 60019ASFRONT10TT8 | E80: ROUES DIRECTRICES | F80: CQ AS-FRONT 10 | G80: 6 | I80: - | J80: 19 | K80: 8PR | P80: 0 | Q80: 116 | R80: 64.96
A81: 5002603560000 | B81: 8059971062601 | C81: PN CUL 16.9 28 10PR AS-AGRI 13 | D81: 16928ASA10PRCQ | E81: ROUES MOTRICES | F81: CQ AS-AGRI 13 | G81: 16.9 | I81: - | J81: 28 | K81: 10PR | P81: 0 | Q81: 531 | R81: 297.36
A82: 5002603570000 | B82: 8059971062618 | C82: PN CUL 18.4 30 8PR AS-AGRI 13 | D82: 18430ASA8PRCQ | E82: ROUES MOTRICES | F82: CQ AS-AGRI 13 | G82: 18.4 | I82: - | J82: 30 | K82: 8PR | P82: 0 | Q82: 616 | R82: 344.96
A83: 5002603590000 | B83: 8059971055382 | C83: PN CUL 18.4 30 12PR AS-AGRI 13 | D83: 18430ASA12PRCQ | E83: ROUES MOTRICES | F83: CQ AS-AGRI 13 | G83: 18.4 | I83: - | J83: 30 | K83: 12PR | P83: 0 | Q83: 627 | R83: 351.12
A84: 5002603910000 | B84: 8059971056341 | C84: PN CUL 13.6 36 6PR AS-AGRI 13 | D84: 13636ASA6PRCQ | E84: ROUES MOTRICES | F84: CQ AS-AGRI 13 | G84: 13.6 | I84: - | J84: 36 | K84: 6PR | P84: 0 | Q84: 439 | R84: 245.84
A85: 5002603920000 | B85: 8059971069631 | C85: PN MIT 12.4 - 28 8PR AS-AGRI 19 TT | D85: 12428ASAGRTT8PR | E85: ROUES MOTRICES | F85: CQ AS-AGRI 19 | G85: 12.4 | I85: - | J85: 28 | K85: 8PR | P85: 0 | Q85: 313 | R85: 175.28
A86: 5002604060000 | B86: 8059971036862 | C86: PN CUL 14.9 24 8PR AS-AGRI 19 | D86: 14924ASA8PRCQ | E86: ROUES MOTRICES | F86: CQ AS-AGRI 19 | G86: 14.9 | I86: - | J86: 24 | K86: 8PR | P86: 0 | Q86: 362 | R86: 202.72
A87: 5002604110000 | B87: 8059971044317 | C87: PN CUL 11.2 28 8PR AS-AGRI 19 | D87: 11228ASA8PRCQ | E87: ROUES MOTRICES | F87: CQ AS-AGRI 19 | G87: 11.2 | I87: - | J87: 28 | K87: 8PR | P87: 0 | Q87: 269 | R87: 150.64
A88: 5002604120000 | B88: 8059971036879 | C88: PN CUL 13.6 28 8PR AS-AGRI 19 | D88: 13628ASA8PRCQ | E88: ROUES MOTRICES | F88: CQ AS-AGRI 19 | G88: 13.6 | I88: - | J88: 28 | K88: 8PR | P88: 0 | Q88: 374 | R88: 209.44
A89: 5002604150000 | B89: 8059971041354 | C89: PN CUL 16.9 -30 14P AS-AGRI 13 TT | D89: 16930ASAGRI13TT14 | E89: ROUES MOTRICES | F89: CQ AS-AGRI 13 | G89: 16.9 | I89: - | J89: 30 | K89: 14PR | P89: 0 | Q89: 635 | R89: 355.6
A90: 5002604160000 | B90: 8059971038149 | C90: PN CUL 13.6 38 8PR AS-AGRI 13 | D90: 13638ASA8PRCQ | E90: ROUES MOTRICES | F90: CQ AS-AGRI 13 | G90: 13.6 | I90: - | J90: 38 | K90: 8PR | P90: 0 | Q90: 473 | R90: 264.88
A91: 5002604170000 | B91: 8059971065718 | C91: PN CUL 18.4 38 10PR AS-AGRI 19 | D91: 18438ASA10PRCQ | E91: ROUES MOTRICES | F91: CQ AS-AGRI 19 | G91: 18.4 | I91: - | J91: 38 | K91: 10PR | P91: 0 | Q91: 764 | R91: 427.84
A92: 5002604180000 | B92: 8059971036886 | C92: PN CUL 18.4 -38 14P AS-AGRI 19 TT | D92: 18438ASAGRI19TT14 | E92: ROUES MOTRICES | F92: CQ AS-AGRI 19 | G92: 18.4 | I92: - | J92: 38 | K92: 14PR | P92: 0 | Q92: 876 | R92: 490.56
A93: 5002604650000 | B93: 8059971055689 | C93: PN CUL 6.00 - 16 8PR AS FRONT 09 | D93: 60016ASFRO098PRCQ | E93: ROUES DIRECTRICES | F93: CQ AS-FRONT 09 | G93: 6 | I93: - | J93: 16 | K93: 8PR | P93: 0 | Q93: 82 | R93: 45.92
A94: 5002604970000 | B94: 8059971058482 | C94: PN CUL 9.5 -42 10P AS-AGRI 10 TT | D94: 9542ASAGRI10TT10 | E94: ROUES MOTRICES | F94: CQ AS-AGRI 10 | G94: 9.5 | I94: - | J94: 42 | K94: 10PR | P94: 0 | Q94: 486 | R94: 272.16
A95: 5002605050000 | B95: 8059971059175 | C95: PN CUL 14.00 -38 8P AS-AGRI 13 TT | D95: 140038ASAG13TT8 | E95: ROUES MOTRICES | F95: CQ AS-AGRI 13 | G95: 14 | I95: - | J95: 38 | K95: 8PR | P95: 0 | Q95: 511 | R95: 286.16
A96: 5002605590000 | B96: 8059971062199 | C96: PN CUL 300/90-24 132A6 AW-IMPL13 TT | D96: 3009024AWIMPLTT132A6 | E96: REMORQUES AGRICOLES | F96: CQ AW-IMPL 13 | G96: 300 | H96: 90 | I96: - | J96: 24 | K96: 10PR | L96: A6 | P96: 0 | Q96: 239 | R96: 133.84
A97: 5002605850000 | B97: 8059971041323 | C97: PN CUL 16.9 -24 8P AS-AGRI 13 IRRI TT | D97: 16924ASAGRI13IRRITT8 | E97: ROUES MOTRICES | F97: CQ AS-AGRI 13 IRRI | G97: 16.9 | I97: - | J97: 24 | K97: 8PR | P97: 0 | Q97: 493 | R97: 276.08
A98: 5002605860000 | B98: 8059971064285 | C98: PN CUL 14.9 -24 8P AS-AGRI 19 IRRI TT | D98: 14924ASAGRI19IRRITT8 | E98: ROUES MOTRICES | F98: CQ AS-AGRI 19 | G98: 14.9 | I98: - | J98: 24 | K98: 8PR | P98: 0 | Q98: 326 | R98: 182.56
A99: 5002606230000 | B99: 8059971041118 | C99: PN CUL 8.00 -12 6P AW-IMPL 14 TT | D99: 80012AWIMPL14TT6 | E99: MOTOCULTURE | F99: CQ AW-IMPL 14 | G99: 8 | I99: - | J99: 12 | K99: 6PR | P99: 0 | Q99: 163 | R99: 91.28
A100: 5002606330000 | B100: 8059971067514 | C100: PN CUL 7.50 - 16 8PR AS FRONT 08 | D100: 75016ASFRO8PRCQ | E100: ROUES DIRECTRICES | F100: CQ AS-FRONT 08 | G100: 7.5 | I100: - | J100: 16 | K100: 8PR | P100: 0 | Q100: 114 | R100: 63.84
A101: 5002606340000 | B101: 8059971040630 | C101: PN CUL 7.50 - 16 8PR AS FRONT 13 | D101: 75016ASFRO138PRCQ | E101: ROUES DIRECTRICES | F101: CQ AS-FRONT 13 | G101: 7.5 | I101: - | J101: 16 | K101: 8PR | P101: 0 | Q101: 114 | R101: 63.84
A102: 5002606470000 | B102: 8059971059021 | C102: PN CUL 7.50 - 20 8PR AS FRONT 08 | D102: 75020ASFRO8PRCQ | E102: ROUES DIRECTRICES | F102: CQ AS-FRONT 08 | G102: 7.5 | I102: - | J102: 20 | K102: 8PR | P102: 0 | Q102: 125 | R102: 70
A103: 5002606670000 | B103: 8059971060454 | C103: PN CUL 7.5L -15 6P AS-AGRI 10 TT | D103: 7515ASAGRI10TT6 | E103: ROUES MOTRICES | F103: CQ AS-AGRI 10 | G103: 7.5 | I103: - | J103: 15 | K103: 6PR | P103: 0 | Q103: 169 | R103: 94.64
A104: 5002606680000 | B104: 8059971044164 | C104: PN CUL 10.0/75-15.3 10P M 159 TT | D104: 10075153M159TT10CU | E104: MOTOCULTURE | F104: CQ M159 | G104: 10 | H104: 75 | I104: - | J104: 15.3 | K104: 10PR | P104: 0 | Q104: 221 | R104: 123.76
A105: 5002606760000 | B105: 8059971043150 | C105: PN CUL 6.50 - 16 8PR AS FRONT 08 | D105: 65016ASFRO8PRCQ | E105: ROUES DIRECTRICES | F105: CQ AS-FRONT 08 | G105: 6.5 | I105: - | J105: 16 | K105: 8PR | P105: 0 | Q105: 107 | R105: 59.92
A106: 5002610660000 | B106: 8059971043464 | C106: PN CUL 10.00 - 16 8PR AS FRONT 10 | D106: 100016ASFRO8PR | E106: ROUES DIRECTRICES | F106: CQ AS-FRONT 10 | G106: 10 | I106: - | J106: 16 | K106: 8PR | P106: 0 | Q106: 215 | R106: 120.4
A107: 5002611470000 | B107: 8059971055344 | C107: PN CUL 13.6 -24 8P AS-AGRI 13 | D107: 13624ASAGRI138 | E107: ROUES MOTRICES | F107: CQ AS-AGRI 13 | G107: 13.6 | I107: - | J107: 24 | K107: 8PR | P107: 0 | Q107: 340 | R107: 190.4
A108: 5002612490000 | B108: 8059971041217 | C108: PN CUL 14.9 30 10PR AS-AGRI 10 | D108: 14930ASA10PRCQ | E108: ROUES MOTRICES | F108: CQ AS-AGRI 10 | G108: 14.9 | I108: - | J108: 30 | K108: 10PR | P108: 0 | Q108: 481 | R108: 269.36
A109: 5002613430000 | B109: 8059971059892 | C109: PN CUL 23.1 26 18PR AS-AGRI 07 | D109: 23126ASA18PRCQ | E109: ROUES MOTRICES | F109: CQ AS-AGRI 07 | G109: 23.1 | I109: - | J109: 26 | K109: 18PR | P109: 0 | Q109: 1310 | R109: 733.6
A110: 5002614140000 | B110: 8059971055368 | C110: PN CUL 16.9 28 12PR AS-AGRI 13 | D110: 16928ASA1312PRCQ | E110: ROUES MOTRICES | F110: CQ AS-AGRI 13 | G110: 16.9 | I110: - | J110: 28 | K110: 12PR | P110: 0 | Q110: 543 | R110: 304.08
A111: 5002614990000 | B111: 8059971043198 | C111: PN CUL 14.9/80-24 12P AS-AGRI 10 | D111: 1498024ASAGRI1012 | E111: ROUES MOTRICES | F111: CQ AS-AGRI 10 | G111: 14.9 | H111: 80 | I111: - | J111: 24 | K111: 12PR | P111: 0 | Q111: 618 | R111: 346.08
A112: 5002615270000 | B112: 8590341059949 | C112: PN CUL 400/60R15.5 14PR AS IMPL 08 | D112: 40060155ASIMP14PR | E112: REMORQUES AGRICOLES | F112: CQ AS-IMPL 08 | G112: 400 | H112: 60 | I112: - | J112: 15.5 | K112: 14PR | P112: 0 | Q112: 458 | R112: 256.48
A113: 5002616280000 | B113: 8059971034530 | C113: PN CUL 270/75-16 6P AS-AGRI 10 | D113: 2707516ASAGRI106 | E113: MOTOCULTURE | F113: CQ AS-AGRI 10 | G113: 270 | H113: 75 | I113: - | J113: 16 | K113: 6PR | P113: 0 | Q113: 247 | R113: 138.32
A114: 5002616290000 | B114: 8059971056549 | C114: PN CUL 230/70-16 10P AS-AGRI 10 | D114: 2307016ASAGRI1010 | E114: MOTOCULTURE | F114: CQ AS-AGRI 10 | G114: 230 | H114: 70 | I114: - | J114: 16 | K114: 10PR | P114: 0 | Q114: 179 | R114: 100.24
A115: 5012614820000 | B115: 8059971066067 | C115: PN CUL 520/85R42 162 B RD-01 TL | D115: 5208542BRD01TL162CQ | E115: ROUES MOTRICES | F115: CQ RD-01 | G115: 520 | H115: 85 | I115: R | J115: 42 | K115: 162 | L115: A8 | P115: 0 | Q115: 2010 | R115: 1125.6
A116: 5012615080000 | B116: 8059971068610 | C116: PN CUL 710/70R38 166 D RD-03 TL | D116: 7107038DRD03TL166 | E116: ROUES MOTRICES | F116: CQ RD-03 | G116: 710 | H116: 70 | I116: R | J116: 38 | K116: 166 | L116: A8 | P116: 0 | Q116: 3198 | R116: 1790.88
A117: 5012615090000 | B117: 8059971066739 | C117: PN CUL 280/85R24 112 B RD-01 TL | D117: 2808524BRD01TL112CQ | E117: ROUES MOTRICES | F117: CQ RD-01 | G117: 280 | H117: 85 | I117: R | J117: 24 | K117: 115 | L117: A8 | P117: 0 | Q117: 355 | R117: 198.8
A118: 5012615100000 | B118: 8059971043556 | C118: PN CUL 320/85R24 119 B RD-01 TL | D118: 3208524BRD01TL119 | E118: ROUES MOTRICES | F118: CQ RD-01 | G118: 320 | H118: 85 | I118: R | J118: 24 | K118: 122 | L118: A8 | P118: 0 | Q118: 412 | R118: 230.72
A119: 5012615120000 | B119: 8059971044218 | C119: PN CUL 380/85R24 128 B RD-01 TL | D119: 3808524BRD01TL128 | E119: ROUES MOTRICES | F119: CQ RD-01 | G119: 380 | H119: 85 | I119: R | J119: 24 | K119: 131 | L119: A8 | P119: 0 | Q119: 541 | R119: 302.96
A120: 5012615150000 | B120: 8059971064131 | C120: PN CUL 420/85R30 137 B RD-01 TL | D120: 4208530BRD01TL137 | E120: ROUES MOTRICES | F120: CQ RD-01 | G120: 420 | H120: 85 | I120: R | J120: 30 | K120: 140 | L120: A8 | P120: 0 | Q120: 796 | R120: 445.76
A121: 5012615170000 | C121: PN CUL 420/85R34 147A8144B RD-01 | D121: 4208534RD01144B | E121: ROUES MOTRICES | F121: CQ RD-01 | G121: 420 | H121: 85 | I121: R | J121: 34 | K121: 147 | L121: B | P121: 0 | Q121: 1424 | R121: 797.44
A122: 5012615190000 | B122: 8059971065657 | C122: PN CUL 420/85R38 141 B RD-01 TL | D122: 4208538BRD01TL141 | E122: ROUES MOTRICES | F122: CQ RD-01 | G122: 420 | H122: 85 | I122: R | J122: 38 | K122: 144 | L122: A8 | P122: 0 | Q122: 1013 | R122: 567.28
A123: 5012615210000 | B123: 8059971036008 | C123: PN CUL 520/85R38 152 B RD-01 TL | D123: 5208538BRD01TL152 | E123: ROUES MOTRICES | F123: CQ RD-01 | G123: 520 | H123: 85 | I123: R | J123: 38 | K123: 155 | L123: A8 | P123: 0 | Q123: 1551 | R123: 868.56
A124: 6006331130000 | B124: 8059971064124 | C124: PN CUL 380/85R34 146A8143B RD-01 | D124: 3808534RD01143B | E124: ROUES MOTRICES | F124: CQ RD-01 | G124: 380 | H124: 85 | I124: R | J124: 34 | K124: 146 | L124: B | P124: 0 | Q124: 815 | R124: 456.4
A125: 6006331140000 | B125: 8059971044195 | C125: PN CUL 480/80R42 151A8/B RD-01 | D125: 4808042RD01151B | E125: ROUES MOTRICES | F125: CQ RD-01 | G125: 480 | H125: 80 | I125: R | J125: 42 | K125: 151 | L125: B | P125: 0 | Q125: 1509 | R125: 845.04
A126: 6006331150000 | B126: 8059971036794 | C126: PN CUL 480/80R46 158A8/B RD-01 | D126: 4808046RD01158B | E126: ROUES MOTRICES | F126: CQ RD-01 | G126: 480 | H126: 80 | I126: R | J126: 46 | K126: 158 | L126: B | P126: 0 | Q126: 1901 | R126: 1064.56

Sheet DUN
D2: Remise
D3: =Remises!O8 -> 0
A5: Actualisation au 04/04/2024
A7: REFERENCES PNEUMATIQUES | Q7: TARIFS
A8: CAI | B8: EAN | C8: Désignation | D8: Appellation | E8: Catégorie | F8: Profil | G8: Largeur | H8: Hauteur | I8: Structure | J8: Diamètre | K8: IC | L8: IV | M8: Conso. | N8: Frein. | O8: Bruit. | P8: Décibels. | Q8: Prix BF | R8: Prix Remisé
A9: 602489 | B9: 5420005503965 | C9: PN DUN 335/80R18 145 A2 SP T9 | D9: 3358018A2SPT9 | E9: INDUSTRIE | F9: DU SP T9 | G9: 335 | H9: 80 | I9: R | J9: 18 | K9: 145 | L9: A2 | P9: 0 | Q9: 876 | R9: =Q9*(1-$D$3) -> 876
A10: 602492 | B10: 5420005503989 | C10: PN DUN 335/80R20 136 B SP T 9 | D10: 3358020BSPT9 | E10: INDUSTRIE | F10: DU SP T9 | G10: 335 | H10: 80 | I10: R | J10: 20 | K10: 147 | L10: A2 | P10: 0 | Q10: 944 | R10: =Q10*(1-$D$3) -> 944
A11: 602493 | B11: 5420005503996 | C11: PN DUN 365/70R18 135 B SP T 9 | D11: 3657018BSPT9 | E11: INDUSTRIE | F11: DU SP T9 | G11: 365 | H11: 70 | I11: R | J11: 18 | K11: 146 | L11: A2 | P11: 0 | Q11: 932 | R11: 932
A12: 602494 | B12: 5420005504009 | C12: PN DUN 365/80R20 141 B SP T 9 | D12: 3658020BSPT9 | E12: INDUSTRIE | F12: DU SP T9 | G12: 365 | H12: 80 | I12: R | J12: 20 | K12: 153 | L12: A2 | P12: 0 | Q12: 1042 | R12: 1042
A13: 602498 | B13: 5420005504030 | C13: PN DUN 405/70R18 141 B SP T 9 | D13: 4057018BSPT9 | E13: INDUSTRIE | F13: DU SP T9 | G13: 405 | H13: 70 | I13: R | J13: 18 | K13: 153 | L13: A2 | P13: 0 | Q13: 1096 | R13: 1096
A14: 602500 | B14: 5420005504054 | C14: PN DUN 405/70R20 143 B SP T 9 | D14: 4057020BSPT9 | E14: INDUSTRIE | F14: DU SP T9 | G14: 405 | H14: 70 | I14: R | J14: 20 | K14: 155 | L14: A2 | P14: 0 | Q14: 1162 | R14: 1162
A15: 602503 | B15: 5420005504078 | C15: PN DUN 405/70R20 152 J SP T9 TL | D15: 4057020JSPT9TL | E15: INDUSTRIE | F15: DU SP T9 MPT | G15: 405 | H15: 70 | I15: R | J15: 20 | K15: 168 | L15: A2 | P15: 0 | Q15: 1146 | R15: 1146
A16: 602505 | B16: 5420005504085 | C16: PN DUN 405/70R24 158 A2 SP T 9 | D16: 4057024A2SPT9 | E16: INDUSTRIE | F16: DU SP T9 | G16: 405 | H16: 70 | I16: R | J16: 24 | K16: 158 | L16: A2 | P16: 0 | Q16: 1570 | R16: 1570
A17: 602507 | B17: 5420005504108 | C17: PN DUN 455/70R20 162 A2 SP T9 | D17: 4557020A2SPT9 | E17: INDUSTRIE | F17: DU SP T9 | G17: 455 | H17: 70 | I17: R | J17: 20 | K17: 162 | L17: A2 | P17: 0 | Q17: 1786 | R17: 1786
A18: 602836 | B18: 4038526122568 | C18: PN DUN 455/70R24 165 A2 SP T 9 | D18: 4557024A2SPT9165 | E18: INDUSTRIE | F18: DU SP T9 | G18: 455 | H18: 70 | I18: R | J18: 24 | K18: 165 | L18: A2 | P18: 0 | Q18: 1948 | R18: 1948
A19: 602837 | B19: 4038526122575 | C19: PN DUN 455/70R24 154 G SP T9 MPT TL | D19: 4557024GSPT9TL154 | E19: INDUSTRIE | F19: DU SP T9 MPT | G19: 455 | H19: 70 | I19: R | J19: 24 | K19: 154 | L19: G | P19: 0 | Q19: 1948 | R19: 1948
A20: 603187 | B20: 5420005501930 | C20: PN DUN 15.5/55R18 138 E PG 7 16 PR TL | D20: 1555518EPG71TL138 | E20: INDUSTRIE | F20: DU MPT SP PG-7 | G20: 15.5 | H20: 55 | I20: R | J20: 18 | K20: 138 | L20: E | P20: 0 | Q20: 1104 | R20: 1104
A21: 603548 | B21: 5420005500285 | C21: PN DUN 11.00R20 165 A2 PG21 RC | D21: 110020A2PG21RC | E21: INDUSTRIE | F21: DU PG 21 RC | G21: 11 | I21: R | J21: 20 | K21: 165 | L21: A2 | P21: 0 | Q21: 1174 | R21: 1174
A22: 604233 | B22: 4038526204349 | C22: PN DUN 365/80R20 152 K SP T9 TL | D22: 3658020KSPT9TL152 | E22: INDUSTRIE | F22: DU SP T9 MPT | G22: 365 | H22: 80 | I22: R | J22: 20 | K22: 168 | L22: A2 | P22: 0 | Q22: 1014 | R22: 1014
A23: 604274 | B23: 4038526206527 | C23: PN DUN 405/70R24 152 J SP T9 MPT TL | D23: 4057024JSPT9TL152 | E23: INDUSTRIE | F23: DU SP T9 MPT | G23: 405 | H23: 70 | I23: R | J23: 24 | K23: 152 | L23: J | P23: 0 | Q23: 1538 | R23: 1538
A24: 606866 | B24: 4038526267894 | C24: PN DUN 335/80R20 149 K SP T9 TL | D24: 3358020KSPT9TL149 | E24: INDUSTRIE | F24: DU SP T9 MPT | G24: 335 | H24: 80 | I24: R | J24: 20 | K24: 153 | L24: A2 | P24: 0 | Q24: 882 | R24: 882
A25: 609431 | B25: 3188649806928 | C25: PN DUN 335/80R20 149 K SP PG8 | D25: 3358020KSPPG8149 | E25: INDUSTRIE | F25: DU SP PG8 MPT | G25: 335 | H25: 80 | I25: R | J25: 20 | K25: 153 | L25: A2 | P25: 0 | Q25: 882 | R25: 882
A26: 609432 | B26: 3188649806935 | C26: PN DUN 365/80R20 152 K SP PG8 | D26: 3658020KSPPG8152 | E26: INDUSTRIE | F26: DU SP PG8 MPT | G26: 365 | H26: 80 | I26: R | J26: 20 | K26: 168 | L26: A2 | P26: 0 | Q26: 1014 | R26: 1014

Sheet FIR
D2: Remise
D3: =Remises!E10 -> 0.4
A5: Actualisation au 04/04/2024
A7: REFERENCES PNEUMATIQUES | Q7: Nominatif | T7: Complet
A8: CAI | B8: EAN | C8: Désignation | D8: Appellation | E8: Catégorie | F8: Profil | G8: Largeur | H8: Hauteur | I8: Structure | J8: Diamètre | K8: IC | L8: IV | M8: Conso. | N8: Frein. | O8: Bruit. | P8: Décibels. | Q8: Prix BF | R8: Prix TD | S8: Prix Remisé | T8: Prix BF | U8: Prix TD | V8: Prix Remisé
A9: 10472 | B9: 3286341047219 | C9: PN FIR 270/95R54 146D/160 PERFORMER 95 | D9: 2709554PERFORMER146D | E9: ROUES MOTRICES | F9: FI PERF 95 | G9: 270 | H9: 95 | I9: R | J9: 54 | K9: 160 | P9: 0 | Q9: 1599
A10: 10474 | B10: 3286341047417 | C10: PN FIR 460/70R24 159A8/B R8000 UTILITY | D10: 4607024R8000UT159A8 | E10: ROUES MOTRICES | F10: FI R8000 UTILITY | G10: 460 | H10: 70 | I10: R | J10: 24 | K10: 159 | L10: A8 | P10: 0 | Q10: 1059
A11: 1060 | B11: 3286340106016 | C11: PN FIR 400/70R20 149 A DURAFUT | D11: 4007020ADURAFU149 | E11: ROUES MOTRICES | F11: FI DURAFUT | G11: 400 | H11: 70 | I11: R | J11: 20 | K11: 149 | L11: A8 | P11: 0 | Q11: 1142
A12: 17029 | B12: 3286341702910 | C12: PN FIR 800/65R32 178A8/B MAXI TRACT HARV | D12: 8006532MAXTHARV178A8 | E12: ROUES MOTRICES | F12: FI MAXI TRACT HARV | G12: 800 | H12: 65 | I12: R | J12: 32 | K12: 178 | L12: A8 | P12: 0 | Q12: 6074
A13: 17030 | B13: 3286341703016 | C13: PN FIR 620/75R30 169A8/B MAXI TRACT HARV | D13: 6207530MAXTHARV169A8 | E13: ROUES MOTRICES | F13: FI MAXI TRACT HARV | G13: 620 | H13: 75 | I13: R | J13: 30 | K13: 169 | L13: A8 | P13: 0 | Q13: 3510
A14: 17031 | B14: 3286341703115 | C14: PN FIR 710/75R34 178A8/B MAXI TRACT HARV | D14: 7107534MAXTHARV178A8 | E14: ROUES MOTRICES | F14: FI MAXI TRACT HARV | G14: 710 | H14: 75 | I14: R | J14: 34 | K14: 178 | L14: A8 | P14: 0 | Q14: 5509
A15: 17032 | B15: 3286341703214 | C15: PN FIR 650/75R32 172A8/B MAXI TRACT HARV | D15: 6507532MAXTHARV172A8 | E15: ROUES MOTRICES | F15: FI MAXI TRACT HARV | G15: 650 | H15: 75 | I15: R | J15: 32 | K15: 172 | L15: A8 | P15: 0 | Q15: 4117
A16: 17034 | B16: 3286341703412 | C16: PN FIR 900/60R32 181A8/B MAXI TRACT HARV | D16: 9006032MAXTHARV181A8 | E16: ROUES MOTRICES | F16: FI MAXI TRACT HARV | G16: 900 | H16: 60 | I16: R | J16: 32 | K16: 181 | L16: A8 | P16: 0 | Q16: 8176
A17: 1748 | B17: 3286340174817 | C17: PN FIR 340/80R18 143 A DURAFUT | D17: 3408018ADURAFU143 | E17: ROUES MOTRICES | F17: FI DURAFUT | G17: 340 | H17: 80 | I17: R | J17: 18 | K17: 143 | L17: A8 | P17: 0 | Q17: 917
A18: 1770 | B18: 3286340177016 | C18: PN FIR 440/80R28 156 A DURAFUT | D18: 4408028ADURAFU156 | E18: ROUES MOTRICES | F18: FI DURAFUT | G18: 440 | H18: 80 | I18: R | J18: 28 | K18: 156 | L18: A8 | P18: 0 | Q18: 1660
A19: 1771 | B19: 3286340177115 | C19: PN FIR 480/80R26 160 A DURAFUT | D19: 4808026ADURAFU160 | E19: ROUES MOTRICES | F19: FI DURAFUT | G19: 480 | H19: 80 | I19: R | J19: 26 | K19: 160 | L19: A8 | P19: 0 | Q19: 1785
A20: 2003 | B20: 3286340200318 | C20: PN FIR 365/80R20 141 B DURAFUT | D20: 3658020BDURAFU141 | E20: ROUES MOTRICES | F20: FI DURAFUT | G20: 365 | H20: 80 | I20: R | J20: 20 | K20: 153 | P20: 0 | Q20: 1094
A21: 2008 | B21: 3286340200813 | C21: PN FIR 335/80R20 136 B DURAFUT | D21: 3358020BDURAFU136 | E21: ROUES MOTRICES | F21: FI DURAFUT | G21: 335 | H21: 80 | I21: R | J21: 20 | K21: 147 | P21: 0 | Q21: 1089
A22: 2009 | B22: 3286340200912 | C22: PN FIR 405/70R18 141 B DURAFUT | D22: 4057018BDURAFU141 | E22: ROUES MOTRICES | F22: FI DURAFUT | G22: 405 | H22: 70 | I22: R | J22: 18 | K22: 153 | P22: 0 | Q22: 1127
A23: 2937 | B23: 3286340293716 | C23: PN FIR 460/70R24 159 A8 DURAFUT | D23: 4607024A8DURAFU159 | E23: ROUES MOTRICES | F23: FI DURAFUT | G23: 460 | H23: 70 | I23: R | J23: 24 | K23: 159 | L23: A8 | P23: 0 | Q23: 1187
A24: 3410 | B24: 3286340341011 | C24: PN FIR 320/70R24 116 D PERF70 | D24: 3207024DPERF70116 | E24: ROUES MOTRICES | F24: FI PERF70 | G24: 320 | H24: 70 | I24: R | J24: 24 | K24: 116 | L24: D | P24: 0 | Q24: 741
A25: 3411 | B25: 3286340341110 | C25: PN FIR 360/70R24 122 D PERF70 | D25: 3607024DPERF70122 | E25: ROUES MOTRICES | F25: FI PERF70 | G25: 360 | H25: 70 | I25: R | J25: 24 | K25: 122 | L25: D | P25: 0 | Q25: 882
A26: 3412 | B26: 3286340341219 | C26: PN FIR 380/70R24 125 D PERF70 | D26: 3807024DPERF70125 | E26: ROUES MOTRICES | F26: FI PERF70 | G26: 380 | H26: 70 | I26: R | J26: 24 | K26: 125 | L26: D | P26: 0 | Q26: 922
A27: 3413 | B27: 3286340341318 | C27: PN FIR 420/70R24 130 D PERF70 | D27: 4207024DPERF70130 | E27: ROUES MOTRICES | F27: FI PERF70 | G27: 420 | H27: 70 | I27: R | J27: 24 | K27: 130 | L27: D | P27: 0 | Q27: 1055
A28: 3414 | B28: 3286340341417 | C28: PN FIR 480/70R24 138 D PERF70 | D28: 4807024DPERF70138 | E28: ROUES MOTRICES | F28: FI PERF70 | G28: 480 | H28: 70 | I28: R | J28: 24 | K28: 138 | L28: D | P28: 0 | Q28: 1336
A29: 3415 | B29: 3286340341516 | C29: PN FIR 360/70R28 125 D PERF70 | D29: 3607028DPERF70125 | E29: ROUES MOTRICES | F29: FI PERF70 | G29: 360 | H29: 70 | I29: R | J29: 28 | K29: 125 | L29: D | P29: 0 | Q29: 945
A30: 3416 | B30: 3286340341615 | C30: PN FIR 380/70R28 127 D PERF70 | D30: 3807028DPERF70127 | E30: ROUES MOTRICES | F30: FI PERF70 | G30: 380 | H30: 70 | I30: R | J30: 28 | K30: 127 | L30: D | P30: 0 | Q30: 1026
A31: 3417 | B31: 3286340341714 | C31: PN FIR 420/70R28 133 D PERF70 | D31: 4207028DPERF70133 | E31: ROUES MOTRICES | F31: FI PERF70 | G31: 420 | H31: 70 | I31: R | J31: 28 | K31: 133 | L31: D | P31: 0 | Q31: 1188
A32: 3418 | B32: 3286340341813 | C32: PN FIR 480/70R28 140 D PERF70 | D32: 4807028DPERF70140 | E32: ROUES MOTRICES | F32: FI PERF70 | G32: 480 | H32: 70 | I32: R | J32: 28 | K32: 140 | L32: D | P32: 0 | Q32: 1403
A33: 3420 | B33: 3286340342018 | C33: PN FIR 480/70R30 141 D PERF70 | D33: 4807030DPERF70141 | E33: ROUES MOTRICES | F33: FI PERF70 | G33: 480 | H33: 70 | I33: R | J33: 30 | K33: 141 | L33: D | P33: 0 | Q33: 1573
A34: 3421 | B34: 3286340342117 | C34: PN FIR 480/70R34 143 D PERF70 | D34: 4807034DPERF70143 | E34: ROUES MOTRICES | F34: FI PERF70 | G34: 480 | H34: 70 | I34: R | J34: 34 | K34: 143 | L34: D | P34: 0 | Q34: 1719
A35: 3422 | B35: 3286340342216 | C35: PN FIR 520/70R34 148 A8 PERF70 | D35: 5207034A8PERF70148 | E35: ROUES MOTRICES | F35: FI PERF70 | G35: 520 | H35: 70 | I35: R | J35: 34 | K35: 148 | L35: D | P35: 0 | Q35: 2113
A36: 3423 | B36: 3286340342315 | C36: PN FIR 480/70R38 145 D PERF70 | D36: 4807038DPERF70145 | E36: ROUES MOTRICES | F36: FI PERF70 | G36: 480 | H36: 70 | I36: R | J36: 38 | K36: 145 | L36: D | P36: 0 | Q36: 1961
A37: 3424 | B37: 3286340342414 | C37: PN FIR 520/70R38 150 A8 PERF70 | D37: 5207038A8PERF70150 | E37: ROUES MOTRICES | F37: FI PERF70 | G37: 520 | H37: 70 | I37: R | J37: 38 | K37: 150 | L37: D | P37: 0 | Q37: 2287
A38: 3425 | B38: 3286340342513 | C38: PN FIR 580/70R38 155 D PERF70 | D38: 5807038DPERF70155 | E38: ROUES MOTRICES | F38: FI PERF70 | G38: 580 | H38: 70 | I38: R | J38: 38 | K38: 155 | L38: D | P38: 0 | Q38: 2918
A39: 4123 | B39: 3286340412315 | C39: PN FIR 280/85R24 XL 130A130 B PERF85 | D39: 2808524BPERF85130A13 | E39: ROUES MOTRICES | F39: FI PERF85 | G39: 280 | H39: 85 | I39: R | J39: 24 | K39: 130 | L39: A8 | P39: 0 | Q39: 637
A40: 4124 | B40: 3286340412414 | C40: PN FIR 340/85R24 XL 136A8 136B PERF85 | D40: 3408524PERF85136A8 | E40: ROUES MOTRICES | F40: FI PERF85 | G40: 340 | H40: 85 | I40: R | J40: 24 | K40: 136 | L40: A8 | P40: 0 | Q40: 813
A41: 4125 | B41: 3286340412513 | C41: PN FIR 420/85R24 XL 142A142 B PERF85 | D41: 4208524BPERF85142A14 | E41: ROUES MOTRICES | F41: FI PERF85 | G41: 420 | H41: 85 | I41: R | J41: 24 | K41: 142 | L41: A8 | P41: 0 | Q41: 1158
A42: 4128 | B42: 3286340412810 | C42: PN FIR 420/85R28 XL 144A144 B PERF85 | D42: 4208528BPERF85144A14 | E42: ROUES MOTRICES | F42: FI PERF85 | G42: 420 | H42: 85 | I42: R | J42: 28 | K42: 144 | L42: A8 | P42: 0 | Q42: 1271
A43: 4129 | B43: 3286340412919 | C43: PN FIR 320/70R20 130A130 B RADIAL 4000 | D43: 3207020BRADIAL130A13 | E43: ROUES MOTRICES | F43: FI R4000 | G43: 320 | H43: 70 | I43: R | J43: 20 | K43: 130 | L43: A8 | P43: 0 | Q43: 825
A44: 4130 | B44: 3286340413015 | C44: PN FIR 420/70R24 XL 136A8/B PERF70 | D44: 4207024PERF70136A8 | E44: ROUES MOTRICES | F44: FI PERF70 | G44: 420 | H44: 70 | I44: R | J44: 24 | K44: 136 | L44: A8 | P44: 0 | Q44: 1124
A45: 4131 | B45: 3286340413114 | C45: PN FIR 480/70R28 XL 151A151 B PERF70 | D45: 4807028BPERF70151A15 | E45: ROUES MOTRICES | F45: FI PERF70 | G45: 480 | H45: 70 | I45: R | J45: 28 | K45: 151 | L45: A8 | P45: 0 | Q45: 1521
A46: 4293 | B46: 3286340429313 | C46: PN FIR 380/85R30 135D132 E PERF85 | D46: 3808530EPERF85135D13 | E46: ROUES MOTRICES | F46: FI PERF85 | G46: 380 | H46: 85 | I46: R | J46: 30 | K46: 135 | L46: D | P46: 0 | Q46: 1191
A47: 4711 | B47: 3286340471114 | C47: PN FIR 460/85R42 XL 150D147 E PERF85 | D47: 4608542EPERF85150D14 | E47: ROUES MOTRICES | F47: FI PERF85 | G47: 460 | H47: 85 | I47: R | J47: 42 | K47: 150 | L47: D | P47: 0 | Q47: 2415
A48: 4715 | B48: 3286340471510 | C48: PN FIR 520/85R42 157D154 E PERF85 | D48: 5208542EPERF85157D15 | E48: ROUES MOTRICES | F48: FI PERF85 | G48: 520 | H48: 85 | I48: R | J48: 42 | K48: 157 | L48: D | P48: 0 | Q48: 3117
A49: 4868 | B49: 3286340486811 | C49: PN FIR 320/85R20 119D116 E PERF85 | D49: 3208520EPERF85119D11 | E49: ROUES MOTRICES | F49: FI PERF85 | G49: 320 | H49: 85 | I49: R | J49: 20 | K49: 119 | L49: D | P49: 0 | Q49: 682
A50: 4870 | B50: 3286340487016 | C50: PN FIR 650/75R38 169 D MAXTRAC | D50: 6507538DMAXTRA169 | E50: ROUES MOTRICES | F50: FI MAXTRAC IF | G50: 650 | H50: 75 | I50: R | J50: 38 | K50: 169 | L50: D | P50: 0 | Q50: 5171
A51: 53700 | B51: 3286345370016 | C51: PN FIR 66X43.00 - 25 16PR FLOTATION 23° | D51: 66430025FLOTATION216 | E51: REMORQUES AGRICOLES | F51: FI DEEP TREAD | G51: 43 | I51: - | J51: 25 | K51: 16PR | P51: 0 | Q51: 14125
A52: 5435 | B52: 3286340543514 | C52: PN FIR 600/65R28 154 D MAXTRAC | D52: 6006528DMAXTRA154 | E52: ROUES MOTRICES | F52: FI MAXTRAC IF | G52: 600 | H52: 65 | I52: R | J52: 28 | K52: 154 | L52: D | P52: 0 | Q52: 2520
A53: 5436 | B53: 3286340543613 | C53: PN FIR 600/65R30 155 D MAXTRAC | D53: 6006530DMAXTRA155 | E53: ROUES MOTRICES | F53: FI MAXTRAC IF | G53: 600 | H53: 65 | I53: R | J53: 30 | K53: 155 | L53: D | P53: 0 | Q53: 2771
A54: 5437 | B54: 3286340543712 | C54: PN FIR 600/70R28 157 D MAXTRAC | D54: 6007028DMAXTRA157 | E54: ROUES MOTRICES | F54: FI MAXTRAC IF | G54: 600 | H54: 70 | I54: R | J54: 28 | K54: 157 | L54: D | P54: 0 | Q54: 2820
A55: 5438 | B55: 3286340543811 | C55: PN FIR 600/70R30 158 D MAXTRAC | D55: 6007030DMAXTRA158 | E55: ROUES MOTRICES | F55: FI MAXTRAC IF | G55: 600 | H55: 70 | I55: R | J55: 30 | K55: 158 | L55: D | P55: 0 | Q55: 3132
A56: 5439 | B56: 3286340543910 | C56: PN FIR 620/70R42 166 D MAXTRAC | D56: 6207042DMAXTRA166 | E56: ROUES MOTRICES | F56: FI MAXTRAC IF | G56: 620 | H56: 70 | I56: R | J56: 42 | K56: 166 | L56: D | P56: 0 | Q56: 3864
A57: 54392 | B57: 3286345439218 | C57: PN FIR 7.50R16 A8 RADIAL 4000 | D57: 75016A8RADIAL | E57: ROUES MOTRICES | F57: FI R4000 | G57: 7.5 | I57: R | J57: 16 | K57: 102 | L57: A8 | P57: 0 | Q57: 438
A58: 54393 | B58: 3286345439317 | C58: PN FIR 7.50R18 A8 RADIAL 4000 | D58: 75018A8RADIAL | E58: ROUES MOTRICES | F58: FI R4000 | G58: 7.5 | I58: R | J58: 18 | K58: 104 | L58: A8 | P58: 0 | Q58: 482
A59: 54394 | B59: 3286345439416 | C59: PN FIR 280/70R16 A8 RADIAL 4000 | D59: 2807016A8RADIAL | E59: ROUES MOTRICES | F59: FI R4000 | G59: 280 | H59: 70 | I59: R | J59: 16 | K59: 112 | L59: A8 | P59: 0 | Q59: 592
A60: 54395 | B60: 3286345439515 | C60: PN FIR 280/70R18 A8 RADIAL 4000 | D60: 2807018A8RADIAL | E60: ROUES MOTRICES | F60: FI R4000 | G60: 280 | H60: 70 | I60: R | J60: 18 | K60: 114 | L60: A8 | P60: 0 | Q60: 622
A61: 54396 | B61: 3286345439614 | C61: PN FIR 300/70R20 A8 RADIAL 4000 | D61: 3007020A8RADIAL | E61: ROUES MOTRICES | F61: FI R4000 | G61: 300 | H61: 70 | I61: R | J61: 20 | K61: 120 | L61: A8 | P61: 0 | Q61: 754
A62: 54397 | B62: 3286345439713 | C62: PN FIR 400/70R20 R8000 UTILITY | D62: 4007020R8000 | E62: ROUES MOTRICES | F62: FI R8000 UTILITY | G62: 400 | H62: 70 | I62: R | J62: 20 | K62: 149 | L62: A8 | P62: 0 | Q62: 1031
A63: 54398 | B63: 3286345439812 | C63: PN FIR 400/80R24 R8000 UTILITY | D63: 4008024R8000 | E63: ROUES MOTRICES | F63: FI R8000 UTILITY | G63: 400 | H63: 80 | I63: R | J63: 24 | K63: 156 | L63: A8 | P63: 0 | Q63: 1354
A64: 5442 | B64: 3286340544214 | C64: PN FIR 650/85R38 173 D MAXTRAC | D64: 6508538DMAXTRA173 | E64: ROUES MOTRICES | F64: FI MAXTRAC IF | G64: 650 | H64: 85 | I64: R | J64: 38 | K64: 173 | L64: D | P64: 0 | Q64: 5490
A65: 5443 | B65: 3286340544313 | C65: PN FIR 710/70R38 171 D MAXTRAC | D65: 7107038DMAXTRA171 | E65: ROUES MOTRICES | F65: FI MAXTRAC IF | G65: 710 | H65: 70 | I65: R | J65: 38 | K65: 171 | L65: D | P65: 0 | Q65: 5336
A66: 5444 | B66: 3286340544412 | C66: PN FIR 710/70R42 173 D MAXTRAC | D66: 7107042DMAXTRA173 | E66: ROUES MOTRICES | F66: FI MAXTRAC IF | G66: 710 | H66: 70 | I66: R | J66: 42 | K66: 173 | L66: D | P66: 0 | Q66: 6619
A67: 54442 | B67: 3286345444212 | C67: PN FIR 280/70R20 116 A8 RADIAL 4000 | D67: 2807020A8RADIAL116 | E67: ROUES MOTRICES | F67: FI R4000 | G67: 280 | H67: 70 | I67: R | J67: 20 | K67: 116 | L67: A8 | P67: 0 | Q67: 686
A68: 54443 | B68: 3286345444311 | C68: PN FIR 320/70R20 123 A8 RADIAL 4000 | D68: 3207020A8RADIAL123 | E68: ROUES MOTRICES | F68: FI R4000 | G68: 320 | H68: 70 | I68: R | J68: 20 | K68: 123 | L68: A8 | P68: 0 | Q68: 763
A69: 54444 | B69: 3286345444410 | C69: PN FIR 360/70R20 129 A8 RADIAL 4000 | D69: 3607020A8RADIAL129 | E69: ROUES MOTRICES | F69: FI R4000 | G69: 360 | H69: 70 | I69: R | J69: 20 | K69: 129 | L69: A8 | P69: 0 | Q69: 850
A70: 54448 | B70: 3286345444816 | C70: PN FIR 440/80 - 28 156 A R8000 UTILITY | D70: 4408028AR8000156 | E70: ROUES MOTRICES | F70: FI R8000 UTILITY | G70: 440 | H70: 80 | I70: R | J70: 28 | K70: 156 | L70: A8 | P70: 0 | Q70: 1579
A71: 54449 | B71: 3286345444915 | C71: PN FIR 400/70 - 24 158 A8 R8000 UTILITY | D71: 4007024A8R8000158 | E71: ROUES MOTRICES | F71: FI R8000 UTILITY | G71: 400 | H71: 70 | I71: R | J71: 24 | K71: 158 | L71: A8 | P71: 0 | Q71: 1242
A72: 54475 | B72: 3286345447510 | C72: PN FIR 340/80R18 136 A8 R8000 UTILITY | D72: 3408018A8R8000136 | E72: ROUES MOTRICES | F72: FI R8000 UTILITY | G72: 340 | H72: 80 | I72: R | J72: 18 | K72: 136 | L72: A8 | P72: 0 | Q72: 781
A73: 5460 | B73: 3286340546010 | C73: PN FIR IF 600/70R30 165 D MAXTRAC | D73: 6007030DMAXTRA165 | E73: ROUES MOTRICES | F73: FI MAXTRAC IF | G73: 600 | H73: 70 | I73: R | J73: 30 | K73: 165 | L73: D | P73: 0 | Q73: 3434
A74: 5465 | B74: 3286340546515 | C74: PN FIR IF 710/70R42 179 D MAXTRAC | D74: 7107042DMAXTRA179 | E74: ROUES MOTRICES | F74: FI MAXTRAC IF | G74: 710 | H74: 70 | I74: R | J74: 42 | K74: 179 | L74: D | P74: 0 | Q74: 7449
A75: 5620 | B75: 3286340562010 | C75: PN FIR 280/85R20 112 D PERF85 | D75: 2808520DPERF85112 | E75: ROUES MOTRICES | F75: FI PERF85 | G75: 280 | H75: 85 | I75: R | J75: 20 | K75: 112 | L75: D | P75: 0 | Q75: 646
A76: 5621 | B76: 3286340562119 | C76: PN FIR 250/85R24 109 D PERF85 | D76: 2508524DPERF85109 | E76: ROUES MOTRICES | F76: FI PERF85 | G76: 250 | H76: 85 | I76: R | J76: 24 | K76: 109 | L76: D | P76: 0 | Q76: 511
A77: 5622 | B77: 3286340562218 | C77: PN FIR 280/85R24 115 D PERF85 | D77: 2808524DPERF85115 | E77: ROUES MOTRICES | F77: FI PERF85 | G77: 280 | H77: 85 | I77: R | J77: 24 | K77: 115 | L77: D | P77: 0 | Q77: 575
A78: 5623 | B78: 3286340562317 | C78: PN FIR 320/85R24 122 D PERF85 | D78: 3208524DPERF85122 | E78: ROUES MOTRICES | F78: FI PERF85 | G78: 320 | H78: 85 | I78: R | J78: 24 | K78: 122 | L78: D | P78: 0 | Q78: 668
A79: 5624 | B79: 3286340562416 | C79: PN FIR 340/85R24 125 D PERF85 | D79: 3408524DPERF85125 | E79: ROUES MOTRICES | F79: FI PERF85 | G79: 340 | H79: 85 | I79: R | J79: 24 | K79: 125 | L79: D | P79: 0 | Q79: 733
A80: 5625 | B80: 3286340562515 | C80: PN FIR 380/85R24 131 D PERF85 | D80: 3808524DPERF85131 | E80: ROUES MOTRICES | F80: FI PERF85 | G80: 380 | H80: 85 | I80: R | J80: 24 | K80: 131 | L80: D | P80: 0 | Q80: 922
A81: 5626 | B81: 3286340562614 | C81: PN FIR 420/85R24 137 D PERF85 | D81: 4208524DPERF85137 | E81: ROUES MOTRICES | F81: FI PERF85 | G81: 420 | H81: 85 | I81: R | J81: 24 | K81: 137 | L81: D | P81: 0 | Q81: 1085
A82: 5627 | B82: 3286340562713 | C82: PN FIR 250/85R28 112 D PERF85 | D82: 2508528DPERF85112 | E82: ROUES MOTRICES | F82: FI PERF85 | G82: 250 | H82: 85 | I82: R | J82: 28 | K82: 112 | L82: D | P82: 0 | Q82: 649
A83: 5628 | B83: 3286340562812 | C83: PN FIR 280/85R28 118 D PERF85 | D83: 2808528DPERF85118 | E83: ROUES MOTRICES | F83: FI PERF85 | G83: 280 | H83: 85 | I83: R | J83: 28 | K83: 118 | L83: D | P83: 0 | Q83: 731
A84: 5629 | B84: 3286340562911 | C84: PN FIR 320/85R28 124 D PERF85 | D84: 3208528DPERF85124 | E84: ROUES MOTRICES | F84: FI PERF85 | G84: 320 | H84: 85 | I84: R | J84: 28 | K84: 124 | L84: D | P84: 0 | Q84: 746
A85: 5630 | B85: 3286340563017 | C85: PN FIR 340/85R28 127 D PERF85 | D85: 3408528DPERF85127 | E85: ROUES MOTRICES | F85: FI PERF85 | G85: 340 | H85: 85 | I85: R | J85: 28 | K85: 127 | L85: D | P85: 0 | Q85: 910
A86: 5631 | B86: 3286340563116 | C86: PN FIR 380/85R28 133 D PERF85 | D86: 3808528DPERF85133 | E86: ROUES MOTRICES | F86: FI PERF85 | G86: 380 | H86: 85 | I86: R | J86: 28 | K86: 133 | L86: D | P86: 0 | Q86: 993
A87: 5632 | B87: 3286340563215 | C87: PN FIR 420/85R28 139 D PERF85 | D87: 4208528DPERF85139 | E87: ROUES MOTRICES | F87: FI PERF85 | G87: 420 | H87: 85 | I87: R | J87: 28 | K87: 139 | L87: D | P87: 0 | Q87: 1193
A88: 5633 | B88: 3286340563314 | C88: PN FIR 420/85R30 140 D PERF85 | D88: 4208530DPERF85140 | E88: ROUES MOTRICES | F88: FI PERF85 | G88: 420 | H88: 85 | I88: R | J88: 30 | K88: 140 | L88: D | P88: 0 | Q88: 1323
A89: 5634 | B89: 3286340563413 | C89: PN FIR 460/85R30 145 D PERF85 | D89: 4608530DPERF85145 | E89: ROUES MOTRICES | F89: FI PERF85 | G89: 460 | H89: 85 | I89: R | J89: 30 | K89: 145 | L89: D | P89: 0 | Q89: 1525
A90: 5635 | B90: 3286340563512 | C90: PN FIR 420/85R34 142 D PERF85 | D90: 4208534DPERF85142 | E90: ROUES MOTRICES | F90: FI PERF85 | G90: 420 | H90: 85 | I90: R | J90: 34 | K90: 142 | L90: D | P90: 0 | Q90: 1461
A91: 5636 | B91: 3286340563611 | C91: PN FIR 460/85R34 147 D PERF85 | D91: 4608534DPERF85147 | E91: ROUES MOTRICES | F91: FI PERF85 | G91: 460 | H91: 85 | I91: R | J91: 34 | K91: 147 | L91: D | P91: 0 | Q91: 1782
A92: 5637 | B92: 3286340563710 | C92: PN FIR 320/85R36 128 D PERF85 | D92: 3208536DPERF85128 | E92: ROUES MOTRICES | F92: FI PERF85 | G92: 320 | H92: 85 | I92: R | J92: 36 | K92: 128 | L92: D | P92: 0 | Q92: 921
A93: 5638 | B93: 3286340563819 | C93: PN FIR 340/85R36 132 D PERF85 | D93: 3408536DPERF85132 | E93: ROUES MOTRICES | F93: FI PERF85 | G93: 340 | H93: 85 | I93: R | J93: 36 | K93: 132 | L93: D | P93: 0 | Q93: 1027
A94: 5639 | B94: 3286340563918 | C94: PN FIR 340/85R38 133 D PERF85 | D94: 3408538DPERF85133 | E94: ROUES MOTRICES | F94: FI PERF85 | G94: 340 | H94: 85 | I94: R | J94: 38 | K94: 133 | L94: D | P94: 0 | Q94: 1086
A95: 5640 | B95: 3286340564014 | C95: PN FIR 420/85R38 144 D PERF85 | D95: 4208538DPERF85144 | E95: ROUES MOTRICES | F95: FI PERF85 | G95: 420 | H95: 85 | I95: R | J95: 38 | K95: 144 | L95: D | P95: 0 | Q95: 1665
A96: 5641 | B96: 3286340564113 | C96: PN FIR 460/85R38 149 D PERF85 | D96: 4608538DPERF85149 | E96: ROUES MOTRICES | F96: FI PERF85 | G96: 460 | H96: 85 | I96: R | J96: 38 | K96: 149 | L96: D | P96: 0 | Q96: 1860
A97: 5642 | B97: 3286340564212 | C97: PN FIR 520/85R38 155 D PERF85 | D97: 5208538DPERF85155 | E97: ROUES MOTRICES | F97: FI PERF85 | G97: 520 | H97: 85 | I97: R | J97: 38 | K97: 155 | L97: D | P97: 0 | Q97: 2431
A98: 5644 | B98: 3286340564410 | C98: PN FIR 580/70R42 158 D PERF70 | D98: 5807042DPERF70158 | E98: ROUES MOTRICES | F98: FI PERF70 | G98: 580 | H98: 70 | I98: R | J98: 42 | K98: 158 | L98: D | P98: 0 | Q98: 3908
A99: 5907 | B99: 3286340590716 | C99: PN FIR IF 800/70R38 184 D MAXTRAC | D99: 8007038DMAXTRA184 | E99: ROUES MOTRICES | F99: FI MAXTRAC IF | G99: 800 | H99: 70 | I99: R | J99: 38 | K99: 184 | L99: D | P99: 0 | Q99: 8499
A100: 6029 | B100: 3286340602914 | C100: PN FIR 500/70R24 164 A8 DURA-UT | D100: 5007024A8DURAU164 | E100: ROUES MOTRICES | F100: FI DURAFUT | G100: 500 | H100: 70 | I100: R | J100: 24 | K100: 164 | L100: A8 | P100: 0 | Q100: 1644
A101: 6031 | B101: 3286340603119 | C101: PN FIR 230/95R32 128 D PERF95 | D101: 2309532DPERF95128 | E101: ROUES MOTRICES | F101: FI PERF 95 | G101: 230 | H101: 95 | I101: R | J101: 32 | K101: 143 | L101: A2 | P101: 0 | Q101: 894
A102: 6032 | B102: 3286340603218 | C102: PN FIR 270/95R32 136 D PERF95 | D102: 2709532DPERF95136 | E102: ROUES MOTRICES | F102: FI PERF 95 | G102: 270 | H102: 95 | I102: R | J102: 32 | K102: 150 | L102: A2 | P102: 0 | Q102: 1006
A103: 6033 | B103: 3286340603317 | C103: PN FIR 320/90R32 134 D PERF90 | D103: 3209032DPERF90134 | E103: ROUES MOTRICES | F103: FI PERF90 | G103: 320 | H103: 90 | I103: R | J103: 32 | K103: 148 | L103: A2 | P103: 0 | Q103: 1183
A104: 6034 | B104: 3286340603416 | C104: PN FIR 230/95R36 130 D PERF95 | D104: 2309536DPERF95130 | E104: ROUES MOTRICES | F104: FI PERF 95 | G104: 230 | H104: 95 | I104: R | J104: 36 | K104: 145 | L104: A2 | P104: 0 | Q104: 1042
A105: 6035 | B105: 3286340603515 | C105: PN FIR 270/95R36 139 D PERF95 | D105: 2709536DPERF95139 | E105: ROUES MOTRICES | F105: FI PERF 95 | G105: 270 | H105: 95 | I105: R | J105: 36 | K105: 153 | L105: A2 | P105: 0 | Q105: 1159
A106: 6036 | B106: 3286340603614 | C106: PN FIR 270/95R38 140 D PERF95 | D106: 2709538DPERF95140 | E106: ROUES MOTRICES | F106: FI PERF 95 | G106: 270 | H106: 95 | I106: R | J106: 38 | K106: 154 | L106: A2 | P106: 0 | Q106: 1181
A107: 6037 | B107: 3286340603713 | C107: PN FIR 300/95R42 147 D PERF95 | D107: 3009542DPERF95147 | E107: ROUES MOTRICES | F107: FI PERF 95 | G107: 300 | H107: 95 | I107: R | J107: 42 | K107: 161 | L107: A2 | P107: 0 | Q107: 1554
A108: 6038 | B108: 3286340603812 | C108: PN FIR 230/95R44 134 D PERF95 | D108: 2309544DPERF95134 | E108: ROUES MOTRICES | F108: FI PERF 95 | G108: 230 | H108: 95 | I108: R | J108: 44 | K108: 148 | L108: A2 | P108: 0 | Q108: 1091
A109: 6039 | B109: 3286340603911 | C109: PN FIR 270/95R44 142 D PERF95 | D109: 2709544DPERF95142 | E109: ROUES MOTRICES | F109: FI PERF 95 | G109: 270 | H109: 95 | I109: R | J109: 44 | K109: 156 | L109: A2 | P109: 0 | Q109: 1325
A110: 6040 | B110: 3286340604017 | C110: PN FIR 300/95R46 148 D PERF95 | D110: 3009546DPERF95148 | E110: ROUES MOTRICES | F110: FI PERF 95 | G110: 300 | H110: 95 | I110: R | J110: 46 | K110: 162 | L110: A2 | P110: 0 | Q110: 1710
A111: 6041 | B111: 3286340604116 | C111: PN FIR 230/95R48 136 D PERF95 | D111: 2309548DPERF95136 | E111: ROUES MOTRICES | F111: FI PERF 95 | G111: 230 | H111: 95 | I111: R | J111: 48 | K111: 150 | L111: A2 | P111: 0 | Q111: 1160
A112: 6042 | B112: 3286340604215 | C112: PN FIR 270/95R48 144 D PERF95 | D112: 2709548DPERF95144 | E112: ROUES MOTRICES | F112: FI PERF 95 | G112: 270 | H112: 95 | I112: R | J112: 48 | K112: 158 | L112: A2 | P112: 0 | Q112: 1297
A113: 6043 | B113: 3286340604314 | C113: PN FIR 340/85R48 151 D PERF85 | D113: 3408548DPERF85151 | E113: ROUES MOTRICES | F113: FI PERF85 | G113: 340 | H113: 85 | I113: R | J113: 48 | K113: 165 | L113: A2 | P113: 0 | Q113: 1862
A114: 6044 | B114: 3286340604413 | C114: PN FIR 300/95R52 151 D PERF95 | D114: 3009552DPERF95151 | E114: ROUES MOTRICES | F114: FI PERF 95 | G114: 300 | H114: 95 | I114: R | J114: 52 | K114: 165 | L114: A2 | P114: 0 | Q114: 1763
A115: 8886 | B115: 3286340888615 | C115: PN FIR 540/65R30 143D140E MAXI TRAC 65 | D115: 5406530MAXT65143D | E115: ROUES MOTRICES | F115: FI MAXI TRACT 65 | G115: 540 | H115: 65 | I115: R | J115: 30 | K115: 143 | L115: D | P115: 0 | Q115: 1889
A116: 8887 | B116: 3286340888714 | C116: PN FIR 650/65R42 158D155E MAXI TRAC 65 | D116: 6506542MAXT65158D | E116: ROUES MOTRICES | F116: FI MAXI TRACT 65 | G116: 650 | H116: 65 | I116: R | J116: 42 | K116: 158 | L116: D | P116: 0 | Q116: 4263
A117: 8943 | B117: 3286340894319 | C117: PN FIR 440/65R24 128D125E MAXI TRAC 65 | D117: 4406524MAXT65128D | E117: ROUES MOTRICES | F117: FI MAXI TRACT 65 | G117: 440 | H117: 65 | I117: R | J117: 24 | K117: 128 | L117: D | P117: 0 | Q117: 1087
A118: 8946 | B118: 3286340894616 | C118: PN FIR 440/65R28 131D128E MAXI TRAC 65 | D118: 4406528MAXT65131D | E118: ROUES MOTRICES | F118: FI MAXI TRACT 65 | G118: 440 | H118: 65 | I118: R | J118: 28 | K118: 131 | L118: D | P118: 0 | Q118: 1260
A119: 8950 | B119: 3286340895019 | C119: PN FIR 480/65R24 133D130E MAXI TRAC 65 | D119: 4806524MAXT65133D | E119: ROUES MOTRICES | F119: FI MAXI TRACT 65 | G119: 480 | H119: 65 | I119: R | J119: 24 | K119: 133 | L119: D | P119: 0 | Q119: 1270
A120: 8954 | B120: 3286340895415 | C120: PN FIR 480/65R28 136D133E MAXI TRAC 65 | D120: 4806528MAXT65136D | E120: ROUES MOTRICES | F120: FI MAXI TRACT 65 | G120: 480 | H120: 65 | I120: R | J120: 28 | K120: 136 | L120: D | P120: 0 | Q120: 1349
A121: 8958 | B121: 3286340895811 | C121: PN FIR 540/65R24 140D137E MAXI TRAC 65 | D121: 5406524MAXT65140D | E121: ROUES MOTRICES | F121: FI MAXI TRACT 65 | G121: 540 | H121: 65 | I121: R | J121: 24 | K121: 140 | L121: D | P121: 0 | Q121: 1589
A122: 8961 | B122: 3286340896115 | C122: PN FIR 540/65R28 142D139E MAXI TRAC 65 | D122: 5406528MAXT65142D | E122: ROUES MOTRICES | F122: FI MAXI TRACT 65 | G122: 540 | H122: 65 | I122: R | J122: 28 | K122: 142 | L122: D | P122: 0 | Q122: 1692
A123: 8969 | B123: 3286340896917 | C123: PN FIR 540/65R34 145D142E MAXI TRAC 65 | D123: 5406534MAXT65145D | E123: ROUES MOTRICES | F123: FI MAXI TRACT 65 | G123: 540 | H123: 65 | I123: R | J123: 34 | K123: 145 | L123: D | P123: 0 | Q123: 2030
A124: 8974 | B124: 3286340897419 | C124: PN FIR 540/65R38 147D144E MAXI TRAC 65 | D124: 5406538MAXT65147D | E124: ROUES MOTRICES | F124: FI MAXI TRACT 65 | G124: 540 | H124: 65 | I124: R | J124: 38 | K124: 147 | L124: D | P124: 0 | Q124: 2324
A125: 8978 | B125: 3286340897815 | C125: PN FIR 600/65R34 151D148E MAXI TRAC 65 | D125: 6006534MAXT65151D | E125: ROUES MOTRICES | F125: FI MAXI TRACT 65 | G125: 600 | H125: 65 | I125: R | J125: 34 | K125: 151 | L125: D | P125: 0 | Q125: 2504
A126: 8980 | B126: 3286340898010 | C126: PN FIR 600/65R38 153D150E MAXI TRAC 65 | D126: 6006538MAXT65153D | E126: ROUES MOTRICES | F126: FI MAXI TRACT 65 | G126: 600 | H126: 65 | I126: R | J126: 38 | K126: 153 | L126: D | P126: 0 | Q126: 2749
A127: 8984 | B127: 3286340898416 | C127: PN FIR 650/65R38 157D154E MAXI TRAC 65 | D127: 6506538MAXT65157D | E127: ROUES MOTRICES | F127: FI MAXI TRACT 65 | G127: 650 | H127: 65 | I127: R | J127: 38 | K127: 157 | L127: D | P127: 0 | Q127: 3551

Sheet KLE
D2: Remise
D3: =Remises!J10 -> 0.4
A5: Actualisation au 04/04/2024
A7: REFERENCES PNEUMATIQUES | Q7: Nominatif | T7: Complet
A8: CAI | B8: EAN | C8: Désignation | D8: Appellation | E8: Catégorie | F8: Profil | G8: Largeur | H8: Hauteur | I8: Structure | J8: Diamètre | K8: IC | L8: IV | M8: Conso. | N8: Frein. | O8: Bruit. | P8: Décibels. | Q8: Prix BF | R8: Prix TD | S8: Prix Remisé | T8: Prix BF | U8: Prix TD | V8: Prix Remisé
A9: 001368 | B9: 3528700013689 | C9: PN KLE 650/65R42 158 D GRIPKER | D9: 6506542DGRIPKE158 | E9: ROUES MOTRICES | F9: KL GRIPKER | G9: 650 | H9: 65 | I9: R | J9: 42 | K9: 158 | L9: D | P9: 0 | Q9: 3930
A10: 002322 | B10: 3528700023220 | C10: PN KLE 230/95R32 128D131A8 CROPKER | D10: 2309532CROPK128D | E10: ROUES MOTRICES | F10: KL CROPKER | G10: 230 | H10: 95 | I10: R | J10: 32 | K10: 131 | L10: A8 | P10: 0 | Q10: 848
A11: 005722 | B11: 3528700057225 | C11: PN KLE 650/65R38 157 D GRIPKER | D11: 6506538DGRIPKE157 | E11: ROUES MOTRICES | F11: KL GRIPKER | G11: 650 | H11: 65 | I11: R | J11: 38 | K11: 157 | L11: D | P11: 0 | Q11: 3261
A12: 009417 | B12: 3528700094176 | C12: PN KLE 600/65R34 151 D GRIPKER | D12: 6006534DGRIPKE151 | E12: ROUES MOTRICES | F12: KL GRIPKER | G12: 600 | H12: 65 | I12: R | J12: 34 | K12: 151 | L12: D | P12: 0 | Q12: 2518
A13: 024095 | B13: 3528700240955 | C13: PN KLE 540/65R30 143 D GRIPKER | D13: 5406530DGRIPKE143 | E13: ROUES MOTRICES | F13: KL GRIPKER | G13: 540 | H13: 65 | I13: R | J13: 30 | K13: 143 | L13: D | P13: 0 | Q13: 1978
A14: 097180 | B14: 3528700971804 | C14: PN KLE 300/95R46 148D151A8 CROPKER | D14: 3009546CROPK148D | E14: ROUES MOTRICES | F14: KL CROPKER | G14: 300 | H14: 95 | I14: R | J14: 46 | K14: 151 | L14: A8 | P14: 0 | Q14: 1534
A15: 101641 | B15: 3528701016412 | C15: PN KLE 620/70R42 160 A8 FITKER | D15: 6207042A8FITKER | E15: ROUES MOTRICES | F15: KL FITKER | G15: 620 | H15: 70 | I15: R | J15: 42 | K15: 160 | L15: A8 | P15: 0 | Q15: 3795
A16: 125859 | B16: 3528701258591 | C16: PN KLE IF650/65R34 168D/164E TOPK | D16: 6506534TOPK168D | E16: ROUES MOTRICES | F16: KL TOPKER | G16: 650 | H16: 65 | I16: R | J16: 34 | K16: 168 | L16: D | P16: 0 | Q16: 4207
A17: 160884 | B17: 3528701608846 | C17: PN KLE 340/75R20 117 A8 SUPER G (12.5 | D17: 3407520A8SUPERG | E17: ROUES MOTRICES | F17: KL SUP G | G17: 340 | H17: 75 | I17: R | J17: 20 | K17: 117 | L17: A8 | P17: 0 | Q17: 950
A18: 161767 | B18: 3528701617671 | C18: PN KLE 280/85R24 115 A8 TRAKER | D18: 2808524A8TRAKER | E18: ROUES MOTRICES | F18: KL TRAKER | G18: 280 | H18: 85 | I18: R | J18: 24 | K18: 115 | L18: A8 | P18: 0 | Q18: 586
A19: 161768 | B19: 3528701617688 | C19: PN KLE 320/85R24 122 A8 TRAKER | D19: 3208524A8TRAKER | E19: ROUES MOTRICES | F19: KL TRAKER | G19: 320 | H19: 85 | I19: R | J19: 24 | K19: 122 | L19: A8 | P19: 0 | Q19: 709
A20: 161770 | B20: 3528701617701 | C20: PN KLE 380/85R24 131 A8 TRAKER | D20: 3808524A8TRAKER | E20: ROUES MOTRICES | F20: KL TRAKER | G20: 380 | H20: 85 | I20: R | J20: 24 | K20: 131 | L20: A8 | P20: 0 | Q20: 948
A21: 161772 | B21: 3528701617725 | C21: PN KLE 320/85R28 124 A8 TRAKER | D21: 3208528A8TRAKER | E21: ROUES MOTRICES | F21: KL TRAKER | G21: 320 | H21: 85 | I21: R | J21: 28 | K21: 124 | L21: A8 | P21: 0 | Q21: 790
A22: 161773 | B22: 3528701617732 | C22: PN KLE 340/85R28 127 A8 TRAKER | D22: 3408528A8TRAKER | E22: ROUES MOTRICES | F22: KL TRAKER | G22: 340 | H22: 85 | I22: R | J22: 28 | K22: 127 | L22: A8 | P22: 0 | Q22: 863
A23: 161774 | B23: 3528701617749 | C23: PN KLE 380/85R28 133 A8 TRAKER | D23: 3808528A8TRAKER | E23: ROUES MOTRICES | F23: KL TRAKER | G23: 380 | H23: 85 | I23: R | J23: 28 | K23: 133 | L23: A8 | P23: 0 | Q23: 976
A24: 161776 | B24: 3528701617763 | C24: PN KLE 420/85R30 140 A8 TRAKER | D24: 4208530A8TRAKER | E24: ROUES MOTRICES | F24: KL TRAKER | G24: 420 | H24: 85 | I24: R | J24: 30 | K24: 140 | L24: A8 | P24: 0 | Q24: 1310
A25: 161777 | B25: 3528701617770 | C25: PN KLE 420/85R34 142 A8 TRAKER | D25: 4208534A8TRAKER | E25: ROUES MOTRICES | F25: KL TRAKER | G25: 420 | H25: 85 | I25: R | J25: 34 | K25: 142 | L25: A8 | P25: 0 | Q25: 1522
A26: 161778 | B26: 3528701617787 | C26: PN KLE 460/85R34 147 A8 TRAKER | D26: 4608534A8TRAKER | E26: ROUES MOTRICES | F26: KL TRAKER | G26: 460 | H26: 85 | I26: R | J26: 34 | K26: 147 | L26: A8 | P26: 0 | Q26: 1764
A27: 161779 | B27: 3528701617794 | C27: PN KLE 320/85R36 128 A8 TRAKER | D27: 3208536A8TRAKER | E27: ROUES MOTRICES | F27: KL TRAKER | G27: 320 | H27: 85 | I27: R | J27: 36 | K27: 128 | L27: A8 | P27: 0 | Q27: 1003
A28: 161780 | B28: 3528701617800 | C28: PN KLE 340/85R36 132 A8 TRAKER | D28: 3408536A8TRAKER | E28: ROUES MOTRICES | F28: KL TRAKER | G28: 340 | H28: 85 | I28: R | J28: 36 | K28: 132 | L28: A8 | P28: 0 | Q28: 1093
A29: 161781 | B29: 3528701617817 | C29: PN KLE 340/85R38 133 A8 TRAKER | D29: 3408538A8TRAKER | E29: ROUES MOTRICES | F29: KL TRAKER | G29: 340 | H29: 85 | I29: R | J29: 38 | K29: 133 | L29: A8 | P29: 0 | Q29: 1179
A30: 161782 | B30: 3528701617824 | C30: PN KLE 420/85R38 144 A8 TRAKER | D30: 4208538A8TRAKER | E30: ROUES MOTRICES | F30: KL TRAKER | G30: 420 | H30: 85 | I30: R | J30: 38 | K30: 144 | L30: A8 | P30: 0 | Q30: 1610
A31: 161783 | B31: 3528701617831 | C31: PN KLE 460/85R38 149 A8 TRAKER | D31: 4608538A8TRAKER | E31: ROUES MOTRICES | F31: KL TRAKER | G31: 460 | H31: 85 | I31: R | J31: 38 | K31: 149 | L31: A8 | P31: 0 | Q31: 1882
A32: 161784 | B32: 3528701617848 | C32: PN KLE 520/85R38 155 A8 TRAKER | D32: 5208538A8TRAKER | E32: ROUES MOTRICES | F32: KL TRAKER | G32: 520 | H32: 85 | I32: R | J32: 38 | K32: 155 | L32: A8 | P32: 0 | Q32: 2585
A33: 161882 | B33: 3528701618821 | C33: PN KLE 320/85R20 119 A8 TRAKER | D33: 3208520A8TRAKER | E33: ROUES MOTRICES | F33: KL TRAKER | G33: 320 | H33: 85 | I33: R | J33: 20 | K33: 119 | L33: A8 | P33: 0 | Q33: 679
A34: 161885 | B34: 3528701618852 | C34: PN KLE 280/85R28 118 A8 TRAKER | D34: 2808528A8TRAKER | E34: ROUES MOTRICES | F34: KL TRAKER | G34: 280 | H34: 85 | I34: R | J34: 28 | K34: 118 | L34: A8 | P34: 0 | Q34: 683
A35: 161886 | B35: 3528701618869 | C35: PN KLE 380/85R30 135 A8 TRAKER | D35: 3808530A8TRAKER | E35: ROUES MOTRICES | F35: KL TRAKER | G35: 380 | H35: 85 | I35: R | J35: 30 | K35: 135 | L35: A8 | P35: 0 | Q35: 1109
A36: 161887 | B36: 3528701618876 | C36: PN KLE 460/85R30 145 A8 TRAKER | D36: 4608530A8TRAKER | E36: ROUES MOTRICES | F36: KL TRAKER | G36: 460 | H36: 85 | I36: R | J36: 30 | K36: 145 | L36: A8 | P36: 0 | Q36: 1504
A37: 161888 | B37: 3528701618883 | C37: PN KLE 320/85R32 126 A8 TRAKER | D37: 3208532A8TRAKER | E37: ROUES MOTRICES | F37: KL TRAKER | G37: 320 | H37: 85 | I37: R | J37: 32 | K37: 126 | L37: A8 | P37: 0 | Q37: 946
A38: 162117 | B38: 3528701621173 | C38: PN KLE 7.50R18 102A8 SUPER VIGNE TT | D38: 75018A8SUPERVIGNETT | E38: ROUES MOTRICES | F38: KL SVIGN | G38: 7.5 | I38: R | J38: 18 | K38: 102 | L38: A8 | P38: 0 | Q38: 374
A39: 162123 | B39: 3528701621234 | C39: PN KLE 11.2R24 114 A8 SUPER VIGNE * T | D39: 11224A8SUPERVIGNETT | E39: ROUES MOTRICES | F39: KL SUP VIGNE | G39: 11.2 | I39: R | J39: 24 | K39: 114 | L39: A8 | P39: 0 | Q39: 714
A40: 162125 | B40: 3528701621258 | C40: PN KLE 13.6R24 121 A8 SUPER VIGNE * T | D40: 13624A8SUPERVIGNETT | E40: ROUES MOTRICES | F40: KL SUP VIGNE | G40: 13.6 | I40: R | J40: 24 | K40: 121 | L40: A8 | P40: 0 | Q40: 944
A41: 162127 | B41: 3528701621272 | C41: PN KLE 11.2R28 116 A8 SUPER VIGNE * T | D41: 11228A8SUPERVIGNETT | E41: ROUES MOTRICES | F41: KL SUP VIGNE | G41: 11.2 | I41: R | J41: 28 | K41: 116 | L41: A8 | P41: 0 | Q41: 783
A42: 162128 | B42: 3528701621289 | C42: PN KLE 12.4R28 121 A8 SUPER VIGNE * T | D42: 12428A8SUPERVIGNETT | E42: ROUES MOTRICES | F42: KL SUP VIGNE | G42: 12.4 | I42: R | J42: 28 | K42: 121 | L42: A8 | P42: 0 | Q42: 883
A43: 162129 | B43: 3528701621296 | C43: PN KLE 13.6R28 123 A8 SUPER VIGNE * T | D43: 13628A8SUPERVIGNETT | E43: ROUES MOTRICES | F43: KL SUP VIGNE | G43: 13.6 | I43: R | J43: 28 | K43: 123 | L43: A8 | P43: 0 | Q43: 1053
A44: 162160 | B44: 3528701621609 | C44: PN KLE 250/85R24 109 A8 TRAKER | D44: 2508524A8TRAKER | E44: ROUES MOTRICES | F44: KL TRAKER | G44: 250 | H44: 85 | I44: R | J44: 24 | K44: 109 | L44: A8 | P44: 0 | Q44: 497
A45: 162161 | B45: 3528701621616 | C45: PN KLE 250/85R28 112 A8 TRAKER | D45: 2508528A8TRAKER | E45: ROUES MOTRICES | F45: KL TRAKER | G45: 250 | H45: 85 | I45: R | J45: 28 | K45: 112 | L45: A8 | P45: 0 | Q45: 618
A46: 162166 | B46: 3528701621661 | C46: PN KLE 14.9R28 128 A8 SUPER VIGNE | D46: 14928A8SUPERVIGNE | E46: ROUES MOTRICES | F46: KL SUP VIGNE | G46: 14.9 | I46: R | J46: 28 | K46: 128 | L46: A8 | P46: 0 | Q46: 1169
A47: 162167 | B47: 3528701621678 | C47: PN KLE 14.9R24 126 A8 SUPER VIGNE | D47: 14924A8SUPERVIGNE | E47: ROUES MOTRICES | F47: KL SUP VIGNE | G47: 14.9 | I47: R | J47: 24 | K47: 126 | L47: A8 | P47: 0 | Q47: 1110
A48: 186241 | B48: 3528701862415 | C48: PN KLE 600/65R38 153 D GRIPKER | D48: 6006538DGRIPKE153 | E48: ROUES MOTRICES | F48: KL GRIPKER | G48: 600 | H48: 65 | I48: R | J48: 38 | K48: 153 | L48: D | P48: 0 | Q48: 2519
A49: 188404 | B49: 3528701884042 | C49: PN KLE 9.50 R28 109A8 SUP VIGNE | D49: 95028SUPVIGNE109A8 | E49: ROUES MOTRICES | F49: KL SUP VIGNE | G49: 9.5 | I49: R | J49: 28 | K49: 109 | L49: A8 | P49: 0 | Q49: 658
A50: 190745 | B50: 3528701907451 | C50: PN KLE 480/70R38 145 A8 FITKER | D50: 4807038A8FITKER | E50: ROUES MOTRICES | F50: KL FITKER | G50: 480 | H50: 70 | I50: R | J50: 38 | K50: 145 | L50: A8 | P50: 0 | Q50: 1898
A51: 199409 | B51: 3528701994093 | C51: PN KLE 270/95R48 144D CROPKER | D51: 2709548CROPK144D | E51: ROUES MOTRICES | F51: KL CROPKER | G51: 270 | H51: 95 | I51: R | J51: 48 | K51: 147 | L51: A8 | P51: 0 | Q51: 1282
A52: 212088 | B52: 3528702120880 | C52: PN KLE 540/65R28 142 D GRIPKER | D52: 5406528DGRIPKE142 | E52: ROUES MOTRICES | F52: KL GRIPKER | G52: 540 | H52: 65 | I52: R | J52: 28 | K52: 142 | L52: D | P52: 0 | Q52: 1653
A53: 227326 | B53: 3528702273265 | C53: PN KLE 270/95R32 136D139A8 CROPKER | D53: 2709532CROPK136D | E53: ROUES MOTRICES | F53: KL CROPKER | G53: 270 | H53: 95 | I53: R | J53: 32 | K53: 139 | L53: A8 | P53: 0 | Q53: 979
A54: 239482 | B54: 3528702394823 | C54: PN KLE 230/95R36 130D133A8 CROPKER | D54: 2309536CROPK130D | E54: ROUES MOTRICES | F54: KL CROPKER | G54: 230 | H54: 95 | I54: R | J54: 36 | K54: 133 | L54: A8 | P54: 0 | Q54: 922
A55: 257555 | B55: 3528702575550 | C55: PN KLE 8.30 R24 106A8 SUP VIGNE | D55: 83024SUPVIGNE106A8 | E55: ROUES MOTRICES | F55: KL SUP VIGNE | G55: 8.3 | I55: R | J55: 24 | K55: 106 | L55: A8 | P55: 0 | Q55: 548
A56: 265461 | B56: 3528702654613 | C56: PN KLEB 500/70R24 164A8/B LUGKER | D56: 5007024LUGKER164A8 | E56: INDUSTRIE | F56: KL LUGKER | G56: 500 | H56: 70 | I56: R | J56: 24 | K56: 164/164 | L56: A8 | P56: 0 | Q56: 1555
A57: 265784 | B57: 3528702657843 | C57: PN KLE 230/95R40 132D135A8 CROPKER | D57: 2309540CROPK132D | E57: ROUES MOTRICES | F57: KL CROPKER | G57: 230 | H57: 95 | I57: R | J57: 40 | K57: 135 | L57: A8 | P57: 0 | Q57: 1000
A58: 278892 | B58: 3528702788929 | C58: PN KLE IF 600/70R30 165D/161E TOPKER | D58: 6007030TOPKIF165D | E58: ROUES MOTRICES | F58: KL TOPKER | G58: 600 | H58: 70 | I58: R | J58: 30 | K58: 165 | L58: D | P58: 0 | Q58: 3486
A59: 282375 | B59: 3528702823750 | C59: PN KLE 380/70R28 127 A8 FITKER | D59: 3807028A8FITKER | E59: ROUES MOTRICES | F59: KL FITKER | G59: 380 | H59: 70 | I59: R | J59: 28 | K59: 127 | L59: A8 | P59: 0 | Q59: 1148
A60: 283935 | B60: 3528702839355 | C60: PN KLE 9.5 R20 108A8 SUP VIGNE | D60: 9520SUPVIGNE108A8 | E60: ROUES MOTRICES | F60: KL SUP VIGNE | G60: 9.5 | I60: R | J60: 20 | K60: 108 | L60: A8 | P60: 0 | Q60: 535
A61: 286656 | B61: 3528702866566 | C61: PN KLE 14.9R20 119 A8 SUPER G | D61: 14920A8SUPER119 | E61: ROUES MOTRICES | F61: KL SUP G | G61: 14.9 | I61: R | J61: 20 | K61: 119 | L61: A8 | P61: 0 | Q61: 1079
A62: 289573 | B62: 3528702895733 | C62: PN KLE 520/70R34 148 A8 FITKER | D62: 5207034A8FITKER148 | E62: ROUES MOTRICES | F62: KL FITKER | G62: 520 | H62: 70 | I62: R | J62: 34 | K62: 148 | L62: A8 | P62: 0 | Q62: 2254
A63: 347735 | B63: 3528703477358 | C63: PN KLE 480/70R30 141 A8 FITKER | D63: 4807030A8FITKER | E63: ROUES MOTRICES | F63: KL FITKER | G63: 480 | H63: 70 | I63: R | J63: 30 | K63: 141 | L63: A8 | P63: 0 | Q63: 1710
A64: 349230 | B64: 3528703492306 | C64: PN KLE 300/95R42 147D150A8 CROPKER | D64: 3009542CROPK147D | E64: ROUES MOTRICES | F64: KL CROPKER | G64: 300 | H64: 95 | I64: R | J64: 42 | K64: 150 | L64: A8 | P64: 0 | Q64: 1420
A65: 356982 | B65: 3528703569824 | C65: PN KLE 360/70R20 129A8/126B FITKER | D65: 3607020FITK129A8 | E65: ROUES MOTRICES | F65: KL FITKER | G65: 360 | H65: 70 | I65: R | J65: 20 | K65: 129 | L65: A8 | P65: 0 | Q65: 918
A66: 357179 | B66: 3528703571797 | C66: PN KLE 540/65R24 140 D GRIPKER | D66: 5406524DGRIPKE140 | E66: ROUES MOTRICES | F66: KL GRIPKER | G66: 540 | H66: 65 | I66: R | J66: 24 | K66: 140 | L66: D | P66: 0 | Q66: 1601
A67: 397176 | B67: 3528703971764 | C67: PN KLE 440/65R24 128 D GRIPKER | D67: 4406524DGRIPKE128 | E67: ROUES MOTRICES | F67: KL GRIPKER | G67: 440 | H67: 65 | I67: R | J67: 24 | K67: 128 | L67: D | P67: 0 | Q67: 1111
A68: 401887 | B68: 3528704018871 | C68: PN KLE 7.50 R20 104A8 SUP VIGNE | D68: 75020SUPVIGNE104A8 | E68: ROUES MOTRICES | F68: KL SUP VIGNE | G68: 7.5 | I68: R | J68: 20 | K68: 104 | L68: A8 | P68: 0 | Q68: 512
A69: 447557 | B69: 3528704475575 | C69: PN KLE 400/75R38 138A8/135B TRAK | D69: 4007538TRAK138A8 | E69: ROUES MOTRICES | F69: KL TRAKER | G69: 400 | H69: 75 | I69: R | J69: 38 | K69: 138 | L69: A8 | P69: 0 | Q69: 1644
A70: 450712 | B70: 3528704507122 | C70: PN KLE 16.9R30 137 A8 SUPER G | D70: 16930A8SUPER137 | E70: ROUES MOTRICES | F70: KL SUP G | G70: 16.9 | I70: R | J70: 30 | K70: 137 | L70: A8 | P70: 0 | Q70: 1567
A71: 472806 | B71: 3528704728060 | C71: PN KLE 420/70R24 130 A8 FITKER | D71: 4207024A8FITKER130 | E71: ROUES MOTRICES | F71: KL FITKER | G71: 420 | H71: 70 | I71: R | J71: 24 | K71: 136 | L71: A8 | P71: 0 | Q71: 1079
A72: 478302 | B72: 3528704783021 | C72: PN KLE 400/70R20 149A8/B LUGKER | D72: 4007020LUGKER149A8 | E72: INDUSTRIE | F72: KL LUGKER | G72: 400 | H72: 70 | I72: R | J72: 20 | K72: 149 | L72: A8 | P72: 0 | Q72: 1065
A73: 480724 | B73: 3528704807246 | C73: PN KLE 280/70R20 116 A8 FITKER | D73: 2807020A8FITKER116 | E73: ROUES MOTRICES | F73: KL FITKER | G73: 280 | H73: 70 | I73: R | J73: 20 | K73: 116 | L73: A8 | P73: 0 | Q73: 665
A74: 481973 | B74: 3528704819737 | C74: PN KLE 480/70R34 143 A8 FITKER | D74: 4807034A8FITKER | E74: ROUES MOTRICES | F74: KL FITKER | G74: 480 | H74: 70 | I74: R | J74: 34 | K74: 143 | L74: A8 | P74: 0 | Q74: 1738
A75: 501838 | B75: 3528705018382 | C75: PN KLE 440/65R28 131 D GRIPKER | D75: 4406528DGRIPKE131 | E75: ROUES MOTRICES | F75: KL GRIPKER | G75: 440 | H75: 65 | I75: R | J75: 28 | K75: 131 | L75: D | P75: 0 | Q75: 1274
A76: 502916 | B76: 3528705029166 | C76: PN KLE 270/95R42 141D144A8 CROPKER | D76: 2709542CROPK141D | E76: ROUES MOTRICES | F76: KL CROPKER | G76: 270 | H76: 95 | I76: R | J76: 42 | K76: 144 | L76: A8 | P76: 0 | Q76: 1179
A77: 513401 | B77: 3528705134013 | C77: PN KLE 360/70R24 122 A8 FITKER | D77: 3607024A8FITKER | E77: ROUES MOTRICES | F77: KL FITKER | G77: 360 | H77: 70 | I77: R | J77: 24 | K77: 122 | L77: A8 | P77: 0 | Q77: 829
A78: 523762 | B78: 3528705237622 | C78: PN KLE 300/70R20 120A8/117B FITKER | D78: 3007020FITK120A8 | E78: ROUES MOTRICES | F78: KL FITKER | G78: 300 | H78: 70 | I78: R | J78: 20 | K78: 120 | L78: A8 | P78: 0 | Q78: 758
A79: 525939 | B79: 3528705259396 | C79: PN KLE IF710/70R38 178D/174E TOPKER | D79: 7107038TOPK178D | E79: ROUES MOTRICES | F79: KL TOPKER | G79: 710 | H79: 70 | I79: R | J79: 38 | K79: 178 | L79: D | P79: 0 | Q79: 6098
A80: 559899 | B80: 3528705598990 | C80: PN KLE 270/95R38 140D143A8 CROPKER | D80: 2709538CROPK140D | E80: ROUES MOTRICES | F80: KL CROPKER | G80: 270 | H80: 95 | I80: R | J80: 38 | K80: 143 | L80: A8 | P80: 0 | Q80: 1091
A81: 571677 | B81: 3528705716776 | C81: PN KLE 9.50 R24 107A8 SUP VIGNE | D81: 95024SUPVIGNE107A8 | E81: ROUES MOTRICES | F81: KL SUP VIGNE | G81: 9.5 | I81: R | J81: 24 | K81: 107 | L81: A8 | P81: 0 | Q81: 569
A82: 574346 | B82: 3528705743468 | C82: PN KLE 7.50 R18 102A8 SUP VIGNE | D82: 75018SUPVIGNE102A8 | E82: ROUES MOTRICES | F82: KL SUP VIGNE | G82: 7.5 | I82: R | J82: 18 | K82: 102 | L82: A8 | P82: 0 | Q82: 484
A83: 622517 | B83: 3528706225178 | C83: PN KLE IF 710/70R42 179D/176E TOPKER | D83: 7107042TOPKIF179D | E83: ROUES MOTRICES | F83: KL TOPKER | G83: 710 | H83: 70 | I83: R | J83: 42 | K83: 179 | L83: D | P83: 0 | Q83: 7257
A84: 625299 | B84: 3528706252990 | C84: PN KLE 230/95R44 134D137A8 CROPKER | D84: 2309544CROPK134D | E84: ROUES MOTRICES | F84: KL CROPKER | G84: 230 | H84: 95 | I84: R | J84: 44 | K84: 137 | L84: A8 | P84: 0 | Q84: 1065
A85: 655028 | B85: 3528706550287 | C85: PN KLE 420/70R28 133 A8 FITKER | D85: 4207028A8FITKER | E85: ROUES MOTRICES | F85: KL FITKER | G85: 420 | H85: 70 | I85: R | J85: 28 | K85: 133 | L85: A8 | P85: 0 | Q85: 1244
A86: 656000 | B86: 3528706560002 | C86: PN KLE 520/85R42 157 A8 TRAKER | D86: 5208542A8TRAKER157 | E86: ROUES MOTRICES | F86: KL TRAKER | G86: 520 | H86: 85 | I86: R | J86: 42 | K86: 157 | L86: A8 | P86: 0 | Q86: 3092
A87: 659295 | B87: 3528706592959 | C87: PN KLE 270/95R36 139D/A8 CROPKER | D87: 2709536CROPK139D | E87: ROUES MOTRICES | F87: KL CROPKER | G87: 270 | H87: 95 | I87: R | J87: 36 | K87: 142 | L87: A8 | P87: 0 | Q87: 1057
A88: 661829 | B88: 3528706618291 | C88: PN KLE 420/70R30 134A8/131B FITKER | D88: 4207030FITK134A8 | E88: ROUES MOTRICES | F88: KL FITKER | G88: 420 | H88: 70 | I88: R | J88: 30 | K88: 134 | L88: A8 | P88: 0 | Q88: 1478
A89: 686028 | B89: 3528706860287 | C89: PN KLE IF600/65R28 160D/156E TOPKER | D89: 6006528TOPK160D | E89: ROUES MOTRICES | F89: KL TOPKER | G89: 600 | H89: 65 | I89: R | J89: 28 | K89: 160 | L89: D | P89: 0 | Q89: 2901
A90: 690520 | B90: 3528706905209 | C90: PN KLE IF 650/85R38 179D/175E TOPKER | D90: 6508538TOPKIF179D | E90: ROUES MOTRICES | F90: KL TOPKER | G90: 650 | H90: 85 | I90: R | J90: 38 | K90: 179 | L90: D | P90: 0 | Q90: 6858
A91: 699532 | B91: 3528706995323 | C91: PN KLE 270/95R44 142D145A8 CROPKER | D91: 2709544CROPK142D | E91: ROUES MOTRICES | F91: KL CROPKER | G91: 270 | H91: 95 | I91: R | J91: 44 | K91: 145 | L91: A8 | P91: 0 | Q91: 1218
A92: 718149 | B92: 3528707181497 | C92: PN KLE 270/95R54 146D149A8 CROPKER | D92: 2709554CROPK146D | E92: ROUES MOTRICES | F92: KL CROPKER | G92: 270 | H92: 95 | I92: R | J92: 54 | K92: 149 | L92: A8 | P92: 0 | Q92: 1478
A93: 734934 | B93: 3528707349347 | C93: PN KLE 540/65R34 145 D GRIPKER | D93: 5406534DGRIPKE145 | E93: ROUES MOTRICES | F93: KL GRIPKER | G93: 540 | H93: 65 | I93: R | J93: 34 | K93: 145 | L93: D | P93: 0 | Q93: 1999
A94: 747425 | B94: 3528707474254 | C94: PN KLE 300/95R52 151D154A8 CROPKER | D94: 3009552CROPK151D | E94: ROUES MOTRICES | F94: KL CROPKER | G94: 300 | H94: 95 | I94: R | J94: 52 | K94: 154 | L94: A8 | P94: 0 | Q94: 1648
A95: 758228 | B95: 3528707582287 | C95: PN KLE 210/95R16 106A8/B TRAK | D95: 2109516TRAK106A8 | E95: ROUES MOTRICES | F95: KL TRAKER | G95: 210 | H95: 95 | I95: R | J95: 16 | K95: 106 | L95: A8 | P95: 0 | Q95: 405
A96: 759556 | B96: 3528707595560 | C96: PN KLE 520/70R38 150 A8 FITKER | D96: 5207038A8FITKER | E96: ROUES MOTRICES | F96: KL FITKER | G96: 520 | H96: 70 | I96: R | J96: 38 | K96: 150 | L96: A8 | P96: 0 | Q96: 2436
A97: 760563 | B97: 3528707605634 | C97: PN KLE 340/85R24 130 A8 TRAKER TL | D97: 3408524A8TRAKERTL130 | E97: ROUES MOTRICES | F97: KL TRAKER | G97: 340 | H97: 85 | I97: R | J97: 24 | K97: 130 | L97: A8 | P97: 0 | Q97: 772
A98: 761038 | B98: 3528707610386 | C98: PN KLE 360/70R28 125 A8 FITKER | D98: 3607028A8FITKER125 | E98: ROUES MOTRICES | F98: KL FITKER | G98: 360 | H98: 70 | I98: R | J98: 28 | K98: 125 | L98: A8 | P98: 0 | Q98: 1074
A99: 761981 | B99: 3528707619815 | C99: PN KLE 380/70R24 125 A8 FITKER | D99: 3807024A8FITKER | E99: ROUES MOTRICES | F99: KL FITKER | G99: 380 | H99: 70 | I99: R | J99: 24 | K99: 125 | L99: A8 | P99: 0 | Q99: 1020
A100: 774936 | B100: 3528707749369 | C100: PN KLE IF600/70R28 164D/160E TOPKER | D100: 6007028TOPK164D | E100: ROUES MOTRICES | F100: KL TOPKER | G100: 600 | H100: 70 | I100: R | J100: 28 | K100: 164 | L100: D | P100: 0 | Q100: 3251
A101: 783160 | B101: 3528707831606 | C101: PN KLE 540/65R38 147 D GRIPKER | D101: 5406538DGRIPKE147 | E101: ROUES MOTRICES | F101: KL GRIPKER | G101: 540 | H101: 65 | I101: R | J101: 38 | K101: 147 | L101: D | P101: 0 | Q101: 2095
A102: 789353 | B102: 3528707893536 | C102: PN KLE 280/70R16 112A8/109B FITKER | D102: 2807016FITK112A8 | E102: ROUES MOTRICES | F102: KL FITKER | G102: 280 | H102: 70 | I102: R | J102: 16 | K102: 112 | L102: A8 | P102: 0 | Q102: 607
A103: 810788 | B103: 3528708107885 | C103: PN KLE 480/65R28 136 D GRIPKER | D103: 4806528DGRIPKE136 | E103: ROUES MOTRICES | F103: KL GRIPKER | G103: 480 | H103: 65 | I103: R | J103: 28 | K103: 136 | L103: D | P103: 0 | Q103: 1427
A104: 857504 | B104: 3528708575042 | C104: PN KLE 580/70R38 155 A8 FITKER | D104: 5807038A8FITKER | E104: ROUES MOTRICES | F104: KL FITKER | G104: 580 | H104: 70 | I104: R | J104: 38 | K104: 155 | L104: A8 | P104: 0 | Q104: 3089
A105: 873336 | B105: 3528708733367 | C105: PN KLE IF 800/70R38 179D/175E TOPKER | D105: 8007038TOPKIF179D | E105: ROUES MOTRICES | F105: KL TOPKER | G105: 800 | H105: 70 | I105: R | J105: 38 | K105: 179 | L105: D | P105: 0 | Q105: 8564
A106: 875390 | B106: 3528708753907 | C106: PN KLE 420/85R24 142 A8 TRAKER TL | D106: 4208524A8TRAKERTL142 | E106: ROUES MOTRICES | F106: KL TRAKER | G106: 420 | H106: 85 | I106: R | J106: 24 | K106: 142 | L106: A8 | P106: 0 | Q106: 1134
A107: 882055 | B107: 3528708820555 | C107: PN KLE 260/70R16 109A8/106B FITKER | D107: 2607016FITK109A8 | E107: ROUES MOTRICES | F107: KL FITKER | G107: 260 | H107: 70 | I107: R | J107: 16 | K107: 109 | L107: A8 | P107: 0 | Q107: 574
A108: 897634 | B108: 3528708976344 | C108: PN KLE 480/70R28 145 A8 FITKER | D108: 4807028A8FITKER145 | E108: ROUES MOTRICES | F108: KL FITKER | G108: 480 | H108: 70 | I108: R | J108: 28 | K108: 145 | L108: A8 | P108: 0 | Q108: 1466
A109: 902190 | B109: 3528709021906 | C109: PN KLE IF710/75R42 181D/178E TOPK | D109: 7107542TOPK181D | E109: ROUES MOTRICES | F109: KL TOPKER | G109: 710 | H109: 75 | I109: R | J109: 42 | K109: 181 | L109: D | P109: 0 | Q109: 7724
A110: 919813 | B110: 3528709198134 | C110: PN KLE 280/70R18 114 A8 FITKER | D110: 2807018A8FITKER114 | E110: ROUES MOTRICES | F110: KL FITKER | G110: 280 | H110: 70 | I110: R | J110: 18 | K110: 114 | L110: A8 | P110: 0 | Q110: 621
A111: 920320 | B111: 3528709203203 | C111: PN KLE 320/70R24 116 A8 FITKER | D111: 3207024A8FITKER116 | E111: ROUES MOTRICES | F111: KL FITKER | G111: 320 | H111: 70 | I111: R | J111: 24 | K111: 116 | L111: A8 | P111: 0 | Q111: 723
A112: 920724 | B112: 3528709207249 | C112: PN KLE IF650/75R38 175D/171E TOPKER | D112: 6507538TOPK175D | E112: ROUES MOTRICES | F112: KL TOPKER | G112: 650 | H112: 75 | I112: R | J112: 38 | K112: 175 | L112: D | P112: 0 | Q112: 5836
A113: 935008 | B113: 3528709350082 | C113: PN KLE IF650/60R34 165D/161E TOPK | D113: 6506034TOPK165D | E113: ROUES MOTRICES | F113: KL TOPKER | G113: 650 | H113: 60 | I113: R | J113: 34 | K113: 165 | L113: D | P113: 0 | Q113: 4018
A114: 955665 | B114: 3528709556651 | C114: PN KLE 420/85R28 144 A8 TRAKER TL | D114: 4208528A8TRAKERTL144 | E114: ROUES MOTRICES | F114: KL TRAKER | G114: 420 | H114: 85 | I114: R | J114: 28 | K114: 144 | L114: A8 | P114: 0 | Q114: 1211
A115: 963152 | B115: 3528709631525 | C115: PN KLE 11.2 R20 111A8 SUP VIGNE | D115: 11220SUPVIGNE111A8 | E115: ROUES MOTRICES | F115: KL SUP VIGNE | G115: 11.2 | I115: R | J115: 20 | K115: 111 | L115: A8 | P115: 0 | Q115: 674
A116: 968538 | B116: 3528709685382 | C116: PN KLE 320/70R20 123A8/120B FITKER | D116: 3207020FITK123A8 | E116: ROUES MOTRICES | F116: KL FITKER | G116: 320 | H116: 70 | I116: R | J116: 20 | K116: 123 | L116: A8 | P116: 0 | Q116: 777
A117: 968722 | B117: 3528709687225 | C117: PN KLE 460/70R24 159A8/B LUGKER | D117: 4607024LUGKER159A8 | E117: INDUSTRIE | F117: KL LUGKER | G117: 460 | H117: 70 | I117: R | J117: 24 | K117: 159 | L117: A8 | P117: 0 | Q117: 1193
A118: 973505 | B118: 3528709735056 | C118: PN KLE 230/95R48 136D139A8 CROPKER | D118: 2309548CROPK136D | E118: ROUES MOTRICES | F118: KL CROPKER | G118: 230 | H118: 95 | I118: R | J118: 48 | K118: 139 | L118: A8 | P118: 0 | Q118: 1120
A119: 984280 | B119: 3528709842808 | C119: PN KLE 480/70R24 138 A8 FITKER | D119: 4807024A8FITKER138 | E119: ROUES MOTRICES | F119: KL FITKER | G119: 480 | H119: 70 | I119: R | J119: 24 | K119: 138 | L119: A8 | P119: 0 | Q119: 1374
A120: 987417 | B120: 3528709874175 | C120: PN KLE 480/65R24 133 D GRIPKER | D120: 4806524DGRIPKE133 | E120: ROUES MOTRICES | F120: KL GRIPKER | G120: 480 | H120: 65 | I120: R | J120: 24 | K120: 133 | L120: D | P120: 0 | Q120: 1274

Sheet MIC
D2: Remise
D3: =Remises!O10 -> 0.4
A5: Actualisation au 04/04/2024
A7: REFERENCES PNEUMATIQUES | Q7: TARIFS
A8: CAI | B8: EAN | C8: Désignation | D8: Appellation | E8: Catégorie | F8: Profil | G8: Largeur | H8: Hauteur | I8: Structure | J8: Diamètre | K8: IC | L8: IV | M8: Conso. | N8: Frein. | O8: Bruit. | P8: Décibels. | Q8: Prix BF | R8: Prix Remisé
A9: 001240 | B9: 3528700012408 | C9: PN MIC 580/70R38 155 D OMNIBIB | D9: 5807038DOMNIBI155 | E9: ROUES MOTRICES | F9: MI OMNIBIB | G9: 580 | H9: 70 | I9: R | J9: 38 | K9: 155 | L9: D | P9: 0 | Q9: 3858 | R9: =Q9*(1-$D$3) -> 2314.8
A10: 002272 | B10: 3528700022728 | C10: PN MIC 250/85R24 112A8/109B AGRIBIB 2 | D10: 2508524AGRIBIB2112A8 | E10: ROUES MOTRICES | F10: MI AGRIBIB 2 | G10: 250 | H10: 85 | I10: R | J10: 24 | K10: 112 | L10: A8 | P10: 0 | Q10: 700 | R10: =Q10*(1-$D$3) -> 420
A11: 002821 | B11: 3528700028218 | C11: PN MIC 15 -6N6 TWEEL TURF CAST SMOOTH | D11: 156TWEELTURFCAST | E11: MOTOCULTURE | F11: MI TWEEL TURF CAST | G11: 15 | I11: - | J11: 6 | P11: 0 | Q11: 188 | R11: 112.8
A12: 005412 | B12: 3528700054125 | C12: PN MIC 540/70R24 168A8 IND BIBLOAD HS TL | D12: 5407024BIBLOATLA8168 | E12: ROUES MOTRICES | F12: MI BIBLOAD HS | G12: 540 | H12: 70 | I12: R | J12: 24 | K12: 168 | L12: A8 | P12: 0 | Q12: 2336 | R12: 1401.6
A13: 007760 | B13: 3528700077605 | C13: PN MIC 380/90R46 173D/169E SPRAY | D13: 3809046SPRAY173D2 | E13: ROUES MOTRICES | F13: MI SPRAYBIB | G13: 380 | H13: 90 | I13: R | J13: 46 | K13: 173 | L13: D | P13: 0 | Q13: 4527 | R13: 2716.2
A14: 009860 | B14: 3528700098600 | C14: PN MIC 380/85R34 142A8/142B AGRIBIB 2 | D14: 3808534AGRIB2142A8 | E14: ROUES MOTRICES | F14: MI AGRIBIB 2 | G14: 380 | H14: 85 | I14: R | J14: 34 | K14: 142 | L14: A8 | P14: 0 | Q14: 1686 | R14: 1011.6
A15: 012445 | B15: 3528700124453 | C15: PN MIC VF 420/85R34 154 A8 YIELDBIB | D15: 4208534A8YIELDB154 | E15: ROUES MOTRICES | F15: MI YIELDBIB | G15: 420 | H15: 85 | I15: R | J15: 34 | K15: 154 | L15: A8 | P15: 0 | Q15: 2756 | R15: 1653.6
A16: 015540 | B16: 3528700155402 | C16: PN MIC 710/75R42 175D/172E MACHBIB | D16: 7107542MACHX175D | E16: ROUES MOTRICES | F16: MI MACHXBIB | G16: 710 | H16: 75 | I16: R | J16: 42 | K16: 175 | L16: D | P16: 0 | Q16: 9789 | R16: 5873.4
A17: 019737 | B17: 3528700197372 | C17: PN MIC 380/90R54 176D/172E SPRAY | D17: 3809054SPRAY176D2 | E17: ROUES MOTRICES | F17: MI SPRAYBIB | G17: 380 | H17: 90 | I17: R | J17: 54 | K17: 176 | L17: D | P17: 0 | Q17: 5350 | R17: 3210
A18: 019985 | B18: 3528700199857 | C18: PN MIC 18X8.5 -10 TWEEL TURF | D18: 188510TWEELTURF | E18: MOTOCULTURE | F18: MI TWEEL TURF | G18: 8.5 | I18: - | J18: 10 | P18: 0 | Q18: 336 | R18: 201.6
A19: 028790 | B19: 3528700287905 | C19: PN MIC 320/90R42 163D/159E SPRAY CFO | D19: 3209042SPRAYCF163D | E19: ROUES MOTRICES | F19: MI SPRAYBIB | G19: 320 | H19: 90 | I19: R | J19: 42 | K19: 163 | L19: D | P19: 0 | Q19: 3697 | R19: 2218.2
A20: 038009 | B20: 3528700380095 | C20: PN MIC VF 500/85R34 172A8 CEREXB 2 CFO+ | D20: 5008534CERB2172A8 | E20: ROUES MOTRICES | F20: MI CEREXBIB2 | G20: 500 | H20: 85 | I20: R | J20: 34 | K20: 172 | L20: A8 | P20: 0 | Q20: 6143 | R20: 3685.8
A21: 044770 | B21: 3528700447705 | C21: PN MIC 800/60R32 191D TRAILXBIB VF | D21: 8006032TRAILXBIB191D | E21: ROUES MOTRICES | F21: MI TRAILXBIB VF | G21: 800 | H21: 60 | I21: R | J21: 32 | K21: 191 | L21: D | P21: 0 | Q21: 6007 | R21: 3604.2
A22: 048439 | B22: 3528700484397 | C22: PN MIC 420/85R38 149A8/149B AGRIBIB 2 | D22: 4208538AGRIBIB2149A8 | E22: ROUES MOTRICES | F22: MI AGRIBIB 2 | G22: 420 | H22: 85 | I22: R | J22: 38 | K22: 149 | L22: A8 | P22: 0 | Q22: 2406 | R22: 1443.6
A23: 049288 | B23: 3528700492880 | C23: PN MIC VF 620/70R30 175A8 CEREXB 2 CFO+ | D23: 6207030CERB2175A8 | E23: ROUES MOTRICES | F23: MI CEREXBIB2 | G23: 620 | H23: 70 | I23: R | J23: 30 | K23: 175 | L23: A8 | P23: 0 | Q23: 6045 | R23: 3627
A24: 054878 | B24: 3528700548785 | C24: PN MIC VF 650/55R26.5 174D TRAILXBIB IMP | D24: 65055265TRAILXVF174D | E24: ROUES MOTRICES | F24: MI TRAILXBIB VF | G24: 650 | H24: 55 | I24: R | J24: 26.5 | K24: 174 | L24: D | P24: 0 | Q24: 3670 | R24: 2202
A25: 059338 | B25: 3528700593389 | C25: PN MIC 650/65R26.5 179D TRAILXBIB VF | D25: 65065265TRAILXBI179D | E25: ROUES MOTRICES | F25: MI TRAILXBIB VF | G25: 650 | H25: 65 | I25: R | J25: 26.5 | K25: 179 | L25: D | P25: 0 | Q25: 4734 | R25: 2840.4
A26: 065253 | B26: 3528700652536 | C26: PN MIC VF 600/60R30 147 A8 XEOBIB | D26: 6006030A8XEOBIB147 | E26: ROUES MOTRICES | F26: MI XEOBIB | G26: 600 | H26: 60 | I26: R | J26: 30 | K26: 147 | L26: D | P26: 0 | Q26: 3114 | R26: 1868.4
A27: 075615 | B27: 3528700756159 | C27: PN MIC 380/90R54 152A8/B AGRIBIB 2 | D27: 3809054AGRIBIB2152A8 | E27: ROUES MOTRICES | F27: MI AGRIBIB 2 | G27: 380 | H27: 90 | I27: R | J27: 54 | K27: 152 | L27: A8 | P27: 0 | Q27: 4760 | R27: 2856
A28: 075643 | B28: 3528700756432 | C28: PN MIC 650/65R42 165D ROADBIB | D28: 6506542ROADBIB165D | E28: ROUES MOTRICES | F28: MI ROADBIB | G28: 650 | H28: 65 | I28: R | J28: 42 | K28: 165 | L28: D | P28: 0 | Q28: 7263 | R28: 4357.8
A29: 085816 | B29: 3528700858167 | C29: PN MIC 380/70R24 125 D OMNIBIB | D29: 3807024DOMNIBI125 | E29: ROUES MOTRICES | F29: MI OMNIBIB | G29: 380 | H29: 70 | I29: R | J29: 24 | K29: 125 | L29: D | P29: 0 | Q29: 1243 | R29: 745.8
A30: 087051 | B30: 3528700870510 | C30: PN MIC 420/85R38 155A8/B YIELD | D30: 4208538YIELD155A8 | E30: ROUES MOTRICES | F30: MI YIELDBIB | G30: 420 | H30: 85 | I30: R | J30: 38 | K30: 155 | L30: A8 | P30: 0 | Q30: 3178 | R30: 1906.8
A31: 097057 | B31: 3528700970579 | C31: PN MIC 540/65R24 140 D MULTIBIB | D31: 5406524DMULTIB140 | E31: ROUES MOTRICES | F31: MI MULTIB | G31: 540 | H31: 65 | I31: R | J31: 24 | K31: 140 | L31: D | P31: 0 | Q31: 2080 | R31: 1248
A32: 098689 | B32: 3528700986891 | C32: PN MIC VF 900/60R38 196D/192E FLOATXBIB | D32: 9006038FLOATXCF196D | E32: ROUES MOTRICES | F32: MI FLOATXBIB | G32: 900 | H32: 60 | I32: R | J32: 38 | K32: 196 | L32: D | P32: 0 | Q32: 15618 | R32: 9370.8
A33: 100054 | B33: 3528701000541 | C33: PN MIC 340/80R18 143 A8 XMCL | D33: 3408018A8XMCL143 | E33: ROUES MOTRICES | F33: MI XMCL | G33: 340 | H33: 80 | I33: R | J33: 18 | K33: 143 | L33: A8 | P33: 0 | Q33: 1039 | R33: 623.4
A34: 100268 | B34: 3528701002682 | C34: PN MIC 620/70R42 166 A8 MEGAXBIB | D34: 6207042A8MEGAXB166 | E34: ROUES MOTRICES | F34: MI MEGA X BIB | G34: 620 | H34: 70 | I34: R | J34: 42 | K34: 166 | L34: A8 | P34: 0 | Q34: 8338 | R34: 5002.8
A35: 101906 | B35: 3528701019062 | C35: PN MIC VF 650/65R34 170D/167E AXIOBIB 2 | D35: 6506534AXIO2VF170D | E35: ROUES MOTRICES | F35: MI AXIOBIB 2 | G35: 650 | H35: 65 | I35: R | J35: 34 | K35: 170 | L35: D | P35: 0 | Q35: 6129 | R35: 3677.4
A36: 103824 | B36: 3528701038247 | C36: PN MIC VF 560/60R22.5 166D TRAILXBIB IMP | D36: 56060225TRAILXVF166D | E36: REMORQUES AGRICOLES | F36: MI TRAILXBIB VF | G36: 560 | H36: 60 | I36: R | J36: 22.5 | K36: 166 | L36: D | P36: 0 | Q36: 2420 | R36: 1452
A37: 109174 | B37: 3528701091747 | C37: PN MIC 24R20.5 176 F XS | D37: 24205XSF176 | E37: REMORQUES AGRICOLES | F37: MI XS | G37: 24 | I37: R | J37: 20.5 | K37: 176 | L37: F | P37: 0 | Q37: 4237 | R37: 2542.2
A38: 112743 | B38: 3528701127439 | C38: PN MIC 600/55R26.5 170D TRAILXBIB IMP | D38: 60055265TRAILXIM170D | E38: ROUES MOTRICES | F38: MI TRAILXBIB VF | G38: 600 | H38: 55 | I38: R | J38: 26.5 | K38: 170 | L38: D | P38: 0 | Q38: 3384 | R38: 2030.4
A39: 114518 | B39: 3528701145181 | C39: PN MIC 540/65R38 147 D MULTIBIB | D39: 5406538DMULTIB147 | E39: ROUES MOTRICES | F39: MI MULTIB | G39: 540 | H39: 65 | I39: R | J39: 38 | K39: 147 | L39: D | P39: 0 | Q39: 3038 | R39: 1822.8
A40: 118587 | B40: 3528701185873 | C40: PN MIC 380/70R28 127 D OMNIBIB | D40: 3807028DOMNIBI127 | E40: ROUES MOTRICES | F40: MI OMNIBIB | G40: 380 | H40: 70 | I40: R | J40: 28 | K40: 127 | L40: D | P40: 0 | Q40: 1403 | R40: 841.8
A41: 120462 | B41: 3528701204628 | C41: PN MIC IF380/90R46 165A8/B AGRIBIB RC | D41: 3809046AGRIBRC165A8 | E41: ROUES MOTRICES | F41: MI AGRIBIB RC | G41: 380 | H41: 90 | I41: R | J41: 46 | K41: 165 | L41: A8 | P41: 0 | Q41: 3510 | R41: 2106
A42: 120737 | B42: 3528701207377 | C42: PN MIC 650/65R30.5 181D TRAILXBIB IMP | D42: 65065305TRAILXIM181D | E42: ROUES MOTRICES | F42: MI TRAILXBIB VF | G42: 650 | H42: 65 | I42: R | J42: 30.5 | K42: 181 | L42: D | P42: 0 | Q42: 4792 | R42: 2875.2
A43: 120922 | B43: 3528701209227 | C43: PN MIC 520/85R46 164A8/164B AGRIBIB 2 | D43: 5208546AGRIB2164A8 | E43: ROUES MOTRICES | F43: MI AGRIBIB 2 | G43: 520 | H43: 85 | I43: R | J43: 46 | K43: 164 | L43: A8 | P43: 0 | Q43: 4764 | R43: 2858.4
A44: 123207 | B44: 3528701232072 | C44: PN MIC 11 LR 16 122 A8 X M27 | D44: 1116A8XM27 | E44: INDUSTRIE | F44: MI X M27 | G44: 11 | I44: R | J44: 16 | K44: 122 | L44: A8 | P44: 0 | Q44: 658 | R44: 394.8
A45: 123620 | B45: 3528701236209 | C45: PN MIC 495/70R24 155 G X M47 | D45: 4957024GXM47 | E45: INDUSTRIE | F45: MI X M47 | G45: 495 | H45: 70 | I45: R | J45: 24 | K45: 155 | L45: G | P45: 0 | Q45: 2761 | R45: 1656.6
A46: 123642 | B46: 3528701236421 | C46: PN MIC 445/70R24 151 G X M47 | D46: 4457024GXM47 | E46: INDUSTRIE | F46: MI X M47 | G46: 445 | H46: 70 | I46: R | J46: 24 | K46: 151 | L46: G | P46: 0 | Q46: 2210 | R46: 1326
A47: 123706 | B47: 3528701237060 | C47: PN MIC 425/75R20 148 G X M47 | D47: 4257520GXM47 | E47: INDUSTRIE | F47: MI X M47 | G47: 425 | H47: 75 | I47: R | J47: 20 | K47: 148 | L47: G | P47: 0 | Q47: 1708 | R47: 1024.8
A48: 123708 | B48: 3528701237084 | C48: PN MIC 405/70R20 136 G X M47 | D48: 4057020GXM47 | E48: INDUSTRIE | F48: MI X M47 | G48: 405 | H48: 70 | I48: R | J48: 20 | K48: 136 | L48: G | P48: 0 | Q48: 1641 | R48: 984.6
A49: 123952 | B49: 3528701239521 | C49: PN MIC 12.4R36 121 B AGRIBIB | D49: 12436BAGRIBIB | E49: ROUES MOTRICES | F49: MI AGRIBIB | G49: 12.4 | I49: R | J49: 36 | K49: 124 | L49: A8 | P49: 0 | Q49: 1243 | R49: 745.8
A50: 125798 | B50: 3528701257983 | C50: PN MIC IF320/90R50 158A8/B AGRIBIB RC | D50: 3209050AGRIBRC158A8 | E50: ROUES MOTRICES | F50: MI AGRIBIB RC | G50: 320 | H50: 90 | I50: R | J50: 50 | K50: 158 | L50: A8 | P50: 0 | Q50: 2917 | R50: 1750.2
A51: 126128 | B51: 3528701261287 | C51: PN MIC 620/70R38 170A8/B MEGAXBIB 2 | D51: 6207038MEGAX2170A8 | E51: ROUES MOTRICES | F51: MI MEGAB2 | G51: 620 | H51: 70 | I51: R | J51: 38 | K51: 170 | L51: A8 | P51: 0 | Q51: 6701 | R51: 4020.6
A52: 131720 | B52: 3528701317205 | C52: PN MIC IF 1000/55R32 CFO 188A8 CEREXBIB | D52: 10005532A8CEREXBTL18 | E52: ROUES MOTRICES | F52: MI CEREXBIB | G52: 1000 | H52: 55 | I52: R | J52: 32 | K52: 188 | L52: A8 | P52: 0 | Q52: 15959 | R52: 9575.4
A53: 131721 | B53: 3528701317212 | C53: PN MIC 620/70R46 162D MACHXBIB | D53: 6207046MACHX162D | E53: ROUES MOTRICES | F53: MI MACHXBIB | G53: 620 | H53: 70 | I53: R | J53: 46 | K53: 162 | L53: D | P53: 0 | Q53: 6076 | R53: 3645.6
A54: 131846 | B54: 3528701318462 | C54: PN MIC 440/80R24 161B/156D IND CROSSGRIP | D54: 4408024CROSGR161B | E54: INDUSTRIE | F54: MI CROSGR | G54: 440 | H54: 80 | I54: R | J54: 24 | K54: 161 | L54: A8 | P54: 0 | Q54: 2038 | R54: 1222.8
A55: 132266 | B55: 3528701322667 | C55: PN MIC VF 750/65R26 180A8 CEREXB 2 CFO+ | D55: 7506526CERB2180A8 | E55: ROUES MOTRICES | F55: MI CEREXBIB2 | G55: 750 | H55: 65 | I55: R | J55: 26 | K55: 180 | L55: A8 | P55: 0 | Q55: 6963 | R55: 4177.8
A56: 133035 | B56: 3528701330358 | C56: PN MIC 400/70R18 147A8/B XMCL IND | D56: 4007018XMCLIN147A8 | E56: ROUES MOTRICES | F56: MI XMCL | G56: 400 | H56: 70 | I56: R | J56: 18 | K56: 147 | L56: A8 | P56: 0 | Q56: 1264 | R56: 758.4
A57: 135425 | B57: 3528701354255 | C57: PN MIC 800/65R32 178A8/178B MEGAXBIB 2 | D57: 8006532MEGAX2178A8 | E57: ROUES MOTRICES | F57: MI MEGAB2 | G57: 800 | H57: 65 | I57: R | J57: 32 | K57: 178 | L57: A8 | P57: 0 | Q57: 7612 | R57: 4567.2
A58: 135905 | B58: 3528701359052 | C58: PN MIC 420/85R28 144A8/B AGRIBIB 2 | D58: 4208528AGRIBIB2144A8 | E58: ROUES MOTRICES | F58: MI AGRIBIB 2 | G58: 420 | H58: 85 | I58: R | J58: 28 | K58: 144 | L58: A8 | P58: 0 | Q58: 1666 | R58: 999.6
A59: 136377 | B59: 3528701363776 | C59: PN MIC VF 800/70R38 187D/184E AXIOBIB 2 | D59: 8007038AXIO2VF187D | E59: ROUES MOTRICES | F59: MI AXIOBIB 2 | G59: 800 | H59: 70 | I59: R | J59: 38 | K59: 187 | L59: D | P59: 0 | Q59: 12366 | R59: 7419.6
A60: 136458 | B60: 3528701364582 | C60: PN MIC 420/85R24 142A8/B AGRIBIB 2 | D60: 4208524AGRIBIB2142A8 | E60: ROUES MOTRICES | F60: MI AGRIBIB 2 | G60: 420 | H60: 85 | I60: R | J60: 24 | K60: 142 | L60: A8 | P60: 0 | Q60: 1480 | R60: 888
A61: 144294 | B61: 3528701442945 | C61: PN MIC VF 710/60R42 161 A8 XEOBIB | D61: 7106042A8XEOBIB161 | E61: ROUES MOTRICES | F61: MI XEOBIB | G61: 710 | H61: 60 | I61: R | J61: 42 | K61: 161 | L61: D | P61: 0 | Q61: 7528 | R61: 4516.8
A62: 147406 | B62: 3528701474069 | C62: PN MIC 600/70R30 165D/161E EVOBIB | D62: 6007030EVOBIB165D2 | E62: ROUES MOTRICES | F62: MI EVOBIB | G62: 600 | H62: 70 | I62: R | J62: 30 | K62: 165 | L62: D | P62: 0 | Q62: 6010 | R62: 3606
A63: 151247 | B63: 3528701512471 | C63: PN MIC 270/65R16 135D X P27 | D63: 2706516XP27135D | E63: REMORQUES AGRICOLES | F63: MI X P27 | G63: 270 | H63: 65 | I63: R | J63: 16 | K63: 135 | L63: D | P63: 0 | Q63: 704 | R63: 422.4
A64: 151572 | B64: 3528701515724 | C64: PN MIC 380/85R30 140A8/B AGRIBIB 2 | D64: 3808530AGRIB2140A8 | E64: ROUES MOTRICES | F64: MI AGRIBIB 2 | G64: 380 | H64: 85 | I64: R | J64: 30 | K64: 140/140 | L64: A8 | P64: 0 | Q64: 1565 | R64: 939
A65: 154789 | B65: 3528701547893 | C65: PN MIC 320/85R38 131A8/128B AGRIBIB 2 | D65: 3208538AGRIBIB2131A8 | E65: ROUES MOTRICES | F65: MI AGRIBIB 2 | G65: 320 | H65: 85 | I65: R | J65: 38 | K65: 131 | L65: A8 | P65: 0 | Q65: 1353 | R65: 811.8
A66: 162735 | B66: 3528701627359 | C66: PN MIC 480/80R50 179D/175E SPRAY | D66: 4808050SPRAY179D2 | E66: ROUES MOTRICES | F66: MI SPRAYBIB | G66: 480 | H66: 80 | I66: R | J66: 50 | K66: 179 | L66: D | P66: 0 | Q66: 6526 | R66: 3915.6
A67: 166896 | B67: 3528701668963 | C67: PN MIC 900/60R32 181A8/181B MEGABIB 2 | D67: 9006032MEGAB2181A8 | E67: ROUES MOTRICES | F67: MI MEGAB2 | G67: 900 | H67: 60 | I67: R | J67: 32 | K67: 181 | L67: A8 | P67: 0 | Q67: 10954 | R67: 6572.4
A68: 167733 | B68: 3528701677330 | C68: PN MIC 650/65R42 158 D MULTIBIB | D68: 6506542DMULTIB158 | E68: ROUES MOTRICES | F68: MI MULTIB | G68: 650 | H68: 65 | I68: R | J68: 42 | K68: 158 | L68: D | P68: 0 | Q68: 5350 | R68: 3210
A69: 169234 | B69: 3528701692340 | C69: PN MIC 710/60R38 174D/170E AXIO2 | D69: 7106038AXIO2174D | E69: ROUES MOTRICES | F69: MI AXIOBIB 2 | G69: 710 | H69: 60 | I69: R | J69: 38 | K69: 174 | L69: D | P69: 0 | Q69: 7221 | R69: 4332.6
A70: 169991 | B70: 3528701699912 | C70: PN MIC 24X12 -12 TWEEL TURF | D70: 241212TWEELTURF1 | E70: MOTOCULTURE | F70: MI TWEEL TURF | G70: 12 | I70: - | J70: 12 | P70: 0 | Q70: 527 | R70: 316.2
A71: 171560 | B71: 3528701715605 | C71: PN MIC 420/65R24 126D MULTIBIB | D71: 4206524MULTIB126D | E71: ROUES MOTRICES | F71: MI MULTIB | G71: 420 | H71: 65 | I71: R | J71: 24 | K71: 126 | L71: D | P71: 0 | Q71: 1537 | R71: 922.2
A72: 178690 | B72: 3528701786902 | C72: PN MIC 400/70R24 152 A8 XMCL | D72: 4007024A8XMCL152 | E72: ROUES MOTRICES | F72: MI XMCL | G72: 400 | H72: 70 | I72: R | J72: 24 | K72: 152 | L72: A8 | P72: 0 | Q72: 1462 | R72: 877.2
A73: 183733 | B73: 3528701837338 | C73: PN MIC 420/85R34 147A8/B AGRIBIB 2 | D73: 4208534AGRIBIB2147A8 | E73: ROUES MOTRICES | F73: MI AGRIBIB 2 | G73: 420 | H73: 85 | I73: R | J73: 34 | K73: 147 | L73: A8 | P73: 0 | Q73: 2061 | R73: 1236.6
A74: 184281 | B74: 3528701842813 | C74: PN MIC 380/85R28 139A8/B AGRIBIB 2 | D74: 3808528AGRIBIB2139A8 | E74: ROUES MOTRICES | F74: MI AGRIBIB 2 | G74: 380 | H74: 85 | I74: R | J74: 28 | K74: 139 | L74: A8 | P74: 0 | Q74: 1320 | R74: =Q74*(1-$D$3) -> 792
A75: 184330 | B75: 3528701843308 | C75: PN MIC 420/85R30 145A8/139D AGRIBIB 2 | D75: 4208530AGRIBIB2145A8 | E75: ROUES MOTRICES | F75: MI AGRIBIB 2 | G75: 420 | H75: 85 | I75: R | J75: 30 | K75: 145 | L75: A8 | P75: 0 | Q75: 1792 | R75: 1075.2
A76: 187095 | B76: 3528701870953 | C76: PN MIC 380/80R38 142 A8 AGRIBIB 2 | D76: 3808038A8AGRIBI2142 | E76: ROUES MOTRICES | F76: MI AGRIBIB 2 | G76: 380 | H76: 80 | I76: R | J76: 38 | K76: 142 | L76: A8 | P76: 0 | Q76: 1774 | R76: 1064.4
A77: 187752 | B77: 3528701877525 | C77: PN MIC 380/75R20 148 A8 XMCL | D77: 3807520A8XMCL148 | E77: ROUES MOTRICES | F77: MI XMCL | G77: 380 | H77: 75 | I77: R | J77: 20 | K77: 148 | L77: A8 | P77: 0 | Q77: 1418 | R77: 850.8
A78: 188276 | B78: 3528701882765 | C78: PN MIC VF 520/85R30 172A8 CEREXB 2 CFO+ | D78: 5208530CERB2172A8 | E78: ROUES MOTRICES | F78: MI CEREXBIB2 | G78: 520 | H78: 85 | I78: R | J78: 30 | K78: 172 | L78: A8 | P78: 0 | Q78: 5346 | R78: 3207.6
A79: 195802 | B79: 3528701958026 | C79: PN MIC 440/80R28 163 A8 BIBLOAD HS | D79: 4408028A8BIBLOA163 | E79: ROUES MOTRICES | F79: MI BIBLOAD HS | G79: 440 | H79: 80 | I79: R | J79: 28 | K79: 163 | L79: A8 | P79: 0 | Q79: 2256 | R79: 1353.6
A80: 195834 | B80: 3528701958347 | C80: PN MIC 710/75R42 181D/178E EVOBIB | D80: 7107542EVOBIB181D2 | E80: ROUES MOTRICES | F80: MI EVOBIB | G80: 710 | H80: 75 | I80: R | J80: 42 | K80: 181 | L80: D | P80: 0 | Q80: 13935 | R80: 8361
A81: 198082 | B81: 3528701980829 | C81: PN MIC 15X6 -6 TWEEL TURF CAST | D81: 1566TWEELTURFCAST2 | E81: MOTOCULTURE | F81: MI TWEEL TURF CAST | G81: 6 | I81: - | J81: 6 | P81: 0 | Q81: 188 | R81: 112.8
A82: 198698 | B82: 3528701986982 | C82: PN MIC 360/70R24 122 D OMNIBIB | D82: 3607024DOMNIBI122 | E82: ROUES MOTRICES | F82: MI OMNIBIB | G82: 360 | H82: 70 | I82: R | J82: 24 | K82: 122 | L82: D | P82: 0 | Q82: 1113 | R82: 667.8
A83: 199153 | B83: 3528701991535 | C83: PN MIC 270/65R18 137D X P27 | D83: 2706518XP27137D | E83: REMORQUES AGRICOLES | F83: MI X P27 | G83: 270 | H83: 65 | I83: R | J83: 18 | K83: 137 | L83: D | P83: 0 | Q83: 739 | R83: 443.4
A84: 200987 | B84: 3528702009871 | C84: PN MIC 9.5R24 112A8/109B AGRIBIB | D84: 9524AGRIB112A8 | E84: ROUES MOTRICES | F84: MI AGRIBIB | G84: 9.5 | I84: R | J84: 24 | K84: 112 | L84: A8 | P84: 0 | Q84: 700 | R84: 420
A85: 202185 | B85: 3528702021859 | C85: PN MIC VF 650/60R34 168D/165E AXIOBIB 2 | D85: 6506034AXIOB2VF168D | E85: ROUES MOTRICES | F85: MI AXIOBIB 2 | G85: 650 | H85: 60 | I85: R | J85: 34 | K85: 168 | L85: D | P85: 0 | Q85: 6033 | R85: 3619.8
A86: 211033 | B86: 3528702110331 | C86: PN MIC 600/70R28 157D/154E MACHXBIB | D86: 6007028MACHXBIB157D | E86: ROUES MOTRICES | F86: MI MACHXBIB | G86: 600 | H86: 70 | I86: R | J86: 28 | K86: 157 | L86: D | P86: 0 | Q86: 4309 | R86: 2585.4
A87: 212359 | B87: 3528702123591 | C87: PN MIC IF380/90R50 167A8/B AGRIBIB RC | D87: 3809050AGRIBRC167A8 | E87: ROUES MOTRICES | F87: MI AGRIBIB RC | G87: 380 | H87: 90 | I87: R | J87: 50 | K87: 167 | L87: A8 | P87: 0 | Q87: 3574 | R87: 2144.4
A88: 214036 | B88: 3528702140369 | C88: PN MIC 540/65R34 152D MULTIBIB | D88: 5406534MULBIB152D | E88: ROUES MOTRICES | F88: MI MULTIB | G88: 540 | H88: 65 | I88: R | J88: 34 | K88: 152 | L88: D | P88: 0 | Q88: 2968 | R88: 1780.8
A89: 219659 | B89: 3528702196595 | C89: PN MIC 400/80R28 158A8/153D ID CROSSGRIP | D89: 4008028CROSGR158A8 | E89: INDUSTRIE | F89: MI CROSGR | G89: 400 | H89: 80 | I89: R | J89: 28 | K89: 158 | L89: A8 | P89: 0 | Q89: 1881 | R89: 1128.6
A90: 220583 | B90: 3528702205839 | C90: PN MIC VF 650/60R42 157D XEOBIB | D90: 6506042XEOBVF157D | E90: ROUES MOTRICES | F90: MI XEOBIB | G90: 650 | H90: 60 | I90: R | J90: 42 | K90: 157 | L90: D | P90: 0 | Q90: 6378 | R90: 3826.8
A91: 223153 | B91: 3528702231531 | C91: PN MIC 540/65R30 143 D MULTIBIB | D91: 5406530DMULTIB143 | E91: ROUES MOTRICES | F91: MI MULTIB | G91: 540 | H91: 65 | I91: R | J91: 30 | K91: 143 | L91: D | P91: 0 | Q91: 2508 | R91: 1504.8
A92: 223428 | B92: 3528702234280 | C92: PN MIC 750/60R30.5 187D TRAILXBIB IMP | D92: 75060305TRAILXIM187D | E92: ROUES MOTRICES | F92: MI TRAILXBIB VF | G92: 750 | H92: 60 | I92: R | J92: 30.5 | K92: 187 | L92: D | P92: 0 | Q92: 5452 | R92: 3271.2
A93: 228045 | B93: 3528702280454 | C93: PN MIC 600/65R38 153 D MULTIBIB | D93: 6006538DMULTIB153 | E93: ROUES MOTRICES | F93: MI MULTIB | G93: 600 | H93: 65 | I93: R | J93: 38 | K93: 153 | L93: D | P93: 0 | Q93: 3670 | R93: 2202
A94: 228272 | B94: 3528702282724 | C94: PN MIC VF 620/70R26 173A8 CEREXB 2 CFO+ | D94: 6207026CERB2173A8 | E94: ROUES MOTRICES | F94: MI CEREXBIB2 | G94: 620 | H94: 70 | I94: R | J94: 26 | K94: 173 | L94: A8 | P94: 0 | Q94: 5079 | R94: 3047.4
A95: 229116 | B95: 3528702291160 | C95: PN MIC 500/60R22.5 160D TRAILXBIB IMP | D95: 50060225TRAILXIM160D | E95: ROUES MOTRICES | F95: MI TRAILXBIB VF | G95: 500 | H95: 60 | I95: R | J95: 22.5 | K95: 160 | L95: D | P95: 0 | Q95: 2193 | R95: 1315.8
A96: 236234 | B96: 3528702362341 | C96: PN MIC 1050/50R32 178 A8 MEGA X BIB | D96: 10505032A8MEGAXBIB | E96: ROUES MOTRICES | F96: MI MEGA X BIB | G96: 1050 | H96: 50 | I96: R | J96: 32 | K96: 178 | L96: A8 | P96: 0 | Q96: 13197 | R96: 7918.2
A97: 236906 | B97: 3528702369067 | C97: PN MIC 750/50R26 160A8/154D MEGAXBIB 2 | D97: 7505026MEGAB2160A8 | E97: ROUES MOTRICES | F97: MI MEGAB2 | G97: 750 | H97: 50 | I97: R | J97: 26 | K97: 160 | L97: A8 | P97: 0 | Q97: 5999 | R97: 3599.4
A98: 239365 | B98: 3528702393659 | C98: PN MIC 400/70R18 147A8 IND BIBLOAD HS TL | D98: 4007018BIBLOATLA8147 | E98: ROUES MOTRICES | F98: MI BIBLOAD HS | G98: 400 | H98: 70 | I98: R | J98: 18 | K98: 147 | L98: A8 | P98: 0 | Q98: 1383 | R98: 829.8
A99: 244268 | B99: 3528702442685 | C99: PN MIC 460/70R24 159A8/ B XMCL | D99: 4607024BXMCL159A8MI | E99: ROUES MOTRICES | F99: MI XMCL | G99: 460 | H99: 70 | I99: R | J99: 24 | K99: 159 | L99: A8 | P99: 0 | Q99: 1504 | R99: 902.4
A100: 252129 | B100: 3528702521298 | C100: PN MIC VF 480/95R50 170A8/B YIELDBIB | D100: 4809550YIELD170A8 | E100: ROUES MOTRICES | F100: MI YIELDBIB | G100: 480 | H100: 95 | I100: R | J100: 50 | K100: 170 | L100: A8 | P100: 0 | Q100: 6988 | R100: 4192.8
A101: 252641 | B101: 3528702526415 | C101: PN MIC 24 -12N12 XL TWEEL TURF OFF BK | D101: 2412TWEELTURF | E101: MOTOCULTURE | F101: MI TWEEL TURF | G101: 24 | I101: - | J101: 12 | P101: 0 | Q101: 553 | R101: 331.8
A102: 258138 | B102: 3528702581384 | C102: PN MIC 12.4R38 131A8/128B AGRIBIB | D102: 12438AGRIB131A8 | E102: ROUES MOTRICES | F102: MI AGRIBIB | G102: 12.4 | I102: R | J102: 38 | K102: 131 | L102: A8 | P102: 0 | Q102: 1352 | R102: 811.2
A103: 259635 | B103: 3528702596357 | C103: PN MIC VF 710/75R42 184D/180E AXIOBIB 2 | D103: 7107542AXIOB2VF184D | E103: ROUES MOTRICES | F103: MI AXIOBIB 2 | G103: 710 | H103: 75 | I103: R | J103: 42 | K103: 184 | L103: D | P103: 0 | Q103: 11489 | R103: 6893.4
A104: 263049 | B104: 3528702630495 | C104: PN MIC 480/80R50 159 A8/B AGRIBIB 2 | D104: 4808050AGRIB159A8 | E104: ROUES MOTRICES | F104: MI AGRIBIB 2 | G104: 480 | H104: 80 | I104: R | J104: 50 | K104: 159 | L104: A8 | P104: 0 | Q104: 4537 | R104: 2722.2
A105: 263208 | B105: 3528702632086 | C105: PN MIC 10.00 -20 147A2/B POWER DIG TT | D105: 100020POWDIG147A8 | E105: ROUES MOTRICES | F105: MI POWER DIGGER | G105: 10 | I105: - | J105: 20 | K105: 165 | L105: A2 | P105: 0 | Q105: 847 | R105: 508.2
A106: 263806 | B106: 3528702638064 | C106: PN MIC 280/70R20 116D OMNIBIB | D106: 2807020OMNIB116D | E106: ROUES MOTRICES | F106: MI OMNIBIB | G106: 280 | H106: 70 | I106: R | J106: 20 | K106: 116 | L106: D | P106: 0 | Q106: 767 | R106: 460.2
A107: 264539 | B107: 3528702645390 | C107: PN MIC 600/70R30 158D/154E ROADBIB | D107: 6007030ROADBIB158D4 | E107: ROUES MOTRICES | F107: MI ROADBIB | G107: 600 | H107: 70 | I107: R | J107: 30 | K107: 158 | L107: D | P107: 0 | Q107: 5178 | R107: 3106.8
A108: 270459 | B108: 3528702704592 | C108: PN MIC VF 520/85R42 177A8 CEREXB 2 CFO+ | D108: 5208542CERB2177A8 | E108: ROUES MOTRICES | F108: MI CEREXBIB2 | G108: 520 | H108: 85 | I108: R | J108: 42 | K108: 177 | L108: A8 | P108: 0 | Q108: 7684 | R108: 4610.4
A109: 274757 | B109: 3528702747575 | C109: PN MIC 540/65R30 150D/146E ROADBIB | D109: 5406530ROADBIB150D | E109: ROUES MOTRICES | F109: MI ROADBIB | G109: 540 | H109: 65 | I109: R | J109: 30 | K109: 150 | L109: D | P109: 0 | Q109: 3281 | R109: 1968.6
A110: 280033 | B110: 3528702800331 | C110: PN MIC 480/70R34 143 D OMNIBIB | D110: 4807034DOMNIBI143 | E110: ROUES MOTRICES | F110: MI OMNIBIB | G110: 480 | H110: 70 | I110: R | J110: 34 | K110: 143 | L110: D | P110: 0 | Q110: 2282 | R110: 1369.2
A111: 281463 | B111: 3528702814635 | C111: PN MIC 380/85R24 137A8/B AGRIBIB 2 | D111: 3808524AGRIBIB2137A8 | E111: ROUES MOTRICES | F111: MI AGRIBIB 2 | G111: 380 | H111: 85 | I111: R | J111: 24 | K111: 137 | L111: A8 | P111: 0 | Q111: 1230 | R111: 738
A112: 286219 | B112: 3528702862193 | C112: PN MIC 600/60R30.5 175D TRAILXBIB VF | D112: 60060305TRAILXBI175D | E112: ROUES MOTRICES | F112: MI TRAILXBIB VF | G112: 600 | H112: 60 | I112: R | J112: 30.5 | K112: 175 | L112: D | P112: 0 | Q112: 4490 | R112: 2694
A113: 292904 | B113: 3528702929049 | C113: PN MIC 650/65R38 157 D MULTIBIB | D113: 6506538DMULTIB157 | E113: ROUES MOTRICES | F113: MI MULTIB | G113: 650 | H113: 65 | I113: R | J113: 38 | K113: 157 | L113: D | P113: 0 | Q113: 4657 | R113: 2794.2
A114: 296638 | B114: 3528702966389 | C114: PN MIC 540/65R30 158D155E AXIO2 | D114: 5406530AXIO2158D | E114: ROUES MOTRICES | F114: MI AXIOBIB 2 | G114: 540 | H114: 65 | I114: R | J114: 30 | K114: 158 | L114: D | P114: 0 | Q114: 3512 | R114: 2107.2
A115: 304047 | B115: 3528703040477 | C115: PN MIC 460/70R24 159A8/154D ID CROSSGRIP | D115: 4607024CROSGR159A8 | E115: INDUSTRIE | F115: MI CROSGR | G115: 460 | H115: 70 | I115: R | J115: 24 | K115: 159 | L115: A8 | P115: 0 | Q115: 1664 | R115: 998.4
A116: 305457 | B116: 3528703054573 | C116: PN MIC VF 380/85R34 149 A8 YIELDBIB | D116: 3808534A8YIELDB149 | E116: ROUES MOTRICES | F116: MI YIELDBIB | G116: 380 | H116: 85 | I116: R | J116: 34 | K116: 149 | L116: A8 | P116: 0 | Q116: 2257 | R116: 1354.2
A117: 306687 | B117: 3528703066873 | C117: PN MIC 26X12 -12 XL TWEEL TURF | D117: 261212TWEELTURF | E117: MOTOCULTURE | F117: MI TWEEL TURF | G117: 12 | I117: - | J117: 12 | P117: 0 | Q117: 575 | R117: 345
A118: 309830 | B118: 3528703098300 | C118: PN MIC VF 480/80R50 166 A8 YIELDBIB | D118: 4808050A8YIELDB166 | E118: ROUES MOTRICES | F118: MI YIELDBIB | G118: 480 | H118: 80 | I118: R | J118: 50 | K118: 166 | L118: A8 | P118: 0 | Q118: 6054 | R118: 3632.4
A119: 311026 | B119: 3528703110262 | C119: PN MIC 650/75R38 169D/165E MACHXBIB | D119: 6507538MACHXBIB169D | E119: ROUES MOTRICES | F119: MI MACHXBIB | G119: 650 | H119: 75 | I119: R | J119: 38 | K119: 169 | L119: D | P119: 0 | Q119: 7398 | R119: 4438.8
A120: 312036 | B120: 3528703120360 | C120: PN MIC 710/75R34 178A8/178B MEGAXBIB 2 | D120: 7107534MEGAX2178A8 | E120: ROUES MOTRICES | F120: MI MEGAB2 | G120: 710 | H120: 75 | I120: R | J120: 34 | K120: 178 | L120: A8 | P120: 0 | Q120: 10498 | R120: 6298.8
A121: 312875 | B121: 3528703128755 | C121: PN MIC VF 480/60R28 134 A8 XEOBIB | D121: 4806028A8XEOBIB134 | E121: ROUES MOTRICES | F121: MI XEOBIB | G121: 480 | H121: 60 | I121: R | J121: 28 | K121: 134 | L121: D | P121: 0 | Q121: 2271 | R121: 1362.6
A122: 316223 | B122: 3528703162230 | C122: PN MIC 440/80R28 156 A8 XMCL | D122: 4408028A8XMCL156 | E122: ROUES MOTRICES | F122: MI XMCL | G122: 440 | H122: 80 | I122: R | J122: 28 | K122: 156 | L122: A8 | P122: 0 | Q122: 2045 | R122: 1227
A123: 318203 | B123: 3528703182030 | C123: PN MIC 22X11 -12 TWEEL TURF | D123: 221112TWEELTURF | E123: MOTOCULTURE | F123: MI TWEEL TURF | G123: 11 | I123: - | J123: 12 | P123: 0 | Q123: 501 | R123: 300.6
A124: 324138 | B124: 3528703241386 | C124: PN MIC VF 710/60R38 160 A8 XEOBIB | D124: 7106038A8XEOBIB160 | E124: ROUES MOTRICES | F124: MI XEOBIB | G124: 710 | H124: 60 | I124: R | J124: 38 | K124: 160 | L124: D | P124: 0 | Q124: 6186 | R124: 3711.6
A125: 325025 | B125: 3528703250258 | C125: PN MIC 620/75R34 170 A8 MEGA X BIB | D125: 6207534A8MEGAX170 | E125: ROUES MOTRICES | F125: MI MEGA X BIB | G125: 620 | H125: 75 | I125: R | J125: 34 | K125: 170 | L125: A8 | P125: 0 | Q125: 6236 | R125: 3741.6
A126: 325824 | B126: 3528703258247 | C126: PN MIC 480/80R46 177D/173E SPRAY | D126: 4808046SPRAY177D2 | E126: ROUES MOTRICES | F126: MI SPRAYBIB | G126: 480 | H126: 80 | I126: R | J126: 46 | K126: 177 | L126: D | P126: 0 | Q126: 5508 | R126: 3304.8
A127: 330378 | B127: 3528703303787 | C127: PN MIC 650/65R34 161D/157E ROADBIB | D127: 6506534ROADB161D | E127: ROUES MOTRICES | F127: MI ROADBIB | G127: 650 | H127: 65 | I127: R | J127: 34 | K127: 161 | L127: D | P127: 0 | Q127: 5945 | R127: 3567
A128: 332857 | B128: 3528703328575 | C128: PN MIC 24 -12 N12 TURF BLK | D128: 2412N12TURFBL | E128: MOTOCULTURE | F128: MI X-TURF | G128: 24 | I128: - | J128: 12 | P128: 0 | Q128: 525 | R128: 315
A129: 333253 | B129: 3528703332534 | C129: PN MIC 480/80R34 164A8/159D ID CROSSGRIP | D129: 4808034CROSSG164A8 | E129: INDUSTRIE | F129: MI CROSGR | G129: 480 | H129: 80 | I129: R | J129: 34 | K129: 164 | L129: A8 | P129: 0 | Q129: 3105 | R129: 1863
A130: 340728 | B130: 3528703407287 | C130: PN MIC 380/90R50 175D/171E SPRAY VF | D130: 3809050SPRAY175D2 | E130: ROUES MOTRICES | F130: MI SPRAYBIB | G130: 380 | H130: 90 | I130: R | J130: 50 | K130: 175 | L130: D | P130: 0 | Q130: 4710 | R130: 2826
A131: 340982 | B131: 3528703409823 | C131: PN MIC 320/65R18 109D MULTIB | D131: 3206518MULTIB109D | E131: ROUES MOTRICES | F131: MI MULTIB | G131: 320 | H131: 65 | I131: R | J131: 18 | K131: 109 | L131: D | P131: 0 | Q131: 1222 | R131: 733.2
A132: 343695 | B132: 3528703436959 | C132: PN MIC 420/90R34 174D/170E SPRAY | D132: 4209034SPRAY174D | E132: ROUES MOTRICES | F132: MI SPRAYBIB | G132: 420 | H132: 90 | I132: R | J132: 34 | K132: 174 | L132: D | P132: 0 | Q132: 4150 | R132: 2490
A133: 346098 | B133: 3528703460985 | C133: PN MIC 460/85R38 154A8/B AGRIBIB 2 | D133: 4608538AGRIBIB2154A8 | E133: ROUES MOTRICES | F133: MI AGRIBIB 2 | G133: 460 | H133: 85 | I133: R | J133: 38 | K133: 154 | L133: A8 | P133: 0 | Q133: 2683 | R133: 1609.8
A134: 346709 | B134: 3528703467090 | C134: PN MIC 500/70R24 164 A8 BIBLOAD HS | D134: 5007024A8BIBLOA164 | E134: ROUES MOTRICES | F134: MI BIBLOAD HS | G134: 500 | H134: 70 | I134: R | J134: 24 | K134: 164 | L134: A8 | P134: 0 | Q134: 2064 | R134: 1238.4
A135: 349257 | B135: 3528703492573 | C135: PN MIC VF 600/60R38 151 A8 XEOBIB | D135: 6006038A8XEOBIB151 | E135: ROUES MOTRICES | F135: MI XEOBIB | G135: 600 | H135: 60 | I135: R | J135: 38 | K135: 151 | L135: D | P135: 0 | Q135: 4189 | R135: 2513.4
A136: 351097 | B136: 3528703510970 | C136: PN MIC IF320/85R38 151A8/B AGRIBIB RC | D136: 3208538AGRIBRC151A8 | E136: ROUES MOTRICES | F136: MI AGRIBIB RC | G136: 320 | H136: 85 | I136: R | J136: 38 | K136: 151 | L136: A8 | P136: 0 | Q136: 2153 | R136: 1291.8
A137: 351549 | B137: 3528703515494 | C137: PN MIC 650/65R38 172D/168E AXIO2 | D137: 6506538AXIO2172D | E137: ROUES MOTRICES | F137: MI AXIOBIB 2 | G137: 650 | H137: 65 | I137: R | J137: 38 | K137: 172 | L137: D | P137: 0 | Q137: 6707 | R137: 4024.2
A138: 358639 | B138: 3528703586395 | C138: PN MIC 420/95R50 179D/175E SPRAY | D138: 4209550SPRAY179D | E138: ROUES MOTRICES | F138: MI SPRAYBIB | G138: 420 | H138: 95 | I138: R | J138: 50 | K138: 179 | L138: D | P138: 0 | Q138: 5418 | R138: =Q138*(1-$D$3) -> 3250.8
A139: 366785 | B139: 3528703667858 | C139: PN MIC 800/70R32 181A8/B MEGAXBIB 2 | D139: 8007032MEGAX2181A8 | E139: ROUES MOTRICES | F139: MI MEGAB2 | G139: 800 | H139: 70 | I139: R | J139: 32 | K139: 181 | L139: A8 | P139: 0 | Q139: 9126 | R139: 5475.6
A140: 371968 | B140: 3528703719687 | C140: PN MIC VF 600/60R30 162D/159E AXIOBIB 2 | D140: 6006030AXIO2162D | E140: ROUES MOTRICES | F140: MI AXIOBIB 2 | G140: 600 | H140: 60 | I140: R | J140: 30 | K140: 162 | L140: D | P140: 0 | Q140: 3619 | R140: 2171.4
A141: 372690 | B141: 3528703726906 | C141: PN MIC 460/70R24 159 A8 BIBLOAD HS | D141: 4607024BIBLOAA8159 | E141: ROUES MOTRICES | F141: MI BIBLOAD HS | G141: 460 | H141: 70 | I141: R | J141: 24 | K141: 159 | L141: A8 | P141: 0 | Q141: 1579 | R141: 947.4
A142: 375821 | B142: 3528703758211 | C142: PN MIC 480/70R24 138 D OMNIBIB | D142: 4807024DOMNIBI138 | E142: ROUES MOTRICES | F142: MI OMNIBIB | G142: 480 | H142: 70 | I142: R | J142: 24 | K142: 138 | L142: D | P142: 0 | Q142: 1792 | R142: 1075.2
A143: 378080 | B143: 3528703780809 | C143: PN MIC 710/75R42 175D/171E ROADBIB | D143: 7107542ROADB175D | E143: ROUES MOTRICES | F143: MI ROADBIB | G143: 710 | H143: 75 | I143: R | J143: 42 | K143: 175 | L143: D | P143: 0 | Q143: 11258 | R143: 6754.8
A144: 382472 | B144: 3528703824725 | C144: PN MIC 750/75R46 189D/185E AXIO2 | D144: 7507546AXIO2189D | E144: ROUES MOTRICES | F144: MI AXIOBIB 2 | G144: 750 | H144: 75 | I144: R | J144: 46 | K144: 189 | L144: D | P144: 0 | Q144: 14728 | R144: 8836.8
A145: 383381 | B145: 3528703833819 | C145: PN MIC 420/65R20 125D MULTIB | D145: 4206520MULTIB125D | E145: ROUES MOTRICES | F145: MI MULTIB | G145: 420 | H145: 65 | I145: R | J145: 20 | K145: 125 | L145: D | P145: 0 | Q145: 1496 | R145: 897.6
A146: 386212 | B146: 3528703862123 | C146: PN MIC 440/65R28 131 D MULTIBIB | D146: 4406528DMULTIB131 | E146: ROUES MOTRICES | F146: MI MULTIB | G146: 440 | H146: 65 | I146: R | J146: 28 | K146: 131 | L146: D | P146: 0 | Q146: 1664 | R146: 998.4
A147: 387916 | B147: 3528703879169 | C147: PN MIC VF 650/65R42 174D171E AXIOBIB 2 | D147: 6506542AXIO2174D | E147: ROUES MOTRICES | F147: MI AXIOBIB 2 | G147: 650 | H147: 65 | I147: R | J147: 42 | K147: 174 | L147: D | P147: 0 | Q147: 7564 | R147: 4538.4
A148: 392931 | B148: 3528703929314 | C148: PN MIC 280/85R28 123A8/120D AGRIBIB 2 | D148: 2808528AGRIB2123A8 | E148: ROUES MOTRICES | F148: MI AGRIBIB 2 | G148: 280 | H148: 85 | I148: R | J148: 28 | K148: 123 | L148: A8 | P148: 0 | Q148: 880 | R148: 528
A149: 405859 | B149: 3528704058594 | C149: PN MIC 520/85R42 162A8/B AGRIBIB 2 | D149: 5208542AGRIBIB2162A8 | E149: ROUES MOTRICES | F149: MI AGRIBIB 2 | G149: 520 | H149: 85 | I149: R | J149: 42 | K149: 162 | L149: A8 | P149: 0 | Q149: 4383 | R149: 2629.8
A150: 414979 | B150: 3528704149797 | C150: PN MIC 600/50R22.5 164D TRAILXBIB | D150: 60050225TRAILXBI164D | E150: ROUES MOTRICES | F150: MI TRAILXBIB VF | G150: 600 | H150: 50 | I150: R | J150: 22.5 | K150: 164 | L150: D | P150: 0 | Q150: 2775 | R150: 1665
A151: 415039 | B151: 3528704150397 | C151: PN MIC 320/70R24 116 D OMNIBIB | D151: 3207024DOMNIBI116 | E151: ROUES MOTRICES | F151: MI OMNIBIB | G151: 320 | H151: 70 | I151: R | J151: 24 | K151: 116 | L151: D | P151: 0 | Q151: 978 | R151: 586.8
A152: 415829 | B152: 3528704158294 | C152: PN MIC 340/80R18 143 A8 BIBLOAD HS | D152: 3408018BIBLOAA8143 | E152: ROUES MOTRICES | F152: MI BIBLOAD HS | G152: 340 | H152: 80 | I152: R | J152: 18 | K152: 143 | L152: A8 | P152: 0 | Q152: 1104 | R152: 662.4
A153: 424273 | B153: 3528704242733 | C153: PN MIC 1050/50R32 178A8/172D MEGAXBIB 2 | D153: 10505032MEGAX178A8 | E153: ROUES MOTRICES | F153: MI MEGAB2 | G153: 1050 | H153: 50 | I153: R | J153: 32 | K153: 178 | L153: A8 | P153: 0 | Q153: 13197 | R153: 7918.2
A154: 425979 | B154: 3528704259793 | C154: PN MIC 480/80R26 167A8/B XMCL IND | D154: 4808026XMCL167A8 | E154: ROUES MOTRICES | F154: MI XMCL | G154: 480 | H154: 80 | I154: R | J154: 26 | K154: 167 | L154: A8 | P154: 0 | Q154: 2215 | R154: 1329
A155: 426389 | B155: 3528704263899 | C155: PN MIC 440/65R24 128 D MULTIBIB | D155: 4406524DMULTIB128 | E155: ROUES MOTRICES | F155: MI MULTIB | G155: 440 | H155: 65 | I155: R | J155: 24 | K155: 128 | L155: D | P155: 0 | Q155: 1564 | R155: 938.4
A156: 426719 | B156: 3528704267194 | C156: PN MIC VF 600/70R30 168D165E AXIOBIB II | D156: 6007030AXIO2168D | E156: ROUES MOTRICES | F156: MI AXIOBIB 2 | G156: 600 | H156: 70 | I156: R | J156: 30 | K156: 168 | L156: D | P156: 0 | Q156: 4958 | R156: 2974.8
A157: 427974 | B157: 3528704279746 | C157: PN MIC 480/80R26 167A8/162D CROSGR | D157: 4808026CROSGR167A8 | E157: INDUSTRIE | F157: MI CROSGR | G157: 480 | H157: 80 | I157: R | J157: 26 | K157: 167 | L157: A8 | P157: 0 | Q157: 2570 | R157: 1542
A158: 428922 | B158: 3528704289226 | C158: PN MIC VF 900/60R42 189D/186E AXIOBIB 2 | D158: 9006042AXIO2VF189D | E158: ROUES MOTRICES | F158: MI AXIOBIB 2 | G158: 900 | H158: 60 | I158: R | J158: 42 | K158: 189 | L158: D | P158: 0 | Q158: 13295 | R158: 7977
A159: 429970 | B159: 3528704299706 | C159: PN MIC 600/65R28 154D/150E MACHXBIB | D159: 6006528MACHXBIB154D | E159: ROUES MOTRICES | F159: MI MACHXBIB | G159: 600 | H159: 65 | I159: R | J159: 28 | K159: 154 | L159: D | P159: 0 | Q159: 3479 | R159: 2087.4
A160: 430737 | B160: 3528704307371 | C160: PN MIC VF 900/60R32 191A8 CEREXB 2 CFO+ | D160: 9006032CERB2191A8 | E160: ROUES MOTRICES | F160: MI CEREXBIB2 | G160: 900 | H160: 60 | I160: R | J160: 32 | K160: 191 | L160: A8 | P160: 0 | Q160: 13005 | R160: 7803
A161: 436629 | B161: 3528704366293 | C161: PN MIC 24X12 -12 TWEEL TURF BK | D161: 241212TWEELTURFBK | E161: MOTOCULTURE | F161: MI TWEEL TURF | G161: 12 | I161: - | J161: 12 | P161: 0 | Q161: 527 | R161: 316.2
A162: 439359 | B162: 3528704393596 | C162: PN MIC 340/85R38 138A8/B AGRIBIB 2 | D162: 3408538AGRIBIB2138A8 | E162: ROUES MOTRICES | F162: MI AGRIBIB 2 | G162: 340 | H162: 85 | I162: R | J162: 38 | K162: 138 | L162: A8 | P162: 0 | Q162: 1490 | R162: 894
A163: 439765 | B163: 3528704397655 | C163: PN MIC 440/80R28 163B/159D IND CROSSGRIP | D163: 4408028CROSGR163B | E163: INDUSTRIE | F163: MI CROSGR | G163: 440 | H163: 80 | I163: R | J163: 28 | K163: 163 | L163: A8 | P163: 0 | Q163: 2304 | R163: 1382.4
A164: 443039 | B164: 3528704430390 | C164: PN MIC 320/90R46 165D/161E SPRAY | D164: 3209046SPRAY165D22 | E164: ROUES MOTRICES | F164: MI SPRAYBIB | G164: 320 | H164: 90 | I164: R | J164: 46 | K164: 165 | L164: D | P164: 0 | Q164: 3811 | R164: 2286.6
A165: 454365 | B165: 3528704543656 | C165: PN MIC VF 650/60R38 155 A8 XEOBIB | D165: 6506038A8XEOBIB155 | E165: ROUES MOTRICES | F165: MI XEOBIB | G165: 650 | H165: 60 | I165: R | J165: 38 | K165: 155 | L165: D | P165: 0 | Q165: 4885 | R165: 2931
A166: 467712 | B166: 3528704677122 | C166: PN MIC IF320/90R54 159A8/B AGRIBIB RC | D166: 3209054AGRIBRC159A8 | E166: ROUES MOTRICES | F166: MI AGRIBIB RC | G166: 320 | H166: 90 | I166: R | J166: 54 | K166: 159 | L166: A8 | P166: 0 | Q166: 3107 | R166: 1864.2
A167: 473363 | B167: 3528704733637 | C167: PN MIC 26 -12 N12 TURF BLK | D167: 2612N12TURFBL | E167: MOTOCULTURE | F167: MI X-TURF | G167: 26 | I167: - | J167: 12 | P167: 0 | Q167: 575 | R167: 345
A168: 474495 | B168: 3528704744954 | C168: PN MIC 400/70R20 149 A8 XMCL | D168: 4007020A8XMCL149 | E168: ROUES MOTRICES | F168: MI XMCL | G168: 400 | H168: 70 | I168: R | J168: 20 | K168: 149 | L168: A8 | P168: 0 | Q168: 1381 | R168: 828.6
A169: 476461 | B169: 3528704764617 | C169: PN MIC 650/65R38 163D MULTIBIB PLUS | D169: 6506538MULTIBIBP163D | E169: ROUES MOTRICES | F169: MI MULTIBIB PLUS | G169: 650 | H169: 65 | I169: R | J169: 38 | K169: 163 | L169: D | P169: 0 | Q169: 4890 | R169: 2934
A170: 491183 | B170: 3528704911837 | C170: PN MIC 480/95R50 164 A8 AGRIBIB TL | D170: 4809550A8AGRIBITL164 | E170: ROUES MOTRICES | F170: MI AGRIBIB | G170: 480 | H170: 95 | I170: R | J170: 50 | K170: 164 | L170: A8 | P170: 0 | Q170: 5322 | R170: 3193.2
A171: 494658 | B171: 3528704946587 | C171: PN MIC 320/65R16 107 D MULTIBIB TL | D171: 3206516DMULTIBTL107 | E171: ROUES MOTRICES | F171: MI MULTIB | G171: 320 | H171: 65 | I171: R | J171: 16 | K171: 107 | L171: D | P171: 0 | Q171: 1082 | R171: 649.2
A172: 499992 | B172: 3528704999927 | C172: PN MIC VF 710/70R42 188A8 CEREXB 2 CFO+ | D172: 7107042CERB2188A8 | E172: ROUES MOTRICES | F172: MI CEREXBIB2 | G172: 710 | H172: 70 | I172: R | J172: 42 | K172: 188 | L172: A8 | P172: 0 | Q172: 13419 | R172: 8051.4
A173: 508421 | B173: 3528705084219 | C173: PN MIC IF 650/65R38 169 D AXIOBIB TL | D173: 6506538DAXIOBITL169 | E173: ROUES MOTRICES | F173: MI AXIOBIB | G173: 650 | H173: 65 | I173: R | J173: 38 | K173: 169 | L173: D | P173: 0 | Q173: 6382 | R173: 3829.2
A174: 508522 | B174: 3528705085223 | C174: PN MIC 420/90R30 147A8/147B AGRIBIB 2 | D174: 4209030AGRIB2147A8 | E174: ROUES MOTRICES | F174: MI AGRIBIB 2 | G174: 420 | H174: 90 | I174: R | J174: 30 | K174: 147 | L174: A8 | P174: 0 | Q174: 2130 | R174: 1278
A175: 510495 | B175: 3528705104955 | C175: PN MIC VF 520/60R28 138 A8 XEOBIB | D175: 5206028A8XEOBIB138 | E175: ROUES MOTRICES | F175: MI XEOBIB | G175: 520 | H175: 60 | I175: R | J175: 28 | K175: 138 | L175: D | P175: 0 | Q175: 2415 | R175: 1449
A176: 512785 | B176: 3528705127855 | C176: PN MIC 650/65R42 165D MULTIBIB PLUS | D176: 6506542MULTIBIBP165D | E176: ROUES MOTRICES | F176: MI MULTIBIB PLUS | G176: 650 | H176: 65 | I176: R | J176: 42 | K176: 165 | L176: D | P176: 0 | Q176: 5618 | R176: 3370.8
A177: 514449 | B177: 3528705144494 | C177: PN MIC 360/80R24 150A8/145D ID CROSSGRIP | D177: 3608024CROSSG150A8 | E177: INDUSTRIE | F177: MI CROSGR | G177: 360 | H177: 80 | I177: R | J177: 24 | K177: 150 | L177: A8 | P177: 0 | Q177: 1401 | R177: 840.6
A178: 520302 | B178: 3528705203023 | C178: PN MIC 710/45R22.5 170D TRAILXBIB IMP | D178: 71045225TRAILXIM170D | E178: ROUES MOTRICES | F178: MI TRAILXBIB VF | G178: 710 | H178: 45 | I178: R | J178: 22.5 | K178: 170 | L178: D | P178: 0 | Q178: 3406 | R178: 2043.6
A179: 523668 | B179: 3528705236687 | C179: PN MIC VF 710/70R42 182D/179E AXIOBIB 2 | D179: 7107042AXIO2VF182D | E179: ROUES MOTRICES | F179: MI AXIOBIB 2 | G179: 710 | H179: 70 | I179: R | J179: 42 | K179: 182 | L179: D | P179: 0 | Q179: 10960 | R179: 6576
A180: 523910 | B180: 3528705239107 | C180: PN MIC 380/80R38 167D/163E SPRAY | D180: 3808038SPRAY167D | E180: ROUES MOTRICES | F180: MI SPRAYBIB | G180: 380 | H180: 80 | I180: R | J180: 38 | K180: 167 | L180: D | P180: 0 | Q180: 3458 | R180: 2074.8
A181: 527669 | B181: 3528705276690 | C181: PN MIC 320/85R36 124A8/121B AGRIBIB 2 | D181: 3208536AGRIBIB2124A8 | E181: ROUES MOTRICES | F181: MI AGRIBIB 2 | G181: 320 | H181: 85 | I181: R | J181: 36 | K181: 124 | L181: A8 | P181: 0 | Q181: 1244 | R181: 746.4
A182: 530764 | B182: 3528705307646 | C182: PN MIC 650/85R42 183D180E AXIOBIB 2 | D182: 6508542AXIO2183D | E182: ROUES MOTRICES | F182: MI AXIOBIB 2 | G182: 650 | H182: 85 | I182: R | J182: 42 | K182: 183 | L182: D | P182: 0 | Q182: 12638 | R182: 7582.8
A183: 531721 | B183: 3528705317218 | C183: PN MIC 480/65R24 133 D MULTIBIB | D183: 4806524DMULTIB133 | E183: ROUES MOTRICES | F183: MI MULTIB | G183: 480 | H183: 65 | I183: R | J183: 24 | K183: 133 | L183: D | P183: 0 | Q183: 1694 | R183: 1016.4
A184: 532215 | B184: 3528705322151 | C184: PN MIC 420/70R28 133 D OMNIBIB | D184: 4207028DOMNIBI133 | E184: ROUES MOTRICES | F184: MI OMNIBIB | G184: 420 | H184: 70 | I184: R | J184: 28 | K184: 133 | L184: D | P184: 0 | Q184: 1604 | R184: 962.4
A185: 533727 | B185: 3528705337278 | C185: PN MIC 650/75R32 167A8 AGRIBIB 2 | D185: 6507532AGRIBIB2167A8 | E185: ROUES MOTRICES | F185: MI AGRIBIB 2 | G185: 650 | H185: 75 | I185: R | J185: 32 | K185: 167 | L185: A8 | P185: 0 | Q185: 5829 | R185: 3497.4
A186: 539386 | B186: 3528705393861 | C186: PN MIC 480/80R42 156A8/B AGRIBIB 2 | D186: 4808042AGRIBIB2156A8 | E186: ROUES MOTRICES | F186: MI AGRIBIB 2 | G186: 480 | H186: 80 | I186: R | J186: 42 | K186: 156/156 | L186: A8 | P186: 0 | Q186: 3326 | R186: 1995.6
A187: 542794 | B187: 3528705427948 | C187: PN MIC 500/70R24 164 A8 XMCL | D187: 5007024A8XMCL164 | E187: ROUES MOTRICES | F187: MI XMCL | G187: 500 | H187: 70 | I187: R | J187: 24 | K187: 164 | L187: A8 | P187: 0 | Q187: 1938 | R187: 1162.8
A188: 549996 | B188: 3528705499969 | C188: PN MIC 650/60R34 159D/155E MACHXBIB | D188: 6506034MACHX159D | E188: ROUES MOTRICES | F188: MI MACHXBIB | G188: 650 | H188: 60 | I188: R | J188: 34 | K188: 159 | L188: D | P188: 0 | Q188: 4834 | R188: 2900.4
A189: 556249 | B189: 3528705562496 | C189: PN MIC 650/60R34 159D/155E ROADBIB | D189: 6506034ROADB159D | E189: ROUES MOTRICES | F189: MI ROADBIB | G189: 650 | H189: 60 | I189: R | J189: 34 | K189: 159 | L189: D | P189: 0 | Q189: 5898 | R189: 3538.8
A190: 557189 | B190: 3528705571894 | C190: PN MIC 600/65R34 151 D MULTIBIB | D190: 6006534DMULTIB151 | E190: ROUES MOTRICES | F190: MI MULTIB | G190: 600 | H190: 65 | I190: R | J190: 34 | K190: 151 | L190: D | P190: 0 | Q190: 3361 | R190: 2016.6
A191: 562163 | B191: 3528705621636 | C191: PN MIC 710/50R30.5 178D TRAILXBIB VF | D191: 71050305TRAILXBI178D | E191: ROUES MOTRICES | F191: MI TRAILXBIB VF | G191: 710 | H191: 50 | I191: R | J191: 30.5 | K191: 178 | L191: D | P191: 0 | Q191: 5169 | R191: 3101.4
A192: 564847 | B192: 3528705648473 | C192: PN MIC 250/80R16 124A8120D IND CROSSGRIP | D192: 2508016CROSGR126B | E192: INDUSTRIE | F192: MI CROSGR | G192: 250 | H192: 80 | I192: R | J192: 16 | K192: 124 | L192: A8 | P192: 0 | Q192: 702 | R192: 421.2
A193: 566557 | B193: 3528705665579 | C193: PN MIC 600/70R30 158D MACHXBIB | D193: 6007030MACHXBIB158D | E193: ROUES MOTRICES | F193: MI MACHXBIB | G193: 600 | H193: 70 | I193: R | J193: 30 | K193: 158 | L193: D | P193: 0 | Q193: 4528 | R193: 2716.8
A194: 567367 | B194: 3528705673673 | C194: PN MIC 540/80R38 172A8/167D ID CROSGR | D194: 5408038CROSGR172A8 | E194: INDUSTRIE | F194: MI CROSGR | G194: 540 | H194: 80 | I194: R | J194: 38 | K194: 172 | L194: A8 | P194: 0 | Q194: 4641 | R194: 2784.6
A195: 570026 | B195: 3528705700263 | C195: PN MIC 480/70R28 140 D OMNIBIB | D195: 4807028DOMNIBI140 | E195: ROUES MOTRICES | F195: MI OMNIBIB | G195: 480 | H195: 70 | I195: R | J195: 28 | K195: 140 | L195: D | P195: 0 | Q195: 1894 | R195: 1136.4
A196: 574801 | B196: 3528705748012 | C196: PN MIC 710/60R46 186D/182E SPRAY | D196: 7106046SPRAY186D | E196: ROUES MOTRICES | F196: MI SPRAYBIB | G196: 710 | H196: 60 | I196: R | J196: 46 | K196: 186 | L196: D | P196: 0 | Q196: 7923 | R196: 4753.8
A197: 579330 | B197: 3528705793302 | C197: PN MIC 480/80R42 176D/172E SPRAYBIB CFO | D197: 4808042SPRAYCF176D | E197: ROUES MOTRICES | F197: MI SPRAYBIB | G197: 480 | H197: 80 | I197: R | J197: 42 | K197: 176 | L197: D | P197: 0 | Q197: 5285 | R197: 3171
A198: 587209 | B198: 3528705872090 | C198: PN MIC 340/85R28 133A8/B AGRIBIB 2 | D198: 3408528AGRIBIB2133A8 | E198: ROUES MOTRICES | F198: MI AGRIBIB 2 | G198: 340 | H198: 85 | I198: R | J198: 28 | K198: 133 | L198: A8 | P198: 0 | Q198: 1209 | R198: 725.4
A199: 589435 | B199: 3528705894351 | C199: PN MIC 900/65R46 193D/189E AXIO2 | D199: 9006546AXIO2193D | E199: ROUES MOTRICES | F199: MI AXIOBIB 2 | G199: 900 | H199: 65 | I199: R | J199: 46 | K199: 193 | L199: D | P199: 0 | Q199: 15959 | R199: 9575.4
A200: 599351 | B200: 3528705993511 | C200: PN MIC 480/70R30 141 D OMNIBIB | D200: 4807030DOMNIBI141 | E200: ROUES MOTRICES | F200: MI OMNIBIB | G200: 480 | H200: 70 | I200: R | J200: 30 | K200: 141 | L200: D | P200: 0 | Q200: 2089 | R200: 1253.4
A201: 608814 | B201: 3528706088148 | C201: PN MIC VF 710/65R30 179A8 CEREXB 2 CFO+ | D201: 7106530CERB2179A8 | E201: ROUES MOTRICES | F201: MI CEREXBIB2 | G201: 710 | H201: 65 | I201: R | J201: 30 | K201: 179 | L201: A8 | P201: 0 | Q201: 7258 | R201: 4354.8
A202: 610997 | B202: 3528706109973 | C202: PN MIC IF 800/70R38 187A8 CEREXB 2 CFO+ | D202: 8007038CERB2187A8 | E202: ROUES MOTRICES | F202: MI CEREXBIB2 | G202: 800 | H202: 70 | I202: R | J202: 38 | K202: 187 | L202: A8 | P202: 0 | Q202: 12950 | R202: =Q202*(1-$D$3) -> 7770
A203: 614320 | B203: 3528706143205 | C203: PN MIC 620/75R26 166 B MEGA X BIB | D203: 6207526BMEGAX166 | E203: ROUES MOTRICES | F203: MI MEGA X BIB | G203: 620 | H203: 75 | I203: R | J203: 26 | K203: 166 | L203: A8 | P203: 0 | Q203: 4526 | R203: 2715.6
... 97 more rows

Sheet MIT
D2: Remise
D3: =Remises!E12 -> 0.105
A5: Actualisation au 04/04/2024
A7: REFERENCES PNEUMATIQUES | Q7: TARIFS
A8: CAI | B8: EAN | C8: Désignation | D8: Appellation | E8: Catégorie | F8: Profil | G8: Largeur | H8: Hauteur | I8: Structure | J8: Diamètre | K8: IC | L8: IV | M8: Conso. | N8: Frein. | O8: Bruit. | P8: Décibels. | Q8: Prix BF | R8: Prix Remisé
A9: 100016TF03 | B9: 8590341097446 | C9: PN MIT.C 10,00 - 16 8PR TF-03 TT | D9: 100016TF03TT8CO | E9: ROUES DIRECTRICES | F9: MIT TF-03 | G9: 10 | I9: - | J9: 16 | K9: 8PR | P9: 0 | Q9: 241 | R9: =Q9*(1-$D$3) -> 215.695
A10: 100020EM22TT | B10: 8590341104236 | C10: PN MIT 10.00 - 20 16PR EM-22 TT | D10: 1020EM22TT16PR | E10: INDUSTRIE | F10: MIT EM-22 | G10: 10 | I10: - | J10: 20 | K10: 146 | L10: B | P10: 0 | Q10: 660 | R10: =Q10*(1-$D$3) -> 590.7
A11: 100020NB38 | B11: 8590341104243 | C11: PN MIT 10.00 - 20 16PR NB38 TT | D11: 100020NB38TT16PRMIT | E11: INDUSTRIE | F11: MIT NB38-1 | G11: 10 | I11: - | J11: 20 | K11: 146 | L11: B | P11: 0 | Q11: 684 | R11: 612.18
A12: 100020NB38EXTRA | B12: 8590341064196 | C12: PN MIT 10.00 - 20 16PR NB38 EXTRA TT | D12: 100020NB38ETT16PR | E12: INDUSTRIE | F12: MIT NB38-1 | G12: 10 | I12: - | J12: 20 | K12: 146 | L12: B | P12: 0 | Q12: 828 | R12: 741.06
A13: 10005025DSFT | B13: 8590341113443 | C13: PN MIT 1000/50R25 178A8/172D SFT | D13: 10005025SFT178A8 | E13: ROUES MOTRICES | F13: MIT SFT | G13: 1000 | H13: 50 | I13: R | J13: 25 | K13: 178 | L13: A8 | P13: 0 | Q13: 6618.84 | R13: 5923.8618
A14: 10006532HC3000RCFO | B14: 8590341108265 | C14: PN MIT VF1000/65R32 200A8 HC3000R | D14: 10006532HC3000R200A8 | E14: ROUES MOTRICES | F14: MIT HC3000R | G14: 1000 | H14: 65 | I14: R | J14: 32 | K14: 200 | L14: A8 | P14: 0 | Q14: 8170 | R14: 7312.15
A15: 1007515314PRTR03 | B15: 8059971060928 | C15: PN MIT 10.0/75-15.3 14P TR-03 | D15: 10075153TR0314PR | E15: MOTOCULTURE | F15: MIT TR-03 | G15: 10 | H15: 75 | I15: - | J15: 15.3 | K15: 14PR | L15: A8 | P15: 0 | Q15: 239 | R15: 213.905
A16: 1007515318PRIM04N | B16: 8059971061963 | C16: PN MIT 10.0/75-15.3 18P IM04 | D16: 10075153IM0418PR | E16: REMORQUES AGRICOLES | F16: MIT IM-04 | G16: 10 | H16: 75 | I16: - | J16: 15.3 | L16: A8 | P16: 0 | Q16: 154 | R16: 137.83
A17: 10075153IM04 | B17: 8590341001375 | C17: PN MIT.C 10.0/75 - 15.3 14PR IM-04 | D17: 10075153IM0414PR | E17: REMORQUES AGRICOLES | F17: MIT IM-04 | G17: 10 | H17: 75 | I17: - | J17: 15.3 | K17: 14PR | P17: 0 | Q17: 130 | R17: 116.35
A18: 10075153TR03 | B18: 8059971041095 | C18: PN MIT 10.0/75-15.3 10P TR-03 | D18: 10075153TR0310PR | E18: MOTOCULTURE | F18: MIT TR-03 | G18: 10 | H18: 75 | I18: - | J18: 15.3 | K18: 10PR | L18: A8 | P18: 0 | Q18: 205 | R18: 183.475
A19: 10075153TS0510P | B19: 8590341016874 | C19: PN MIT.C 10.0/75-15.3 10P TS-05 | D19: 10075153TS0510 | E19: MOTOCULTURE | F19: MIT TS-05 | G19: 10 | H19: 75 | I19: - | J19: 15.3 | K19: 10PR | P19: 0 | Q19: 271 | R19: 242.545
A20: 1008012IM04 | B20: 8590341017710 | C20: PN MIT 10.0/80 - 12 10PR IM-04 | D20: 1008012IM0410PRMIT | E20: REMORQUES AGRICOLES | F20: MIT IM-04 | G20: 10 | H20: 80 | I20: - | J20: 12 | L20: A8 | P20: 0 | Q20: 126 | R20: 112.77
A21: 1011301610000 | B21: 8059971068139 | C21: PN MIT 280/80-18 130B MPT01 | D21: 2808018MPT01130B | E21: ROUES MOTRICES | F21: EP MPT-01 | G21: 280 | H21: 80 | I21: - | J21: 18 | K21: 130 | L21: B | P21: 0 | Q21: 329 | R21: 294.455
A22: 1011301780000 | B22: 8059971041941 | C22: PN MIT 280/80-18 140B MPT01 ID | D22: 2808018MPT01ID140BMI | E22: ROUES MOTRICES | F22: EP MPT-01 | G22: 280 | H22: 80 | I22: - | J22: 18 | K22: 140 | L22: B | P22: 0 | Q22: 387 | R22: 346.365
A23: 1011304090000 | B23: 8590341110954 | C23: PN MIT 340/80-18 135B MPT-01 | D23: 3408018MPT01135BMI | E23: ROUES MOTRICES | F23: EP MPT-01 | G23: 340 | H23: 80 | I23: - | J23: 18 | K23: 135 | L23: B | P23: 0 | Q23: 430 | R23: 384.85
A24: 1011304210000 | B24: 8059971068146 | C24: PN MIT 340/80-18 145B MPT01 | D24: 3408018MPT01145B | E24: INDUSTRIE | F24: EP MPT-01 | G24: 340 | H24: 80 | I24: - | J24: 18 | K24: 145 | L24: B | P24: 0 | Q24: 465 | R24: 416.175
A25: 1011304480000 | B25: 8059971619201 | C25: PN MIT 280/80-20 10P131D MPT 04 IND | D25: 2808020MPT04IN10131D | E25: INDUSTRIE | F25: EP MPT-04 | G25: 280 | H25: 80 | I25: - | J25: 20 | K25: 131 | L25: D | P25: 0 | Q25: 600 | R25: 537
A26: 1011305850000 | B26: 8059971065275 | C26: PN MIT 275/80-20 12P TD-10 | D26: 2758020TD1012 | E26: INDUSTRIE | F26: EP TD-10 | G26: 275 | H26: 80 | I26: - | J26: 20 | K26: 131 | P26: 0 | Q26: 434 | R26: 388.43
A27: 1011309200000 | B27: 8059971068153 | C27: PN MIT 340/80-20 136B MPT01 | D27: 3408020MPT01136B2 | E27: INDUSTRIE | F27: EP MPT01 | G27: 340 | H27: 80 | I27: - | J27: 20 | K27: 136 | L27: B | P27: 0 | Q27: 529 | R27: 473.455
A28: 1011310500000 | B28: 8059971063035 | C28: PN MIT 335/80-20 10P TD-10 | D28: 3358020TD1010MI | E28: MOTOCULTURE | F28: EP TD-10 | G28: 335 | H28: 80 | I28: - | J28: 20 | K28: 129 | P28: 0 | Q28: 569 | R28: 509.255
A29: 1011310540000 | B29: 8059971038569 | C29: PN MIT 360/80 - 20 8PR TD-10 | D29: 3608020A8TD10TL141 | E29: MOTOCULTURE | F29: EP TD-10 | G29: 360 | H29: 80 | I29: - | J29: 20 | K29: 141 | L29: A8 | P29: 0 | Q29: 755 | R29: 675.725
A30: 1011310590000 | B30: 8059971066425 | C30: PN MIT 365/80-20 10P TD-10 | D30: 3658020TD1010MI | E30: MOTOCULTURE | F30: EP TD-10 | G30: 365 | H30: 80 | I30: - | J30: 20 | K30: 132 | P30: 0 | Q30: 716 | R30: 640.82
A31: 1011322510000 | B31: 8590341006448 | C31: PN MIT 405/70 - 24 14PR MPT-01 | D31: 4057024MPT01TLEPPR14 | E31: ROUES MOTRICES | F31: EP MPT-01 | G31: 405 | H31: 70 | I31: - | J31: 24 | K31: 152 | L31: B | P31: 0 | Q31: 681 | R31: 609.495
A32: 1011323320000 | B32: 8059971038248 | C32: PN MIT 405/70 - 20 16PR MPT-01 | D32: 4057020MPT01TLEPPR16 | E32: ROUES MOTRICES | F32: EP MPT-01 | G32: 405 | H32: 70 | I32: - | J32: 20 | K32: 152 | L32: B | P32: 0 | Q32: 650 | R32: 581.75
A33: 1013081560000 | B33: 8059971065268 | C33: PN MIT 275/80 - 18 10PR TD-10 | D33: 2758018TD10TL10PR | E33: MOTOCULTURE | F33: EP TD-10 | G33: 275 | H33: 80 | I33: - | J33: 18 | K33: 126 | P33: 0 | Q33: 412 | R33: 368.74
A34: 1013092230000 | B34: 8059971037418 | C34: PN MIT 11.2 - 24 8PR TD-02 TT | D34: 11224TD02TT8PR | E34: ROUES MOTRICES | F34: EP TD02 | G34: 11.2 | I34: - | J34: 24 | L34: A8 | P34: 0 | Q34: 256 | R34: 229.12
A35: 1013092290000 | B35: 8059971055078 | C35: PN MIT 11.2 - 24 PR8 TD-19 TT | D35: 11224TD19TTEPPR8 | E35: ROUES MOTRICES | F35: EP TD-19 | G35: 11.2 | I35: - | J35: 24 | L35: A8 | P35: 0 | Q35: 256 | R35: 229.12
A36: 1013092330000 | B36: 8059971061611 | C36: PN MIT 11.2 -24 10P TD-19 TT | D36: 11224TD19TT10 | E36: ROUES MOTRICES | F36: EP TD-19 | G36: 11.2 | I36: - | J36: 24 | P36: 0 | Q36: 279 | R36: 249.705
A37: 1013094230000 | B37: 8059971061871 | C37: PN MIT 12.4 -24 8P TD-02 TT | D37: 12424TD02TT8PR | E37: ROUES MOTRICES | F37: EP TD02 | G37: 12.4 | I37: - | J37: 24 | L37: A8 | P37: 0 | Q37: 314 | R37: 281.03
A38: 1013095020000 | B38: 8059971041187 | C38: PN MIT 13.6 -24 TD-19 TT | D38: 13624TD19TT | E38: ROUES MOTRICES | F38: EP TD-19 | G38: 13.6 | I38: - | J38: 24 | P38: 0 | Q38: 346 | R38: 309.67
A39: 1013100690000 | B39: 8059971061857 | C39: PN MIT 15.5/80 - 24 PR12 TR-01 TL | D39: 1558024TR01TLEPPR12 | E39: ROUES MOTRICES | F39: EP TR-01 | G39: 15.5 | H39: 80 | I39: - | J39: 24 | K39: 154 | L39: A8 | P39: 0 | Q39: 614 | R39: 549.53
A40: 1013100940000 | B40: 8059971060089 | C40: PN MIT 15.5/80 - 24 PR14 TR-01R TL | D40: 1558024TR01RTLEPPR14 | E40: ROUES MOTRICES | F40: EP TR-01 | G40: 15.5 | H40: 80 | I40: - | J40: 24 | K40: 156 | L40: A8 | P40: 0 | Q40: 648 | R40: 579.96
A41: 1013101130000 | B41: 8059971065145 | C41: PN MIT 15.5/80 - 24 163 A8 TR-01 TL | D41: 1558024A8TR01TL163 | E41: ROUES MOTRICES | F41: EP TR-01 | G41: 15.5 | H41: 80 | I41: - | J41: 24 | K41: 163 | L41: A8 | P41: 0 | Q41: 718 | R41: 642.61
A42: 1013101150000 | B42: 8590341004949 | C42: PN MIT 15.5/80 - 24 16PR TR-01 | D42: 1558024A8TR01TL159 | E42: ROUES MOTRICES | F42: EP TR-01 | G42: 15.5 | H42: 80 | I42: - | J42: 24 | K42: 159 | L42: A8 | P42: 0 | Q42: 682 | R42: 610.39
A43: 1013101190000 | B43: 8059971061543 | C43: PN MIT 400/80 - 24 162 A8 TI-05 TL | D43: 4008024A8TI05TL162 | E43: ROUES MOTRICES | F43: EP TI-05 | G43: 400 | H43: 80 | I43: - | J43: 24 | K43: 162 | L43: A8 | P43: 0 | Q43: 770 | R43: 689.15
A44: 1013101290000 | B44: 8059971041392 | C44: PN MIT 16.9 - 24 8PR TD-13 TT | D44: 16924TD13TT8PR | E44: ROUES MOTRICES | F44: EP TD13 | G44: 16.9 | I44: - | J44: 24 | K44: 8PR | L44: A8 | P44: 0 | Q44: 541 | R44: 484.195
A45: 1013101700000 | B45: 8059971055429 | C45: PN MIT 17.5 L 24 10PR TR-01 | D45: 17524A8TR01144 | E45: MOTOCULTURE | F45: EP TR-01 | G45: 17.5 | I45: - | J45: 24 | K45: 144 | L45: A8 | P45: 0 | Q45: 632 | R45: 565.64
A46: 1013101910000 | B46: 8059971055108 | C46: PN MIT 460/70 - 24 159 A TI-05 TL | D46: 4607024ATI05TL159 | E46: ROUES MOTRICES | F46: EP TI-05 | G46: 460 | H46: 70 | I46: - | J46: 24 | K46: 159 | L46: A8 | P46: 0 | Q46: 814 | R46: 728.53
A47: 1013101930000 | B47: 8059971037197 | C47: PN MIT 460/70R24 159 A8 TR-01 | D47: 4607024A8TR01159 | E47: ROUES MOTRICES | F47: EP TR-01 | G47: 460 | H47: 70 | I47: - | J47: 24 | K47: 159 | L47: A8 | P47: 0 | Q47: 738 | R47: 660.51
A48: 1013102640000 | B48: 8059971055115 | C48: PN MIT 19.5R24 12PR TI-05 TL | D48: 19524TI05TL12PR | E48: ROUES MOTRICES | F48: EP TI-05 | G48: 19.5 | I48: - | J48: 24 | K48: 151 | L48: A8 | P48: 0 | Q48: 814 | R48: 728.53
A49: 1013103080000 | B49: 8059971060218 | C49: PN MIT 500/70 - 24 164 A8 TI-05 | D49: 5007024A8TI05164 | E49: ROUES MOTRICES | F49: EP TI-05 | G49: 500 | H49: 70 | I49: - | J49: 24 | K49: 164 | L49: A8 | P49: 0 | Q49: 954 | R49: 853.83
A50: 1013201710000 | B50: 8059971036343 | C50: PN MIT 23.1 - 26 PR14 TD-01 TL | D50: 23126TD01TLEPPR14 | E50: ROUES MOTRICES | F50: EP TD-01 | G50: 23.1 | I50: - | J50: 26 | L50: A8 | P50: 0 | Q50: 1296 | R50: 1159.92
A51: 1013201820000 | B51: 8059971038033 | C51: PN MIT 11.2 - 28 8PR TD-02 TT | D51: 11228A8TD02TT110 | E51: ROUES MOTRICES | F51: EP TD02 | G51: 11.2 | I51: - | J51: 28 | K51: 8PR | L51: A8 | P51: 0 | Q51: 281 | R51: 251.495
A52: 1013201880000 | B52: 8059971042627 | C52: PN MIT 12.4 - 28 8PR TD-02 TT | D52: 12428A8TD02TT116 | E52: ROUES MOTRICES | F52: EP TD02 | G52: 12.4 | I52: - | J52: 28 | L52: A8 | P52: 0 | Q52: 327 | R52: 292.665
A53: 1013202930000 | B53: 8059971042962 | C53: PN MIT 16.9R30 10PR TD-13 TT | D53: 16930TD13TT10PREP | E53: ROUES MOTRICES | F53: EP TD13 | G53: 16.9 | I53: - | J53: 30 | L53: A8 | P53: 0 | Q53: 602 | R53: 538.79
A54: 1013203200000 | B54: 8059971058277 | C54: PN MIT 18.4 - 30 141 A8 TD-13 TT | D54: 18430A8TD13TT141 | E54: ROUES MOTRICES | F54: EP TD13 | G54: 18.4 | I54: - | J54: 30 | K54: 12PR | L54: A8 | P54: 0 | Q54: 653 | R54: 584.435
A55: 1013203540000 | B55: 8059971068078 | C55: PN MIT 16.9 -34 10P TD-02 TT | D55: 16934TD02TT10 | E55: ROUES MOTRICES | F55: EP TD02 | G55: 16.9 | I55: - | J55: 34 | K55: 10PR | P55: 0 | Q55: 653 | R55: 584.435
A56: 1013205490000 | B56: 8059971038323 | C56: PN MIT 14.9 - 38 122 A8 TD-05 TT | D56: 14938A8TD05TT122 | E56: ROUES MOTRICES | F56: EP TD-05 | G56: 14.9 | I56: - | J56: 38 | L56: A8 | P56: 0 | Q56: 653 | R56: 584.435
A57: 1013205610000 | B57: 8059971041378 | C57: PN MIT 15.5 - 38 125 A8 TD-05 TT | D57: 15538A8TD05TT125 | E57: ROUES MOTRICES | F57: EP TD-05 | G57: 15.5 | I57: - | J57: 38 | L57: A8 | P57: 0 | Q57: 708 | R57: 633.66
A58: 1013302400000 | B58: 8059971055832 | C58: PN MIT 31X15.50 -15 8P TR-06 | D58: 31155015TR06TLEPPR8 | E58: MOTOCULTURE | F58: EP TR-06 | G58: 15.5 | I58: - | J58: 15 | L58: A8 | P58: 0 | Q58: 269 | R58: 240.755
A59: 1013302630000 | B59: 8059971039207 | C59: PN MIT 31X15.50 - 15 PR8 TR-07 TL | D59: 31155015TR07TLEPPR8 | E59: MOTOCULTURE | F59: EP TR-07 | G59: 15.5 | I59: - | J59: 15 | L59: A8 | P59: 0 | Q59: 269 | R59: 240.755
A60: 1013307590000 | B60: 8059971042412 | C60: PN MIT 12.5/80 - 15.3 PR14 IM-04 TL | D60: 12580153IM04TLEPPR14 | E60: REMORQUES AGRICOLES | F60: EP IM-04 | G60: 12.5 | H60: 80 | I60: - | J60: 15.3 | L60: A8 | P60: 0 | Q60: 229 | R60: 204.955
A61: 1013309530000 | B61: 8059971054972 | C61: PN MIT 11 L 16 10PR IM-05 TL | D61: 1116IM05TL10PR | E61: ROUES DIRECTRICES | F61: EP IM-05 | G61: 11 | I61: - | J61: 16 | L61: A8 | P61: 0 | Q61: 247 | R61: 221.065
A62: 1013309640000 | B62: 8059971068559 | C62: PN MIT 15.0/55-17 10P IM04 | D62: 1505517IM04102 | E62: REMORQUES AGRICOLES | F62: EP IM-04 | G62: 15 | H62: 55 | I62: - | J62: 17 | K62: 10PR | P62: 0 | Q62: 340 | R62: 304.3
A63: 1013309710000 | B63: 8059971042429 | C63: PN MIT 10.0/55 - 17 PR 14 IM-04 TL | D63: 1005517IM04TLPR14 | E63: REMORQUES AGRICOLES | F63: EP IM-04 | G63: 15 | H63: 55 | I63: - | J63: 17 | L63: A8 | P63: 0 | Q63: 377 | R63: 337.415
A64: 1013310340000 | B64: 8059971065602 | C64: PN MIT 320/80 - 18 10PR TD-10 | D64: 3208018A8TD10TL139 | E64: MOTOCULTURE | F64: EP TD-10 | G64: 320 | H64: 80 | I64: - | J64: 18 | K64: 139 | L64: A8 | P64: 0 | Q64: 395 | R64: 353.525
A65: 1013311370000 | B65: 8059971039191 | C65: PN MIT 12.5/80-18 14P IM03 TT | D65: 1258018IM03TT142 | E65: REMORQUES AGRICOLES | F65: EP IM-03 | G65: 12.5 | H65: 80 | I65: - | J65: 18 | K65: 14PR | P65: 0 | Q65: 366 | R65: 327.57
A66: 1013311480000 | B66: 8059971069785 | C66: PN MIT 12.5/80-18 14P IM04 TT | D66: 1258018IM04TT142 | E66: REMORQUES AGRICOLES | F66: EP IM-04 | G66: 12.5 | H66: 80 | I66: - | J66: 18 | K66: 14PR | P66: 0 | Q66: 355 | R66: 317.725
A67: 1013311830000 | B67: 8059971067590 | C67: PN MIT 12.5/80-18 16P IM-03 TT | D67: 1258018IM03TT16 | E67: REMORQUES AGRICOLES | F67: EP IM-03 | G67: 12.5 | H67: 80 | I67: - | J67: 18 | K67: 16PR | P67: 0 | Q67: 384 | R67: 343.68
A68: 1013311940000 | B68: 8059971039368 | C68: PN MIT 12.5/80 - 18 PR16 IM04 TT | D68: 1258018IM04TTEPPR16 | E68: REMORQUES AGRICOLES | F68: EP IM-04 | G68: 12.5 | H68: 80 | I68: - | J68: 18 | L68: A8 | P68: 0 | Q68: 374 | R68: 334.73
A69: 1013313630000 | B69: 8059971043495 | C69: PN MIT 13.0/65 - 18 16PR IM-04 TT | D69: 1306518IM04TT16PR | E69: REMORQUES AGRICOLES | F69: EP IM-04 | G69: 13 | H69: 65 | I69: - | J69: 18 | L69: A8 | P69: 0 | Q69: 259 | R69: 231.805
A70: 1013313660000 | B70: 8059971038804 | C70: PN MIT 13.0/65-18 16P IM04 | D70: 1306518IM04162 | E70: REMORQUES AGRICOLES | F70: EP IM-04 | G70: 13 | H70: 65 | I70: - | J70: 18 | K70: 16PR | P70: 0 | Q70: 272 | R70: 243.44
A71: 1013314360000 | B71: 8059971069976 | C71: PN MIT 14.5/80 - 18 12PR TR-05 TT | D71: 1458018TR05TT12PR | E71: ROUES MOTRICES | F71: EP TR-05 | G71: 14.5 | H71: 80 | I71: - | J71: 18 | P71: 0 | Q71: 550 | R71: 492.25
A72: 1013314590000 | B72: 8059971043297 | C72: PN MIT 14.5/80-18 12P IM-03 TT | D72: 1458018IM03TTEPPR12 | E72: REMORQUES AGRICOLES | F72: EP IM-03 | G72: 14.5 | H72: 80 | I72: - | J72: 18 | L72: A8 | P72: 0 | Q72: 467 | R72: 417.965
A73: 1013314700000 | B73: 8059971065817 | C73: PN MIT 360/95-18 12P IM-02 TT | D73: 3609518IM02TT12 | E73: REMORQUES AGRICOLES | F73: EP IM-02 | G73: 360 | H73: 95 | I73: - | J73: 18 | P73: 0 | Q73: 389 | R73: 348.155
A74: 1013315230000 | B74: 8059971040715 | C74: PN MIT 400/70 - 20 150 B TR-01 | D74: 4007020TR01TLEPPR14 | E74: ROUES MOTRICES | F74: EP TR-01 | G74: 400 | H74: 70 | I74: - | J74: 20 | K74: 150 | L74: B | P74: 0 | Q74: 605 | R74: =Q74*(1-$D$3) -> 541.475
A75: 1014101010000 | B75: 8590341078889 | C75: PN MIT 31X15.5 - 15 8PR SK-02 | D75: 3115515SK028PR | E75: INDUSTRIE | F75: EP SK-02 | G75: 15.5 | I75: - | J75: 15 | K75: 119 | L75: A4 | P75: 0 | Q75: 582 | R75: 520.89
A76: 1014108020000 | B76: 8059971616019 | C76: PN MIT 14 -17.5 139B TR-10 IND | D76: 14175TR10IN14139B | E76: INDUSTRIE | F76: EP TR-10-1 | G76: 14 | I76: - | J76: 17.5 | K76: 139 | L76: B | P76: 0 | Q76: 555 | R76: 496.725
A77: 1014108030000 | B77: 8059971068405 | C77: PN MIT 14 -17.5 150/139B TR-10 | D77: 14175TR10150B | E77: MOTOCULTURE | F77: EP TR-10-1 | G77: 14 | I77: - | J77: 17.5 | K77: 150/139 | L77: B | P77: 0 | Q77: 478 | R77: 427.81
A78: 1014108140000 | B78: 8059971065565 | C78: PN MIT CGS 15.0/55 - 17 PR10 TR-01 TL | D78: 1505517TR01TLEPPR10 | E78: MOTOCULTURE | F78: EP TR-01 | G78: 15 | H78: 55 | I78: - | J78: 17 | P78: 0 | Q78: 341 | R78: 305.195
A79: 1014108160000 | B79: 8059971065572 | C79: PN MIT 15.0/55 - 17 12PR TR-01 | D79: 1505517A8TR01TL134 | E79: MOTOCULTURE | F79: EP TR-01 | G79: 15 | H79: 55 | I79: - | J79: 17 | P79: 0 | Q79: 359 | R79: 321.305
A80: 1014108240000 | B80: 8059971040500 | C80: PN MIT 15.0/55-17 14P TR-01 | D80: 1505517TR0114MI | E80: MOTOCULTURE | F80: EP TR-01 | G80: 15 | H80: 55 | I80: - | J80: 17 | P80: 0 | Q80: 377 | R80: 337.415
A81: 1014109070000 | B81: 8059971067293 | C81: PN MIT 12.0/75 - 18 12PR TR-03 | D81: 1207518TR03TLEPPR12 | E81: MOTOCULTURE | F81: EP TR-03 | G81: 12 | H81: 75 | I81: - | J81: 18 | L81: A8 | P81: 0 | Q81: 329 | R81: 294.455
A82: 1014109300000 | B82: 8059971068160 | C82: PN MIT 12.0/75 - 18 12PR TR-11 | D82: 1207518TR1112PR | E82: MOTOCULTURE | F82: EP TR-11 | G82: 12 | H82: 75 | I82: - | J82: 18 | L82: A8 | P82: 0 | Q82: 329 | R82: 294.455
A83: 1014109970000 | B83: 8059971043891 | C83: PN MIT 400/60-15.5 152/140A8 TR08 | D83: 40060155TR08152A8 | E83: REMORQUES AGRICOLES | F83: EP TR-08 | G83: 400 | H83: 60 | I83: - | J83: 15.5 | K83: 152/140 | L83: A8 | P83: 0 | Q83: 339 | R83: 303.405
A84: 1014109990000 | B84: 8059971036541 | C84: PN MIT 500/45-20 162A8 TR-12 | D84: 5004520TR12162A8 | E84: REMORQUES AGRICOLES | F84: EP TR-12 | G84: 500 | H84: 45 | I84: - | J84: 20 | K84: 162 | L84: A8 | P84: 0 | Q84: 796 | R84: 712.42
A85: 1014110690000 | B85: 8059971036183 | C85: PN MIT 500/60-22.5 16P TR-08 | D85: 50060225TR08TLEPPR16 | E85: REMORQUES AGRICOLES | F85: EP TR-08 | G85: 500 | H85: 60 | I85: - | J85: 22.5 | L85: A8 | P85: 0 | Q85: 710 | R85: 635.45
A86: 1014110910000 | B86: 8059971063011 | C86: PN MIT 500/60-22.5 165/153A8 T6R12 | D86: 50060225TR12165A8153 | E86: INDUSTRIE | F86: EP TR-12 | G86: 500 | H86: 60 | I86: - | J86: 22.5 | K86: 165/153 | L86: A8 | P86: 0 | Q86: 797 | R86: 713.315
A87: 1014111030000 | B87: 8059971040517 | C87: PN MIT 500/60-22.5 152A8 TR-12 | D87: 50060225A8TR12TL170 | E87: REMORQUES AGRICOLES | F87: EP TR-12 | G87: 500 | H87: 60 | I87: - | J87: 22.5 | K87: 170 | P87: 0 | Q87: 838 | R87: 750.01
A88: 1014111610000 | B88: 8059971043907 | C88: PN MIT 550/60 - 22.5 16PR TR08 | D88: 55060225TR08TLEPPR16 | E88: REMORQUES AGRICOLES | F88: EP TR-08 | G88: 550 | H88: 60 | I88: - | J88: 22.5 | L88: A8 | P88: 0 | Q88: 799 | R88: 715.105
A89: 1014111630000 | B89: 8059971037050 | C89: PN MIT 550/60-22.5 171A8 TR-08 | D89: 55060225A8TR08TL171 | E89: REMORQUES AGRICOLES | F89: EP TR-08 | G89: 550 | H89: 60 | I89: - | J89: 22.5 | K89: 171 | L89: A8 | P89: 0 | Q89: 837 | R89: 749.115
A90: 1014111860000 | B90: 8059971065596 | C90: PN MIT 600/40-22.5 172A8 TR-12 | D90: 60040225TR12172A8 | E90: REMORQUES AGRICOLES | F90: EP TR-12 | G90: 600 | H90: 40 | I90: - | J90: 22.5 | K90: 172 | L90: A8 | P90: 0 | Q90: 1127 | R90: 1008.665
A91: 1014112990000 | B91: 8059971044393 | C91: PN MIT 600/50-22.5 16P TR-08 | D91: 60050225TR08TLEPPR16 | E91: REMORQUES AGRICOLES | F91: EP TR-08 | G91: 600 | H91: 50 | I91: - | J91: 22.5 | L91: A8 | P91: 0 | Q91: 989 | R91: 885.155
A92: 1014113220000 | B92: 8059971065848 | C92: PN MIT 600/50-22.5 168A8 TR-08 HD | D92: 60050225A8TR08TL168 | E92: REMORQUES AGRICOLES | F92: EP TR-08 HD | G92: 600 | H92: 50 | I92: - | J92: 22.5 | K92: 168 | L92: A8 | P92: 0 | Q92: 1039 | R92: 929.905
A93: 1014309610000 | B93: 8059971065541 | C93: PN MIT 480/45 - 17 146 A8 TR-01 | D93: 4804517A8TR01146 | E93: MOTOCULTURE | F93: EP TR-01 | G93: 480 | H93: 45 | I93: - | J93: 17 | K93: 146 | L93: A8 | P93: 0 | Q93: 507 | R93: 453.765
A94: 1014309870000 | B94: 8059971043037 | C94: PN MIT 19.0/45 - 17 PR14 IM-04 TL | D94: 1904517IM04TLEPPR14 | E94: REMORQUES AGRICOLES | F94: EP IM-04 | G94: 19 | H94: 45 | I94: - | J94: 17 | L94: A8 | P94: 0 | Q94: 466 | R94: 417.07
A95: 1014309900000 | B95: 8059971039375 | C95: PN MIT 19.0/45-17 18P IM-04 | D95: 1904517IM0418MI | E95: REMORQUES AGRICOLES | F95: EP IM-04 | G95: 19 | H95: 45 | I95: - | J95: 17 | P95: 0 | Q95: 502 | R95: 449.29
A96: 1014351960007 | C96: RC MIT 560/60R22.5 161D AR-02 IMP | D96: 56060225AR02IM161DRC | E96: ROUES MOTRICES | F96: EP AR-02 | G96: 560 | H96: 60 | I96: R | J96: 22.5 | K96: 161 | L96: D | P96: 0 | Q96: 1664 | R96: 1489.28
A97: 1014360860000 | B97: 8590341003201 | C97: PN MIT 445/70R24 151 G MPT-22 TL | D97: 4457024GMPT22TLEP151 | E97: INDUSTRIE | F97: EP MPT-22 | G97: 445 | H97: 70 | I97: R | J97: 24 | K97: 151 | L97: G | P97: 0 | Q97: 2048 | R97: 1832.96
A98: 1014360870000 | B98: 8059971054910 | C98: PN MIT 480/80R26 160 A8 TI-20 | D98: 4808026A8TI20TLEP168 | E98: ROUES MOTRICES | F98: EP TI-20 | G98: 480 | H98: 80 | I98: R | J98: 26 | K98: 160 | L98: A8 | P98: 0 | Q98: 1152 | R98: 1031.04
A99: 1014371390000 | B99: 8590341033437 | C99: PN MIT 440/80R28 156 A8 TI-20 TL | D99: 4408028A8TI20TLEP156 | E99: INDUSTRIE | F99: EP TI-20 | G99: 440 | H99: 80 | I99: R | J99: 28 | K99: 156 | L99: A8 | P99: 0 | Q99: 1800 | R99: 1611
A100: 1016000102000 | B100: 8059971615746 | C100: PN MIT 10.00 -20 16P NB38 SET TT | D100: 100020NB38SETTT16 | E100: INDUSTRIE | F100: EP NB38 SET | G100: 10 | I100: - | J100: 20 | K100: 16PR | P100: 0 | Q100: 684 | R100: 612.18
A101: 1016000117000 | B101: 8059971616231 | C101: PN MIT 8.25 -20 14P NB 38 ML | D101: 82520NB38ML14 | E101: ROUES MOTRICES | F101: EP NB38-1 | G101: 8.25 | I101: - | J101: 20 | K101: 14PR | P101: 0 | Q101: 625 | R101: 559.375
A102: 10165BIGBOY | B102: 8590341065964 | C102: PN MIT.C 10 -16.5 8P BIG BOY | D102: 10165BIGBOY8 | E102: INDUSTRIE | F102: MIT BIG BOY | G102: 10 | I102: - | J102: 16.5 | K102: 8PR | P102: 0 | Q102: 355 | R102: 317.725
A103: 10165SK02MI | B103: 8590341110725 | C103: PN MIT 10 -16.5 SK 02 | D103: 10165SK02 | E103: INDUSTRIE | F103: MIT SK-02 | G103: 10 | I103: - | J103: 16.5 | P103: 0 | Q103: 305 | R103: 272.975
A104: 10165SK05 | B104: 8590341071514 | C104: PN MIT.C 10 -16.5 10P SK 05 | D104: 10165SK0510 | E104: INDUSTRIE | F104: MIT SK-05 | G104: 10 | I104: - | J104: 16.5 | K104: 10PR | P104: 0 | Q104: 436 | R104: 390.22
A105: 105016IM01 | B105: 8059971037005 | C105: PN MIT 10.50 - 16 14PR IM-01 TT | D105: 105016IM01TT14PR | E105: REMORQUES AGRICOLES | F105: MIT IM-01 | G105: 10.5 | I105: - | J105: 16 | K105: 14PR | L105: A8 | P105: 0 | Q105: 332 | R105: 297.14
A106: 10505032SFT | B106: 8059971039689 | C106: PN MIT 1050/50R32 178 A8 SFT | D106: 10505032A8SFT178 | E106: ROUES MOTRICES | F106: MIT SFT | G106: 1050 | H106: 50 | I106: R | J106: 32 | K106: 178 | L106: A8 | P106: 0 | Q106: 6875 | R106: 6153.125
A107: 10505032SFTCHO | B107: 8590341117915 | C107: PN MIT 1050/50R32 184A8/181B SFT | D107: 10505032SFT184A8 | E107: ROUES MOTRICES | F107: MIT SFT | G107: 1050 | H107: 50 | I107: R | J107: 32 | K107: 184 | L107: A8 | P107: 0 | Q107: 7574.32 | R107: 6779.0164
A108: 10518MPT02 | B108: 8590341007063 | C108: PN MIT.C 10.5 - 18 10PR MPT-02 | D108: 10518MPT0210PR | E108: INDUSTRIE | F108: MIT MPT-02 | G108: 10.5 | I108: - | J108: 18 | K108: 10PR | P108: 0 | Q108: 570 | R108: 510.15
A109: 10520MPT07 | B109: 8590341006844 | C109: PN MIT.C 10.5 -20 10P MPT 07 | D109: 10520MPT0710 | E109: INDUSTRIE | F109: MIT MPT-07 | G109: 10.5 | I109: - | J109: 20 | K109: 10PR | P109: 0 | Q109: 515 | R109: 460.925
A110: 1058018BIGBOY | B110: 8590341065995 | C110: PN MIT.C 10.5/80-18 10P BIG BOY | D110: 1058018BIGBOY10 | E110: INDUSTRIE | F110: MIT BIG BOY | G110: 10.5 | H110: 80 | I110: - | J110: 18 | K110: 10PR | P110: 0 | Q110: 457 | R110: 409.015
A111: 110020COMPACTOR164A3 | B111: 8590341006226 | C111: PN MIT.C 11.00-20 164A3 COMPACTO TT | D111: 110020COMPACTTT164A3 | E111: INDUSTRIE | F111: MIT COMPACTOR-1 | G111: 11 | I111: - | J111: 20 | K111: 164 | L111: A3 | P111: 0 | Q111: 988 | R111: 884.26
A112: 110020COMPACTOREXTRA | B112: 8590341006219 | C112: PN MIT.C 11,00 - 20 18PR COMPACTOR EXTRA | D112: 110020COMPACTT18PRMI | E112: INDUSTRIE | F112: MIT COMPACTOR EXTRA | G112: 11 | I112: - | J112: 20 | K112: 18PR | P112: 0 | Q112: 1019 | R112: 912.005
A113: 110020COMPACTORSMOOTH | B113: 8590341006202 | C113: PN MIT.C 11.00 -20 18P COMPACTOR SMOOT T | D113: 110020COMPACTORSTT18 | E113: INDUSTRIE | F113: MIT COMPACTOR SMOOT | G113: 11 | I113: - | J113: 20 | K113: 18PR | P113: 0 | Q113: 1109 | R113: 992.555
A114: 110020NB38 | B114: 8590341104267 | C114: PN MIT 11.00 - 20 16PR NB38 TT | D114: 110020NB38TT16PR | E114: INDUSTRIE | F114: MIT NB38-1 | G114: 11 | I114: - | J114: 20 | K114: 148 | L114: B | P114: 0 | Q114: 976 | R114: 873.52
A115: 11224TD02 | B115: 8059971037418 | C115: PN MIT 11.2 - 24 8PR TD-02 TT | D115: 11224TD02TT8PRMIT | E115: ROUES MOTRICES | F115: MIT TD02 | G115: 11.2 | I115: - | J115: 24 | L115: A8 | P115: 0 | Q115: 275 | R115: 246.125
A116: 11224TD19 | B116: 8590341039835 | C116: PN MIT.C 11.2 - 24 8PR TD-19 TT | D116: 11224TD19TT8PR | E116: ROUES MOTRICES | F116: MIT TD-19 | G116: 11.2 | I116: - | J116: 24 | K116: 8PR | P116: 0 | Q116: 275 | R116: 246.125
A117: 11224TD1910PR | B117: 8590341040138 | C117: PN MIT.C 11.2 -24 10P TD-19 | D117: 11224TD1910 | E117: ROUES MOTRICES | F117: MIT TD-19 | G117: 11.2 | I117: - | J117: 24 | K117: 10PR | P117: 0 | Q117: 300 | R117: 268.5
A118: 11228TD02COP | B118: 8059971038033 | C118: PN MIT 11.2 - 28 8PR TD-02 TT | D118: 11228TD02TT8PR | E118: ROUES MOTRICES | F118: MIT TD02 | G118: 11.2 | I118: - | J118: 28 | K118: 8PR | L118: A8 | P118: 0 | Q118: 302 | R118: 270.29
A119: 11238TD13 | B119: 8590341117038 | C119: PN MIT 11.2 -38 4P TD13 | D119: 11238TD134CO | E119: ROUES MOTRICES | F119: MIT TD13 | G119: 11.2 | I119: - | J119: 38 | K119: 4PR | P119: 0 | Q119: 487 | R119: 435.865
A120: 11464700 | B120: 8059971027327 | C120: PN MIT 3.50 -6 4P B16 TT | D120: 3506B16TT42 | E120: MOTOCULTURE | F120: EP B16 | G120: 3.5 | I120: - | J120: 6 | K120: 4PR | P120: 0 | Q120: 25 | R120: 22.375
A121: 11466400 | B121: 8059971027334 | C121: PN MIT 3.50 -8 4P B16 TT | D121: 3508B16TT42 | E121: MOTOCULTURE | F121: EP B16 | G121: 3.5 | I121: - | J121: 8 | K121: 4PR | P121: 0 | Q121: 28 | R121: 25.06
A122: 11466500 | B122: 8059971027341 | C122: PN MIT 4.00 -12 4P B12 TT | D122: 40012B12TT42 | E122: MOTOCULTURE | F122: EP B12 | G122: 4 | I122: - | J122: 12 | K122: 4PR | P122: 0 | Q122: 39 | R122: 34.905
A123: 11466600 | B123: 8059971027358 | C123: PN MIT 18.5X8.50 -8 6P B63 | D123: 1858508B6362 | E123: REMORQUES AGRICOLES | F123: EP B63 | G123: 8.5 | I123: - | J123: 8 | K123: 6PR | P123: 0 | Q123: 48 | R123: 42.96
A124: 11466700 | B124: 8059971027365 | C124: PN MIT 18.5X8.50 -8 12P B63 | D124: 1858508B63122 | E124: REMORQUES AGRICOLES | F124: EP B63 | G124: 8.5 | I124: - | J124: 8 | K124: 12PR | P124: 0 | Q124: 55 | R124: 49.225
A125: 11466800 | B125: 8059971027372 | C125: PN MIT 4.00 -8 2P B12 TT | D125: 4008B12TT22 | E125: MOTOCULTURE | F125: EP B12 | G125: 4 | I125: - | J125: 8 | K125: 2PR | P125: 0 | Q125: 30 | R125: 26.85
A126: 11466900 | B126: 8059971027389 | C126: PN MIT 4.00 -8 4P B12 TT | D126: 4008B12TT42 | E126: MOTOCULTURE | F126: EP B12 | G126: 4 | I126: - | J126: 8 | K126: 4PR | P126: 0 | Q126: 31 | R126: 27.745
A127: 11467000 | B127: 8059971027396 | C127: PN MIT 16X6.50 -8 4P B64 | D127: 166508B6442 | E127: MOTOCULTURE | F127: EP B64 | G127: 6.5 | I127: - | J127: 8 | K127: 4PR | P127: 0 | Q127: 35 | R127: 31.325
A128: 11467400 | B128: 8059971027402 | C128: PN MIT 16X6.50 -8 8P B64 | D128: 166508B6482 | E128: MOTOCULTURE | F128: EP B64 | G128: 6.5 | I128: - | J128: 8 | K128: 8PR | P128: 0 | Q128: 49 | R128: 43.855
A129: 11467500 | B129: 8059971027419 | C129: PN MIT 5.0 -10 2P B17 TT | D129: 5010B17TT22 | E129: MOTOCULTURE | F129: EP B17 | G129: 5 | I129: - | J129: 10 | K129: 2PR | P129: 0 | Q129: 51 | R129: 45.645
A130: 11467600 | B130: 8059971027426 | C130: PN MIT 5.0 -10 4P B17 TT | D130: 5010B17TT42 | E130: MOTOCULTURE | F130: EP B17 | G130: 5 | I130: - | J130: 10 | K130: 4PR | P130: 0 | Q130: 53 | R130: 47.435
A131: 11467700 | B131: 8059971027433 | C131: PN MIT 5.00 -12 B12 TT | D131: 50012B12TT | E131: ROUES MOTRICES | F131: EP B12 | G131: 5 | I131: - | J131: 12 | P131: 0 | Q131: 53 | R131: 47.435
A132: 11467800 | B132: 8059971027440 | C132: PN MIT 5.00 -12 4P B12 TT | D132: 50012B12TT42 | E132: MOTOCULTURE | F132: EP B12 | G132: 5 | I132: - | J132: 12 | K132: 4PR | P132: 0 | Q132: 56 | R132: 50.12
A133: 11467900 | B133: 8059971027457 | C133: PN MIT 6.50/80-12 4P B18 TT | D133: 6508012B18TT42 | E133: MOTOCULTURE | F133: EP B18 | G133: 6.5 | H133: 80 | I133: - | J133: 12 | K133: 4PR | P133: 0 | Q133: 65 | R133: 58.175
A134: 11468000 | B134: 8059971027464 | C134: PN MIT 4.00 -10 4P B12 TT | D134: 40010B12TT42 | E134: MOTOCULTURE | F134: EP B12 | G134: 4 | I134: - | J134: 10 | K134: 4PR | P134: 0 | Q134: 41 | R134: 36.695
A135: 11468100 | B135: 8059971027471 | C135: PN MIT 4.00 -10 4P B12 TT | D135: 40010B12TT43 | E135: MOTOCULTURE | F135: EP B12 | G135: 4 | I135: - | J135: 10 | K135: 4PR | P135: 0 | Q135: 43 | R135: 38.485
A136: 11468200 | B136: 8059971027488 | C136: PN MIT 13X5.00 -6 4P G1 | D136: 135006G142 | E136: REMORQUES AGRICOLES | F136: EP G1 | G136: 5 | I136: - | J136: 6 | K136: 4PR | P136: 0 | Q136: 29 | R136: 25.955
A137: 11468300 | B137: 8059971027495 | C137: PN MIT 3.50 -8 4P B11 TT | D137: 3508B11TT42 | E137: REMORQUES AGRICOLES | F137: EP B11 | G137: 3.5 | I137: - | J137: 8 | K137: 4PR | P137: 0 | Q137: 24 | R137: 21.48
A138: 11468400 | B138: 8059971027501 | C138: PN MIT 18X8.50 -8 6P G1 | D138: 188508G162 | E138: REMORQUES AGRICOLES | F138: EP G1 | G138: 8.5 | I138: - | J138: 8 | K138: 6PR | P138: 0 | Q138: 43 | R138: =Q138*(1-$D$3) -> 38.485
A139: 11468500 | B139: 8059971027518 | C139: PN MIT 3.50 -6 4P B15 TT | D139: 3506B15TT42 | E139: REMORQUES AGRICOLES | F139: EP B15 | G139: 3.5 | I139: - | J139: 6 | K139: 4PR | P139: 0 | Q139: 24 | R139: 21.48
A140: 11468600 | B140: 8059971027525 | C140: PN MIT 3.50 -8 4P B15 TT | D140: 3508B15TT42 | E140: REMORQUES AGRICOLES | F140: EP B15 | G140: 3.5 | I140: - | J140: 8 | K140: 4PR | P140: 0 | Q140: 24 | R140: 21.48
A141: 11468700 | B141: 8059971027532 | C141: PN MIT 4.00 -8 4P B11 TT | D141: 4008B11TT42 | E141: REMORQUES AGRICOLES | F141: EP B11 | G141: 4 | I141: - | J141: 8 | K141: 4PR | P141: 0 | Q141: 26 | R141: 23.27
A142: 11468800 | B142: 8059971027549 | C142: PN MIT 5.00 -10 4P B16 TT | D142: 50010B16TT42 | E142: MOTOCULTURE | F142: EP B16 | G142: 5 | I142: - | J142: 10 | K142: 4PR | P142: 0 | Q142: 45 | R142: 40.275
A143: 11468900 | B143: 8059971027556 | C143: PN MIT 16X6.50 -8 12P B19 | D143: 166508B19122 | E143: REMORQUES AGRICOLES | F143: EP B19 | G143: 6.5 | I143: - | J143: 8 | K143: 12PR | P143: 0 | Q143: 39 | R143: 34.905
A144: 11469000 | B144: 8059971027563 | C144: PN MIT 13X5.00 -6 4P B12 | D144: 135006B1242 | E144: MOTOCULTURE | F144: EP B12 | G144: 5 | I144: - | J144: 6 | K144: 4PR | P144: 0 | Q144: 28 | R144: 25.06
A145: 11580153IM04 | B145: 8059971043488 | C145: PN MIT 11.5/80 - 15.3 14PR IM-04 | D145: 11580153IM0414PR | E145: REMORQUES AGRICOLES | F145: MIT IM-04 | G145: 11.5 | H145: 80 | I145: - | J145: 15.3 | L145: A8 | P145: 0 | Q145: 186 | R145: 166.47
A146: 11580153TS05 | B146: 8059971038828 | C146: PN MIT.C 11.5/80 - 15.3 10PR TS-05 | D146: 11580153TS0510PRMIT | E146: MOTOCULTURE | F146: MIT TS-05 | G146: 11.5 | H146: 80 | I146: - | J146: 15.3 | K146: 10PR | L146: A8 | P146: 0 | Q146: 330 | R146: 295.35
A147: 11580153TS0514PR | B147: 8059971061970 | C147: PN MIT 11.5/80 - 15.3 PR14 TS-05 TL | D147: 11580153TS0514PRMIT | E147: MOTOCULTURE | F147: MIT TS-05 | G147: 11.5 | H147: 80 | I147: - | J147: 15.3 | K147: 14PR | L147: A8 | P147: 0 | Q147: 366 | R147: 327.57
A148: 11605900 | B148: 8059971028027 | C148: PN MIT 16X6.50 -8 6P B19 | D148: 166508B1962 | E148: REMORQUES AGRICOLES | F148: EP B19 | G148: 6.5 | I148: - | J148: 8 | K148: 6PR | P148: 0 | Q148: 35 | R148: 31.325
A149: 11622600 | B149: 8059971028089 | C149: PN MIT 15X6.00 -6 6P B19 | D149: 156006B1962 | E149: REMORQUES AGRICOLES | F149: EP B19 | G149: 6 | I149: - | J149: 6 | K149: 6PR | P149: 0 | Q149: 30 | R149: 26.85
A150: 11622800 | B150: 8059971028102 | C150: PN MIT 13X5.00 -6 8P B19 | D150: 135006B1982 | E150: REMORQUES AGRICOLES | F150: EP B19 | G150: 5 | I150: - | J150: 6 | K150: 8PR | P150: 0 | Q150: 28 | R150: 25.06
A151: 11622900 | B151: 8059971028119 | C151: PN MIT 4.00 -6 6P B11 TT | D151: 4006B11TT6 | E151: MOTOCULTURE | F151: EP B11 | G151: 4 | I151: - | J151: 6 | K151: 6PR | P151: 0 | Q151: 27 | R151: 24.165
A152: 11804900 | B152: 8059971041774 | C152: PN MIT VF750/60R46 189D HC 1000 NRO | D152: 7506046HC1000NR189D | E152: ROUES MOTRICES | F152: EP HC 1000 | G152: 750 | H152: 60 | I152: R | J152: 46 | K152: 189 | L152: D | P152: 0 | Q152: 5592 | R152: 5004.84
A153: 11L16IM05 | B153: 8590341041715 | C153: PN MIT.C 11 L 16 10PR IM-05 | D153: 1116IM0510PRMIT | E153: ROUES DIRECTRICES | F153: MIT IM-05 | G153: 11 | I153: - | J153: 16 | K153: 10PR | P153: 0 | Q153: 265 | R153: 237.175
A154: 1207518TR03 | B154: 8059971067293 | C154: PN MIT 12.0/75 - 18 12PR TR-03 | D154: 1207518TR0312PR | E154: MOTOCULTURE | F154: MIT TR-03 | G154: 12 | H154: 75 | I154: - | J154: 18 | L154: A8 | P154: 0 | Q154: 354 | R154: 316.83
A155: 1207518TR11 | B155: 8059971068160 | C155: PN MIT 12.0/75 - 18 12PR TR-11 | D155: 1207518TR1112PRMIT | E155: MOTOCULTURE | F155: MIT TR-11 | G155: 12 | H155: 75 | I155: - | J155: 18 | L155: A8 | P155: 0 | Q155: 354 | R155: 316.83
A156: 12165BIGBOY12P | B156: 8590341065971 | C156: PN MIT.C 12 -16.5 12P BIG BOY | D156: 12165BIGBOY12 | E156: INDUSTRIE | F156: MIT BIG BOY | G156: 12 | I156: - | J156: 16.5 | K156: 12PR | P156: 0 | Q156: 497 | R156: 444.815
A157: 12165SK05 | B157: 8590341071521 | C157: PN MIT.C 12 -16.5 12P SK 05 | D157: 12165SK0512 | E157: INDUSTRIE | F157: MIT SK-05 | G157: 12 | I157: - | J157: 16.5 | K157: 12PR | P157: 0 | Q157: 525 | R157: 469.875
A158: 12424TD02 | B158: 8059971061871 | C158: PN MIT 12.4 -24 8P TD-02 TT | D158: 12424TD02TT8PRMIT | E158: ROUES MOTRICES | F158: MIT TD02 | G158: 12.4 | I158: - | J158: 24 | L158: A8 | P158: 0 | Q158: 338 | R158: 302.51
A159: 12424TD19 | B159: 8590341039842 | C159: PN MIT.C 12.4 - 24 8PR TD-19 TT | D159: 12424TD19TT8PR | E159: ROUES MOTRICES | F159: MIT TD-19 | G159: 12.4 | I159: - | J159: 24 | K159: 8PR | P159: 0 | Q159: 338 | R159: 302.51
A160: 12424TD1912PR | B160: 8590341040121 | C160: PN MIT.C 12.4 -24 12P TD-19 | D160: 12424TD1912 | E160: ROUES MOTRICES | F160: MIT TD-19 | G160: 12.4 | I160: - | J160: 24 | K160: 12PR | P160: 0 | Q160: 367 | R160: 328.465
A161: 12428TD02 | B161: 8059971042627 | C161: PN MIT 12.4 - 28 8PR TD-02 TT | D161: 12428TD02TT8PR | E161: ROUES MOTRICES | F161: MIT TD02 | G161: 12.4 | I161: - | J161: 28 | L161: A8 | P161: 0 | Q161: 352 | R161: 315.04
A162: 12428TD19 | B162: 8590341040961 | C162: PN MIT.C 12.4 - 28 10PR TD-19 TT | D162: 12428TD19TT10PR | E162: ROUES MOTRICES | F162: MIT TD-19 | G162: 12.4 | I162: - | J162: 28 | K162: 10PR | P162: 0 | Q162: 411 | R162: 367.845
A163: 12436TD1312PR | B163: 8590341066657 | C163: PN MIT.C 12.4 -36 12P TD-13 | D163: 12436TD1312 | E163: ROUES MOTRICES | F163: MIT TD13 | G163: 12.4 | I163: - | J163: 36 | K163: 12PR | P163: 0 | Q163: 470 | R163: 420.65
A164: 12438TD17 | B164: 8590341033390 | C164: PN MIT.C 12.4 - 38 8PR TD-17 TT | D164: 12438TD17TT8PRMIT | E164: ROUES MOTRICES | F164: MIT TD-17 | G164: 12.4 | I164: - | J164: 38 | K164: 8PR | P164: 0 | Q164: 523 | R164: 468.085
A165: 12505032SFT | B165: 8590341076496 | C165: PN MIT.C 1250/50R32 188 A8 SFT | D165: 12505032A8SFT188 | E165: ROUES MOTRICES | F165: MIT SFT | G165: 1250 | H165: 50 | I165: R | J165: 32 | K165: 188 | L165: A8 | P165: 0 | Q165: 8015.07 | R165: 7173.48765
A166: 12505032SFT194A8 | B166: 8590341076502 | C166: PN MIT.C 1250/50R32 194 A8 SFT | D166: 12505032A8SFT194 | E166: ROUES MOTRICES | F166: MIT SFT | G166: 1250 | H166: 50 | I166: R | J166: 32 | K166: 194 | L166: A8 | P166: 0 | Q166: 8111.82 | R166: 7260.0789
A167: 12505032SFTCHO | B167: 8590341117922 | C167: PN MIT 1250/50R32 194A8/191B SFT | D167: 12505032SFT194A8CO | E167: ROUES MOTRICES | F167: MIT SFT | G167: 1250 | H167: 50 | I167: R | J167: 32 | K167: 194 | L167: A8 | P167: 0 | Q167: 8355.28 | R167: 7477.9756
A168: 12520MPT03 | B168: 8590341006691 | C168: PN MIT.C 12.5 - 20 12PR MPT-03 | D168: 12520MPT0312PR | E168: INDUSTRIE | F168: MIT MPT-03 | G168: 12.5 | I168: - | J168: 20 | K168: 12PR | P168: 0 | Q168: 870 | R168: 778.65
A169: 12580153IM04 | B169: 8590341004246 | C169: PN MIT.C 12.5/80 - 15.3 14PR IM-04 | D169: 12580153IM0414PR | E169: REMORQUES AGRICOLES | F169: MIT IM-04 | G169: 12.5 | H169: 80 | I169: - | J169: 15.3 | K169: 14PR | P169: 0 | Q169: 246 | R169: 220.17
A170: 125801814PRIM04 | B170: 8059971069785 | C170: PN MIT 12.5/80-18 14P IM04 TT | D170: 1258018IM04TT14 | E170: REMORQUES AGRICOLES | F170: MIT IM-04 | G170: 12.5 | H170: 80 | I170: - | J170: 18 | K170: 14PR | P170: 0 | Q170: 382 | R170: 341.89
A171: 125801816PRIM03 | B171: 8590341004086 | C171: PN MIT 12.5/80-18 16P IM03 TT | D171: 1258018IM03TT16CO | E171: REMORQUES AGRICOLES | F171: MIT IM03 | G171: 12.5 | H171: 80 | I171: - | J171: 18 | K171: 16PR | P171: 0 | Q171: 413 | R171: 369.635
A172: 1258018BIGBOY | B172: 8590341066015 | C172: PN MIT.C 12.5/80-18 14P BIG BOY | D172: 1258018BIGBOY14 | E172: INDUSTRIE | F172: MIT BIG BOY | G172: 12.5 | H172: 80 | I172: - | J172: 18 | K172: 14PR | P172: 0 | Q172: 592 | R172: 529.84
A173: 1258018IM03 | B173: 8059971039191 | C173: PN MIT 12.5/80-18 14P IM03 TT | D173: 1258018IM03TT14 | E173: REMORQUES AGRICOLES | F173: MIT IM-03 | G173: 12.5 | H173: 80 | I173: - | J173: 18 | K173: 14PR | P173: 0 | Q173: 394 | R173: 352.63
A174: 1258018IM04 | B174: 8590341004079 | C174: PN MIT.C 12.5/80 - 18 16PR IM-04 TT | D174: 1258018IM04TT16PR | E174: REMORQUES AGRICOLES | F174: MIT IM-04 | G174: 12.5 | H174: 80 | I174: - | J174: 18 | K174: 16PR | P174: 0 | Q174: 402 | R174: 359.79
A175: 1306518IM04 | B175: 8059971043495 | C175: PN MIT 13.0/65 - 18 16PR IM-04 TT | D175: 1306518IM04TT16PRMIT | E175: REMORQUES AGRICOLES | F175: MIT IM-04 | G175: 13 | H175: 65 | I175: - | J175: 18 | L175: A8 | P175: 0 | Q175: 279 | R175: 249.705
A176: 1306518IM04REINF | B176: 8059971038804 | C176: PN MIT 13.0/65-18 16P IM04 | D176: 1306518IM0416 | E176: REMORQUES AGRICOLES | F176: MIT IM-04 | G176: 13 | H176: 65 | I176: - | J176: 18 | K176: 16PR | P176: 0 | Q176: 292 | R176: 261.34
A177: 135006B12 | B177: 8059971027563 | C177: PN MIT 13X5.00 -6 4P B12 | D177: 135006B124CO | E177: MOTOCULTURE | F177: MIT B12 | G177: 5 | I177: - | J177: 6 | K177: 4PR | P177: 0 | Q177: 31 | R177: 27.745
A178: 135006B19 | B178: 8059971028102 | C178: PN MIT 13X5.00 -6 8P B19 | D178: 135006B198CO | E178: REMORQUES AGRICOLES | F178: MIT B19 | G178: 5 | I178: - | J178: 6 | K178: 8PR | P178: 0 | Q178: 31 | R178: 27.745
A179: 135006G1 | B179: 8059971027488 | C179: PN MIT 13X5.00 -6 4P G1 | D179: 135006G14 | E179: REMORQUES AGRICOLES | F179: MIT G1 | G179: 5 | I179: - | J179: 6 | K179: 4PR | P179: 0 | Q179: 31 | R179: 27.745
A180: 13624TD19 | B180: 8590341097156 | C180: PN MIT 13.6 - 24 8PR TD-19 | D180: 13624TD198PR | E180: ROUES MOTRICES | F180: MIT TD-19 | G180: 13.6 | I180: - | J180: 24 | K180: 8PR | P180: 0 | Q180: 372 | R180: 332.94
A181: 13628TD19 | B181: 8590341039774 | C181: PN MIT.C 13.6 - 28 6PR TD-19 TT | D181: 13628TD19TT6PR | E181: ROUES MOTRICES | F181: MIT TD-19 | G181: 13.6 | I181: - | J181: 28 | K181: 6PR | P181: 0 | Q181: 419 | R181: 375.005
A182: 13636AC90MI | B182: 8590341091611 | C182: PN MIT.C 13.6R36 127A8 AC 90 | D182: 13636AC90127A8 | E182: ROUES MOTRICES | F182: MIT AC90 | G182: 13.6 | I182: R | J182: 36 | K182: 127 | L182: A8 | P182: 0 | Q182: 773 | R182: 691.835
A183: 13636TD13 | B183: 8590341033406 | C183: PN MIT.C 13.6 - 36 6PR TD-13 TT | D183: 13636TD13TT6PRMIT | E183: ROUES MOTRICES | F183: MIT TD13 | G183: 13.6 | I183: - | J183: 36 | K183: 6PR | P183: 0 | Q183: 491 | R183: 439.445
A184: 13638TD13 | B184: 8590341039767 | C184: PN MIT.C 13.6 - 38 6PR TD-13 TT | D184: 13638TD13TT6PRMIT | E184: ROUES MOTRICES | F184: MIT TD13 | G184: 13.6 | I184: - | J184: 38 | K184: 6PR | P184: 0 | Q184: 532 | R184: 476.14
A185: 14175TR10 | B185: 8590341003805 | C185: PN MIT 14 - 17.5 14PR TR-10 | D185: 14175TR1014PR | E185: INDUSTRIE | F185: MIT TR-10-1 | G185: 14 | I185: - | J185: 17.5 | K185: 14PR | P185: 0 | Q185: 555 | R185: 496.725
A186: 14175TR10IMP | B186: 8590341106896 | C186: PN MIT 14 -17.5 150/139B TR10 | D186: 14175TR10150BCO | E186: MOTOCULTURE | F186: MIT TR10 | G186: 14 | I186: - | J186: 17.5 | K186: 150/139 | L186: B | P186: 0 | Q186: 514 | R186: 460.03
A187: 14520MPT03 | B187: 8590341006578 | C187: PN MIT.C 14.5 - 20 12PR MPT-03 | D187: 14520MPT0312PR | E187: INDUSTRIE | F187: MIT MPT-03 | G187: 14.5 | I187: - | J187: 20 | K187: 12PR | P187: 0 | Q187: 903 | R187: 808.185
A188: 1458018IM03 | B188: 8590341003966 | C188: PN MIT.C 14.5/80 - 18 12PR IM-03 TT | D188: 1458018IM03TT12PR | E188: REMORQUES AGRICOLES | F188: MIT IM-03 | G188: 14.5 | H188: 80 | I188: - | J188: 18 | K188: 12PR | P188: 0 | Q188: 503 | R188: 450.185
A189: 1458018TR05 | B189: 8590341003973 | C189: PN MIT.C 14.5/80 - 18 12PR TR-05 TT | D189: 1458018TR05TT12PRMIT | E189: ROUES MOTRICES | F189: MIT TR-05 | G189: 14.5 | H189: 80 | I189: - | J189: 18 | K189: 12PR | P189: 0 | Q189: 592 | R189: 529.84
A190: 14924TD08 | B190: 8590341122803 | C190: PN MIT 14.9 -24 4P TD08 | D190: 14924TD084 | E190: ROUES MOTRICES | F190: MIT TD-08 | G190: 14.9 | I190: - | J190: 24 | K190: 4PR | P190: 0 | Q190: 329 | R190: 294.455
A191: 14924TD19COP | B191: 8590341039637 | C191: PN MIT.C 14.9 - 24 8PR TD-19 TT | D191: 14924TD19TT8PRMIT | E191: ROUES MOTRICES | F191: MIT TD-19 | G191: 14.9 | I191: - | J191: 24 | K191: 8PR | P191: 0 | Q191: 405 | R191: 362.475
A192: 14928TD19 | B192: 8590341039187 | C192: PN MIT.C 14.9 - 28 8PR TD-19 TT | D192: 14928TD19TT8PRMIT | E192: ROUES MOTRICES | F192: MIT TD-19 | G192: 14.9 | I192: - | J192: 28 | K192: 8PR | P192: 0 | Q192: 491 | R192: 439.445
A193: 14938TD05 | B193: 8590341050557 | C193: PN MIT.C 14.9 - 38 6PR TD-05 TT | D193: 14938TD05TT6PR | E193: ROUES MOTRICES | F193: MIT TD-05 | G193: 14.9 | I193: - | J193: 38 | K193: 6PR | P193: 0 | Q193: 702 | R193: 628.29
A194: 150551710PRIM04 | B194: 8059971068559 | C194: PN MIT 15.0/55-17 10P IM04 | D194: 1505517IM0410 | E194: REMORQUES AGRICOLES | F194: MIT IM-04 | G194: 15 | H194: 55 | I194: - | J194: 17 | K194: 10PR | P194: 0 | Q194: 366 | R194: 327.57
A195: 1505517IM04 | B195: 8590341004123 | C195: PN MIT.C 15.0/55 - 17 14PR IM-04 | D195: 1505517IM0414PR | E195: REMORQUES AGRICOLES | F195: MIT IM-04 | G195: 15 | H195: 55 | I195: - | J195: 17 | K195: 14PR | P195: 0 | Q195: 405 | R195: 362.475
A196: 1505517TR01 | B196: 8059971065572 | C196: PN MIT 15.0/55 - 17 12PR TR-01 | D196: 1505517TR0112PR | E196: MOTOCULTURE | F196: MIT TR-01 | G196: 15 | H196: 55 | I196: - | J196: 17 | P196: 0 | Q196: 386 | R196: 345.47
A197: 1505517TR0110P | B197: 8059971065565 | C197: PN MIT CGS 15.0/55 - 17 PR10 TR-01 TL | D197: 1505517TR0110119 | E197: MOTOCULTURE | F197: MIT TR-01 | G197: 15 | H197: 55 | I197: - | J197: 17 | P197: 0 | Q197: 367 | R197: 328.465
A198: 1505517TR0114P | B198: 8059971040500 | C198: PN MIT 15.0/55-17 14P TR-01 | D198: 1505517TR0114 | E198: MOTOCULTURE | F198: MIT TR-01 | G198: 15 | H198: 55 | I198: - | J198: 17 | P198: 0 | Q198: 405 | R198: 362.475
A199: 15538TD05 | B199: 8590341050564 | C199: PN MIT.C 15.5 - 38 8PR TD-05 TT | D199: 15538TD05TT8PR | E199: ROUES MOTRICES | F199: MIT TD-05 | G199: 15.5 | I199: - | J199: 38 | K199: 8PR | P199: 0 | Q199: 761 | R199: 681.095
A200: 1558024TD10 | B200: 8590341096418 | C200: PN MIT 15.5/80-24 164/152A8 6TD1 | D200: 15580246TD1164A8 | E200: ROUES MOTRICES | F200: MIT 6TD1 | G200: 15.5 | H200: 80 | I200: - | J200: 24 | K200: 164/152 | L200: A8 | P200: 0 | Q200: 724 | R200: 647.98
A201: 1558024TR01 | B201: 8590341005014 | C201: PN MIT.C 15,5/80 - 24 12PR TR01 | D201: 1558024TR0112PR | E201: ROUES MOTRICES | F201: MIT TR-01 | G201: 15.5 | H201: 80 | I201: - | J201: 24 | K201: 12PR | P201: 0 | Q201: 660 | R201: 590.7
A202: 1558024TR0114PR | B202: 8590341004970 | C202: PN MIT.C 15.5/80 - 24 14PR TR-01 | D202: 1558024TR0114PR | E202: ROUES MOTRICES | F202: MIT TR-01 | G202: 15.5 | H202: 80 | I202: - | J202: 24 | K202: 14PR | P202: 0 | Q202: 696 | R202: =Q202*(1-$D$3) -> 622.92
A203: 1558024TR01163A8 | B203: 8590341004956 | C203: PN MIT.C 15.5/80 - 24 163 A8 TR-01 | D203: 1558024A8TR01163MIT | E203: ROUES MOTRICES | F203: MIT TR-01 | G203: 15.5 | H203: 80 | I203: - | J203: 24 | K203: 163 | L203: A8 | P203: 0 | Q203: 773 | R203: 691.835
... 1483 more rows

Sheet SAPH
D2: Remise
D3: =Remises!J12 -> 0
A5: Actualisation au 04/04/2024
A7: REFERENCES PNEUMATIQUES | Q7: Nominatif | T7: Complet
A8: CAI | B8: EAN | C8: Désignation | D8: Appellation | E8: Catégorie | F8: Profil | G8: Largeur | H8: Hauteur | I8: Structure | J8: Diamètre | K8: IC | L8: IV | M8: Conso. | N8: Frein. | O8: Bruit. | P8: Décibels. | Q8: Prix BF | R8: Prix TD | S8: Prix Remisé | T8: Prix BF | U8: Prix TD | V8: Prix Remisé
A9: 0000953 | B9: 3665263009534 | C9: PN HWA.SA 200/60 - 14.5 10PR HF257A | D9: 20060145HF257A10PR | E9: REMORQUES AGRICOLES | F9: S4 HF257A | G9: 200 | H9: 60 | I9: - | J9: 14.5 | K9: 106 | L9: A8 | P9: 0 | Q9: 170.8
A10: 0001059 | B10: 3665263010592 | C10: PN ALL.SA 14,00 - 20 20PR 228 | D10: 14002022820PRS4 | E10: INDUSTRIE | F10: S4 A228 | G10: 14 | I10: - | J10: 20 | K10: 160/164 | L10: F | P10: 0 | Q10: 2038.2
A11: 0001077 | B11: 3665263010776 | C11: PN ALL SA. 18 - 19.5 16PR 224 | D11: 1819522416PR | E11: INDUSTRIE | F11: S4 A224 | G11: 18 | I11: - | J11: 19.5 | K11: 160 | L11: A8 | P11: 0 | Q11: 858
A12: 0001078 | B12: 3665263010783 | C12: PN ALL SA. 18 - 19.5 18PR 224 | D12: 1819522418PR | E12: INDUSTRIE | F12: S4 A224 | G12: 18 | I12: - | J12: 19.5 | K12: 165 | L12: A8 | P12: 0 | Q12: 904.8
A13: 0001107 | B13: 3665263011070 | C13: PN ALL SA. 17.5LR24 144 A8 533 | D13: 17524A8533144 | E13: INDUSTRIE | F13: S4 A533 | G13: 17.5 | I13: - | J13: 24 | K13: 144 | L13: A8 | P13: 0 | Q13: 1035.8
A14: 0001108 | B14: 3665263011087 | C14: PN ALL SA. 18.4 - 28 12PR 533 | D14: 1842853312PR | E14: INDUSTRIE | F14: S4 A533 | G14: 18.4 | I14: - | J14: 28 | K14: 157 | L14: A8 | P14: 0 | Q14: 1443
A15: 0001112 | B15: 3665263011124 | C15: PN ALL SA. 16.9 - 28 14PR 302 TT | D15: 16928302TT14PR | E15: INDUSTRIE | F15: S4 A302 | G15: 16.9 | I15: - | J15: 28 | K15: 155 | L15: A8 | P15: 0 | Q15: 1281
A16: 0001114 | B16: 3665263011148 | C16: PN ALL SA. 14.9 - 28 12PR 302 TT | D16: 14928302TT12PR | E16: INDUSTRIE | F16: S4 A302 | G16: 14.9 | I16: - | J16: 28 | K16: 148 | L16: A8 | P16: 0 | Q16: 1089
A17: 0001117 | B17: 3665263011179 | C17: PN ALL SA. 23.1 - 26 16PR 329 | D17: 2312632916PR | E17: INDUSTRIE | F17: S4 329 | G17: 23.1 | I17: - | J17: 26 | K17: 159 | L17: A8 | P17: 0 | Q17: 1679
A18: 0001240 | B18: 3665263012404 | C18: PN ALL SA. 9.5 - 24 8PR 324 | D18: 95243248PR | E18: ROUES MOTRICES | F18: S4 FARMPRO 324 | G18: 9.5 | I18: - | J18: 24 | K18: 112 | L18: A8 | P18: 0 | Q18: 274
A19: 0001251 | B19: 3665263012510 | C19: PN ALL SA. 14.9 - 24 12PR 324 | D19: 1492432412PR | E19: ROUES MOTRICES | F19: S4 FARMPRO 324 | G19: 14.9 | I19: - | J19: 24 | K19: 136 | L19: A8 | P19: 0 | Q19: 654.8
A20: 0001255 | B20: 3665263012558 | C20: PN ALL SA. 18.4 - 26 12PR 324 | D20: 1842632412PR | E20: ROUES MOTRICES | F20: S4 FARMPRO 324 | G20: 18.4 | I20: - | J20: 26 | K20: 146 | L20: A8 | P20: 0 | Q20: 967
A21: 0001261 | B21: 3665263012619 | C21: PN ALL.SA 11.2/10-28 8PR 324 FARM PRO TT | D21: 11228324TT8118A8 | E21: ROUES MOTRICES | F21: S4 FARMPRO 324 | G21: 11.2 | I21: - | J21: 28 | K21: 118 | L21: A8 | P21: 0 | Q21: 372
A22: 0001270 | B22: 3665263012701 | C22: PN ALL SA. 16.9 - 28 8PR 324 | D22: 169283248PR | E22: ROUES MOTRICES | F22: S4 FARMPRO 324 | G22: 16.9 | I22: - | J22: 28 | K22: 135 | L22: A8 | P22: 0 | Q22: 762
A23: 0001275 | B23: 3665263012756 | C23: PN ALL SA. 16.9 - 30 8PR 324 | D23: 169303248PR | E23: ROUES MOTRICES | F23: S4 FARMPRO 324 | G23: 16.9 | I23: - | J23: 30 | K23: 137 | L23: A8 | P23: 0 | Q23: 786
A24: 0001279 | B24: 3665263012794 | C24: PN ALL SA. 18.4 - 30 14PR 324 | D24: 1843032414PR | E24: ROUES MOTRICES | F24: S4 FARMPRO 324 | G24: 18.4 | I24: - | J24: 30 | K24: 152 | L24: A8 | P24: 0 | Q24: 1096
A25: 0001281 | B25: 3665263012817 | C25: PN ALL SA. 16.9 - 34 8PR A324 | D25: 169343248PR | E25: ROUES MOTRICES | F25: S4 FARMPRO 324 | G25: 16.9 | I25: - | J25: 34 | K25: 139 | L25: A8 | P25: 0 | Q25: 889
A26: 0001288 | B26: 3665263012886 | C26: PN ALL.SA 12,4 - 38 6PR 304 | D26: 124383046PRS4 | E26: ROUES MOTRICES | F26: S4 304 | G26: 12.4 | I26: - | J26: 38 | K26: 122 | L26: A8 | P26: 0 | Q26: 714.3
A27: 0001289 | B27: 3665263012893 | C27: PN ALL SA. 13.6 - 38 8PR 304 | D27: 136383048PR | E27: ROUES MOTRICES | F27: S4 304 | G27: 13.6 | I27: - | J27: 38 | K27: 131 | L27: A8 | P27: 0 | Q27: 669
A28: 0001290 | B28: 3665263012909 | C28: PN ALL SA. 14.9 - 38 8PR 304 | D28: 149383048PR | E28: ROUES MOTRICES | F28: S4 304 | G28: 14.9 | I28: - | J28: 38 | K28: 135 | L28: A8 | P28: 0 | Q28: 951.5
A29: 0001295 | B29: 3665263012954 | C29: PN ALL SA. 18.4 - 34 8PR 324 | D29: 184343248PR | E29: ROUES MOTRICES | F29: S4 FARMPRO 324 | G29: 18.4 | I29: - | J29: 34 | K29: 142 | L29: A8 | P29: 0 | Q29: 1064
A30: 0001296 | B30: 3665263012961 | C30: PN ALL SA. 18.4 - 34 14PR 324 | D30: 1843432414PR | E30: ROUES MOTRICES | F30: S4 FARMPRO 324 | G30: 18.4 | I30: - | J30: 34 | K30: 153 | L30: A8 | P30: 0 | Q30: 1214
A31: 0001329 | B31: 3665263013296 | C31: PN ALL SA. 16.9 - 34 14PR 324 | D31: 1693432414PR | E31: ROUES MOTRICES | F31: S4 FARMPRO 324 | G31: 16.9 | I31: - | J31: 34 | K31: 149 | L31: A8 | P31: 0 | Q31: 1250
A32: 0001369 | B32: 3665263013692 | C32: PN ALL SA. 16.5/85 - 28 12PR 324 HD | D32: 1658528324HD12PR | E32: ROUES MOTRICES | F32: S4 FARMPRO 324 | G32: 16.5 | H32: 85 | I32: - | J32: 28 | K32: 148 | L32: A8 | P32: 0 | Q32: 1012
A33: 0001452 | B33: 3665263014521 | C33: PN ALL SA. 9.5R48 136 A8 350 | D33: 9548A8350136 | E33: ROUES MOTRICES | F33: S4 350 | G33: 230 | H33: 95 | I33: R | J33: 48 | K33: 139 | L33: A8 | P33: 0 | Q33: 857.2
A34: 0001459 | B34: 3665263014590 | C34: PN ALL SA. 9.5 - 20 6PR 324 | D34: 95203246PR | E34: ROUES MOTRICES | F34: S4 FARMPRO 324 | G34: 9.5 | I34: - | J34: 20 | K34: 101 | L34: A8 | P34: 0 | Q34: 257
A35: 0001460 | B35: 3665263014606 | C35: PN ALL SA. 11.2R32 132 A8 350 | D35: 11232A8350132 | E35: ROUES MOTRICES | F35: S4 350 | G35: 270 | H35: 95 | I35: R | J35: 32 | K35: 135/132 | L35: D | P35: 0 | Q35: 640
A36: 0001469 | B36: 3665263014699 | C36: PN ALL SA. 11.2R48 142 A8 350 | D36: 11248A8350142 | E36: ROUES MOTRICES | F36: S4 350 | G36: 270 | H36: 95 | I36: R | J36: 48 | K36: 145 | L36: D | P36: 0 | Q36: 929
A37: 0001556 | B37: 3665263015566 | C37: PN ALL SA. 11.2R44 140 A8 350 | D37: 11244A8350140 | E37: ROUES MOTRICES | F37: S4 350 | G37: 270 | H37: 95 | I37: R | J37: 44 | K37: 143 | L37: D | P37: 0 | Q37: 893
A38: 0001580 | B38: 3665263015801 | C38: PN ALL SA. 9.5R32 128 A8 350 | D38: 9532A8350128 | E38: ROUES MOTRICES | F38: S4 350 | G38: 230 | H38: 95 | I38: R | J38: 32 | K38: 131 | L38: A8 | P38: 0 | Q38: 570
A39: 0001581 | B39: 3665263015818 | C39: PN ALL SA. 9.5R36 130 A8 350 | D39: 9536A8350130 | E39: ROUES MOTRICES | F39: S4 350 | G39: 230 | H39: 95 | I39: R | J39: 36 | K39: 133 | L39: A8 | P39: 0 | Q39: 671
A40: 0001582 | B40: 3665263015825 | C40: PN ALL SA. 9.5R44 134 A8 350 | D40: 9544A8350134 | E40: ROUES MOTRICES | F40: S4 350 | G40: 230 | H40: 95 | I40: R | J40: 44 | K40: 137 | L40: A8 | P40: 0 | Q40: 779.6
A41: 0001712 | B41: 3665263017126 | C41: PN ALL SA. 11.00 - 16 10PR 303 TT | D41: 110016303TT10PR | E41: ROUES DIRECTRICES | F41: S4 A303 | G41: 11 | I41: - | J41: 16 | K41: 114 | L41: A8 | P41: 0 | Q41: 444.6
A42: 0001747 | B42: 3665263017478 | C42: PN ALL.SA 9,00 - 16 10PR 303 | D42: 9001630310PR | E42: ROUES DIRECTRICES | F42: S4 303 | G42: 9 | I42: - | J42: 16 | K42: 116 | L42: A6 | P42: 0 | Q42: 266.8
A43: 0001810 | B43: 3665263018109 | C43: PN ALL SA. 6.5/80 - 15 6PR 324 | D43: 6580153246PR | E43: MOTOCULTURE | F43: S4 FARMPRO 324 | G43: 6.5 | H43: 80 | I43: - | J43: 15 | K43: 98/94 | L43: A8 | P43: 0 | Q43: 121.5
A44: 0001815 | B44: 3665263018154 | C44: PN ALL SA. 8.25 - 16 6PR 324 | D44: 825163246PR | E44: MOTOCULTURE | F44: S4 FARMPRO 324 | G44: 8.25 | I44: - | J44: 16 | K44: 105 | L44: A8 | P44: 0 | Q44: 266.7
A45: 0001947 | B45: 3665263019472 | C45: PN ALL.SA 16,5 - 16,1 10PR SL | D45: 165161SL10PRS4 | E45: REMORQUES AGRICOLES | F45: S4 SL | G45: 16.5 | I45: - | J45: 16.1 | K45: 138 | L45: A8 | P45: 0 | Q45: 713.4
A46: 0001967 | B46: 3665263019670 | C46: PN ALL SA. 26X12.00 - 12 6PR 312 | D46: 261200123126PR | E46: MOTOCULTURE | F46: S4 A312 | G46: 12 | I46: - | J46: 12 | K46: 103/101 | L46: B | P46: 0 | Q46: 228.6
A47: 0001973 | B47: 3665263019731 | C47: PN ALL SA. 600/55 - 22.5 16PR 328 | D47: 6005522532816PR | E47: REMORQUES AGRICOLES | F47: S4 328 VALUE PLUS | G47: 600 | H47: 55 | I47: - | J47: 22.5 | K47: 169 | L47: A8 | P47: 0 | Q47: 2053
A48: 0001974 | B48: 3665263019748 | C48: PN ALL SA. 700/50 - 22.5 16PR 328 | D48: 7005022532816PR | E48: REMORQUES AGRICOLES | F48: S4 328 VALUE PLUS | G48: 700 | H48: 50 | I48: - | J48: 22.5 | K48: 174 | L48: A8 | P48: 0 | Q48: 1686
A49: 0001984 | B49: 3665263019847 | C49: PN ALL SA. 600/55 - 26.5 16PR 328 | D49: 6005526532816PR | E49: REMORQUES AGRICOLES | F49: S4 328 VALUE PLUS | G49: 600 | H49: 55 | I49: - | J49: 26.5 | K49: 170 | L49: A8 | P49: 0 | Q49: 1739
A50: 0001986 | B50: 3665263019861 | C50: PN ALL.SA 800/45 - 26,5 16PR 328 | D50: 8004526532816PRS4 | E50: REMORQUES AGRICOLES | F50: S4 328 VALUE PLUS | G50: 800 | H50: 45 | I50: - | J50: 26.5 | K50: 177 | L50: A8 | P50: 0 | Q50: 3238
A51: 0001988 | B51: 3665263019885 | C51: PN ALL.SA 700/50 - 26,5 16PR 328 | D51: 7005026532816PRS4 | E51: REMORQUES AGRICOLES | F51: S4 328 VALUE PLUS | G51: 700 | H51: 50 | I51: - | J51: 26.5 | K51: 174 | L51: A8 | P51: 0 | Q51: 2656
A52: 0002015 | B52: 3665263020157 | C52: PN ALL SA. 600/55 - 22.5 16PR 331 | D52: 6005522533116PR | E52: REMORQUES AGRICOLES | F52: S4 331 | G52: 600 | H52: 55 | I52: - | J52: 22.5 | K52: 169 | L52: A8 | P52: 0 | Q52: 2728.6
A53: 0002016 | B53: 3665263020164 | C53: PN ALL SA. 600/55 - 26.5 16PR 331 | D53: 6005526533116PR | E53: REMORQUES AGRICOLES | F53: S4 331 | G53: 600 | H53: 55 | I53: - | J53: 26.5 | K53: 170 | L53: A8 | P53: 0 | Q53: 2238.1
A54: 0002018 | B54: 3665263020188 | C54: PN ALL SA. 31X15.50 - 15 8PR 221 | D54: 3115501522SA18PR | E54: REMORQUES AGRICOLES | F54: S4 221 | G54: 15.5 | I54: - | J54: 15 | K54: 118 | L54: A8 | P54: 0 | Q54: 350
A55: 0002025 | B55: 3665263020256 | C55: PN ALL SA. 600/60 - 30.5 16PR 331 | D55: 6006030533116PR | E55: REMORQUES AGRICOLES | F55: S4 331 | G55: 600 | H55: 60 | I55: - | J55: 30.5 | K55: 174 | L55: A8 | P55: 0 | Q55: 4072
A56: 0002029 | B56: 3665263020294 | C56: PN ALL SA 31X15.50 - 15 8PR 332 | D56: 311550153328PRS4 | E56: REMORQUES AGRICOLES | F56: S4 A332 | G56: 15.5 | I56: - | J56: 15 | K56: 118 | L56: A8 | P56: 0 | Q56: 388.5
A57: 0002035 | B57: 3665263020355 | C57: PN ALL 600/50-22.5 165/161A8/161B A328 | D57: 6005022532816PR | E57: REMORQUES AGRICOLES | F57: S4 328 VALUE PLUS | G57: 600 | H57: 50 | I57: - | J57: 22.5 | K57: 165 | L57: A8 | P57: 0 | Q57: 1381
A58: 0002038 | B58: 3665263020386 | C58: PN ALL SA. 550/60 - 22.5 16PR 331 | D58: 5506022533116PR | E58: REMORQUES AGRICOLES | F58: S4 331 | G58: 550 | H58: 60 | I58: - | J58: 22.5 | K58: 167 | L58: A8 | P58: 0 | Q58: 2048
A59: 0002080 | B59: 3665263020805 | C59: PN ALL SA. 550/45 - 22.5 16PR 331 | D59: 5504522533116PR | E59: REMORQUES AGRICOLES | F59: S4 331 | G59: 550 | H59: 45 | I59: - | J59: 22.5 | K59: 159 | L59: A8 | P59: 0 | Q59: 1950
A60: 0002091 | B60: 3665263020911 | C60: PN ALL SA. 800/45 - 30.5 16PR 331 | D60: 8004530533116PR | E60: REMORQUES AGRICOLES | F60: S4 331 | G60: 800 | H60: 45 | I60: - | J60: 30.5 | K60: 179 | L60: A8 | P60: 0 | Q60: 4905
A61: 0008058 | B61: 3665263080588 | C61: PN 500-10 6P ZZ HF249 GV SA | D61: 50010MHF24979 | E61: REMORQUES ROUTIERES | F61: S4 HF249 | G61: 5 | I61: - | J61: 10 | K61: 79 | L61: M | P61: 0 | Q61: 80.7
A62: 0008065 | B62: 3665263080656 | C62: PN 570/500-8 6P KT701 S378 ZZ GV SA | D62: 5008MKT70177 | E62: REMORQUES ROUTIERES | F62: S4 KT701 | G62: 5.7 | I62: - | J62: 8 | K62: 77 | L62: M | P62: 0 | Q62: 68.7
A63: 0008075 | B63: 3665263080755 | C63: PN SAPH. 16,5X6,50 - 8 6PR KT705 ZZ | D63: 1656508KT7056PRS4 | E63: REMORQUES ROUTIERES | F63: S4 KT705 | G63: 6.5 | I63: - | J63: 8 | K63: 73 | L63: M | P63: 0 | Q63: 66.2
A64: 0008140 | B64: 3665263081400 | C64: PN HWA.SA 23X8.50 - 12 4PR HF224 | D64: 2385012HF2244PR | E64: MOTOCULTURE | F64: S4 HF224 | G64: 8.5 | I64: - | J64: 12 | K64: 84 | L64: A3 | P64: 0 | Q64: 121.7
A65: 0008144 | B65: 3665263081448 | C65: PN HWA.SA 16X7.50 - 8 4PR HF224 | D65: 167508HF2244PR | E65: MOTOCULTURE | F65: S4 HF224 | G65: 7.5 | I65: - | J65: 8 | K65: 61 | L65: A3 | P65: 0 | Q65: 64.6
A66: 0008163 | B66: 3665263081639 | C66: PN ALL SA. 10.0/75 - 15.3 10PR 317 TT | D66: 10075153317TT10PR | E66: INDUSTRIE | F66: S4 A317 MPT | G66: 10 | H66: 75 | I66: - | J66: 15.3 | K66: 111/107 | L66: A8 | P66: 0 | Q66: 231
A67: 0008174 | B67: 3665263081745 | C67: PN ALL SA. 12.0/75 - 18 12PR 317 TT | D67: 1207518317TT12PR | E67: INDUSTRIE | F67: S4 A317 MPT | G67: 12 | H67: 75 | I67: - | J67: 18 | K67: 126/123 | L67: A8 | P67: 0 | Q67: 473.9
A68: 0008191 | B68: 3665263081912 | C68: PN ALL SA. 16/70 - 20 14PR 326 | D68: 16702032614PR | E68: INDUSTRIE | F68: S4 326 | G68: 16 | H68: 70 | I68: - | J68: 20 | K68: 166 | L68: A2 | P68: 0 | Q68: 816.8
A69: 0008194 | B69: 3665263081943 | C69: PN ALL SA. 16/70 - 24 14PR 326 | D69: 16702432614PR | E69: INDUSTRIE | F69: S4 326 | G69: 16 | H69: 70 | I69: - | J69: 24 | K69: 169 | L69: A2 | P69: 0 | Q69: 941
A70: 0008196 | B70: 3665263081967 | C70: PN ALL SA. 12.5 - 18 10PR 317 | D70: 1251831710PR | E70: INDUSTRIE | F70: S4 A317 MPT | G70: 12.5 | I70: - | J70: 18 | K70: 135 | L70: B | P70: 0 | Q70: 516.7
A71: 0022886 | B71: 3665263228867 | C71: PN ALL SA. 650/55R26.5 167 E 380 | D71: 65055265E380167 | E71: REMORQUES AGRICOLES | F71: S4 A380 | G71: 650 | H71: 55 | I71: R | J71: 26.5 | K71: 167 | L71: E | P71: 0 | Q71: 1953
A72: 0024171 | B72: 3665263241712 | C72: PN ALL SA. 23.1 - 30 14PR 347 LIVEN TT | D72: 23130347LITT14PR | E72: ROUES MOTRICES | F72: S4 347 LIVEN | G72: 23.1 | I72: - | J72: 30 | K72: 158 | L72: A8 | P72: 0 | Q72: 2226.2
A73: 0024670 | B73: 3665263246700 | C73: PN ALL SA. 650/60 - 30.5 16PR 328 | D73: 65060305328SA16PR | E73: REMORQUES AGRICOLES | F73: S4 328 VALUE PLUS | G73: 650 | H73: 60 | I73: - | J73: 30.5 | K73: 179 | L73: A8 | P73: 0 | Q73: 4209.6
A74: 0024683 | B74: 3665263246830 | C74: PN ALL SA. 550/45 - 22.5 16PR 328 | D74: 5504522532816PR | E74: REMORQUES AGRICOLES | F74: S4 328 VALUE PLUS | G74: 550 | H74: 45 | I74: - | J74: 22.5 | K74: 159 | L74: A8 | P74: 0 | Q74: 829
A75: 0027631 | B75: 3665263276318 | C75: PN ALL SA. 16.9 - 30 14PR 324 | D75: 1693032414PR | E75: ROUES MOTRICES | F75: S4 FARMPRO 324 | G75: 16.9 | I75: - | J75: 30 | K75: 148 | L75: A8 | P75: 0 | Q75: 833.4
A76: 0028889 | B76: 3665263288892 | C76: PN ALL SA. 10.00 - 16 10PR 303 TT | D76: 100016303TT10PR | E76: ROUES DIRECTRICES | F76: S4 A303 | G76: 10 | I76: - | J76: 16 | K76: 111 | L76: A8 | P76: 0 | Q76: 345.3
A77: 0029325 | B77: 3665263293254 | C77: PN HWA.SA 23X10.50 - 12 4PR HF255 | D77: 23105012HF2554PR | E77: MOTOCULTURE | F77: S4 HF255 | G77: 10.5 | I77: - | J77: 12 | K77: 90 | L77: A3 | P77: 0 | Q77: 123.9
A78: 0030102 | B78: 3665263301027 | C78: PN MIT.SA 6.00 - 12 4PR KT803 | D78: 60012KT8034PR | E78: MOTOCULTURE | F78: S4 KT803 | G78: 600 | I78: - | J78: 12 | K78: 4PR | P78: 0 | Q78: 145.4
A79: 0030113 | B79: 3665263301133 | C79: PN DUR.SA 4.00 - 10 4PR HF253+TR13 | D79: 40010HF2534PR | E79: MOTOCULTURE | F79: S4 HF253 | G79: 4 | I79: - | J79: 10 | K79: 54 | L79: A8 | P79: 0 | Q79: 60.4
A80: 0030567 | B80: 3665263305674 | C80: RC AG ALL 23.1 -26 156A8 A347 TT 10 | D80: 23126W20A347156106RC | E80: REMORQUES AGRICOLES | F80: S4 A347 | G80: 23.1 | I80: - | J80: 26 | K80: 156 | L80: A8 | P80: 0 | Q80: 2388.1
A81: 0031092 | B81: 3665263310920 | C81: PN ALL SA. 20.8 - 38 14PR 347 | D81: 2083834714PR | E81: ROUES MOTRICES | F81: S4 A347 | G81: 20.8 | I81: - | J81: 38 | K81: 159 | L81: A8 | P81: 0 | Q81: 1878.6
A82: 0036794 | B82: 3665263367948 | C82: PN ALL SA. 23.1 - 26 16PR 330 HD | D82: 23126330HD16PR | E82: ROUES MOTRICES | F82: S4 A330 | G82: 23.1 | I82: - | J82: 26 | K82: 168 | L82: A8 | P82: 0 | Q82: 1929
A83: 0038405 | B83: 3665263384051 | C83: PN ALL SA. 10.5 - 18 10PR 317 | D83: 10518317SA10PR | E83: INDUSTRIE | F83: S4 A317 MPT | G83: 10.5 | I83: - | J83: 18 | K83: 126 | L83: G | P83: 0 | Q83: 447.7
A84: 0038769 | B84: 3665263387694 | C84: PN ALL SA. 8.3R32 116 A8 350 | D84: 8332A8350116 | E84: ROUES MOTRICES | F84: S4 350 | G84: 210 | H84: 95 | I84: R | J84: 32 | K84: 119 | L84: A8 | P84: 0 | Q84: 486
A85: 0039579 | B85: 3665263395798 | C85: PN ALL SA. 18.4 - 38 14PR 347 TT | D85: 18438347TT14PR | E85: ROUES MOTRICES | F85: S4 A347 | G85: 18.4 | I85: - | J85: 38 | K85: 155 | L85: A8 | P85: 0 | Q85: 1477
A86: 0039585 | B86: 3665263395859 | C86: PN DUR.SA 23X10.50 - 12 4PR HF224 | D86: 23105012HF2244PR | E86: MOTOCULTURE | F86: S4 HF224 | G86: 10.5 | I86: - | J86: 12 | K86: 90 | L86: A3 | P86: 0 | Q86: 144.2
A87: 0040599 | B87: 3665263405992 | C87: PN DUR.SA 20X10.00 - 8 4PR HF224 | D87: 2010008HF2244PR | E87: MOTOCULTURE | F87: S4 HF224 | G87: 10 | I87: - | J87: 8 | K87: 84 | L87: A3 | P87: 0 | Q87: 85.4
A88: 0040811 | B88: 3665263408115 | C88: PN ALL.SA 16,5/85 - 28 12PR 533 | D88: 165852853312PRS4 | E88: INDUSTRIE | F88: S4 A533 | G88: 16.5 | H88: 85 | I88: - | J88: 28 | K88: 159 | L88: A8 | P88: 0 | Q88: 1262
A89: 0041457 | B89: 3665263414574 | C89: PN ALL SA. 16.5/85 - 24 12PR 533 TT | D89: 1658524533TT12PR | E89: INDUSTRIE | F89: S4 A533 | G89: 16.5 | H89: 85 | I89: - | J89: 24 | K89: 150/146 | L89: A8 | P89: 0 | Q89: 1188.1
A90: 0041901 | B90: 3665263419012 | C90: PN DUR 26X12.00 -12 8P HF-213 | D90: 2612001210HF2138 | E90: MOTOCULTURE | F90: S4 HF-213 | G90: 12 | I90: - | J90: 12 | K90: 8PR | P90: 0 | Q90: 216.2
A91: 0042146 | B91: 3665263421466 | C91: RC AG SAP 20.5X8.00 -10 96M KT 705 5 | D91: 3004210AKT5014RCRC | E91: REMORQUES ROUTIERES | F91: S4 KT 705 | G91: 8 | I91: - | J91: 10 | K91: 96 | L91: M | P91: 0 | Q91: 214.3
A92: 0042367 | B92: 3665263423675 | C92: PN HWA.SA 190 - 8 8PR HF400 | D92: 1908HF4008PR | E92: MOTOCULTURE | F92: S4 HF400 | G92: 190 | I92: - | J92: 8 | K92: 88 | L92: A6 | P92: 0 | Q92: 93.3
A93: 0043806 | B93: 3665263438068 | C93: PN ALL SA. 300/95R52 148 A8 350 | D93: 3009552A8350148 | E93: ROUES MOTRICES | F93: S4 350 | G93: 300 | H93: 95 | I93: R | J93: 52 | K93: 151 | L93: D | P93: 0 | Q93: 1643
A94: 0043807 | B94: 3665263438075 | C94: PN ALL SA. 270/95R38 137 A8 350 | D94: 2709538A8350137 | E94: ROUES MOTRICES | F94: S4 350 | G94: 270 | H94: 95 | I94: R | J94: 38 | K94: 140/137 | L94: D | P94: 0 | Q94: 858
A95: 0043828 | B95: 3665263438280 | C95: PN ALL SA. 500/45 - 20 18PR 331 HD | D95: 5004520331HD18PR | E95: REMORQUES AGRICOLES | F95: S4 331 | G95: 500 | H95: 45 | I95: - | J95: 20 | K95: 160 | L95: A8 | P95: 0 | Q95: 1890
A96: 0043869 | B96: 3665263438693 | C96: PN HWA.SA 23X8.50 - 12 4PR HF255 | D96: 2385012HF2554PR | E96: MOTOCULTURE | F96: S4 HF255 | G96: 8.5 | I96: - | J96: 12 | K96: 84 | L96: A3 | P96: 0 | Q96: 105.6
A97: 0044026 | B97: 3665263440269 | C97: PN ALL SA. 13.6 - 24 10PR 356 FORET | D97: 13624356FO10PR | E97: FORESTIER | F97: S4 356 FORET | G97: 13.6 | I97: - | J97: 24 | K97: 128 | L97: A8 | P97: 0 | Q97: 1533.4
A98: 0044028 | B98: 3665263440283 | C98: PN ALL SA. 14.9 - 28 14PR 356 FORET | D98: 14928356FO14PR | E98: FORESTIER | F98: S4 356 FORET | G98: 14.9 | I98: - | J98: 28 | K98: 140 | L98: A8 | P98: 0 | Q98: 1799.5
A99: 0044035 | B99: 3665263440351 | C99: PN ALL SA. 500/60 - 22.5 16PR 331 FORET | D99: 50060225331FO16PR | E99: FORESTIER | F99: S4 331 | G99: 500 | H99: 60 | I99: - | J99: 22.5 | K99: 158/151 | L99: A8 | P99: 0 | Q99: 2580.1
A100: 0044038 | B100: 3665263440382 | C100: PN ALL SA. 500/60 - 26.5 16PR 331 FORET | D100: 50060265331FO16PR | E100: FORESTIER | F100: S4 331 | G100: 500 | H100: 60 | I100: - | J100: 26.5 | K100: 163 | L100: A8 | P100: 0 | Q100: 2903
A101: 0044754 | B101: 3665263447541 | C101: RC AG ALL 20.8 -38 159A8 A347 TT 10 0 | D101: 20838W18A347159101RC | E101: REMORQUES AGRICOLES | F101: S4 A347 | G101: 20.8 | I101: - | J101: 38 | K101: 159 | L101: A8 | P101: 0 | Q101: 3576.2
A102: 0044849 | B102: 3665263448494 | C102: PN ALL SA. 400/55 - 17.5 16PR 328 | D102: 4005517532816PR | E102: REMORQUES AGRICOLES | F102: S4 328 VALUE PLUS | G102: 400 | H102: 55 | I102: - | J102: 17.5 | K102: 149 | L102: A8 | P102: 0 | Q102: 690.5
A103: 0044957 | B103: 3665263449576 | C103: PN ALL SA. 270/95R36 136 D 350 | D103: 2709536D350136 | E103: ROUES MOTRICES | F103: S4 350 | G103: 270 | H103: 95 | I103: R | J103: 36 | K103: 139/136 | L103: D | P103: 0 | Q103: 833
A104: 0045364 | B104: 3665263453641 | C104: PN MIT.SA 4.80X4.00 - 8 4PR KT602+TR13 | D104: 4804008KT6024PR | E104: MOTOCULTURE | F104: S4 KT602+TR13 | G104: 4 | I104: - | J104: 8 | K104: 4PR | P104: 0 | Q104: 29.5
A105: 0045370 | B105: 3665263453702 | C105: PN MIT.SA 6.5/80 - 15 6PR KT801+TR13 | D105: 658015KT801TR136PR | E105: MOTOCULTURE | F105: S4 KT801+TR13 | G105: 6.5 | H105: 80 | I105: - | J105: 15 | K105: 6PR | P105: 0 | Q105: 107
A106: 0045576 | B106: 3665263455768 | C106: RC SEL.SA 3.00 -4 4P KT 501 TT RR 25X75 | D106: 3004KT5014RC | E106: AGRAIRE | F106: S4 KT 501 | G106: 3 | I106: - | J106: 4 | K106: 4PR | P106: 0 | Q106: 99.3
A107: 0045671 | B107: 3665263456710 | C107: PN DUR.SA 5.00 - 10 6PR HF214 | D107: 50010HF2146PR | E107: REMORQUES ROUTIERES | F107: S4 HF214 | G107: 5 | I107: - | J107: 10 | K107: 79 | L107: M | P107: 0 | Q107: 80.7
A108: 0045672 | B108: 3665263456727 | C108: PN DUR.SA 5.00 - 10 8PR HF214 | D108: 50010HF2148PR | E108: REMORQUES ROUTIERES | F108: S4 HF214 | G108: 5 | I108: - | J108: 10 | K108: 84 | L108: N | P108: 0 | Q108: 89.6
A109: 0045674 | B109: 3665263456741 | C109: PN DUR.SA 4.00 - 8 6PR HF232 | D109: 4008HF2326PR | E109: REMORQUES ROUTIERES | F109: S4 HF232 | G109: 4.8 | I109: - | J109: 8 | K109: 70 | L109: M | P109: 0 | Q109: 44.1
A110: 0045777 | B110: 3665263457779 | C110: PN DUR.SA 15X6.00 - 6 4PR HF224 | D110: 156006HF2244PR | E110: MOTOCULTURE | F110: S4 HF224 | G110: 6 | I110: - | J110: 6 | K110: 62 | L110: A6 | P110: 0 | Q110: 39.8
A111: 0045935 | B111: 3665263459353 | C111: RC AG ALL 20.8 -38 159A8 A347 TT 10 | D111: 20838W18A347159103RC | E111: REMORQUES AGRICOLES | F111: S4 A347 | G111: 20.8 | I111: - | J111: 38 | K111: 159 | L111: A8 | P111: 0 | Q111: 3576.2
A112: 0046083 | B112: 3665263460830 | C112: PN DUR.SA 4.80 - 12 6PR HF215 | D112: 48012HF2156PR | E112: REMORQUES ROUTIERES | F112: S4 HF215 | G112: 4.8 | I112: - | J112: 12 | K112: 80 | L112: M | P112: 0 | Q112: 76.5
A113: 0046472 | B113: 3665263464722 | C113: RC AG ALL 23.1 -26 156A8 A347 TT 10 0 | D113: 23126W20A347156101RC | E113: REMORQUES AGRICOLES | F113: S4 A347 | G113: 23.1 | I113: - | J113: 26 | K113: 156 | L113: A8 | P113: 0 | Q113: 2388.1
A114: 0046648 | B114: 3665263466481 | C114: PN ADV SA. 24.5 - 32 16PR LS2A FOR TT | D114: 24532LS2AFTT16PR | E114: FORESTIER | F114: S4 LS2A | G114: 24.5 | I114: - | J114: 32 | K114: 164 | L114: A6 | P114: 0 | Q114: 4450
A115: 0046655 | B115: 3665263466559 | C115: PN ADV SA. 17.5LR24 12PR R4 | D115: 17524R412PR | E115: INDUSTRIE | F115: S4 R4 | G115: 17.5 | I115: - | J115: 24 | K115: 146 | L115: A8 | P115: 0 | Q115: 1038.2
A116: 0046666 | B116: 3665263466665 | C116: PN ADV SA. 12 - 16.5 10PR L2B | D116: 12165L2B10PR | E116: INDUSTRIE | F116: S4 L2B | G116: 12 | I116: - | J116: 16.5 | K116: 141 | L116: A2 | P116: 0 | Q116: 280.9
A117: 0046667 | B117: 3665263466672 | C117: PN ADV SA. 23X8.50 - 12 8PR L2B | D117: 2385012L2B8PR | E117: INDUSTRIE | F117: S4 L2B | G117: 8.5 | I117: - | J117: 12 | K117: 107 | L117: A2 | P117: 0 | Q117: 144.4
A118: 0046668 | B118: 3665263466689 | C118: PN ADV SA. 27X8.50 - 15 8PR L2B | D118: 2785015L2B8PR | E118: INDUSTRIE | F118: S4 L2B | G118: 8.5 | I118: - | J118: 15 | K118: 101 | L118: A2 | P118: 0 | Q118: 188
A119: 0046669 | B119: 3665263466696 | C119: PN ADV SA. 10 - 16.5 12PR L4A | D119: 10165L4A12PR | E119: INDUSTRIE | F119: S4 L4A | G119: 10 | I119: - | J119: 16.5 | K119: 138 | L119: A2 | P119: 0 | Q119: 384
A120: 0046670 | B120: 3665263466702 | C120: PN ADV SA. 12 - 16.5 14PR L4A | D120: 12165L4A14PR | E120: INDUSTRIE | F120: S4 L4A | G120: 12 | I120: - | J120: 16.5 | K120: 147 | L120: A2 | P120: 0 | Q120: 496.6
A121: 0046742 | B121: 3665263467426 | C121: PN ALL 500/60-22.5 163A8/159B A328 | D121: 5006022532816PR | E121: REMORQUES AGRICOLES | F121: S4 328 VALUE PLUS | G121: 500 | H121: 60 | I121: - | J121: 22.5 | K121: 163 | L121: A8 | P121: 0 | Q121: 976
A122: 0046747 | B122: 3665263467471 | C122: RC DUR 4.80 - 2.5X8 70M HF-232 | D122: 4808250HF23270M4RC | E122: REMORQUES ROUTIERES | F122: S4 HF-232 | G122: 4.8 | I122: - | J122: 8 | K122: 70 | L122: M | P122: 0 | Q122: 133.6
A123: 0046748 | B123: 3665263467488 | C123: RC AG DUR 4.80 -8 70M HF-232 | D123: 4804008250CHF232RC | E123: REMORQUES ROUTIERES | F123: S4 HF-232 | G123: 4.8 | I123: - | J123: 8 | K123: 70 | L123: M | P123: 0 | Q123: 133.6
A124: 0046882 | B124: 3665263468829 | C124: PN ALL SA. 600/55R22.5 162 E 380 | D124: 60055225E380162 | E124: REMORQUES AGRICOLES | F124: S4 A380 | G124: 600 | H124: 55 | I124: R | J124: 22.5 | K124: 162 | L124: E | P124: 0 | Q124: 2515
A125: 0046900 | B125: 3665263469000 | C125: PN DUR.SA 18X9.50 - 8 4PR HF224 | D125: 189508HF2244PR | E125: MOTOCULTURE | F125: S4 HF224 | G125: 9.5 | I125: - | J125: 8 | K125: 82 | L125: A6 | P125: 0 | Q125: 64.4
A126: 0046934 | B126: 3665263469345 | C126: PN DUR.SA 3.50 - 8 4PR HF205 | D126: 3508HF2054PR | E126: REMORQUES ROUTIERES | F126: S4 HF205 | G126: 3.5 | I126: - | J126: 8 | K126: 46 | L126: M | P126: 0 | Q126: 30.2
A127: 0047100 | B127: 3665263471003 | C127: PN DUR.SA 18X8.50 - 8 4PR HF224 | D127: 188508HF2244PR | E127: MOTOCULTURE | F127: S4 HF224 | G127: 8.5 | I127: - | J127: 8 | K127: 74 | L127: A3 | P127: 0 | Q127: 68.1
A128: 0047111 | B128: 3665263471119 | C128: PN DURO 5.00-8 77M HF-214 SA | D128: 5008HF21477 | E128: REMORQUES ROUTIERES | F128: S4 HF214 | G128: 5 | I128: - | J128: 8 | K128: 77 | L128: M | P128: 0 | Q128: 68.7
A129: 0047113 | B129: 3665263471133 | C129: PN DUR.SA 4.00 - 10 6PR HF229 | D129: 40010HF2296PR | E129: REMORQUES ROUTIERES | F129: S4 HF229 | G129: 4 | I129: - | J129: 10 | K129: 71 | L129: M | P129: 0 | Q129: 50.3
A130: 0047136 | B130: 3665263471362 | C130: PN ALL SA. 445/70R24 151 G 570 | D130: 4457024G570151 | E130: INDUSTRIE | F130: S4 570 | G130: 445 | H130: 70 | I130: R | J130: 24 | K130: 151 | L130: G | P130: 0 | Q130: 1907.2
A131: 0047166 | B131: 3665263471669 | C131: PN DUR.SA 18X8.50 - 8 4PR HF217 | D131: 188508HF2174PR | E131: MOTOCULTURE | F131: S4 HF217 | G131: 8.5 | I131: - | J131: 8 | K131: 74 | L131: A3 | P131: 0 | Q131: 68.1
A132: 0047168 | B132: 3665263471683 | C132: PN DURO 15/600-6 6P HF217 LIGNE SA | D132: 156006HF217 | E132: MOTOCULTURE | F132: S4 HF217 | G132: 6 | I132: - | J132: 6 | K132: 6PR | P132: 0 | Q132: 40.3
A133: 0047735 | B133: 3665263477357 | C133: PN ALL SA. 500/45 - 22.5 16PR 328 | D133: 5004522532816PR | E133: REMORQUES AGRICOLES | F133: S4 328 VALUE PLUS | G133: 500 | H133: 45 | I133: - | J133: 22.5 | K133: 154 | L133: A8 | P133: 0 | Q133: 846
A134: 0047860 | B134: 3665263478606 | C134: RC AG DUR 3.50 -8 46M HF-205 | D134: 3508250CHF20546MR4RC | E134: REMORQUES ROUTIERES | F134: S4 HF-205 | G134: 3.5 | I134: - | J134: 8 | K134: 46 | L134: M | P134: 0 | Q134: 47.5
A135: 0047939 | B135: 3665263479399 | C135: PN HWA.SA 16X6.50 - 8 4PR HF224 | D135: 166508HF224SA4PR | E135: MOTOCULTURE | F135: S4 HF224 | G135: 6.5 | I135: - | J135: 8 | K135: 4PR | P135: 0 | Q135: 42.9
A136: 0047960 | B136: 3665263479603 | C136: PN SAPH. 20,5X8,00 - 10 10PR HF232 | D136: 20580010HF23210PRS4 | E136: REMORQUES ROUTIERES | F136: S4 HF232 | G136: 8 | I136: - | J136: 10 | K136: 96 | L136: M | P136: 0 | Q136: 156.5
A137: 0048266 | B137: 3665263482665 | C137: RC AG MAX 145 R10 74N CR-966 4 0 | D137: 14510350BCR9667443RC | E137: REMORQUES ROUTIERES | F137: S4 CR-966 | G137: 145 | I137: R | J137: 10 | K137: 74 | L137: N | P137: 0 | Q137: 154.8
A138: 0048268 | B138: 3665263482689 | C138: RC AG MAX 195/55R10 98P CR-966 4 0 | D138: 1955510600ICR96692RC | E138: REMORQUES ROUTIERES | F138: S4 CR-966 | G138: 195 | H138: 55 | I138: R | J138: 10 | K138: 98/96 | L138: P | P138: 0 | Q138: 214.3
A139: 0048570 | B139: 3665263485703 | C139: PN ALL SA. 650/75R32 175 A8 360 | D139: 6507532A8360SA175 | E139: ROUES MOTRICES | F139: S4 A360 | G139: 650 | H139: 75 | I139: R | J139: 32 | K139: 175 | L139: A8 | P139: 0 | Q139: 4654.8
A140: 0048572 | B140: 3665263485727 | C140: PN ALL SA. 30.5 L 32 178 A8 360 | D140: 30532A8360178 | E140: ROUES MOTRICES | F140: S4 A360 | G140: 30.5 | I140: R | J140: 32 | K140: 178 | L140: A8 | P140: 0 | Q140: 5601.5
A141: 0048574 | B141: 3665263485741 | C141: PN ALL.SA 620/70R42 166 A8 360 | D141: 6207042A8360166S4 | E141: ROUES MOTRICES | F141: S4 A360 | G141: 620 | H141: 70 | I141: R | J141: 42 | K141: 166 | L141: A8 | P141: 0 | Q141: 2924
A142: 0048575 | B142: 3665263485758 | C142: PN ALL SA. 620/70R42 173 A8 360 | D142: 6207042A8360173 | E142: ROUES MOTRICES | F142: S4 A360 | G142: 620 | H142: 70 | I142: R | J142: 42 | K142: 173 | L142: A8 | P142: 0 | Q142: 3979.3
A143: 0048577 | B143: 3665263485772 | C143: PN ALL SA. 540/65 - 28 16PR 360 FORET | D143: 5406528360FO16PR | E143: FORESTIER | F143: S4 360 FO | G143: 540 | H143: 65 | I143: - | J143: 28 | K143: 162/155 | L143: A8 | P143: 0 | Q143: 2738
A144: 0048693 | B144: 3665263486939 | C144: RC AG DUR 3.50 -8 46M HF-205 | D144: 3508250CHF20546MR3RC | E144: REMORQUES ROUTIERES | F144: S4 HF-205 | G144: 3.5 | I144: - | J144: 8 | K144: 46 | L144: M | P144: 0 | Q144: 47.5
A145: 0048767 | B145: 3665263487677 | C145: RC GT 205 R 5.5X14 109R MAXM | D145: 20514550MAXM109RRC | E145: REMORQUES ROUTIERES | F145: MAXMILER | G145: 205 | I145: R | J145: 14 | K145: 109 | L145: R | P145: 0 | Q145: 223.5
A146: 0049105 | B146: 3665263491056 | C146: PN ALL SA. 11.5/80 - 15.3 14PR 317 TT | D146: 11580153317TT14PR | E146: INDUSTRIE | F146: S4 A317 MPT | G146: 11.5 | H146: 80 | I146: - | J146: 15.3 | K146: 126/123 | L146: A8 | P146: 0 | Q146: 321.5
A147: 0049111 | B147: 3665263491117 | C147: PN ALL SA. 400/70 - 20 150 B 570 | D147: 4007020B570SA150 | E147: INDUSTRIE | F147: S4 570 | G147: 400 | H147: 70 | I147: - | J147: 20 | K147: 150 | L147: B | P147: 0 | Q147: 1090.5
A148: 0049252 | B148: 3665263492527 | C148: RC AG DUR 20.5X8.00 -10 96M HF-232 5 | D148: 4004210AHF20767A5RC | E148: REMORQUES ROUTIERES | F148: S4 HF-232 | G148: 8 | I148: - | J148: 10 | K148: 96 | L148: M | P148: 0 | Q148: 214.3
A149: 0049411 | B149: 3665263494118 | C149: RC AG ALL 600/55R22.5 162E A380 10 0 | D149: 6005522520A3801622RC | E149: REMORQUES AGRICOLES | F149: S4 A380 | G149: 600 | H149: 55 | I149: R | J149: 22.5 | K149: 162 | L149: E | P149: 0 | Q149: 3000
A150: 0049436 | B150: 3665263494361 | C150: PN ADV 23.1 -26 160A6 LS-2A | D150: 23126LS2A160A6 | E150: REMORQUES AGRICOLES | F150: S4 LS-2A | G150: 23.1 | I150: - | J150: 26 | K150: 160 | L150: A6 | P150: 0 | Q150: 3701.1
A151: 0049623 | B151: 3665263496235 | C151: RC DUR 4.80 - 2.5X8 70M HF-232 | D151: 4808250HF23270M2RC | E151: REMORQUES ROUTIERES | F151: S4 HF-232 | G151: 4.8 | I151: - | J151: 8 | K151: 70 | L151: M | P151: 0 | Q151: 60.4
A152: 0049683 | B152: 3665263496839 | C152: RC AG ALL 600/55-22.5 169A8 A328 10 0 | D152: 6005522520A3281692RC | E152: REMORQUES AGRICOLES | F152: S4 328 VALUE PLUS | G152: 600 | H152: 55 | I152: - | J152: 22.5 | K152: 169/166 | L152: A8 | P152: 0 | Q152: 2595.3
A153: 0049943 | B153: 3665263499434 | C153: RC AG ALL 20.8 -38 159A8 A347 TT 10 0 | D153: 20838W18A347159102RC | E153: REMORQUES AGRICOLES | F153: S4 A347 | G153: 20.8 | I153: - | J153: 38 | K153: 159 | L153: A8 | P153: 0 | Q153: 3576.2
A154: 0050081 | B154: 3665263500819 | C154: RC AG MAX 145 R10 74N CR-966 4 0 | D154: 14510350BCR9667441RC | E154: REMORQUES ROUTIERES | F154: S4 CR-966 | G154: 145 | I154: R | J154: 10 | K154: 74 | L154: N | P154: 0 | Q154: 154.8
A155: 0050199 | B155: 3665263501991 | C155: RC AG ALL 18.4 -34 153A8 A324 TT 10 | D155: 18434DW16A32415313RC | E155: REMORQUES AGRICOLES | F155: S4 FARMPRO 324 | G155: 18.4 | I155: - | J155: 34 | K155: 153 | L155: A8 | P155: 0 | Q155: 2476.2
A156: 0050438 | B156: 3665263504381 | C156: PN ALL SA. 16.9R26 135 A8 356 | D156: 16926A8356SA135 | E156: ROUES MOTRICES | F156: S4 356 | G156: 16.9 | I156: R | J156: 26 | K156: 135 | L156: A8 | P156: 0 | Q156: 1833.4
A157: 0050439 | B157: 3665263504398 | C157: PN ALL SA. 18.4R26 140 A8 356 | D157: 18426A8356SA140 | E157: ROUES MOTRICES | F157: S4 356 | G157: 18.4 | I157: R | J157: 26 | K157: 140 | L157: A8 | P157: 0 | Q157: 1974
A158: 0050557 | B158: 3665263505579 | C158: PN ALL SA. 9.5R24 107 A8 350 | D158: 9524A8350107 | E158: ROUES MOTRICES | F158: S4 350 | G158: 9.5 | I158: R | J158: 24 | K158: 107 | L158: A8 | P158: 0 | Q158: 665.7
A159: 0050565 | B159: 3665263505654 | C159: PN ALL SA. 270/95R54 146 A8 350 | D159: 2709554A8350146 | E159: ROUES MOTRICES | F159: S4 350 | G159: 270 | H159: 95 | I159: R | J159: 54 | K159: 149 | L159: D | P159: 0 | Q159: 1357
A160: 0050567 | B160: 3665263505678 | C160: PN ALL SA. 24.5 - 32 12PR 347 TT | D160: 24532347TT12PR | E160: ROUES MOTRICES | F160: S4 A347 | G160: 24.5 | I160: - | J160: 32 | K160: 160 | L160: A8 | P160: 0 | Q160: 3274
A161: 0050568 | B161: 3665263505685 | C161: PN ALL SA. 9.5 - 36 6PR 324 | D161: 95363246PR | E161: ROUES MOTRICES | F161: S4 FARMPRO 324 | G161: 9.5 | I161: - | J161: 36 | K161: 109 | L161: A8 | P161: 0 | Q161: 521.5
A162: 0050572 | B162: 3665263505722 | C162: PN ALL SA. 11.2 - 24 10PR 356 FORET | D162: 11224356FO10PR | E162: FORESTIER | F162: S4 356 FORET | G162: 11.2 | I162: - | J162: 24 | K162: 125/119 | L162: A8 | P162: 0 | Q162: 1112
A163: 0050574 | B163: 3665263505746 | C163: PN ALL SA. 18.4 - 26 10PR 356 FORET | D163: 18426356FO10PR | E163: FORESTIER | F163: S4 356 FORET | G163: 18.4 | I163: - | J163: 26 | K163: 148/141 | L163: A8 | P163: 0 | Q163: 2400
A164: 0050575 | B164: 3665263505753 | C164: PN ALL SA. 13.6 - 28 10PR 356 FORET | D164: 13628356FOSA10PR | E164: FORESTIER | F164: S4 356 FORET | G164: 13.6 | I164: - | J164: 28 | K164: 138/130 | L164: A8 | P164: 0 | Q164: 1528
A165: 0050576 | B165: 3665263505760 | C165: PN ALL SA. 18.4 - 30 14PR 356 FORET | D165: 18430356FO14PR | E165: FORESTIER | F165: S4 356 FORET | G165: 18.4 | I165: - | J165: 30 | K165: 158/151 | L165: A8 | P165: 0 | Q165: 2738
A166: 0050578 | B166: 3665263505784 | C166: PN ALL SA. 400/55 - 22.5 16PR 328 | D166: 4005522532816PR | E166: REMORQUES AGRICOLES | F166: S4 328 VALUE PLUS | G166: 400 | H166: 55 | I166: - | J166: 22.5 | K166: 152 | L166: A8 | P166: 0 | Q166: 710
A167: 0050579 | B167: 3665263505791 | C167: PN ALL SA. 500/60 - 26.5 16PR 331 | D167: 5006026533116PR | E167: REMORQUES AGRICOLES | F167: S4 331 | G167: 500 | H167: 60 | I167: - | J167: 26.5 | K167: 165 | L167: A8 | P167: 0 | Q167: 2767.7
A168: 0050580 | B168: 3665263505807 | C168: PN ALL SA. 16.9 - 28 12PR 533 | D168: 1692853312PR | E168: ROUES MOTRICES | F168: S4 A533 | G168: 16.9 | I168: - | J168: 28 | K168: 152 | L168: A8 | P168: 0 | Q168: 964.3
A169: 0050583 | B169: 3665263505838 | C169: PN ALL SA. 12.5/80 - 18 12PR A321 | D169: 1258018A32112PR | E169: INDUSTRIE | F169: S4 321 | G169: 12.5 | H169: 80 | I169: - | J169: 18 | K169: 142 | L169: A8 | P169: 0 | Q169: 404.8
A170: 0050613 | B170: 3665263506132 | C170: PN ALL SA. 30.5 LR 32 181 A8 A390 | D170: 30532A8A390181 | E170: REMORQUES AGRICOLES | F170: S4 A390HD | G170: 30.5 | I170: R | J170: 32 | K170: 181 | L170: B | P170: 0 | Q170: 5387
A171: 0050706 | B171: 3665263507061 | C171: PN ALL SA. 455/70R24 165 A2 606 | D171: 4557024A2606165 | E171: INDUSTRIE | F171: S4 A606 | G171: 455 | H171: 70 | I171: R | J171: 24 | K171: 165 | L171: A2 | P171: 0 | Q171: 2094.3
A172: 0050774 | B172: 3665263507740 | C172: PN ALL SA. 650/50R22.5 163 E 380 | D172: 65050225E380163 | E172: REMORQUES AGRICOLES | F172: S4 A380 | G172: 650 | H172: 50 | I172: R | J172: 22.5 | K172: 163 | L172: E | P172: 0 | Q172: 2038.1
A173: 0050861 | B173: 3665263508617 | C173: RC AG ALL 600/55-22.5 169A8 A328 10 | D173: 6005522520A3281696RC | E173: REMORQUES AGRICOLES | F173: S4 328 VALUE PLUS | G173: 600 | H173: 55 | I173: - | J173: 22.5 | K173: 169/166 | L173: A8 | P173: 0 | Q173: 2595.3
A174: 0050888 | B174: 3665263508884 | C174: RC AG MAX 145 R10 74N CR-966 4 | D174: 14510350BCR9667445RC | E174: REMORQUES ROUTIERES | F174: S4 CR-966 | G174: 145 | I174: R | J174: 10 | K174: 74 | L174: N | P174: 0 | Q174: 154.8
A175: 0051007 | B175: 3665263510078 | C175: RC AG ALL 650/55R26.5 167E A380 10 0 | D175: 6505526520A3801671RC | E175: REMORQUES AGRICOLES | F175: S4 A380 | G175: 650 | H175: 55 | I175: R | J175: 26.5 | K175: 167 | L175: E | P175: 0 | Q175: 2476.2
A176: 0051064 | B176: 3665263510641 | C176: PN ALL SA. 405/70R20 155 A2 570 | D176: 4057020A2570155 | E176: INDUSTRIE | F176: S4 570 | G176: 405 | H176: 70 | I176: R | J176: 20 | K176: 143 | L176: B | P176: 0 | Q176: 1021.9
A177: 0051100 | B177: 3665263511006 | C177: RC AG ALL 400/60-15.5 145A8 A328 6 0 | D177: 4006015513A3281452RC | E177: REMORQUES AGRICOLES | F177: S4 328 VALUE PLUS | G177: 400 | H177: 60 | I177: - | J177: 15.5 | K177: 145/142 | L177: A8 | P177: 0 | Q177: 563
A178: 0051143 | B178: 3665263511433 | C178: RC AG ALL 650/60R26.5 170E A380 10 0 | D178: 6506026520A3801701RC | E178: REMORQUES AGRICOLES | F178: S4 A380 | G178: 650 | H178: 60 | I178: R | J178: 26.5 | K178: 170 | L178: E | P178: 0 | Q178: 3904.8
A179: 0051507 | B179: 3665263515073 | C179: PN MIT.SA 4.10X3.50 - 4 4PR KT602 | D179: 4103504KT6024PR | E179: MOTOCULTURE | F179: S4 KT602 | G179: 3.5 | I179: - | J179: 4 | K179: 4PR | P179: 0 | Q179: 14.6
A180: 0051508 | B180: 3665263515080 | C180: PN MIT.SA 4.10X3.50 - 5 4PR KT602 | D180: 4103505KT6024PR | E180: MOTOCULTURE | F180: S4 KT602 | G180: 3.5 | I180: - | J180: 5 | K180: 4PR | P180: 0 | Q180: 15.5
A181: 0051509 | B181: 3665263515097 | C181: PN MIT.SA 4.10X3.50 - 6 4PR KT602 | D181: 4103506KT6024PR | E181: MOTOCULTURE | F181: S4 KT602 | G181: 3.5 | I181: - | J181: 6 | K181: 4PR | P181: 0 | Q181: 16
A182: 0051510 | B182: 3665263515103 | C182: PN MIT.SA 11X4.00 - 4 4PR KT302 | D182: 114004KT3024PR | E182: MOTOCULTURE | F182: S4 KT302 | G182: 4 | I182: - | J182: 4 | K182: 4PR | P182: 0 | Q182: 16.1
A183: 0051511 | B183: 3665263515110 | C183: PN MIT.SA 13X5.00 - 6 4PR KT302 | D183: 135006KT3024PR | E183: MOTOCULTURE | F183: S4 KT302 | G183: 5 | I183: - | J183: 6 | K183: 4PR | P183: 0 | Q183: 28.2
A184: 0051512 | B184: 3665263515127 | C184: PN MIT.SA 13X6.50 - 6 4PR KT302 | D184: 136506KT3024PR | E184: MOTOCULTURE | F184: S4 KT302 | G184: 6.5 | I184: - | J184: 6 | K184: 4PR | P184: 0 | Q184: 28.3
